Workbook

Sheet README
A1: This file contains national and state level emissions modeling sector total emissions by inventory pollutant and for air quality model species output from SMOKE
A2: Overall totals are provided for both the continental US ("CONUS") and the eastern states.
A3: Emissions are computed for each modeling sector and summarized.
A5: Modeling sector descriptions:
A6: afdust/afdust_adj - area fugitive dust emissions; afdust_adj are the emissions after metorological and land use adjustments
A7: biogenics (beis) - emissions from natural sources
A8: cmv_c1c2 - C1 and C2 commercial marine emissions for US states and offshore areas (excluding Canada/Mexico offshore areas)
A9: cmv_c3 - C3 commercial marine emissions for US states and offshore areas (excluding Canada/Mexico offshore areas)
A10: fertilizer - nonpoint agricultural fertilizer emissions
A11: livestock - nonpoint agricultural livestock emissions
A12: nonpt - nonpoint (county-level) not included in other sectors
A13: nonroad - mobile source emissions from off-road equipment
A14: onroad (plus RPD/RPV/RPP/RPH and onroad_ca_adj) - mobile source emissions on roads; RPD, RPV, RPP, and RPH are specific subcategories based on the type of activity data used
A15: State totals on the "onroad all" tab include the onroad_ca_adj sector, which covers onroad sector emissions in California with emissions adjusted to match state-provided inventories.
A16: othafdust/othafdust_adj - Canada area fugitive dust emissions; othafdust_adj are the emissions after meteorological and land use adjustments
A17: othar - Non-US area sources
A18: onroad_can - Canada onroad sources
A19: onroad_mex - Mexico onroad sources
A20: othpt - Non-US point sources
A21: othptdust - Non-US point source dust sources
A22: ptagfire - agricultural burning emissions as point sources
A23: ptegu - Emissions from EGUs not specifically designated as peaking
A24: ptfire-wild - Point source wildland fire emissions in the US
A25: ptfire-rx - Point source prescribed fire emissions in the US
A26: ptfire_othna - Point source wild and prescribed fire emissions in Canada, Mexico, and Carribbean
A27: ptnonipm - Point source emissions not included in ptegu_pk, ptegu, or pt_oilgas
A28: pt_oilgas - oil and gas emissions from point sources
A29: np_oilgas - oil and gas emissions from nonpoint sources
A30: rail - linehaul railroad emissions
A31: rwc - residential wood combustion emissions
A32: vcp - nonpoint solvent emissions
A34: CMAQ Emission Species
A35: ACET | B35: Acetone
A36: ACROLEIN | B36: Acrolein
A37: ALD2 | B37: Acetaldehyde
A38: ALD2_PRIMARY | B38: Primary Acetaldehyde
A39: ALDX | B39: Higher aldehyde species
A40: BENZENE | B40: Benzene
A41: BUTADIENE13 | B41: 1,3-butadiene
A42: CH4 | B42: Methane
A43: CL2 | B43: Chlorine
A44: CO | B44: Carbon Monoxide
A45: ETH | B45: Ethene
A46: ETHA | B46: Ethane
A47: ETOH | B47: Ethanol
A48: FORM | B48: Formaldehyde
A49: FORM_PRIMARY | B49: Primary Formaldehyde
A50: HCL | B50: Hydrochloric acid
A51: HONO | B51: Nitrous acid
A52: IOLE | B52: Internal olefin species
A53: ISOP | B53: Isoprene
A54: KET | B54: Ketone
A55: MEOH | B55: Methanol
A56: NAPH | B56: Naphthalene
A57: NH3 | B57: Ammonia
A58: NH3_FERT | B58: Ammonia from Fertilizer
A59: NO | B59: Nitric oxide
A60: NO2 | B60: Nitrogen dioxide
A61: NR | B61: Nonreactive
A62: NVOL | B62: Nonvolatile
A63: OLE | B63: Terminal olefin carbon bond
A64: PAL | B64: Aluminum
A65: PAR | B65: Paraffin carbon bond
A66: PCA | B66: Calcium
A67: PCL | B67: Chloride
A68: PEC | B68: Elemental Carbon
A69: PFE | B69: Iron
A70: PH2O | B70: Water
A71: PK | B71: Potassium
A72: PMC | B72: Coarse Particulates
A73: PMFINE | B73: Fine Particulates
A74: PMG | B74: Magnesium
A75: PMN | B75: Manganese
A76: PMOTHR | B76: Primary un-speciated fine PM
A77: PNA | B77: Sodium
A78: PNCOM | B78: Primary non-carbon organic mass
A79: PNH4 | B79: Ammonium
A80: PNO3 | B80: Nitrate
A81: POC | B81: Primary organic carbon
A82: PRPA | B82: Propane
A83: PSI | B83: Silicon
A84: PSO4 | B84: Sulfate
A85: PTI | B85: Titanium
A86: SESQ | B86: Sequiterpenes
A87: SO2 | B87: Sulfur Dioxide
A88: SOAALK | B88: SOA tracer
A89: SULF | B89: Sulfuric acid gas
A90: TERP | B90: Lumped terpene species
A91: TOL | B91: Toluene
A92: UNK | B92: Unknown VOC
A93: UNR | B93: Unreactive VOC
A94: VOC_INV | B94: Inventory total unspeciated Volitile Organic Compounds
A95: XYLMN | B95: Xylenes (mixed isomers) minus naphthalene

Sheet State Totals
B1: 2019ge Anthropogenic state totals. CAPs and non-VOC HAPs are inventory-level except onroad (SMOKE-MOVES), afdust (post-adjusted), and ptegu NOX/SO2 (CEM). VOC HAPs are post-SMOKE and include contributions from speciation. | AA1: State totals including biogenics. | AX1: State totals, no biogenics, no ptfires.
A3: State | B3: CO | C3: NH3 | D3: NOX | E3: PM10 | F3: PM2_5 | G3: SO2 | H3: VOC | I3: Acetaldehyde | J3: Benzene | K3: Formaldehyde | L3: Methanol | M3: Naphthalene | N3: Acrolein | O3: 1,3-Butadiene | P3: Diesel PM10 | Q3: Diesel PM2.5 | R3: Chromium Hex | S3: Arsenic | T3: Cadmium | U3: Nickel | V3: Manganese | W3: ETOX | X3: Eastern state? | AA3: State | AB3: CO | AC3: NH3 | AD3: NOX | AE3: PM10 | AF3: PM2_5 | AG3: SO2 | AH3: VOC | AI3: Acetaldehyde | AJ3: Benzene | AK3: Formaldehyde | AL3: Methanol | AM3: Naphthalene | AN3: Acrolein | AO3: 1,3-Butadiene | AP3: Diesel PM10 | AQ3: Diesel PM2.5 | AR3: Chromium Hex | AS3: Arsenic | AT3: Cadmium | AU3: Nickel | AV3: Manganese | AX3: State | AY3: CO | AZ3: NH3 | BA3: NOX | BB3: PM10 | BC3: PM2_5 | BD3: SO2 | BE3: VOC | BF3: Acetaldehyde | BG3: Benzene | BH3: Formaldehyde | BI3: Methanol | BJ3: Naphthalene | BK3: Acrolein | BL3: 1,3-Butadiene | BM3: Diesel PM10 | BN3: Diesel PM2.5 | BO3: Chromium Hex | BP3: Arsenic | BQ3: Cadmium | BR3: Nickel | BS3: Manganese
A4: Alabama | B4: =rail!B3+nonpt!B3+ptagfire!B3+nonroad!B3+'onroad all'!AG3+cmv_c1c2!B3+'ptfire-rx'!B3+ptegu!B3+ptnonipm!B3+pt_oilgas!B3+np_oilgas!B3+rwc!B3+cmv_c3!B3+airports!B3+'ptfire-wild'!B3+np_solvents!B3 -> 1,350,304 | C4: =rail!C3+nonpt!C3+ptagfire!C3++nonroad!C3+'onroad all'!BZ3+cmv_c1c2!BE3+'ptfire-rx'!C3+ptegu!C3+ptnonipm!C3+pt_oilgas!C3+np_oilgas!C3+rwc!C3+cmv_c3!BE3+livestock!B3+airports!C3+'ptfire-wild'!C3+fertilizer!B3+np_solvents!C3 -> 70,339 | D4: =rail!D3+nonpt!D3+ptagfire!D3++nonroad!D3+cmv_c1c2!D3+'ptfire-rx'!D3+ptegu!DW3+ptnonipm!D3+pt_oilgas!D3+np_oilgas!D3+rwc!D3+cmv_c3!D3+'onroad all'!CI3+airports!D3+'ptfire-wild'!D3+np_solvents!D3 -> 194,745 | E4: =rail!E3+nonpt!E3+ptagfire!E3++nonroad!E3+cmv_c1c2!E3+'ptfire-rx'!E3+ptegu!E3+ptnonipm!E3+pt_oilgas!E3+np_oilgas!E3+rwc!E3+cmv_c3!E3+afdust!BA3+'onroad all'!DE3+'onroad all'!DD3+airports!E3+'ptfire-wild'!E3+np_solvents!E3 -> 170,615 | F4: =rail!F3+nonpt!F3+ptagfire!F3++nonroad!F3+cmv_c1c2!F3+'ptfire-rx'!F3+ptegu!F3+ptnonipm!F3+pt_oilgas!F3+np_oilgas!F3+rwc!F3+cmv_c3!F3+afdust!BB3+'onroad all'!DD3+airports!F3+'ptfire-wild'!F3+np_solvents!F3 -> 86,279 | G4: =rail!G3+nonpt!G3+ptagfire!G3++nonroad!G3+'onroad all'!DU3+cmv_c1c2!G3+'ptfire-rx'!G3+ptegu!FH3+ptnonipm!G3+pt_oilgas!G3+np_oilgas!G3+rwc!G3+cmv_c3!G3+airports!G3+'ptfire-wild'!G3+np_solvents!G3 -> 54,895 | H4: =rail!H3+nonpt!H3+ptagfire!H3++nonroad!H3+'onroad all'!EI3+cmv_c1c2!H3+'ptfire-rx'!H3+ptegu!H3+ptnonipm!H3+pt_oilgas!H3+np_oilgas!H3+rwc!H3+cmv_c3!H3+livestock!C3+airports!H3+'ptfire-wild'!H3+np_solvents!H3 -> 270,112 | I4: =rail!AO3+nonpt!BN3+ptagfire!AJ3+nonroad!AK3+'onroad all'!H3+cmv_c1c2!O3+'ptfire-rx'!AO3+ptegu!BM3+ptnonipm!BX3+pt_oilgas!BM3+np_oilgas!AU3+rwc!AH3+cmv_c3!O3+livestock!U3+airports!AJ3+'ptfire-wild'!AL3+np_solvents!AU3 -> 4,537 | J4: =rail!AU3+nonpt!BT3+ptagfire!AN3+nonroad!AP3+'onroad all'!P3+cmv_c1c2!T3+'ptfire-rx'!AS3+ptegu!BS3+ptnonipm!CD3+pt_oilgas!BS3+np_oilgas!BA3+rwc!AL3+cmv_c3!T3+livestock!X3+airports!AM3+'ptfire-wild'!AP3+np_solvents!AY3 -> 3,377 | K4: =rail!BR3+nonpt!CY3+ptagfire!AY3+nonroad!BH3+'onroad all'!BC3+cmv_c1c2!AO3+'ptfire-rx'!BE3+ptegu!CX3+ptnonipm!DP3+pt_oilgas!CW3+np_oilgas!BW3+rwc!AY3+cmv_c3!AP3+livestock!AH3+airports!BE3+'ptfire-wild'!BA3+np_solvents!BR3 -> 10,380 | L4: =rail!CF3+nonpt!DO3+ptagfire!BH3+nonroad!BT3+'onroad all'!BU3+cmv_c1c2!BC3+'ptfire-rx'!BP3+ptegu!DM3+ptnonipm!EH3+pt_oilgas!DM3+np_oilgas!CK3+rwc!BJ3+cmv_c3!BC3+livestock!AN3+airports!BN3+'ptfire-wild'!BL3+np_solvents!CF3 -> 12,132 | M4: =rail!CG3+nonpt!DQ3+nonroad!BU3+'onroad all'!BY3+cmv_c1c2!BD3+'ptfire-rx'!BR3+ptegu!DO3+ptnonipm!EJ3+pt_oilgas!DO3+np_oilgas!CL3+rwc!BK3+cmv_c3!BD3+airports!BO3+'ptfire-wild'!BN3+np_solvents!CG3+ptagfire!BJ3 -> 1,217 | N4: =rail!AN3+nonpt!BK3+nonroad!AJ3+'onroad all'!G3+cmv_c1c2!M3+'ptfire-rx'!AL3+ptegu!BK3+ptnonipm!BU3+pt_oilgas!BK3+np_oilgas!AT3+rwc!AG3+airports!AH3+cmv_c3!M3+'ptfire-wild'!AJ3+ptagfire!AH3 -> 1,770 | O4: =rail!AY3+nonpt!O3+ptagfire!AP3+nonroad!AR3+'onroad all'!Z3+cmv_c1c2!V3+'ptfire-rx'!AU3+ptegu!BX3+ptnonipm!CI3+pt_oilgas!BX3+np_oilgas!BD3+rwc!AN3+airports!AO3+cmv_c3!V3+'ptfire-wild'!AR3+np_solvents!AE3 -> 1,429 | P4: =rail!AD3+nonroad!AD3+'onroad all'!AK3+'onroad all'!AL3+'onroad all'!AM3+'onroad all'!AN3+'onroad all'!AO3+'onroad all'!AP3+ptnonipm!BI3+SUM(airports!AR3:AW3)+SUM(cmv_c1c2!AC3:AH3)+SUM(cmv_c3!AC3:AH3) -> 2,489 | Q4: =rail!AE3+nonroad!AE3+'onroad all'!AL3+'onroad all'!AM3+'onroad all'!AN3+'onroad all'!AO3+'onroad all'!AP3+ptnonipm!BJ3+SUM(airports!AS3:AW3)+SUM(cmv_c1c2!AD3:AH3)+SUM(cmv_c3!AD3:AH3) -> 2,346 | R4: =rail!P3+nonpt!T3+nonroad!R3+'onroad all'!AC3+ptegu!T3+ptnonipm!T3+pt_oilgas!S3+np_oilgas!Q3+SUM(cmv_c1c2!Z3:AA3)+SUM(cmv_c3!Z3:AA3) -> 1.00 | S4: =rail!K3+nonpt!L3+nonroad!U3+'onroad all'!M3+ptegu!L3+ptnonipm!L3+pt_oilgas!K3+np_oilgas!K3+SUM(cmv_c1c2!R3:S3)+SUM(cmv_c3!R3:S3) -> 1.21 | T4: =rail!O3+nonpt!P3+ptegu!P3+ptnonipm!P3+pt_oilgas!O3+np_oilgas!N3+rwc!M3+SUM(cmv_c1c2!W3:X3)+SUM(cmv_c3!W3:X3) -> 0.69 | U4: =rail!V3+nonpt!AI3+nonroad!T3+'onroad all'!CB3+ptegu!AH3+ptnonipm!AL3+pt_oilgas!AG3+np_oilgas!AA3+rwc!R3+SUM(cmv_c1c2!BF3:BG3)+SUM(cmv_c3!BF3:BG3) -> 6.44 | V4: =rail!T3+nonpt!AE3+nonroad!S3+'onroad all'!BS3+'onroad all'!BT3+ptegu!AD3+ptnonipm!AH3+pt_oilgas!AC3+np_oilgas!W3+rwc!P3+SUM(cmv_c1c2!BA3:BB3)+SUM(cmv_c3!BA3:BB3) -> 36.36 | W4: =nonpt!CW3+ptegu!BB3+ptnonipm!Z3 -> 0.21 | X4: X | AA4: Alabama | AB4: =B4+beis!H3 -> 1,482,902 | AC4: =C4 -> 70,339 | AD4: =D4+beis!T3 -> 217,039 | AE4: =E4 -> 170,615 | AF4: =F4 -> 86,279 | AG4: =G4 -> 54,895 | AH4: =H4+beis!Z3 -> 1,747,084 | AI4: =I4+beis!E3 -> 18,417 | AJ4: =J4 -> 3,377 | AK4: =K4+beis!N3 -> 29,309 | AL4: =L4+beis!R3 -> 93,730 | AM4: =M4 -> 1,217 | AN4: 1,770 | AO4: 1,429 | AP4: 2,489 | AQ4: 2,346 | AR4: 1.00 | AS4: 1.21 | AT4: 0.69 | AU4: 6.44 | AV4: 36.36 | AX4: Alabama | AY4: =B4-'ptfire-rx'!B3-'ptfire-wild'!B3 -> 874,085 | AZ4: =C4-'ptfire-rx'!C3-'ptfire-wild'!C3 -> 62,453 | BA4: =D4-'ptfire-rx'!D3-'ptfire-wild'!D3 -> 184,623 | BB4: =E4-'ptfire-rx'!E3-'ptfire-wild'!E3 -> 118,934 | BC4: =F4-'ptfire-rx'!F3-'ptfire-wild'!F3 -> 42,482 | BD4: =G4-'ptfire-rx'!G3-'ptfire-wild'!G3 -> 50,208 | BE4: =H4-'ptfire-rx'!H3-'ptfire-wild'!H3 -> 156,746 | BF4: =I4-'ptfire-rx'!AO3-'ptfire-wild'!AL3 -> 1,347 | BG4: =J4-'ptfire-rx'!AS3-'ptfire-wild'!AP3 -> 1,918 | BH4: =K4-'ptfire-rx'!BE3-'ptfire-wild'!BA3 -> 2,217 | BI4: =L4-'ptfire-rx'!BP3-'ptfire-wild'!BL3 -> 7,288 | BJ4: =M4-'ptfire-rx'!BR3-'ptfire-wild'!BN3 -> 234 | BK4: =N4-'ptfire-rx'!AL3-'ptfire-wild'!AJ3 -> 236 | BL4: =O4-'ptfire-rx'!AU3-'ptfire-wild'!AR3 -> 267 | BM4: =P4 -> 2,489 | BN4: 2,346 | BO4: 1.00 | BP4: 1.21 | BQ4: 0.69 | BR4: 6.44 | BS4: 36.36
A5: Arizona | B5: =rail!B4+nonpt!B4+ptagfire!B4+nonroad!B4+'onroad all'!AG4+cmv_c1c2!B4+'ptfire-rx'!B4+ptegu!B4+ptnonipm!B4+pt_oilgas!B4+np_oilgas!B4+rwc!B4+cmv_c3!B4+airports!B4+'ptfire-wild'!B4+np_solvents!B4 -> 977,754 | C5: =rail!C4+nonpt!C4+ptagfire!C4++nonroad!C4+'onroad all'!BZ4+cmv_c1c2!BE4+'ptfire-rx'!C4+ptegu!C4+ptnonipm!C4+pt_oilgas!C4+np_oilgas!C4+rwc!C4+cmv_c3!BE4+livestock!B4+airports!C4+'ptfire-wild'!C4+fertilizer!B4+np_solvents!C4 -> 65,009 | D5: =rail!D4+nonpt!D4+ptagfire!D4++nonroad!D4+cmv_c1c2!D4+'ptfire-rx'!D4+ptegu!DW4+ptnonipm!D4+pt_oilgas!D4+np_oilgas!D4+rwc!D4+cmv_c3!D4+'onroad all'!CI4+airports!D4+'ptfire-wild'!D4+np_solvents!D4 -> 140,190 | E5: =rail!E4+nonpt!E4+ptagfire!E4++nonroad!E4+cmv_c1c2!E4+'ptfire-rx'!E4+ptegu!E4+ptnonipm!E4+pt_oilgas!E4+np_oilgas!E4+rwc!E4+cmv_c3!E4+afdust!BA4+'onroad all'!DE4+'onroad all'!DD4+airports!E4+'ptfire-wild'!E4+np_solvents!E4 -> 170,509 | F5: =rail!F4+nonpt!F4+ptagfire!F4++nonroad!F4+cmv_c1c2!F4+'ptfire-rx'!F4+ptegu!F4+ptnonipm!F4+pt_oilgas!F4+np_oilgas!F4+rwc!F4+cmv_c3!F4+afdust!BB4+'onroad all'!DD4+airports!F4+'ptfire-wild'!F4+np_solvents!F4 -> 58,843 | G5: =rail!G4+nonpt!G4+ptagfire!G4++nonroad!G4+'onroad all'!DU4+cmv_c1c2!G4+'ptfire-rx'!G4+ptegu!FH4+ptnonipm!G4+pt_oilgas!G4+np_oilgas!G4+rwc!G4+cmv_c3!G4+airports!G4+'ptfire-wild'!G4+np_solvents!G4 -> 18,230 | H5: =rail!H4+nonpt!H4+ptagfire!H4++nonroad!H4+'onroad all'!EI4+cmv_c1c2!H4+'ptfire-rx'!H4+ptegu!H4+ptnonipm!H4+pt_oilgas!H4+np_oilgas!H4+rwc!H4+cmv_c3!H4+livestock!C4+airports!H4+'ptfire-wild'!H4+np_solvents!H4 -> 198,043 | I5: =rail!AO4+nonpt!BN4+ptagfire!AJ4+nonroad!AK4+'onroad all'!H4+cmv_c1c2!O4+'ptfire-rx'!AO4+ptegu!BM4+ptnonipm!BX4+pt_oilgas!BM4+np_oilgas!AU4+rwc!AH4+cmv_c3!O4+livestock!U4+airports!AJ4+'ptfire-wild'!AL4+np_solvents!AU4 -> 3,309 | J5: =rail!AU4+nonpt!BT4+ptagfire!AN4+nonroad!AP4+'onroad all'!P4+cmv_c1c2!T4+'ptfire-rx'!AS4+ptegu!BS4+ptnonipm!CD4+pt_oilgas!BS4+np_oilgas!BA4+rwc!AL4+cmv_c3!T4+livestock!X4+airports!AM4+'ptfire-wild'!AP4+np_solvents!AY4 -> 1,883 | K5: =rail!BR4+nonpt!CY4+ptagfire!AY4+nonroad!BH4+'onroad all'!BC4+cmv_c1c2!AO4+'ptfire-rx'!BE4+ptegu!CX4+ptnonipm!DP4+pt_oilgas!CW4+np_oilgas!BW4+rwc!AY4+cmv_c3!AP4+livestock!AH4+airports!BE4+'ptfire-wild'!BA4+np_solvents!BR4 -> 5,170 | L5: =rail!CF4+nonpt!DO4+ptagfire!BH4+nonroad!BT4+'onroad all'!BU4+cmv_c1c2!BC4+'ptfire-rx'!BP4+ptegu!DM4+ptnonipm!EH4+pt_oilgas!DM4+np_oilgas!CK4+rwc!BJ4+cmv_c3!BC4+livestock!AN4+airports!BN4+'ptfire-wild'!BL4+np_solvents!CF4 -> 5,140 | M5: =rail!CG4+nonpt!DQ4+nonroad!BU4+'onroad all'!BY4+cmv_c1c2!BD4+'ptfire-rx'!BR4+ptegu!DO4+ptnonipm!EJ4+pt_oilgas!DO4+np_oilgas!CL4+rwc!BK4+cmv_c3!BD4+airports!BO4+'ptfire-wild'!BN4+np_solvents!CG4+ptagfire!BJ4 -> 981 | N5: =rail!AN4+nonpt!BK4+nonroad!AJ4+'onroad all'!G4+cmv_c1c2!M4+'ptfire-rx'!AL4+ptegu!BK4+ptnonipm!BU4+pt_oilgas!BK4+np_oilgas!AT4+rwc!AG4+airports!AH4+cmv_c3!M4+'ptfire-wild'!AJ4+ptagfire!AH4 -> 873 | O5: =rail!AY4+nonpt!O4+ptagfire!AP4+nonroad!AR4+'onroad all'!Z4+cmv_c1c2!V4+'ptfire-rx'!AU4+ptegu!BX4+ptnonipm!CI4+pt_oilgas!BX4+np_oilgas!BD4+rwc!AN4+airports!AO4+cmv_c3!V4+'ptfire-wild'!AR4+np_solvents!AE4 -> 583 | P5: =rail!AD4+nonroad!AD4+'onroad all'!AK4+'onroad all'!AL4+'onroad all'!AM4+'onroad all'!AN4+'onroad all'!AO4+'onroad all'!AP4+ptnonipm!BI4+SUM(airports!AR4:AW4)+SUM(cmv_c1c2!AC4:AH4)+SUM(cmv_c3!AC4:AH4) -> 2,812 | Q5: =rail!AE4+nonroad!AE4+'onroad all'!AL4+'onroad all'!AM4+'onroad all'!AN4+'onroad all'!AO4+'onroad all'!AP4+ptnonipm!BJ4+SUM(airports!AS4:AW4)+SUM(cmv_c1c2!AD4:AH4)+SUM(cmv_c3!AD4:AH4) -> 2,669 | R5: =rail!P4+nonpt!T4+nonroad!R4+'onroad all'!AC4+ptegu!T4+ptnonipm!T4+pt_oilgas!S4+np_oilgas!Q4+SUM(cmv_c1c2!Z4:AA4)+SUM(cmv_c3!Z4:AA4) -> 0.11 | S5: =rail!K4+nonpt!L4+nonroad!U4+'onroad all'!M4+ptegu!L4+ptnonipm!L4+pt_oilgas!K4+np_oilgas!K4+SUM(cmv_c1c2!R4:S4)+SUM(cmv_c3!R4:S4) -> 3.39 | T5: =rail!O4+nonpt!P4+ptegu!P4+ptnonipm!P4+pt_oilgas!O4+np_oilgas!N4+rwc!M4+SUM(cmv_c1c2!W4:X4)+SUM(cmv_c3!W4:X4) -> 0.55 | U5: =rail!V4+nonpt!AI4+nonroad!T4+'onroad all'!CB4+ptegu!AH4+ptnonipm!AL4+pt_oilgas!AG4+np_oilgas!AA4+rwc!R4+SUM(cmv_c1c2!BF4:BG4)+SUM(cmv_c3!BF4:BG4) -> 3.31 | V5: =rail!T4+nonpt!AE4+nonroad!S4+'onroad all'!BS4+'onroad all'!BT4+ptegu!AD4+ptnonipm!AH4+pt_oilgas!AC4+np_oilgas!W4+rwc!P4+SUM(cmv_c1c2!BA4:BB4)+SUM(cmv_c3!BA4:BB4) -> 4.60 | W5: =nonpt!CW4+ptegu!BB4+ptnonipm!Z4 -> 2.08 | AA5: Arizona | AB5: =B5+beis!H4 -> 1,127,802 | AC5: =C5 -> 65,009 | AD5: =D5+beis!T4 -> 151,854 | AE5: =E5 -> 170,509 | AF5: =F5 -> 58,843 | AG5: =G5 -> 18,230 | AH5: =H5+beis!Z4 -> 909,120 | AI5: =I5+beis!E4 -> 19,029 | AJ5: =J5 -> 1,883 | AK5: =K5+beis!N4 -> 26,605 | AL5: =L5+beis!R4 -> 96,458 | AM5: =M5 -> 981 | AN5: =N5 -> 873 | AO5: =O5 -> 583 | AP5: =P5 -> 2,812 | AQ5: =Q5 -> 2,669 | AR5: =R5 -> 0.11 | AS5: =S5 -> 3.39 | AT5: =T5 -> 0.55 | AU5: =U5 -> 3.31 | AV5: =V5 -> 4.60 | AX5: Arizona | AY5: =B5-'ptfire-rx'!B4-'ptfire-wild'!B4 -> 662,724 | AZ5: =C5-'ptfire-rx'!C4-'ptfire-wild'!C4 -> 59,807 | BA5: =D5-'ptfire-rx'!D4-'ptfire-wild'!D4 -> 134,284 | BB5: =E5-'ptfire-rx'!E4-'ptfire-wild'!E4 -> 137,026 | BC5: =F5-'ptfire-rx'!F4-'ptfire-wild'!F4 -> 30,468 | BD5: =G5-'ptfire-rx'!G4-'ptfire-wild'!G4 -> 15,371 | BE5: =H5-'ptfire-rx'!H4-'ptfire-wild'!H4 -> 123,269 | BF5: =I5-'ptfire-rx'!AO4-'ptfire-wild'!AL4 -> 862 | BG5: =J5-'ptfire-rx'!AS4-'ptfire-wild'!AP4 -> 1,226 | BH5: =K5-'ptfire-rx'!BE4-'ptfire-wild'!BA4 -> 1,501 | BI5: =L5-'ptfire-rx'!BP4-'ptfire-wild'!BL4 -> 1,776 | BJ5: =M5-'ptfire-rx'!BR4-'ptfire-wild'!BN4 -> 272 | BK5: =N5-'ptfire-rx'!AL4-'ptfire-wild'!AJ4 -> 125 | BL5: =O5-'ptfire-rx'!AU4-'ptfire-wild'!AR4 -> 186 | BM5: =P5 -> 2,812 | BN5: =Q5 -> 2,669 | BO5: =R5 -> 0.11 | BP5: =S5 -> 3.39 | BQ5: =T5 -> 0.55 | BR5: =U5 -> 3.31 | BS5: =V5 -> 4.60
A6: Arkansas | B6: =rail!B5+nonpt!B5+ptagfire!B5+nonroad!B5+'onroad all'!AG5+cmv_c1c2!B5+'ptfire-rx'!B5+ptegu!B5+ptnonipm!B5+pt_oilgas!B5+np_oilgas!B5+rwc!B5+cmv_c3!B5+airports!B5+'ptfire-wild'!B5+np_solvents!B5 -> 1,055,616 | C6: =rail!C5+nonpt!C5+ptagfire!C5++nonroad!C5+'onroad all'!BZ5+cmv_c1c2!BE5+'ptfire-rx'!C5+ptegu!C5+ptnonipm!C5+pt_oilgas!C5+np_oilgas!C5+rwc!C5+cmv_c3!BE5+livestock!B5+airports!C5+'ptfire-wild'!C5+fertilizer!B5+np_solvents!C5 -> 98,336 | D6: =rail!D5+nonpt!D5+ptagfire!D5++nonroad!D5+cmv_c1c2!D5+'ptfire-rx'!D5+ptegu!DW5+ptnonipm!D5+pt_oilgas!D5+np_oilgas!D5+rwc!D5+cmv_c3!D5+'onroad all'!CI5+airports!D5+'ptfire-wild'!D5+np_solvents!D5 -> 146,405 | E6: =rail!E5+nonpt!E5+ptagfire!E5++nonroad!E5+cmv_c1c2!E5+'ptfire-rx'!E5+ptegu!E5+ptnonipm!E5+pt_oilgas!E5+np_oilgas!E5+rwc!E5+cmv_c3!E5+afdust!BA5+'onroad all'!DE5+'onroad all'!DD5+airports!E5+'ptfire-wild'!E5+np_solvents!E5 -> 193,825 | F6: =rail!F5+nonpt!F5+ptagfire!F5++nonroad!F5+cmv_c1c2!F5+'ptfire-rx'!F5+ptegu!F5+ptnonipm!F5+pt_oilgas!F5+np_oilgas!F5+rwc!F5+cmv_c3!F5+afdust!BB5+'onroad all'!DD5+airports!F5+'ptfire-wild'!F5+np_solvents!F5 -> 95,295 | G6: =rail!G5+nonpt!G5+ptagfire!G5++nonroad!G5+'onroad all'!DU5+cmv_c1c2!G5+'ptfire-rx'!G5+ptegu!FH5+ptnonipm!G5+pt_oilgas!G5+np_oilgas!G5+rwc!G5+cmv_c3!G5+airports!G5+'ptfire-wild'!G5+np_solvents!G5 -> 53,842 | H6: =rail!H5+nonpt!H5+ptagfire!H5++nonroad!H5+'onroad all'!EI5+cmv_c1c2!H5+'ptfire-rx'!H5+ptegu!H5+ptnonipm!H5+pt_oilgas!H5+np_oilgas!H5+rwc!H5+cmv_c3!H5+livestock!C5+airports!H5+'ptfire-wild'!H5+np_solvents!H5 -> 242,894 | I6: =rail!AO5+nonpt!BN5+ptagfire!AJ5+nonroad!AK5+'onroad all'!H5+cmv_c1c2!O5+'ptfire-rx'!AO5+ptegu!BM5+ptnonipm!BX5+pt_oilgas!BM5+np_oilgas!AU5+rwc!AH5+cmv_c3!O5+livestock!U5+airports!AJ5+'ptfire-wild'!AL5+np_solvents!AU5 -> 4,262 | J6: =rail!AU5+nonpt!BT5+ptagfire!AN5+nonroad!AP5+'onroad all'!P5+cmv_c1c2!T5+'ptfire-rx'!AS5+ptegu!BS5+ptnonipm!CD5+pt_oilgas!BS5+np_oilgas!BA5+rwc!AL5+cmv_c3!T5+livestock!X5+airports!AM5+'ptfire-wild'!AP5+np_solvents!AY5 -> 2,611 | K6: =rail!BR5+nonpt!CY5+ptagfire!AY5+nonroad!BH5+'onroad all'!BC5+cmv_c1c2!AO5+'ptfire-rx'!BE5+ptegu!CX5+ptnonipm!DP5+pt_oilgas!CW5+np_oilgas!BW5+rwc!AY5+cmv_c3!AP5+livestock!AH5+airports!BE5+'ptfire-wild'!BA5+np_solvents!BR5 -> 9,704 | L6: =rail!CF5+nonpt!DO5+ptagfire!BH5+nonroad!BT5+'onroad all'!BU5+cmv_c1c2!BC5+'ptfire-rx'!BP5+ptegu!DM5+ptnonipm!EH5+pt_oilgas!DM5+np_oilgas!CK5+rwc!BJ5+cmv_c3!BC5+livestock!AN5+airports!BN5+'ptfire-wild'!BL5+np_solvents!CF5 -> 8,029 | M6: =rail!CG5+nonpt!DQ5+nonroad!BU5+'onroad all'!BY5+cmv_c1c2!BD5+'ptfire-rx'!BR5+ptegu!DO5+ptnonipm!EJ5+pt_oilgas!DO5+np_oilgas!CL5+rwc!BK5+cmv_c3!BD5+airports!BO5+'ptfire-wild'!BN5+np_solvents!CG5+ptagfire!BJ5 -> 1,062 | N6: =rail!AN5+nonpt!BK5+nonroad!AJ5+'onroad all'!G5+cmv_c1c2!M5+'ptfire-rx'!AL5+ptegu!BK5+ptnonipm!BU5+pt_oilgas!BK5+np_oilgas!AT5+rwc!AG5+airports!AH5+cmv_c3!M5+'ptfire-wild'!AJ5+ptagfire!AH5 -> 1,612 | O6: =rail!AY5+nonpt!O5+ptagfire!AP5+nonroad!AR5+'onroad all'!Z5+cmv_c1c2!V5+'ptfire-rx'!AU5+ptegu!BX5+ptnonipm!CI5+pt_oilgas!BX5+np_oilgas!BD5+rwc!AN5+airports!AO5+cmv_c3!V5+'ptfire-wild'!AR5+np_solvents!AE5 -> 1,385 | P6: =rail!AD5+nonroad!AD5+'onroad all'!AK5+'onroad all'!AL5+'onroad all'!AM5+'onroad all'!AN5+'onroad all'!AO5+'onroad all'!AP5+ptnonipm!BI5+SUM(airports!AR5:AW5)+SUM(cmv_c1c2!AC5:AH5)+SUM(cmv_c3!AC5:AH5) -> 2,421 | Q6: =rail!AE5+nonroad!AE5+'onroad all'!AL5+'onroad all'!AM5+'onroad all'!AN5+'onroad all'!AO5+'onroad all'!AP5+ptnonipm!BJ5+SUM(airports!AS5:AW5)+SUM(cmv_c1c2!AD5:AH5)+SUM(cmv_c3!AD5:AH5) -> 2,296 | R6: =rail!P5+nonpt!T5+nonroad!R5+'onroad all'!AC5+ptegu!T5+ptnonipm!T5+pt_oilgas!S5+np_oilgas!Q5+SUM(cmv_c1c2!Z5:AA5)+SUM(cmv_c3!Z5:AA5) -> 0.53 | S6: =rail!K5+nonpt!L5+nonroad!U5+'onroad all'!M5+ptegu!L5+ptnonipm!L5+pt_oilgas!K5+np_oilgas!K5+SUM(cmv_c1c2!R5:S5)+SUM(cmv_c3!R5:S5) -> 3.13 | T6: =rail!O5+nonpt!P5+ptegu!P5+ptnonipm!P5+pt_oilgas!O5+np_oilgas!N5+rwc!M5+SUM(cmv_c1c2!W5:X5)+SUM(cmv_c3!W5:X5) -> 0.29 | U6: =rail!V5+nonpt!AI5+nonroad!T5+'onroad all'!CB5+ptegu!AH5+ptnonipm!AL5+pt_oilgas!AG5+np_oilgas!AA5+rwc!R5+SUM(cmv_c1c2!BF5:BG5)+SUM(cmv_c3!BF5:BG5) -> 3.06 | V6: =rail!T5+nonpt!AE5+nonroad!S5+'onroad all'!BS5+'onroad all'!BT5+ptegu!AD5+ptnonipm!AH5+pt_oilgas!AC5+np_oilgas!W5+rwc!P5+SUM(cmv_c1c2!BA5:BB5)+SUM(cmv_c3!BA5:BB5) -> 16.30 | W6: =nonpt!CW5+ptegu!BB5+ptnonipm!Z5 -> 1.36 | X6: X | AA6: Arkansas | AB6: =B6+beis!H5 -> 1,163,002 | AC6: 98,336 | AD6: =D6+beis!T5 -> 170,804 | AE6: 193,825 | AF6: 95,295 | AG6: 53,842 | AH6: =H6+beis!Z5 -> 1,395,192 | AI6: =I6+beis!E5 -> 15,500 | AJ6: 2,611 | AK6: =K6+beis!N5 -> 25,029 | AL6: =L6+beis!R5 -> 70,464 | AM6: 1,062 | AN6: 1,612 | AO6: 1,385 | AP6: 2,421 | AQ6: 2,296 | AR6: 0.53 | AS6: 3.13 | AT6: 0.29 | AU6: 3.06 | AV6: 16.30 | AX6: Arkansas | AY6: =B6-'ptfire-rx'!B5-'ptfire-wild'!B5 -> 521,228 | AZ6: =C6-'ptfire-rx'!C5-'ptfire-wild'!C5 -> 89,538 | BA6: =D6-'ptfire-rx'!D5-'ptfire-wild'!D5 -> 137,689 | BB6: =E6-'ptfire-rx'!E5-'ptfire-wild'!E5 -> 138,190 | BC6: =F6-'ptfire-rx'!F5-'ptfire-wild'!F5 -> 48,147 | BD6: =G6-'ptfire-rx'!G5-'ptfire-wild'!G5 -> 49,390 | BE6: =H6-'ptfire-rx'!H5-'ptfire-wild'!H5 -> 116,417 | BF6: =I6-'ptfire-rx'!AO5-'ptfire-wild'!AL5 -> 1,338 | BG6: =J6-'ptfire-rx'!AS5-'ptfire-wild'!AP5 -> 1,317 | BH6: =K6-'ptfire-rx'!BE5-'ptfire-wild'!BA5 -> 2,051 | BI6: =L6-'ptfire-rx'!BP5-'ptfire-wild'!BL5 -> 3,536 | BJ6: =M6-'ptfire-rx'!BR5-'ptfire-wild'!BN5 -> 155 | BK6: =N6-'ptfire-rx'!AL5-'ptfire-wild'!AJ5 -> 144 | BL6: =O6-'ptfire-rx'!AU5-'ptfire-wild'!AR5 -> 217 | BM6: 2,421 | BN6: 2,296 | BO6: 0.53 | BP6: 3.13 | BQ6: 0.29 | BR6: 3.06 | BS6: 16.30
A7: California | B7: =rail!B6+nonpt!B6+ptagfire!B6+nonroad!B6+'onroad all'!AG6+cmv_c1c2!B6+'ptfire-rx'!B6+ptegu!B6+ptnonipm!B6+pt_oilgas!B6+np_oilgas!B6+rwc!B6+cmv_c3!B6+airports!B6+'ptfire-wild'!B6+np_solvents!B6 -> 2,158,176 | C7: =rail!C6+nonpt!C6+ptagfire!C6++nonroad!C6+'onroad all'!BZ6+cmv_c1c2!BE6+'ptfire-rx'!C6+ptegu!C6+ptnonipm!C6+pt_oilgas!C6+np_oilgas!C6+rwc!C6+cmv_c3!BE6+livestock!B6+airports!C6+'ptfire-wild'!C6+fertilizer!B6+np_solvents!C6 -> 480,622 | D7: =rail!D6+nonpt!D6+ptagfire!D6++nonroad!D6+cmv_c1c2!D6+'ptfire-rx'!D6+ptegu!DW6+ptnonipm!D6+pt_oilgas!D6+np_oilgas!D6+rwc!D6+cmv_c3!D6+'onroad all'!CI6+airports!D6+'ptfire-wild'!D6+np_solvents!D6 -> 411,995 | E7: =rail!E6+nonpt!E6+ptagfire!E6++nonroad!E6+cmv_c1c2!E6+'ptfire-rx'!E6+ptegu!E6+ptnonipm!E6+pt_oilgas!E6+np_oilgas!E6+rwc!E6+cmv_c3!E6+afdust!BA6+'onroad all'!DE6+'onroad all'!DD6+airports!E6+'ptfire-wild'!E6+np_solvents!E6 -> 336,852 | F7: =rail!F6+nonpt!F6+ptagfire!F6++nonroad!F6+cmv_c1c2!F6+'ptfire-rx'!F6+ptegu!F6+ptnonipm!F6+pt_oilgas!F6+np_oilgas!F6+rwc!F6+cmv_c3!F6+afdust!BB6+'onroad all'!DD6+airports!F6+'ptfire-wild'!F6+np_solvents!F6 -> 144,763 | G7: =rail!G6+nonpt!G6+ptagfire!G6++nonroad!G6+'onroad all'!DU6+cmv_c1c2!G6+'ptfire-rx'!G6+ptegu!FH6+ptnonipm!G6+pt_oilgas!G6+np_oilgas!G6+rwc!G6+cmv_c3!G6+airports!G6+'ptfire-wild'!G6+np_solvents!G6 -> 24,914 | H7: =rail!H6+nonpt!H6+ptagfire!H6++nonroad!H6+'onroad all'!EI6+cmv_c1c2!H6+'ptfire-rx'!H6+ptegu!H6+ptnonipm!H6+pt_oilgas!H6+np_oilgas!H6+rwc!H6+cmv_c3!H6+livestock!C6+airports!H6+'ptfire-wild'!H6+np_solvents!H6 -> 761,066 | I7: =rail!AO6+nonpt!BN6+ptagfire!AJ6+nonroad!AK6+'onroad all'!H6+cmv_c1c2!O6+'ptfire-rx'!AO6+ptegu!BM6+ptnonipm!BX6+pt_oilgas!BM6+np_oilgas!AU6+rwc!AH6+cmv_c3!O6+livestock!U6+airports!AJ6+'ptfire-wild'!AL6+np_solvents!AU6 -> 9,238 | J7: =rail!AU6+nonpt!BT6+ptagfire!AN6+nonroad!AP6+'onroad all'!P6+cmv_c1c2!T6+'ptfire-rx'!AS6+ptegu!BS6+ptnonipm!CD6+pt_oilgas!BS6+np_oilgas!BA6+rwc!AL6+cmv_c3!T6+livestock!X6+airports!AM6+'ptfire-wild'!AP6+np_solvents!AY6 -> 6,633 | K7: =rail!BR6+nonpt!CY6+ptagfire!AY6+nonroad!BH6+'onroad all'!BC6+cmv_c1c2!AO6+'ptfire-rx'!BE6+ptegu!CX6+ptnonipm!DP6+pt_oilgas!CW6+np_oilgas!BW6+rwc!AY6+cmv_c3!AP6+livestock!AH6+airports!BE6+'ptfire-wild'!BA6+np_solvents!BR6 -> 12,817 | L7: =rail!CF6+nonpt!DO6+ptagfire!BH6+nonroad!BT6+'onroad all'!BU6+cmv_c1c2!BC6+'ptfire-rx'!BP6+ptegu!DM6+ptnonipm!EH6+pt_oilgas!DM6+np_oilgas!CK6+rwc!BJ6+cmv_c3!BC6+livestock!AN6+airports!BN6+'ptfire-wild'!BL6+np_solvents!CF6 -> 15,708 | M7: =rail!CG6+nonpt!DQ6+nonroad!BU6+'onroad all'!BY6+cmv_c1c2!BD6+'ptfire-rx'!BR6+ptegu!DO6+ptnonipm!EJ6+pt_oilgas!DO6+np_oilgas!CL6+rwc!BK6+cmv_c3!BD6+airports!BO6+'ptfire-wild'!BN6+np_solvents!CG6+ptagfire!BJ6 -> 1,910 | N7: =rail!AN6+nonpt!BK6+nonroad!AJ6+'onroad all'!G6+cmv_c1c2!M6+'ptfire-rx'!AL6+ptegu!BK6+ptnonipm!BU6+pt_oilgas!BK6+np_oilgas!AT6+rwc!AG6+airports!AH6+cmv_c3!M6+'ptfire-wild'!AJ6+ptagfire!AH6 -> 1,661 | O7: =rail!AY6+nonpt!O6+ptagfire!AP6+nonroad!AR6+'onroad all'!Z6+cmv_c1c2!V6+'ptfire-rx'!AU6+ptegu!BX6+ptnonipm!CI6+pt_oilgas!BX6+np_oilgas!BD6+rwc!AN6+airports!AO6+cmv_c3!V6+'ptfire-wild'!AR6+np_solvents!AE6 -> 1,440 | P7: =rail!AD6+nonroad!AD6+'onroad all'!AK6+'onroad all'!AL6+'onroad all'!AM6+'onroad all'!AN6+'onroad all'!AO6+'onroad all'!AP6+ptnonipm!BI6+SUM(airports!AR6:AW6)+SUM(cmv_c1c2!AC6:AH6)+SUM(cmv_c3!AC6:AH6) -> 6,282 | Q7: =rail!AE6+nonroad!AE6+'onroad all'!AL6+'onroad all'!AM6+'onroad all'!AN6+'onroad all'!AO6+'onroad all'!AP6+ptnonipm!BJ6+SUM(airports!AS6:AW6)+SUM(cmv_c1c2!AD6:AH6)+SUM(cmv_c3!AD6:AH6) -> 5,842 | R7: =rail!P6+nonpt!T6+nonroad!R6+'onroad all'!AC6+ptegu!T6+ptnonipm!T6+pt_oilgas!S6+np_oilgas!Q6+SUM(cmv_c1c2!Z6:AA6)+SUM(cmv_c3!Z6:AA6) -> 0.53 | S7: =rail!K6+nonpt!L6+nonroad!U6+'onroad all'!M6+ptegu!L6+ptnonipm!L6+pt_oilgas!K6+np_oilgas!K6+SUM(cmv_c1c2!R6:S6)+SUM(cmv_c3!R6:S6) -> 3.11 | T7: =rail!O6+nonpt!P6+ptegu!P6+ptnonipm!P6+pt_oilgas!O6+np_oilgas!N6+rwc!M6+SUM(cmv_c1c2!W6:X6)+SUM(cmv_c3!W6:X6) -> 0.62 | U7: =rail!V6+nonpt!AI6+nonroad!T6+'onroad all'!CB6+ptegu!AH6+ptnonipm!AL6+pt_oilgas!AG6+np_oilgas!AA6+rwc!R6+SUM(cmv_c1c2!BF6:BG6)+SUM(cmv_c3!BF6:BG6) -> 8.63 | V7: =rail!T6+nonpt!AE6+nonroad!S6+'onroad all'!BS6+'onroad all'!BT6+ptegu!AD6+ptnonipm!AH6+pt_oilgas!AC6+np_oilgas!W6+rwc!P6+SUM(cmv_c1c2!BA6:BB6)+SUM(cmv_c3!BA6:BB6) -> 23.81 | W7: =nonpt!CW6+ptegu!BB6+ptnonipm!Z6 -> 1.57 | AA7: California | AB7: =B7+beis!H6 -> 2,398,752 | AC7: 480,622 | AD7: =D7+beis!T6 -> 451,160 | AE7: 336,852 | AF7: 144,763 | AG7: 24,914 | AH7: =H7+beis!Z6 -> 2,276,986 | AI7: =I7+beis!E6 -> 34,438 | AJ7: 6,633 | AK7: =K7+beis!N6 -> 47,182 | AL7: =L7+beis!R6 -> 146,371 | AM7: 1,910 | AN7: 1,661 | AO7: 1,440 | AP7: 6,282 | AQ7: 5,842 | AR7: 0.53 | AS7: 3.11 | AT7: 0.62 | AU7: 8.63 | AV7: 23.81 | AX7: California | AY7: =B7-'ptfire-rx'!B6-'ptfire-wild'!B6 -> 1,594,975 | AZ7: =C7-'ptfire-rx'!C6-'ptfire-wild'!C6 -> 471,356 | BA7: =D7-'ptfire-rx'!D6-'ptfire-wild'!D6 -> 403,163 | BB7: =E7-'ptfire-rx'!E6-'ptfire-wild'!E6 -> 278,534 | BC7: =F7-'ptfire-rx'!F6-'ptfire-wild'!F6 -> 95,340 | BD7: =G7-'ptfire-rx'!G6-'ptfire-wild'!G6 -> 20,331 | BE7: =H7-'ptfire-rx'!H6-'ptfire-wild'!H6 -> 627,869 | BF7: =I7-'ptfire-rx'!AO6-'ptfire-wild'!AL6 -> 5,312 | BG7: =J7-'ptfire-rx'!AS6-'ptfire-wild'!AP6 -> 5,579 | BH7: =K7-'ptfire-rx'!BE6-'ptfire-wild'!BA6 -> 6,932 | BI7: =L7-'ptfire-rx'!BP6-'ptfire-wild'!BL6 -> 10,310 | BJ7: =M7-'ptfire-rx'!BR6-'ptfire-wild'!BN6 -> 771 | BK7: =N7-'ptfire-rx'!AL6-'ptfire-wild'!AJ6 -> 461 | BL7: =O7-'ptfire-rx'!AU6-'ptfire-wild'!AR6 -> 803 | BM7: 6,282 | BN7: 5,842 | BO7: 0.53 | BP7: 3.11 | BQ7: 0.62 | BR7: 8.63 | BS7: 23.81
A8: Colorado | B8: =rail!B7+nonpt!B7+ptagfire!B7+nonroad!B7+'onroad all'!AG7+cmv_c1c2!B7+'ptfire-rx'!B7+ptegu!B7+ptnonipm!B7+pt_oilgas!B7+np_oilgas!B7+rwc!B7+cmv_c3!B7+airports!B7+'ptfire-wild'!B7+np_solvents!B7 -> 856,857 | C8: =rail!C7+nonpt!C7+ptagfire!C7++nonroad!C7+'onroad all'!BZ7+cmv_c1c2!BE7+'ptfire-rx'!C7+ptegu!C7+ptnonipm!C7+pt_oilgas!C7+np_oilgas!C7+rwc!C7+cmv_c3!BE7+livestock!B7+airports!C7+'ptfire-wild'!C7+fertilizer!B7+np_solvents!C7 -> 121,330 | D8: =rail!D7+nonpt!D7+ptagfire!D7++nonroad!D7+cmv_c1c2!D7+'ptfire-rx'!D7+ptegu!DW7+ptnonipm!D7+pt_oilgas!D7+np_oilgas!D7+rwc!D7+cmv_c3!D7+'onroad all'!CI7+airports!D7+'ptfire-wild'!D7+np_solvents!D7 -> 162,641 | E8: =rail!E7+nonpt!E7+ptagfire!E7++nonroad!E7+cmv_c1c2!E7+'ptfire-rx'!E7+ptegu!E7+ptnonipm!E7+pt_oilgas!E7+np_oilgas!E7+rwc!E7+cmv_c3!E7+afdust!BA7+'onroad all'!DE7+'onroad all'!DD7+airports!E7+'ptfire-wild'!E7+np_solvents!E7 -> 169,702 | F8: =rail!F7+nonpt!F7+ptagfire!F7++nonroad!F7+cmv_c1c2!F7+'ptfire-rx'!F7+ptegu!F7+ptnonipm!F7+pt_oilgas!F7+np_oilgas!F7+rwc!F7+cmv_c3!F7+afdust!BB7+'onroad all'!DD7+airports!F7+'ptfire-wild'!F7+np_solvents!F7 -> 52,155 | G8: =rail!G7+nonpt!G7+ptagfire!G7++nonroad!G7+'onroad all'!DU7+cmv_c1c2!G7+'ptfire-rx'!G7+ptegu!FH7+ptnonipm!G7+pt_oilgas!G7+np_oilgas!G7+rwc!G7+cmv_c3!G7+airports!G7+'ptfire-wild'!G7+np_solvents!G7 -> 16,440 | H8: =rail!H7+nonpt!H7+ptagfire!H7++nonroad!H7+'onroad all'!EI7+cmv_c1c2!H7+'ptfire-rx'!H7+ptegu!H7+ptnonipm!H7+pt_oilgas!H7+np_oilgas!H7+rwc!H7+cmv_c3!H7+livestock!C7+airports!H7+'ptfire-wild'!H7+np_solvents!H7 -> 243,891 | I8: =rail!AO7+nonpt!BN7+ptagfire!AJ7+nonroad!AK7+'onroad all'!H7+cmv_c1c2!O7+'ptfire-rx'!AO7+ptegu!BM7+ptnonipm!BX7+pt_oilgas!BM7+np_oilgas!AU7+rwc!AH7+cmv_c3!O7+livestock!U7+airports!AJ7+'ptfire-wild'!AL7+np_solvents!AU7 -> 2,414 | J8: =rail!AU7+nonpt!BT7+ptagfire!AN7+nonroad!AP7+'onroad all'!P7+cmv_c1c2!T7+'ptfire-rx'!AS7+ptegu!BS7+ptnonipm!CD7+pt_oilgas!BS7+np_oilgas!BA7+rwc!AL7+cmv_c3!T7+livestock!X7+airports!AM7+'ptfire-wild'!AP7+np_solvents!AY7 -> 3,849 | K8: =rail!BR7+nonpt!CY7+ptagfire!AY7+nonroad!BH7+'onroad all'!BC7+cmv_c1c2!AO7+'ptfire-rx'!BE7+ptegu!CX7+ptnonipm!DP7+pt_oilgas!CW7+np_oilgas!BW7+rwc!AY7+cmv_c3!AP7+livestock!AH7+airports!BE7+'ptfire-wild'!BA7+np_solvents!BR7 -> 5,440 | L8: =rail!CF7+nonpt!DO7+ptagfire!BH7+nonroad!BT7+'onroad all'!BU7+cmv_c1c2!BC7+'ptfire-rx'!BP7+ptegu!DM7+ptnonipm!EH7+pt_oilgas!DM7+np_oilgas!CK7+rwc!BJ7+cmv_c3!BC7+livestock!AN7+airports!BN7+'ptfire-wild'!BL7+np_solvents!CF7 -> 4,700 | M8: =rail!CG7+nonpt!DQ7+nonroad!BU7+'onroad all'!BY7+cmv_c1c2!BD7+'ptfire-rx'!BR7+ptegu!DO7+ptnonipm!EJ7+pt_oilgas!DO7+np_oilgas!CL7+rwc!BK7+cmv_c3!BD7+airports!BO7+'ptfire-wild'!BN7+np_solvents!CG7+ptagfire!BJ7 -> 526 | N8: =rail!AN7+nonpt!BK7+nonroad!AJ7+'onroad all'!G7+cmv_c1c2!M7+'ptfire-rx'!AL7+ptegu!BK7+ptnonipm!BU7+pt_oilgas!BK7+np_oilgas!AT7+rwc!AG7+airports!AH7+cmv_c3!M7+'ptfire-wild'!AJ7+ptagfire!AH7 -> 727 | O8: =rail!AY7+nonpt!O7+ptagfire!AP7+nonroad!AR7+'onroad all'!Z7+cmv_c1c2!V7+'ptfire-rx'!AU7+ptegu!BX7+ptnonipm!CI7+pt_oilgas!BX7+np_oilgas!BD7+rwc!AN7+airports!AO7+cmv_c3!V7+'ptfire-wild'!AR7+np_solvents!AE7 -> 487 | P8: =rail!AD7+nonroad!AD7+'onroad all'!AK7+'onroad all'!AL7+'onroad all'!AM7+'onroad all'!AN7+'onroad all'!AO7+'onroad all'!AP7+ptnonipm!BI7+SUM(airports!AR7:AW7)+SUM(cmv_c1c2!AC7:AH7)+SUM(cmv_c3!AC7:AH7) -> 1,866 | Q8: =rail!AE7+nonroad!AE7+'onroad all'!AL7+'onroad all'!AM7+'onroad all'!AN7+'onroad all'!AO7+'onroad all'!AP7+ptnonipm!BJ7+SUM(airports!AS7:AW7)+SUM(cmv_c1c2!AD7:AH7)+SUM(cmv_c3!AD7:AH7) -> 1,763 | R8: =rail!P7+nonpt!T7+nonroad!R7+'onroad all'!AC7+ptegu!T7+ptnonipm!T7+pt_oilgas!S7+np_oilgas!Q7+SUM(cmv_c1c2!Z7:AA7)+SUM(cmv_c3!Z7:AA7) -> 0.87 | S8: =rail!K7+nonpt!L7+nonroad!U7+'onroad all'!M7+ptegu!L7+ptnonipm!L7+pt_oilgas!K7+np_oilgas!K7+SUM(cmv_c1c2!R7:S7)+SUM(cmv_c3!R7:S7) -> 0.61 | T8: =rail!O7+nonpt!P7+ptegu!P7+ptnonipm!P7+pt_oilgas!O7+np_oilgas!N7+rwc!M7+SUM(cmv_c1c2!W7:X7)+SUM(cmv_c3!W7:X7) -> 0.09 | U8: =rail!V7+nonpt!AI7+nonroad!T7+'onroad all'!CB7+ptegu!AH7+ptnonipm!AL7+pt_oilgas!AG7+np_oilgas!AA7+rwc!R7+SUM(cmv_c1c2!BF7:BG7)+SUM(cmv_c3!BF7:BG7) -> 11.03 | V8: =rail!T7+nonpt!AE7+nonroad!S7+'onroad all'!BS7+'onroad all'!BT7+ptegu!AD7+ptnonipm!AH7+pt_oilgas!AC7+np_oilgas!W7+rwc!P7+SUM(cmv_c1c2!BA7:BB7)+SUM(cmv_c3!BA7:BB7) -> 41.02 | W8: =nonpt!CW7+ptegu!BB7+ptnonipm!Z7 -> 0.70 | AA8: Colorado | AB8: =B8+beis!H7 -> 928,498 | AC8: 121,330 | AD8: =D8+beis!T7 -> 180,428 | AE8: 169,702 | AF8: 52,155 | AG8: 16,440 | AH8: =H8+beis!Z7 -> 587,505 | AI8: =I8+beis!E7 -> 9,919 | AJ8: 3,849 | AK8: =K8+beis!N7 -> 15,675 | AL8: =L8+beis!R7 -> 48,135 | AM8: 526 | AN8: 727 | AO8: 487 | AP8: 1,866 | AQ8: 1,763 | AR8: 0.87 | AS8: 0.61 | AT8: 0.09 | AU8: 11.03 | AV8: 41.02 | AX8: Colorado | AY8: =B8-'ptfire-rx'!B7-'ptfire-wild'!B7 -> 695,593 | AZ8: =C8-'ptfire-rx'!C7-'ptfire-wild'!C7 -> 118,688 | BA8: =D8-'ptfire-rx'!D7-'ptfire-wild'!D7 -> 160,682 | BB8: =E8-'ptfire-rx'!E7-'ptfire-wild'!E7 -> 153,512 | BC8: =F8-'ptfire-rx'!F7-'ptfire-wild'!F7 -> 38,434 | BD8: =G8-'ptfire-rx'!G7-'ptfire-wild'!G7 -> 15,302 | BE8: =H8-'ptfire-rx'!H7-'ptfire-wild'!H7 -> 205,911 | BF8: =I8-'ptfire-rx'!AO7-'ptfire-wild'!AL7 -> 1,112 | BG8: =J8-'ptfire-rx'!AS7-'ptfire-wild'!AP7 -> 3,500 | BH8: =K8-'ptfire-rx'!BE7-'ptfire-wild'!BA7 -> 2,840 | BI8: =L8-'ptfire-rx'!BP7-'ptfire-wild'!BL7 -> 1,775 | BJ8: =M8-'ptfire-rx'!BR7-'ptfire-wild'!BN7 -> 148 | BK8: =N8-'ptfire-rx'!AL7-'ptfire-wild'!AJ7 -> 329 | BL8: =O8-'ptfire-rx'!AU7-'ptfire-wild'!AR7 -> 276 | BM8: 1,866 | BN8: 1,763 | BO8: 0.87 | BP8: 0.61 | BQ8: 0.09 | BR8: 11.03 | BS8: 41.02
A9: Connecticut | B9: =rail!B8+nonpt!B8+ptagfire!B8+nonroad!B8+'onroad all'!AG8+cmv_c1c2!B8+'ptfire-rx'!B8+ptegu!B8+ptnonipm!B8+pt_oilgas!B8+np_oilgas!B8+rwc!B8+cmv_c3!B8+airports!B8+'ptfire-wild'!B8+np_solvents!B8 -> 281,752 | C9: =rail!C8+nonpt!C8+ptagfire!C8++nonroad!C8+'onroad all'!BZ8+cmv_c1c2!BE8+'ptfire-rx'!C8+ptegu!C8+ptnonipm!C8+pt_oilgas!C8+np_oilgas!C8+rwc!C8+cmv_c3!BE8+livestock!B8+airports!C8+'ptfire-wild'!C8+fertilizer!B8+np_solvents!C8 -> 5,181 | D9: =rail!D8+nonpt!D8+ptagfire!D8++nonroad!D8+cmv_c1c2!D8+'ptfire-rx'!D8+ptegu!DW8+ptnonipm!D8+pt_oilgas!D8+np_oilgas!D8+rwc!D8+cmv_c3!D8+'onroad all'!CI8+airports!D8+'ptfire-wild'!D8+np_solvents!D8 -> 37,131 | E9: =rail!E8+nonpt!E8+ptagfire!E8++nonroad!E8+cmv_c1c2!E8+'ptfire-rx'!E8+ptegu!E8+ptnonipm!E8+pt_oilgas!E8+np_oilgas!E8+rwc!E8+cmv_c3!E8+afdust!BA8+'onroad all'!DE8+'onroad all'!DD8+airports!E8+'ptfire-wild'!E8+np_solvents!E8 -> 16,168 | F9: =rail!F8+nonpt!F8+ptagfire!F8++nonroad!F8+cmv_c1c2!F8+'ptfire-rx'!F8+ptegu!F8+ptnonipm!F8+pt_oilgas!F8+np_oilgas!F8+rwc!F8+cmv_c3!F8+afdust!BB8+'onroad all'!DD8+airports!F8+'ptfire-wild'!F8+np_solvents!F8 -> 9,478 | G9: =rail!G8+nonpt!G8+ptagfire!G8++nonroad!G8+'onroad all'!DU8+cmv_c1c2!G8+'ptfire-rx'!G8+ptegu!FH8+ptnonipm!G8+pt_oilgas!G8+np_oilgas!G8+rwc!G8+cmv_c3!G8+airports!G8+'ptfire-wild'!G8+np_solvents!G8 -> 2,217 | H9: =rail!H8+nonpt!H8+ptagfire!H8++nonroad!H8+'onroad all'!EI8+cmv_c1c2!H8+'ptfire-rx'!H8+ptegu!H8+ptnonipm!H8+pt_oilgas!H8+np_oilgas!H8+rwc!H8+cmv_c3!H8+livestock!C8+airports!H8+'ptfire-wild'!H8+np_solvents!H8 -> 53,373 | I9: =rail!AO8+nonpt!BN8+ptagfire!AJ8+nonroad!AK8+'onroad all'!H8+cmv_c1c2!O8+'ptfire-rx'!AO8+ptegu!BM8+ptnonipm!BX8+pt_oilgas!BM8+np_oilgas!AU8+rwc!AH8+cmv_c3!O8+livestock!U8+airports!AJ8+'ptfire-wild'!AL8+np_solvents!AU8 -> 313 | J9: =rail!AU8+nonpt!BT8+ptagfire!AN8+nonroad!AP8+'onroad all'!P8+cmv_c1c2!T8+'ptfire-rx'!AS8+ptegu!BS8+ptnonipm!CD8+pt_oilgas!BS8+np_oilgas!BA8+rwc!AL8+cmv_c3!T8+livestock!X8+airports!AM8+'ptfire-wild'!AP8+np_solvents!AY8 -> 670 | K9: =rail!BR8+nonpt!CY8+ptagfire!AY8+nonroad!BH8+'onroad all'!BC8+cmv_c1c2!AO8+'ptfire-rx'!BE8+ptegu!CX8+ptnonipm!DP8+pt_oilgas!CW8+np_oilgas!BW8+rwc!AY8+cmv_c3!AP8+livestock!AH8+airports!BE8+'ptfire-wild'!BA8+np_solvents!BR8 -> 572 | L9: =rail!CF8+nonpt!DO8+ptagfire!BH8+nonroad!BT8+'onroad all'!BU8+cmv_c1c2!BC8+'ptfire-rx'!BP8+ptegu!DM8+ptnonipm!EH8+pt_oilgas!DM8+np_oilgas!CK8+rwc!BJ8+cmv_c3!BC8+livestock!AN8+airports!BN8+'ptfire-wild'!BL8+np_solvents!CF8 -> 542 | M9: =rail!CG8+nonpt!DQ8+nonroad!BU8+'onroad all'!BY8+cmv_c1c2!BD8+'ptfire-rx'!BR8+ptegu!DO8+ptnonipm!EJ8+pt_oilgas!DO8+np_oilgas!CL8+rwc!BK8+cmv_c3!BD8+airports!BO8+'ptfire-wild'!BN8+np_solvents!CG8+ptagfire!BJ8 -> 67 | N9: =rail!AN8+nonpt!BK8+nonroad!AJ8+'onroad all'!G8+cmv_c1c2!M8+'ptfire-rx'!AL8+ptegu!BK8+ptnonipm!BU8+pt_oilgas!BK8+np_oilgas!AT8+rwc!AG8+airports!AH8+cmv_c3!M8+'ptfire-wild'!AJ8+ptagfire!AH8 -> 35 | O9: =rail!AY8+nonpt!O8+ptagfire!AP8+nonroad!AR8+'onroad all'!Z8+cmv_c1c2!V8+'ptfire-rx'!AU8+ptegu!BX8+ptnonipm!CI8+pt_oilgas!BX8+np_oilgas!BD8+rwc!AN8+airports!AO8+cmv_c3!V8+'ptfire-wild'!AR8+np_solvents!AE8 -> 104 | P9: =rail!AD8+nonroad!AD8+'onroad all'!AK8+'onroad all'!AL8+'onroad all'!AM8+'onroad all'!AN8+'onroad all'!AO8+'onroad all'!AP8+ptnonipm!BI8+SUM(airports!AR8:AW8)+SUM(cmv_c1c2!AC8:AH8)+SUM(cmv_c3!AC8:AH8) -> 529 | Q9: =rail!AE8+nonroad!AE8+'onroad all'!AL8+'onroad all'!AM8+'onroad all'!AN8+'onroad all'!AO8+'onroad all'!AP8+ptnonipm!BJ8+SUM(airports!AS8:AW8)+SUM(cmv_c1c2!AD8:AH8)+SUM(cmv_c3!AD8:AH8) -> 504 | R9: =rail!P8+nonpt!T8+nonroad!R8+'onroad all'!AC8+ptegu!T8+ptnonipm!T8+pt_oilgas!S8+np_oilgas!Q8+SUM(cmv_c1c2!Z8:AA8)+SUM(cmv_c3!Z8:AA8) -> 0.19 | S9: =rail!K8+nonpt!L8+nonroad!U8+'onroad all'!M8+ptegu!L8+ptnonipm!L8+pt_oilgas!K8+np_oilgas!K8+SUM(cmv_c1c2!R8:S8)+SUM(cmv_c3!R8:S8) -> 0.24 | T9: =rail!O8+nonpt!P8+ptegu!P8+ptnonipm!P8+pt_oilgas!O8+np_oilgas!N8+rwc!M8+SUM(cmv_c1c2!W8:X8)+SUM(cmv_c3!W8:X8) -> 0.12 | U9: =rail!V8+nonpt!AI8+nonroad!T8+'onroad all'!CB8+ptegu!AH8+ptnonipm!AL8+pt_oilgas!AG8+np_oilgas!AA8+rwc!R8+SUM(cmv_c1c2!BF8:BG8)+SUM(cmv_c3!BF8:BG8) -> 3.26 | V9: =rail!T8+nonpt!AE8+nonroad!S8+'onroad all'!BS8+'onroad all'!BT8+ptegu!AD8+ptnonipm!AH8+pt_oilgas!AC8+np_oilgas!W8+rwc!P8+SUM(cmv_c1c2!BA8:BB8)+SUM(cmv_c3!BA8:BB8) -> 1.02 | W9: =nonpt!CW8+ptegu!BB8+ptnonipm!Z8 -> 0.17 | X9: X | AA9: Connecticut | AB9: =B9+beis!H8 -> 288,165 | AC9: 5,181 | AD9: =D9+beis!T8 -> 37,724 | AE9: 16,168 | AF9: 9,478 | AG9: 2,217 | AH9: =H9+beis!Z8 -> 122,544 | AI9: =I9+beis!E8 -> 983 | AJ9: 670 | AK9: =K9+beis!N8 -> 1,486 | AL9: =L9+beis!R8 -> 3,405 | AM9: 67 | AN9: 35 | AO9: 104 | AP9: 529 | AQ9: 504 | AR9: 0.19 | AS9: 0.24 | AT9: 0.12 | AU9: 3.26 | AV9: 1.02 | AX9: Connecticut | AY9: =B9-'ptfire-rx'!B8-'ptfire-wild'!B8 -> 280,627 | AZ9: =C9-'ptfire-rx'!C8-'ptfire-wild'!C8 -> 5,163 | BA9: =D9-'ptfire-rx'!D8-'ptfire-wild'!D8 -> 37,113 | BB9: =E9-'ptfire-rx'!E8-'ptfire-wild'!E8 -> 16,052 | BC9: =F9-'ptfire-rx'!F8-'ptfire-wild'!F8 -> 9,379 | BD9: =G9-'ptfire-rx'!G8-'ptfire-wild'!G8 -> 2,208 | BE9: =H9-'ptfire-rx'!H8-'ptfire-wild'!H8 -> 53,107 | BF9: =I9-'ptfire-rx'!AO8-'ptfire-wild'!AL8 -> 307 | BG9: =J9-'ptfire-rx'!AS8-'ptfire-wild'!AP8 -> 667 | BH9: =K9-'ptfire-rx'!BE8-'ptfire-wild'!BA8 -> 556 | BI9: =L9-'ptfire-rx'!BP8-'ptfire-wild'!BL8 -> 532 | BJ9: =M9-'ptfire-rx'!BR8-'ptfire-wild'!BN8 -> 66 | BK9: =N9-'ptfire-rx'!AL8-'ptfire-wild'!AJ8 -> 32 | BL9: =O9-'ptfire-rx'!AU8-'ptfire-wild'!AR8 -> 101 | BM9: 529 | BN9: 504 | BO9: 0.19 | BP9: 0.24 | BQ9: 0.12 | BR9: 3.26 | BS9: 1.02
A10: Delaware | B10: =rail!B9+nonpt!B9+ptagfire!B9+nonroad!B9+'onroad all'!AG9+cmv_c1c2!B9+'ptfire-rx'!B9+ptegu!B9+ptnonipm!B9+pt_oilgas!B9+np_oilgas!B9+rwc!B9+cmv_c3!B9+airports!B9+'ptfire-wild'!B9+np_solvents!B9 -> 114,347 | C10: =rail!C9+nonpt!C9+ptagfire!C9++nonroad!C9+'onroad all'!BZ9+cmv_c1c2!BE9+'ptfire-rx'!C9+ptegu!C9+ptnonipm!C9+pt_oilgas!C9+np_oilgas!C9+rwc!C9+cmv_c3!BE9+livestock!B9+airports!C9+'ptfire-wild'!C9+fertilizer!B9+np_solvents!C9 -> 7,669 | D10: =rail!D9+nonpt!D9+ptagfire!D9++nonroad!D9+cmv_c1c2!D9+'ptfire-rx'!D9+ptegu!DW9+ptnonipm!D9+pt_oilgas!D9+np_oilgas!D9+rwc!D9+cmv_c3!D9+'onroad all'!CI9+airports!D9+'ptfire-wild'!D9+np_solvents!D9 -> 19,323 | E10: =rail!E9+nonpt!E9+ptagfire!E9++nonroad!E9+cmv_c1c2!E9+'ptfire-rx'!E9+ptegu!E9+ptnonipm!E9+pt_oilgas!E9+np_oilgas!E9+rwc!E9+cmv_c3!E9+afdust!BA9+'onroad all'!DE9+'onroad all'!DD9+airports!E9+'ptfire-wild'!E9+np_solvents!E9 -> 10,061 | F10: =rail!F9+nonpt!F9+ptagfire!F9++nonroad!F9+cmv_c1c2!F9+'ptfire-rx'!F9+ptegu!F9+ptnonipm!F9+pt_oilgas!F9+np_oilgas!F9+rwc!F9+cmv_c3!F9+afdust!BB9+'onroad all'!DD9+airports!F9+'ptfire-wild'!F9+np_solvents!F9 -> 3,958 | G10: =rail!G9+nonpt!G9+ptagfire!G9++nonroad!G9+'onroad all'!DU9+cmv_c1c2!G9+'ptfire-rx'!G9+ptegu!FH9+ptnonipm!G9+pt_oilgas!G9+np_oilgas!G9+rwc!G9+cmv_c3!G9+airports!G9+'ptfire-wild'!G9+np_solvents!G9 -> 1,117 | H10: =rail!H9+nonpt!H9+ptagfire!H9++nonroad!H9+'onroad all'!EI9+cmv_c1c2!H9+'ptfire-rx'!H9+ptegu!H9+ptnonipm!H9+pt_oilgas!H9+np_oilgas!H9+rwc!H9+cmv_c3!H9+livestock!C9+airports!H9+'ptfire-wild'!H9+np_solvents!H9 -> 19,753 | I10: =rail!AO9+nonpt!BN9+ptagfire!AJ9+nonroad!AK9+'onroad all'!H9+cmv_c1c2!O9+'ptfire-rx'!AO9+ptegu!BM9+ptnonipm!BX9+pt_oilgas!BM9+np_oilgas!AU9+rwc!AH9+cmv_c3!O9+livestock!U9+airports!AJ9+'ptfire-wild'!AL9+np_solvents!AU9 -> 133 | J10: =rail!AU9+nonpt!BT9+ptagfire!AN9+nonroad!AP9+'onroad all'!P9+cmv_c1c2!T9+'ptfire-rx'!AS9+ptegu!BS9+ptnonipm!CD9+pt_oilgas!BS9+np_oilgas!BA9+rwc!AL9+cmv_c3!T9+livestock!X9+airports!AM9+'ptfire-wild'!AP9+np_solvents!AY9 -> 281 | K10: =rail!BR9+nonpt!CY9+ptagfire!AY9+nonroad!BH9+'onroad all'!BC9+cmv_c1c2!AO9+'ptfire-rx'!BE9+ptegu!CX9+ptnonipm!DP9+pt_oilgas!CW9+np_oilgas!BW9+rwc!AY9+cmv_c3!AP9+livestock!AH9+airports!BE9+'ptfire-wild'!BA9+np_solvents!BR9 -> 300 | L10: =rail!CF9+nonpt!DO9+ptagfire!BH9+nonroad!BT9+'onroad all'!BU9+cmv_c1c2!BC9+'ptfire-rx'!BP9+ptegu!DM9+ptnonipm!EH9+pt_oilgas!DM9+np_oilgas!CK9+rwc!BJ9+cmv_c3!BC9+livestock!AN9+airports!BN9+'ptfire-wild'!BL9+np_solvents!CF9 -> 237 | M10: =rail!CG9+nonpt!DQ9+nonroad!BU9+'onroad all'!BY9+cmv_c1c2!BD9+'ptfire-rx'!BR9+ptegu!DO9+ptnonipm!EJ9+pt_oilgas!DO9+np_oilgas!CL9+rwc!BK9+cmv_c3!BD9+airports!BO9+'ptfire-wild'!BN9+np_solvents!CG9+ptagfire!BJ9 -> 30 | N10: =rail!AN9+nonpt!BK9+nonroad!AJ9+'onroad all'!G9+cmv_c1c2!M9+'ptfire-rx'!AL9+ptegu!BK9+ptnonipm!BU9+pt_oilgas!BK9+np_oilgas!AT9+rwc!AG9+airports!AH9+cmv_c3!M9+'ptfire-wild'!AJ9+ptagfire!AH9 -> 22 | O10: =rail!AY9+nonpt!O9+ptagfire!AP9+nonroad!AR9+'onroad all'!Z9+cmv_c1c2!V9+'ptfire-rx'!AU9+ptegu!BX9+ptnonipm!CI9+pt_oilgas!BX9+np_oilgas!BD9+rwc!AN9+airports!AO9+cmv_c3!V9+'ptfire-wild'!AR9+np_solvents!AE9 -> 52 | P10: =rail!AD9+nonroad!AD9+'onroad all'!AK9+'onroad all'!AL9+'onroad all'!AM9+'onroad all'!AN9+'onroad all'!AO9+'onroad all'!AP9+ptnonipm!BI9+SUM(airports!AR9:AW9)+SUM(cmv_c1c2!AC9:AH9)+SUM(cmv_c3!AC9:AH9) -> 313 | Q10: =rail!AE9+nonroad!AE9+'onroad all'!AL9+'onroad all'!AM9+'onroad all'!AN9+'onroad all'!AO9+'onroad all'!AP9+ptnonipm!BJ9+SUM(airports!AS9:AW9)+SUM(cmv_c1c2!AD9:AH9)+SUM(cmv_c3!AD9:AH9) -> 294 | R10: =rail!P9+nonpt!T9+nonroad!R9+'onroad all'!AC9+ptegu!T9+ptnonipm!T9+pt_oilgas!S9+np_oilgas!Q9+SUM(cmv_c1c2!Z9:AA9)+SUM(cmv_c3!Z9:AA9) -> 0.01 | S10: =rail!K9+nonpt!L9+nonroad!U9+'onroad all'!M9+ptegu!L9+ptnonipm!L9+pt_oilgas!K9+np_oilgas!K9+SUM(cmv_c1c2!R9:S9)+SUM(cmv_c3!R9:S9) -> 0.22 | T10: =rail!O9+nonpt!P9+ptegu!P9+ptnonipm!P9+pt_oilgas!O9+np_oilgas!N9+rwc!M9+SUM(cmv_c1c2!W9:X9)+SUM(cmv_c3!W9:X9) -> 0.25 | U10: =rail!V9+nonpt!AI9+nonroad!T9+'onroad all'!CB9+ptegu!AH9+ptnonipm!AL9+pt_oilgas!AG9+np_oilgas!AA9+rwc!R9+SUM(cmv_c1c2!BF9:BG9)+SUM(cmv_c3!BF9:BG9) -> 1.89 | V10: =rail!T9+nonpt!AE9+nonroad!S9+'onroad all'!BS9+'onroad all'!BT9+ptegu!AD9+ptnonipm!AH9+pt_oilgas!AC9+np_oilgas!W9+rwc!P9+SUM(cmv_c1c2!BA9:BB9)+SUM(cmv_c3!BA9:BB9) -> 1.54 | W10: =nonpt!CW9+ptegu!BB9+ptnonipm!Z9 -> 0.66 | X10: X | AA10: Delaware | AB10: =B10+beis!H9 -> 116,625 | AC10: 7,669 | AD10: =D10+beis!T9 -> 20,507 | AE10: 10,061 | AF10: 3,958 | AG10: 1,117 | AH10: =H10+beis!Z9 -> 34,759 | AI10: =I10+beis!E9 -> 371 | AJ10: 281 | AK10: =K10+beis!N9 -> 625 | AL10: =L10+beis!R9 -> 1,581 | AM10: 30 | AN10: 22 | AO10: 52 | AP10: 313 | AQ10: 294 | AR10: 0.01 | AS10: 0.22 | AT10: 0.25 | AU10: 1.89 | AV10: 1.54 | AX10: Delaware | AY10: =B10-'ptfire-rx'!B9-'ptfire-wild'!B9 -> 110,096 | AZ10: =C10-'ptfire-rx'!C9-'ptfire-wild'!C9 -> 7,600 | BA10: =D10-'ptfire-rx'!D9-'ptfire-wild'!D9 -> 19,290 | BB10: =E10-'ptfire-rx'!E9-'ptfire-wild'!E9 -> 9,651 | BC10: =F10-'ptfire-rx'!F9-'ptfire-wild'!F9 -> 3,611 | BD10: =G10-'ptfire-rx'!G9-'ptfire-wild'!G9 -> 1,093 | BE10: =H10-'ptfire-rx'!H9-'ptfire-wild'!H9 -> 18,757 | BF10: =I10-'ptfire-rx'!AO9-'ptfire-wild'!AL9 -> 117 | BG10: =J10-'ptfire-rx'!AS9-'ptfire-wild'!AP9 -> 274 | BH10: =K10-'ptfire-rx'!BE9-'ptfire-wild'!BA9 -> 258 | BI10: =L10-'ptfire-rx'!BP9-'ptfire-wild'!BL9 -> 213 | BJ10: =M10-'ptfire-rx'!BR9-'ptfire-wild'!BN9 -> 25 | BK10: =N10-'ptfire-rx'!AL9-'ptfire-wild'!AJ9 -> 14 | BL10: =O10-'ptfire-rx'!AU9-'ptfire-wild'!AR9 -> 46 | BM10: 313 | BN10: 294 | BO10: 0.01 | BP10: 0.22 | BQ10: 0.25 | BR10: 1.89 | BS10: 1.54
A11: District of Columbia | B11: =rail!B10+nonpt!B10+ptagfire!B10+nonroad!B10+'onroad all'!AG10+cmv_c1c2!B10+'ptfire-rx'!B10+ptegu!B10+ptnonipm!B10+pt_oilgas!B10+np_oilgas!B10+rwc!B10+cmv_c3!B10+airports!B10+'ptfire-wild'!B10+np_solvents!B10 -> 33,379 | C11: =rail!C10+nonpt!C10+ptagfire!C10++nonroad!C10+'onroad all'!BZ10+cmv_c1c2!BE10+'ptfire-rx'!C10+ptegu!C10+ptnonipm!C10+pt_oilgas!C10+np_oilgas!C10+rwc!C10+cmv_c3!BE10+livestock!B10+airports!C10+'ptfire-wild'!C10+fertilizer!B10+np_solvents!C10 -> 264 | D11: =rail!D10+nonpt!D10+ptagfire!D10++nonroad!D10+cmv_c1c2!D10+'ptfire-rx'!D10+ptegu!DW10+ptnonipm!D10+pt_oilgas!D10+np_oilgas!D10+rwc!D10+cmv_c3!D10+'onroad all'!CI10+airports!D10+'ptfire-wild'!D10+np_solvents!D10 -> 4,387 | E11: =rail!E10+nonpt!E10+ptagfire!E10++nonroad!E10+cmv_c1c2!E10+'ptfire-rx'!E10+ptegu!E10+ptnonipm!E10+pt_oilgas!E10+np_oilgas!E10+rwc!E10+cmv_c3!E10+afdust!BA10+'onroad all'!DE10+'onroad all'!DD10+airports!E10+'ptfire-wild'!E10+np_solvents!E10 -> 2,012 | F11: =rail!F10+nonpt!F10+ptagfire!F10++nonroad!F10+cmv_c1c2!F10+'ptfire-rx'!F10+ptegu!F10+ptnonipm!F10+pt_oilgas!F10+np_oilgas!F10+rwc!F10+cmv_c3!F10+afdust!BB10+'onroad all'!DD10+airports!F10+'ptfire-wild'!F10+np_solvents!F10 -> 792 | G11: =rail!G10+nonpt!G10+ptagfire!G10++nonroad!G10+'onroad all'!DU10+cmv_c1c2!G10+'ptfire-rx'!G10+ptegu!FH10+ptnonipm!G10+pt_oilgas!G10+np_oilgas!G10+rwc!G10+cmv_c3!G10+airports!G10+'ptfire-wild'!G10+np_solvents!G10 -> 60 | H11: =rail!H10+nonpt!H10+ptagfire!H10++nonroad!H10+'onroad all'!EI10+cmv_c1c2!H10+'ptfire-rx'!H10+ptegu!H10+ptnonipm!H10+pt_oilgas!H10+np_oilgas!H10+rwc!H10+cmv_c3!H10+livestock!C10+airports!H10+'ptfire-wild'!H10+np_solvents!H10 -> 6,589 | I11: =rail!AO10+nonpt!BN10+ptagfire!AJ10+nonroad!AK10+'onroad all'!H10+cmv_c1c2!O10+'ptfire-rx'!AO10+ptegu!BM10+ptnonipm!BX10+pt_oilgas!BM10+np_oilgas!AU10+rwc!AH10+cmv_c3!O10+livestock!U10+airports!AJ10+'ptfire-wild'!AL10+np_solvents!AU10 -> 27 | J11: =rail!AU10+nonpt!BT10+ptagfire!AN10+nonroad!AP10+'onroad all'!P10+cmv_c1c2!T10+'ptfire-rx'!AS10+ptegu!BS10+ptnonipm!CD10+pt_oilgas!BS10+np_oilgas!BA10+rwc!AL10+cmv_c3!T10+livestock!X10+airports!AM10+'ptfire-wild'!AP10+np_solvents!AY10 -> 55 | K11: =rail!BR10+nonpt!CY10+ptagfire!AY10+nonroad!BH10+'onroad all'!BC10+cmv_c1c2!AO10+'ptfire-rx'!BE10+ptegu!CX10+ptnonipm!DP10+pt_oilgas!CW10+np_oilgas!BW10+rwc!AY10+cmv_c3!AP10+livestock!AH10+airports!BE10+'ptfire-wild'!BA10+np_solvents!BR10 -> 44 | L11: =rail!CF10+nonpt!DO10+ptagfire!BH10+nonroad!BT10+'onroad all'!BU10+cmv_c1c2!BC10+'ptfire-rx'!BP10+ptegu!DM10+ptnonipm!EH10+pt_oilgas!DM10+np_oilgas!CK10+rwc!BJ10+cmv_c3!BC10+livestock!AN10+airports!BN10+'ptfire-wild'!BL10+np_solvents!CF10 -> 76 | M11: =rail!CG10+nonpt!DQ10+nonroad!BU10+'onroad all'!BY10+cmv_c1c2!BD10+'ptfire-rx'!BR10+ptegu!DO10+ptnonipm!EJ10+pt_oilgas!DO10+np_oilgas!CL10+rwc!BK10+cmv_c3!BD10+airports!BO10+'ptfire-wild'!BN10+np_solvents!CG10+ptagfire!BJ10 -> 4 | N11: =rail!AN10+nonpt!BK10+nonroad!AJ10+'onroad all'!G10+cmv_c1c2!M10+'ptfire-rx'!AL10+ptegu!BK10+ptnonipm!BU10+pt_oilgas!BK10+np_oilgas!AT10+rwc!AG10+airports!AH10+cmv_c3!M10+'ptfire-wild'!AJ10+ptagfire!AH10 -> 3 | O11: =rail!AY10+nonpt!O10+ptagfire!AP10+nonroad!AR10+'onroad all'!Z10+cmv_c1c2!V10+'ptfire-rx'!AU10+ptegu!BX10+ptnonipm!CI10+pt_oilgas!BX10+np_oilgas!BD10+rwc!AN10+airports!AO10+cmv_c3!V10+'ptfire-wild'!AR10+np_solvents!AE10 -> 7 | P11: =rail!AD10+nonroad!AD10+'onroad all'!AK10+'onroad all'!AL10+'onroad all'!AM10+'onroad all'!AN10+'onroad all'!AO10+'onroad all'!AP10+ptnonipm!BI10+SUM(airports!AR10:AW10)+SUM(cmv_c1c2!AC10:AH10)+SUM(cmv_c3!AC10:AH10) -> 81 | Q11: =rail!AE10+nonroad!AE10+'onroad all'!AL10+'onroad all'!AM10+'onroad all'!AN10+'onroad all'!AO10+'onroad all'!AP10+ptnonipm!BJ10+SUM(airports!AS10:AW10)+SUM(cmv_c1c2!AD10:AH10)+SUM(cmv_c3!AD10:AH10) -> 77 | R11: =rail!P10+nonpt!T10+nonroad!R10+'onroad all'!AC10+ptegu!T10+ptnonipm!T10+pt_oilgas!S10+np_oilgas!Q10+SUM(cmv_c1c2!Z10:AA10)+SUM(cmv_c3!Z10:AA10) -> 0.00 | S11: =rail!K10+nonpt!L10+nonroad!U10+'onroad all'!M10+ptegu!L10+ptnonipm!L10+pt_oilgas!K10+np_oilgas!K10+SUM(cmv_c1c2!R10:S10)+SUM(cmv_c3!R10:S10) -> 0.02 | T11: =rail!O10+nonpt!P10+ptegu!P10+ptnonipm!P10+pt_oilgas!O10+np_oilgas!N10+rwc!M10+SUM(cmv_c1c2!W10:X10)+SUM(cmv_c3!W10:X10) -> 0.00 | U11: =rail!V10+nonpt!AI10+nonroad!T10+'onroad all'!CB10+ptegu!AH10+ptnonipm!AL10+pt_oilgas!AG10+np_oilgas!AA10+rwc!R10+SUM(cmv_c1c2!BF10:BG10)+SUM(cmv_c3!BF10:BG10) -> 0.10 | V11: =rail!T10+nonpt!AE10+nonroad!S10+'onroad all'!BS10+'onroad all'!BT10+ptegu!AD10+ptnonipm!AH10+pt_oilgas!AC10+np_oilgas!W10+rwc!P10+SUM(cmv_c1c2!BA10:BB10)+SUM(cmv_c3!BA10:BB10) -> 0.11 | W11: =nonpt!CW10+ptegu!BB10+ptnonipm!Z10 -> 0.00 | AA11: District of Columbia | AB11: =B11+beis!H10 -> 33,529 | AC11: 264 | AD11: =D11+beis!T10 -> 4,412 | AE11: 2,012 | AF11: 792 | AG11: 60 | AH11: =H11+beis!Z10 -> 7,922 | AI11: =I11+beis!E10 -> 42 | AJ11: 55 | AK11: =K11+beis!N10 -> 65 | AL11: =L11+beis!R10 -> 156 | AM11: 4 | AN11: 3 | AO11: 7 | AP11: 81 | AQ11: 77 | AR11: 0.00 | AS11: 0.02 | AT11: 0.00 | AU11: 0.10 | AV11: 0.11 | AX11: District of Columbia | AY11: =B11-'ptfire-rx'!B10-'ptfire-wild'!B10 -> 33,379 | AZ11: =C11-'ptfire-rx'!C10-'ptfire-wild'!C10 -> 264 | BA11: =D11-'ptfire-rx'!D10-'ptfire-wild'!D10 -> 4,387 | BB11: =E11-'ptfire-rx'!E10-'ptfire-wild'!E10 -> 2,012 | BC11: =F11-'ptfire-rx'!F10-'ptfire-wild'!F10 -> 792 | BD11: =G11-'ptfire-rx'!G10-'ptfire-wild'!G10 -> 60 | BE11: =H11-'ptfire-rx'!H10-'ptfire-wild'!H10 -> 6,589 | BF11: =I11-'ptfire-rx'!AO10-'ptfire-wild'!AL10 -> 27 | BG11: =J11-'ptfire-rx'!AS10-'ptfire-wild'!AP10 -> 55 | BH11: =K11-'ptfire-rx'!BE10-'ptfire-wild'!BA10 -> 44 | BI11: =L11-'ptfire-rx'!BP10-'ptfire-wild'!BL10 -> 76 | BJ11: =M11-'ptfire-rx'!BR10-'ptfire-wild'!BN10 -> 4 | BK11: =N11-'ptfire-rx'!AL10-'ptfire-wild'!AJ10 -> 3 | BL11: =O11-'ptfire-rx'!AU10-'ptfire-wild'!AR10 -> 7 | BM11: 81 | BN11: 77 | BO11: 0.00 | BP11: 0.02 | BQ11: 0.00 | BR11: 0.10 | BS11: 0.11
A12: Florida | B12: =rail!B11+nonpt!B11+ptagfire!B11+nonroad!B11+'onroad all'!AG11+cmv_c1c2!B11+'ptfire-rx'!B11+ptegu!B11+ptnonipm!B11+pt_oilgas!B11+np_oilgas!B11+rwc!B11+cmv_c3!B11+airports!B11+'ptfire-wild'!B11+np_solvents!B11 -> 3,913,548 | C12: =rail!C11+nonpt!C11+ptagfire!C11++nonroad!C11+'onroad all'!BZ11+cmv_c1c2!BE11+'ptfire-rx'!C11+ptegu!C11+ptnonipm!C11+pt_oilgas!C11+np_oilgas!C11+rwc!C11+cmv_c3!BE11+livestock!B11+airports!C11+'ptfire-wild'!C11+fertilizer!B11+np_solvents!C11 -> 131,392 | D12: =rail!D11+nonpt!D11+ptagfire!D11++nonroad!D11+cmv_c1c2!D11+'ptfire-rx'!D11+ptegu!DW11+ptnonipm!D11+pt_oilgas!D11+np_oilgas!D11+rwc!D11+cmv_c3!D11+'onroad all'!CI11+airports!D11+'ptfire-wild'!D11+np_solvents!D11 -> 367,168 | E12: =rail!E11+nonpt!E11+ptagfire!E11++nonroad!E11+cmv_c1c2!E11+'ptfire-rx'!E11+ptegu!E11+ptnonipm!E11+pt_oilgas!E11+np_oilgas!E11+rwc!E11+cmv_c3!E11+afdust!BA11+'onroad all'!DE11+'onroad all'!DD11+airports!E11+'ptfire-wild'!E11+np_solvents!E11 -> 439,472 | F12: =rail!F11+nonpt!F11+ptagfire!F11++nonroad!F11+cmv_c1c2!F11+'ptfire-rx'!F11+ptegu!F11+ptnonipm!F11+pt_oilgas!F11+np_oilgas!F11+rwc!F11+cmv_c3!F11+afdust!BB11+'onroad all'!DD11+airports!F11+'ptfire-wild'!F11+np_solvents!F11 -> 226,281 | G12: =rail!G11+nonpt!G11+ptagfire!G11++nonroad!G11+'onroad all'!DU11+cmv_c1c2!G11+'ptfire-rx'!G11+ptegu!FH11+ptnonipm!G11+pt_oilgas!G11+np_oilgas!G11+rwc!G11+cmv_c3!G11+airports!G11+'ptfire-wild'!G11+np_solvents!G11 -> 62,994 | H12: =rail!H11+nonpt!H11+ptagfire!H11++nonroad!H11+'onroad all'!EI11+cmv_c1c2!H11+'ptfire-rx'!H11+ptegu!H11+ptnonipm!H11+pt_oilgas!H11+np_oilgas!H11+rwc!H11+cmv_c3!H11+livestock!C11+airports!H11+'ptfire-wild'!H11+np_solvents!H11 -> 755,004 | I12: =rail!AO11+nonpt!BN11+ptagfire!AJ11+nonroad!AK11+'onroad all'!H11+cmv_c1c2!O11+'ptfire-rx'!AO11+ptegu!BM11+ptnonipm!BX11+pt_oilgas!BM11+np_oilgas!AU11+rwc!AH11+cmv_c3!O11+livestock!U11+airports!AJ11+'ptfire-wild'!AL11+np_solvents!AU11 -> 12,878 | J12: =rail!AU11+nonpt!BT11+ptagfire!AN11+nonroad!AP11+'onroad all'!P11+cmv_c1c2!T11+'ptfire-rx'!AS11+ptegu!BS11+ptnonipm!CD11+pt_oilgas!BS11+np_oilgas!BA11+rwc!AL11+cmv_c3!T11+livestock!X11+airports!AM11+'ptfire-wild'!AP11+np_solvents!AY11 -> 9,312 | K12: =rail!BR11+nonpt!CY11+ptagfire!AY11+nonroad!BH11+'onroad all'!BC11+cmv_c1c2!AO11+'ptfire-rx'!BE11+ptegu!CX11+ptnonipm!DP11+pt_oilgas!CW11+np_oilgas!BW11+rwc!AY11+cmv_c3!AP11+livestock!AH11+airports!BE11+'ptfire-wild'!BA11+np_solvents!BR11 -> 29,626 | L12: =rail!CF11+nonpt!DO11+ptagfire!BH11+nonroad!BT11+'onroad all'!BU11+cmv_c1c2!BC11+'ptfire-rx'!BP11+ptegu!DM11+ptnonipm!EH11+pt_oilgas!DM11+np_oilgas!CK11+rwc!BJ11+cmv_c3!BC11+livestock!AN11+airports!BN11+'ptfire-wild'!BL11+np_solvents!CF11 -> 21,168 | M12: =rail!CG11+nonpt!DQ11+nonroad!BU11+'onroad all'!BY11+cmv_c1c2!BD11+'ptfire-rx'!BR11+ptegu!DO11+ptnonipm!EJ11+pt_oilgas!DO11+np_oilgas!CL11+rwc!BK11+cmv_c3!BD11+airports!BO11+'ptfire-wild'!BN11+np_solvents!CG11+ptagfire!BJ11 -> 3,602 | N12: =rail!AN11+nonpt!BK11+nonroad!AJ11+'onroad all'!G11+cmv_c1c2!M11+'ptfire-rx'!AL11+ptegu!BK11+ptnonipm!BU11+pt_oilgas!BK11+np_oilgas!AT11+rwc!AG11+airports!AH11+cmv_c3!M11+'ptfire-wild'!AJ11+ptagfire!AH11 -> 5,465 | O12: =rail!AY11+nonpt!O11+ptagfire!AP11+nonroad!AR11+'onroad all'!Z11+cmv_c1c2!V11+'ptfire-rx'!AU11+ptegu!BX11+ptnonipm!CI11+pt_oilgas!BX11+np_oilgas!BD11+rwc!AN11+airports!AO11+cmv_c3!V11+'ptfire-wild'!AR11+np_solvents!AE11 -> 4,241 | P12: =rail!AD11+nonroad!AD11+'onroad all'!AK11+'onroad all'!AL11+'onroad all'!AM11+'onroad all'!AN11+'onroad all'!AO11+'onroad all'!AP11+ptnonipm!BI11+SUM(airports!AR11:AW11)+SUM(cmv_c1c2!AC11:AH11)+SUM(cmv_c3!AC11:AH11) -> 7,418 | Q12: =rail!AE11+nonroad!AE11+'onroad all'!AL11+'onroad all'!AM11+'onroad all'!AN11+'onroad all'!AO11+'onroad all'!AP11+ptnonipm!BJ11+SUM(airports!AS11:AW11)+SUM(cmv_c1c2!AD11:AH11)+SUM(cmv_c3!AD11:AH11) -> 6,981 | R12: =rail!P11+nonpt!T11+nonroad!R11+'onroad all'!AC11+ptegu!T11+ptnonipm!T11+pt_oilgas!S11+np_oilgas!Q11+SUM(cmv_c1c2!Z11:AA11)+SUM(cmv_c3!Z11:AA11) -> 0.50 | S12: =rail!K11+nonpt!L11+nonroad!U11+'onroad all'!M11+ptegu!L11+ptnonipm!L11+pt_oilgas!K11+np_oilgas!K11+SUM(cmv_c1c2!R11:S11)+SUM(cmv_c3!R11:S11) -> 1.62 | T12: =rail!O11+nonpt!P11+ptegu!P11+ptnonipm!P11+pt_oilgas!O11+np_oilgas!N11+rwc!M11+SUM(cmv_c1c2!W11:X11)+SUM(cmv_c3!W11:X11) -> 0.39 | U12: =rail!V11+nonpt!AI11+nonroad!T11+'onroad all'!CB11+ptegu!AH11+ptnonipm!AL11+pt_oilgas!AG11+np_oilgas!AA11+rwc!R11+SUM(cmv_c1c2!BF11:BG11)+SUM(cmv_c3!BF11:BG11) -> 3.69 | V12: =rail!T11+nonpt!AE11+nonroad!S11+'onroad all'!BS11+'onroad all'!BT11+ptegu!AD11+ptnonipm!AH11+pt_oilgas!AC11+np_oilgas!W11+rwc!P11+SUM(cmv_c1c2!BA11:BB11)+SUM(cmv_c3!BA11:BB11) -> 12.39 | W12: =nonpt!CW11+ptegu!BB11+ptnonipm!Z11 -> 1.46 | X12: X | AA12: Florida | AB12: =B12+beis!H11 -> 4,065,629 | AC12: 131,392 | AD12: =D12+beis!T11 -> 399,973 | AE12: 439,472 | AF12: 226,281 | AG12: 62,994 | AH12: =H12+beis!Z11 -> 2,057,860 | AI12: =I12+beis!E11 -> 28,804 | AJ12: 9,312 | AK12: =K12+beis!N11 -> 51,344 | AL12: =L12+beis!R11 -> 108,420 | AM12: 3,602 | AN12: 5,465 | AO12: 4,241 | AP12: 7,418 | AQ12: 6,981 | AR12: 0.50 | AS12: 1.62 | AT12: 0.39 | AU12: 3.69 | AV12: 12.39 | AX12: Florida | AY12: =B12-'ptfire-rx'!B11-'ptfire-wild'!B11 -> 2,446,294 | AZ12: =C12-'ptfire-rx'!C11-'ptfire-wild'!C11 -> 107,135 | BA12: =D12-'ptfire-rx'!D11-'ptfire-wild'!D11 -> 338,107 | BB12: =E12-'ptfire-rx'!E11-'ptfire-wild'!E11 -> 282,136 | BC12: =F12-'ptfire-rx'!F11-'ptfire-wild'!F11 -> 92,946 | BD12: =G12-'ptfire-rx'!G11-'ptfire-wild'!G11 -> 49,203 | BE12: =H12-'ptfire-rx'!H11-'ptfire-wild'!H11 -> 406,309 | BF12: =I12-'ptfire-rx'!AO11-'ptfire-wild'!AL11 -> 3,660 | BG12: =J12-'ptfire-rx'!AS11-'ptfire-wild'!AP11 -> 5,165 | BH12: =K12-'ptfire-rx'!BE11-'ptfire-wild'!BA11 -> 5,767 | BI12: =L12-'ptfire-rx'!BP11-'ptfire-wild'!BL11 -> 7,085 | BJ12: =M12-'ptfire-rx'!BR11-'ptfire-wild'!BN11 -> 752 | BK12: =N12-'ptfire-rx'!AL11-'ptfire-wild'!AJ11 -> 933 | BL12: =O12-'ptfire-rx'!AU11-'ptfire-wild'!AR11 -> 718 | BM12: 7,418 | BN12: 6,981 | BO12: 0.50 | BP12: 1.62 | BQ12: 0.39 | BR12: 3.69 | BS12: 12.39
A13: Georgia | B13: =rail!B12+nonpt!B12+ptagfire!B12+nonroad!B12+'onroad all'!AG12+cmv_c1c2!B12+'ptfire-rx'!B12+ptegu!B12+ptnonipm!B12+pt_oilgas!B12+np_oilgas!B12+rwc!B12+cmv_c3!B12+airports!B12+'ptfire-wild'!B12+np_solvents!B12 -> 2,046,315 | C13: =rail!C12+nonpt!C12+ptagfire!C12++nonroad!C12+'onroad all'!BZ12+cmv_c1c2!BE12+'ptfire-rx'!C12+ptegu!C12+ptnonipm!C12+pt_oilgas!C12+np_oilgas!C12+rwc!C12+cmv_c3!BE12+livestock!B12+airports!C12+'ptfire-wild'!C12+fertilizer!B12+np_solvents!C12 -> 101,098 | D13: =rail!D12+nonpt!D12+ptagfire!D12++nonroad!D12+cmv_c1c2!D12+'ptfire-rx'!D12+ptegu!DW12+ptnonipm!D12+pt_oilgas!D12+np_oilgas!D12+rwc!D12+cmv_c3!D12+'onroad all'!CI12+airports!D12+'ptfire-wild'!D12+np_solvents!D12 -> 249,704 | E13: =rail!E12+nonpt!E12+ptagfire!E12++nonroad!E12+cmv_c1c2!E12+'ptfire-rx'!E12+ptegu!E12+ptnonipm!E12+pt_oilgas!E12+np_oilgas!E12+rwc!E12+cmv_c3!E12+afdust!BA12+'onroad all'!DE12+'onroad all'!DD12+airports!E12+'ptfire-wild'!E12+np_solvents!E12 -> 209,598 | F13: =rail!F12+nonpt!F12+ptagfire!F12++nonroad!F12+cmv_c1c2!F12+'ptfire-rx'!F12+ptegu!F12+ptnonipm!F12+pt_oilgas!F12+np_oilgas!F12+rwc!F12+cmv_c3!F12+afdust!BB12+'onroad all'!DD12+airports!F12+'ptfire-wild'!F12+np_solvents!F12 -> 124,923 | G13: =rail!G12+nonpt!G12+ptagfire!G12++nonroad!G12+'onroad all'!DU12+cmv_c1c2!G12+'ptfire-rx'!G12+ptegu!FH12+ptnonipm!G12+pt_oilgas!G12+np_oilgas!G12+rwc!G12+cmv_c3!G12+airports!G12+'ptfire-wild'!G12+np_solvents!G12 -> 39,127 | H13: =rail!H12+nonpt!H12+ptagfire!H12++nonroad!H12+'onroad all'!EI12+cmv_c1c2!H12+'ptfire-rx'!H12+ptegu!H12+ptnonipm!H12+pt_oilgas!H12+np_oilgas!H12+rwc!H12+cmv_c3!H12+livestock!C12+airports!H12+'ptfire-wild'!H12+np_solvents!H12 -> 392,084 | I13: =rail!AO12+nonpt!BN12+ptagfire!AJ12+nonroad!AK12+'onroad all'!H12+cmv_c1c2!O12+'ptfire-rx'!AO12+ptegu!BM12+ptnonipm!BX12+pt_oilgas!BM12+np_oilgas!AU12+rwc!AH12+cmv_c3!O12+livestock!U12+airports!AJ12+'ptfire-wild'!AL12+np_solvents!AU12 -> 5,907 | J13: =rail!AU12+nonpt!BT12+ptagfire!AN12+nonroad!AP12+'onroad all'!P12+cmv_c1c2!T12+'ptfire-rx'!AS12+ptegu!BS12+ptnonipm!CD12+pt_oilgas!BS12+np_oilgas!BA12+rwc!AL12+cmv_c3!T12+livestock!X12+airports!AM12+'ptfire-wild'!AP12+np_solvents!AY12 -> 4,496 | K13: =rail!BR12+nonpt!CY12+ptagfire!AY12+nonroad!BH12+'onroad all'!BC12+cmv_c1c2!AO12+'ptfire-rx'!BE12+ptegu!CX12+ptnonipm!DP12+pt_oilgas!CW12+np_oilgas!BW12+rwc!AY12+cmv_c3!AP12+livestock!AH12+airports!BE12+'ptfire-wild'!BA12+np_solvents!BR12 -> 13,527 | L13: =rail!CF12+nonpt!DO12+ptagfire!BH12+nonroad!BT12+'onroad all'!BU12+cmv_c1c2!BC12+'ptfire-rx'!BP12+ptegu!DM12+ptnonipm!EH12+pt_oilgas!DM12+np_oilgas!CK12+rwc!BJ12+cmv_c3!BC12+livestock!AN12+airports!BN12+'ptfire-wild'!BL12+np_solvents!CF12 -> 13,647 | M13: =rail!CG12+nonpt!DQ12+nonroad!BU12+'onroad all'!BY12+cmv_c1c2!BD12+'ptfire-rx'!BR12+ptegu!DO12+ptnonipm!EJ12+pt_oilgas!DO12+np_oilgas!CL12+rwc!BK12+cmv_c3!BD12+airports!BO12+'ptfire-wild'!BN12+np_solvents!CG12+ptagfire!BJ12 -> 1,524 | N13: =rail!AN12+nonpt!BK12+nonroad!AJ12+'onroad all'!G12+cmv_c1c2!M12+'ptfire-rx'!AL12+ptegu!BK12+ptnonipm!BU12+pt_oilgas!BK12+np_oilgas!AT12+rwc!AG12+airports!AH12+cmv_c3!M12+'ptfire-wild'!AJ12+ptagfire!AH12 -> 2,305 | O13: =rail!AY12+nonpt!O12+ptagfire!AP12+nonroad!AR12+'onroad all'!Z12+cmv_c1c2!V12+'ptfire-rx'!AU12+ptegu!BX12+ptnonipm!CI12+pt_oilgas!BX12+np_oilgas!BD12+rwc!AN12+airports!AO12+cmv_c3!V12+'ptfire-wild'!AR12+np_solvents!AE12 -> 1,979 | P13: =rail!AD12+nonroad!AD12+'onroad all'!AK12+'onroad all'!AL12+'onroad all'!AM12+'onroad all'!AN12+'onroad all'!AO12+'onroad all'!AP12+ptnonipm!BI12+SUM(airports!AR12:AW12)+SUM(cmv_c1c2!AC12:AH12)+SUM(cmv_c3!AC12:AH12) -> 4,177 | Q13: =rail!AE12+nonroad!AE12+'onroad all'!AL12+'onroad all'!AM12+'onroad all'!AN12+'onroad all'!AO12+'onroad all'!AP12+ptnonipm!BJ12+SUM(airports!AS12:AW12)+SUM(cmv_c1c2!AD12:AH12)+SUM(cmv_c3!AD12:AH12) -> 3,920 | R13: =rail!P12+nonpt!T12+nonroad!R12+'onroad all'!AC12+ptegu!T12+ptnonipm!T12+pt_oilgas!S12+np_oilgas!Q12+SUM(cmv_c1c2!Z12:AA12)+SUM(cmv_c3!Z12:AA12) -> 1.11 | S13: =rail!K12+nonpt!L12+nonroad!U12+'onroad all'!M12+ptegu!L12+ptnonipm!L12+pt_oilgas!K12+np_oilgas!K12+SUM(cmv_c1c2!R12:S12)+SUM(cmv_c3!R12:S12) -> 0.93 | T13: =rail!O12+nonpt!P12+ptegu!P12+ptnonipm!P12+pt_oilgas!O12+np_oilgas!N12+rwc!M12+SUM(cmv_c1c2!W12:X12)+SUM(cmv_c3!W12:X12) -> 0.14 | U13: =rail!V12+nonpt!AI12+nonroad!T12+'onroad all'!CB12+ptegu!AH12+ptnonipm!AL12+pt_oilgas!AG12+np_oilgas!AA12+rwc!R12+SUM(cmv_c1c2!BF12:BG12)+SUM(cmv_c3!BF12:BG12) -> 5.16 | V13: =rail!T12+nonpt!AE12+nonroad!S12+'onroad all'!BS12+'onroad all'!BT12+ptegu!AD12+ptnonipm!AH12+pt_oilgas!AC12+np_oilgas!W12+rwc!P12+SUM(cmv_c1c2!BA12:BB12)+SUM(cmv_c3!BA12:BB12) -> 19.75 | W13: =nonpt!CW12+ptegu!BB12+ptnonipm!Z12 -> 6.00 | X13: X | AA13: Georgia | AB13: =B13+beis!H12 -> 2,194,338 | AC13: 101,098 | AD13: =D13+beis!T12 -> 279,520 | AE13: 209,598 | AF13: 124,923 | AG13: 39,127 | AH13: =H13+beis!Z12 -> 1,902,229 | AI13: =I13+beis!E12 -> 21,406 | AJ13: 4,496 | AK13: =K13+beis!N12 -> 34,661 | AL13: =L13+beis!R12 -> 104,098 | AM13: 1,524 | AN13: 2,305 | AO13: 1,979 | AP13: 4,177 | AQ13: 3,920 | AR13: 1.11 | AS13: 0.93 | AT13: 0.14 | AU13: 5.16 | AV13: 19.75 | AX13: Georgia | AY13: =B13-'ptfire-rx'!B12-'ptfire-wild'!B12 -> 1,413,201 | AZ13: =C13-'ptfire-rx'!C12-'ptfire-wild'!C12 -> 90,614 | BA13: =D13-'ptfire-rx'!D12-'ptfire-wild'!D12 -> 236,316 | BB13: =E13-'ptfire-rx'!E12-'ptfire-wild'!E12 -> 140,950 | BC13: =F13-'ptfire-rx'!F12-'ptfire-wild'!F12 -> 66,747 | BD13: =G13-'ptfire-rx'!G12-'ptfire-wild'!G12 -> 32,917 | BE13: =H13-'ptfire-rx'!H12-'ptfire-wild'!H12 -> 241,387 | BF13: =I13-'ptfire-rx'!AO12-'ptfire-wild'!AL12 -> 1,779 | BG13: =J13-'ptfire-rx'!AS12-'ptfire-wild'!AP12 -> 2,647 | BH13: =K13-'ptfire-rx'!BE12-'ptfire-wild'!BA12 -> 2,804 | BI13: =L13-'ptfire-rx'!BP12-'ptfire-wild'!BL12 -> 7,329 | BJ13: =M13-'ptfire-rx'!BR12-'ptfire-wild'!BN12 -> 246 | BK13: =N13-'ptfire-rx'!AL12-'ptfire-wild'!AJ12 -> 262 | BL13: =O13-'ptfire-rx'!AU12-'ptfire-wild'!AR12 -> 380 | BM13: 4,177 | BN13: 3,920 | BO13: 1.11 | BP13: 0.93 | BQ13: 0.14 | BR13: 5.16 | BS13: 19.75
A14: Idaho | B14: =rail!B13+nonpt!B13+ptagfire!B13+nonroad!B13+'onroad all'!AG13+cmv_c1c2!B13+'ptfire-rx'!B13+ptegu!B13+ptnonipm!B13+pt_oilgas!B13+np_oilgas!B13+rwc!B13+cmv_c3!B13+airports!B13+'ptfire-wild'!B13+np_solvents!B13 -> 797,480 | C14: =rail!C13+nonpt!C13+ptagfire!C13++nonroad!C13+'onroad all'!BZ13+cmv_c1c2!BE13+'ptfire-rx'!C13+ptegu!C13+ptnonipm!C13+pt_oilgas!C13+np_oilgas!C13+rwc!C13+cmv_c3!BE13+livestock!B13+airports!C13+'ptfire-wild'!C13+fertilizer!B13+np_solvents!C13 -> 107,600 | D14: =rail!D13+nonpt!D13+ptagfire!D13++nonroad!D13+cmv_c1c2!D13+'ptfire-rx'!D13+ptegu!DW13+ptnonipm!D13+pt_oilgas!D13+np_oilgas!D13+rwc!D13+cmv_c3!D13+'onroad all'!CI13+airports!D13+'ptfire-wild'!D13+np_solvents!D13 -> 63,460 | E14: =rail!E13+nonpt!E13+ptagfire!E13++nonroad!E13+cmv_c1c2!E13+'ptfire-rx'!E13+ptegu!E13+ptnonipm!E13+pt_oilgas!E13+np_oilgas!E13+rwc!E13+cmv_c3!E13+afdust!BA13+'onroad all'!DE13+'onroad all'!DD13+airports!E13+'ptfire-wild'!E13+np_solvents!E13 -> 326,159 | F14: =rail!F13+nonpt!F13+ptagfire!F13++nonroad!F13+cmv_c1c2!F13+'ptfire-rx'!F13+ptegu!F13+ptnonipm!F13+pt_oilgas!F13+np_oilgas!F13+rwc!F13+cmv_c3!F13+afdust!BB13+'onroad all'!DD13+airports!F13+'ptfire-wild'!F13+np_solvents!F13 -> 87,463 | G14: =rail!G13+nonpt!G13+ptagfire!G13++nonroad!G13+'onroad all'!DU13+cmv_c1c2!G13+'ptfire-rx'!G13+ptegu!FH13+ptnonipm!G13+pt_oilgas!G13+np_oilgas!G13+rwc!G13+cmv_c3!G13+airports!G13+'ptfire-wild'!G13+np_solvents!G13 -> 6,611 | H14: =rail!H13+nonpt!H13+ptagfire!H13++nonroad!H13+'onroad all'!EI13+cmv_c1c2!H13+'ptfire-rx'!H13+ptegu!H13+ptnonipm!H13+pt_oilgas!H13+np_oilgas!H13+rwc!H13+cmv_c3!H13+livestock!C13+airports!H13+'ptfire-wild'!H13+np_solvents!H13 -> 190,846 | I14: =rail!AO13+nonpt!BN13+ptagfire!AJ13+nonroad!AK13+'onroad all'!H13+cmv_c1c2!O13+'ptfire-rx'!AO13+ptegu!BM13+ptnonipm!BX13+pt_oilgas!BM13+np_oilgas!AU13+rwc!AH13+cmv_c3!O13+livestock!U13+airports!AJ13+'ptfire-wild'!AL13+np_solvents!AU13 -> 4,969 | J14: =rail!AU13+nonpt!BT13+ptagfire!AN13+nonroad!AP13+'onroad all'!P13+cmv_c1c2!T13+'ptfire-rx'!AS13+ptegu!BS13+ptnonipm!CD13+pt_oilgas!BS13+np_oilgas!BA13+rwc!AL13+cmv_c3!T13+livestock!X13+airports!AM13+'ptfire-wild'!AP13+np_solvents!AY13 -> 1,985 | K14: =rail!BR13+nonpt!CY13+ptagfire!AY13+nonroad!BH13+'onroad all'!BC13+cmv_c1c2!AO13+'ptfire-rx'!BE13+ptegu!CX13+ptnonipm!DP13+pt_oilgas!CW13+np_oilgas!BW13+rwc!AY13+cmv_c3!AP13+livestock!AH13+airports!BE13+'ptfire-wild'!BA13+np_solvents!BR13 -> 9,489 | L14: =rail!CF13+nonpt!DO13+ptagfire!BH13+nonroad!BT13+'onroad all'!BU13+cmv_c1c2!BC13+'ptfire-rx'!BP13+ptegu!DM13+ptnonipm!EH13+pt_oilgas!DM13+np_oilgas!CK13+rwc!BJ13+cmv_c3!BC13+livestock!AN13+airports!BN13+'ptfire-wild'!BL13+np_solvents!CF13 -> 10,612 | M14: =rail!CG13+nonpt!DQ13+nonroad!BU13+'onroad all'!BY13+cmv_c1c2!BD13+'ptfire-rx'!BR13+ptegu!DO13+ptnonipm!EJ13+pt_oilgas!DO13+np_oilgas!CL13+rwc!BK13+cmv_c3!BD13+airports!BO13+'ptfire-wild'!BN13+np_solvents!CG13+ptagfire!BJ13 -> 1,419 | N14: =rail!AN13+nonpt!BK13+nonroad!AJ13+'onroad all'!G13+cmv_c1c2!M13+'ptfire-rx'!AL13+ptegu!BK13+ptnonipm!BU13+pt_oilgas!BK13+np_oilgas!AT13+rwc!AG13+airports!AH13+cmv_c3!M13+'ptfire-wild'!AJ13+ptagfire!AH13 -> 1,384 | O14: =rail!AY13+nonpt!O13+ptagfire!AP13+nonroad!AR13+'onroad all'!Z13+cmv_c1c2!V13+'ptfire-rx'!AU13+ptegu!BX13+ptnonipm!CI13+pt_oilgas!BX13+np_oilgas!BD13+rwc!AN13+airports!AO13+cmv_c3!V13+'ptfire-wild'!AR13+np_solvents!AE13 -> 822 | P14: =rail!AD13+nonroad!AD13+'onroad all'!AK13+'onroad all'!AL13+'onroad all'!AM13+'onroad all'!AN13+'onroad all'!AO13+'onroad all'!AP13+ptnonipm!BI13+SUM(airports!AR13:AW13)+SUM(cmv_c1c2!AC13:AH13)+SUM(cmv_c3!AC13:AH13) -> 1,248 | Q14: =rail!AE13+nonroad!AE13+'onroad all'!AL13+'onroad all'!AM13+'onroad all'!AN13+'onroad all'!AO13+'onroad all'!AP13+ptnonipm!BJ13+SUM(airports!AS13:AW13)+SUM(cmv_c1c2!AD13:AH13)+SUM(cmv_c3!AD13:AH13) -> 1,157 | R14: =rail!P13+nonpt!T13+nonroad!R13+'onroad all'!AC13+ptegu!T13+ptnonipm!T13+pt_oilgas!S13+np_oilgas!Q13+SUM(cmv_c1c2!Z13:AA13)+SUM(cmv_c3!Z13:AA13) -> 0.53 | S14: =rail!K13+nonpt!L13+nonroad!U13+'onroad all'!M13+ptegu!L13+ptnonipm!L13+pt_oilgas!K13+np_oilgas!K13+SUM(cmv_c1c2!R13:S13)+SUM(cmv_c3!R13:S13) -> 0.65 | T14: =rail!O13+nonpt!P13+ptegu!P13+ptnonipm!P13+pt_oilgas!O13+np_oilgas!N13+rwc!M13+SUM(cmv_c1c2!W13:X13)+SUM(cmv_c3!W13:X13) -> 2.30 | U14: =rail!V13+nonpt!AI13+nonroad!T13+'onroad all'!CB13+ptegu!AH13+ptnonipm!AL13+pt_oilgas!AG13+np_oilgas!AA13+rwc!R13+SUM(cmv_c1c2!BF13:BG13)+SUM(cmv_c3!BF13:BG13) -> 1.39 | V14: =rail!T13+nonpt!AE13+nonroad!S13+'onroad all'!BS13+'onroad all'!BT13+ptegu!AD13+ptnonipm!AH13+pt_oilgas!AC13+np_oilgas!W13+rwc!P13+SUM(cmv_c1c2!BA13:BB13)+SUM(cmv_c3!BA13:BB13) -> 10.42 | W14: =nonpt!CW13+ptegu!BB13+ptnonipm!Z13 -> 0.01 | AA14: Idaho | AB14: =B14+beis!H13 -> 878,090 | AC14: 107,600 | AD14: =D14+beis!T13 -> 77,253 | AE14: 326,159 | AF14: 87,463 | AG14: 6,611 | AH14: =H14+beis!Z13 -> 671,158 | AI14: =I14+beis!E13 -> 13,413 | AJ14: 1,985 | AK14: =K14+beis!N13 -> 21,005 | AL14: =L14+beis!R13 -> 48,624 | AM14: 1,419 | AN14: 1,384 | AO14: 822 | AP14: 1,248 | AQ14: 1,157 | AR14: 0.53 | AS14: 0.65 | AT14: 2.30 | AU14: 1.39 | AV14: 10.42 | AX14: Idaho | AY14: =B14-'ptfire-rx'!B13-'ptfire-wild'!B13 -> 271,835 | AZ14: =C14-'ptfire-rx'!C13-'ptfire-wild'!C13 -> 98,982 | BA14: =D14-'ptfire-rx'!D13-'ptfire-wild'!D13 -> 56,782 | BB14: =E14-'ptfire-rx'!E13-'ptfire-wild'!E13 -> 273,127 | BC14: =F14-'ptfire-rx'!F13-'ptfire-wild'!F13 -> 42,521 | BD14: =G14-'ptfire-rx'!G13-'ptfire-wild'!G13 -> 2,812 | BE14: =H14-'ptfire-rx'!H13-'ptfire-wild'!H13 -> 66,968 | BF14: =I14-'ptfire-rx'!AO13-'ptfire-wild'!AL13 -> 619 | BG14: =J14-'ptfire-rx'!AS13-'ptfire-wild'!AP13 -> 819 | BH14: =K14-'ptfire-rx'!BE13-'ptfire-wild'!BA13 -> 802 | BI14: =L14-'ptfire-rx'!BP13-'ptfire-wild'!BL13 -> 836 | BJ14: =M14-'ptfire-rx'!BR13-'ptfire-wild'!BN13 -> 156 | BK14: =N14-'ptfire-rx'!AL13-'ptfire-wild'!AJ13 -> 55 | BL14: =O14-'ptfire-rx'!AU13-'ptfire-wild'!AR13 -> 118 | BM14: 1,248 | BN14: 1,157 | BO14: 0.53 | BP14: 0.65 | BQ14: 2.30 | BR14: 1.39 | BS14: 10.42
A15: Illinois | B15: =rail!B14+nonpt!B14+ptagfire!B14+nonroad!B14+'onroad all'!AG14+cmv_c1c2!B14+'ptfire-rx'!B14+ptegu!B14+ptnonipm!B14+pt_oilgas!B14+np_oilgas!B14+rwc!B14+cmv_c3!B14+airports!B14+'ptfire-wild'!B14+np_solvents!B14 -> 1,325,343 | C15: =rail!C14+nonpt!C14+ptagfire!C14++nonroad!C14+'onroad all'!BZ14+cmv_c1c2!BE14+'ptfire-rx'!C14+ptegu!C14+ptnonipm!C14+pt_oilgas!C14+np_oilgas!C14+rwc!C14+cmv_c3!BE14+livestock!B14+airports!C14+'ptfire-wild'!C14+fertilizer!B14+np_solvents!C14 -> 74,770 | D15: =rail!D14+nonpt!D14+ptagfire!D14++nonroad!D14+cmv_c1c2!D14+'ptfire-rx'!D14+ptegu!DW14+ptnonipm!D14+pt_oilgas!D14+np_oilgas!D14+rwc!D14+cmv_c3!D14+'onroad all'!CI14+airports!D14+'ptfire-wild'!D14+np_solvents!D14 -> 288,240 | E15: =rail!E14+nonpt!E14+ptagfire!E14++nonroad!E14+cmv_c1c2!E14+'ptfire-rx'!E14+ptegu!E14+ptnonipm!E14+pt_oilgas!E14+np_oilgas!E14+rwc!E14+cmv_c3!E14+afdust!BA14+'onroad all'!DE14+'onroad all'!DD14+airports!E14+'ptfire-wild'!E14+np_solvents!E14 -> 383,560 | F15: =rail!F14+nonpt!F14+ptagfire!F14++nonroad!F14+cmv_c1c2!F14+'ptfire-rx'!F14+ptegu!F14+ptnonipm!F14+pt_oilgas!F14+np_oilgas!F14+rwc!F14+cmv_c3!F14+afdust!BB14+'onroad all'!DD14+airports!F14+'ptfire-wild'!F14+np_solvents!F14 -> 96,272 | G15: =rail!G14+nonpt!G14+ptagfire!G14++nonroad!G14+'onroad all'!DU14+cmv_c1c2!G14+'ptfire-rx'!G14+ptegu!FH14+ptnonipm!G14+pt_oilgas!G14+np_oilgas!G14+rwc!G14+cmv_c3!G14+airports!G14+'ptfire-wild'!G14+np_solvents!G14 -> 85,582 | H15: =rail!H14+nonpt!H14+ptagfire!H14++nonroad!H14+'onroad all'!EI14+cmv_c1c2!H14+'ptfire-rx'!H14+ptegu!H14+ptnonipm!H14+pt_oilgas!H14+np_oilgas!H14+rwc!H14+cmv_c3!H14+livestock!C14+airports!H14+'ptfire-wild'!H14+np_solvents!H14 -> 314,760 | I15: =rail!AO14+nonpt!BN14+ptagfire!AJ14+nonroad!AK14+'onroad all'!H14+cmv_c1c2!O14+'ptfire-rx'!AO14+ptegu!BM14+ptnonipm!BX14+pt_oilgas!BM14+np_oilgas!AU14+rwc!AH14+cmv_c3!O14+livestock!U14+airports!AJ14+'ptfire-wild'!AL14+np_solvents!AU14 -> 2,434 | J15: =rail!AU14+nonpt!BT14+ptagfire!AN14+nonroad!AP14+'onroad all'!P14+cmv_c1c2!T14+'ptfire-rx'!AS14+ptegu!BS14+ptnonipm!CD14+pt_oilgas!BS14+np_oilgas!BA14+rwc!AL14+cmv_c3!T14+livestock!X14+airports!AM14+'ptfire-wild'!AP14+np_solvents!AY14 -> 3,049 | K15: =rail!BR14+nonpt!CY14+ptagfire!AY14+nonroad!BH14+'onroad all'!BC14+cmv_c1c2!AO14+'ptfire-rx'!BE14+ptegu!CX14+ptnonipm!DP14+pt_oilgas!CW14+np_oilgas!BW14+rwc!AY14+cmv_c3!AP14+livestock!AH14+airports!BE14+'ptfire-wild'!BA14+np_solvents!BR14 -> 4,344 | L15: =rail!CF14+nonpt!DO14+ptagfire!BH14+nonroad!BT14+'onroad all'!BU14+cmv_c1c2!BC14+'ptfire-rx'!BP14+ptegu!DM14+ptnonipm!EH14+pt_oilgas!DM14+np_oilgas!CK14+rwc!BJ14+cmv_c3!BC14+livestock!AN14+airports!BN14+'ptfire-wild'!BL14+np_solvents!CF14 -> 3,403 | M15: =rail!CG14+nonpt!DQ14+nonroad!BU14+'onroad all'!BY14+cmv_c1c2!BD14+'ptfire-rx'!BR14+ptegu!DO14+ptnonipm!EJ14+pt_oilgas!DO14+np_oilgas!CL14+rwc!BK14+cmv_c3!BD14+airports!BO14+'ptfire-wild'!BN14+np_solvents!CG14+ptagfire!BJ14 -> 490 | N15: =rail!AN14+nonpt!BK14+nonroad!AJ14+'onroad all'!G14+cmv_c1c2!M14+'ptfire-rx'!AL14+ptegu!BK14+ptnonipm!BU14+pt_oilgas!BK14+np_oilgas!AT14+rwc!AG14+airports!AH14+cmv_c3!M14+'ptfire-wild'!AJ14+ptagfire!AH14 -> 497 | O15: =rail!AY14+nonpt!O14+ptagfire!AP14+nonroad!AR14+'onroad all'!Z14+cmv_c1c2!V14+'ptfire-rx'!AU14+ptegu!BX14+ptnonipm!CI14+pt_oilgas!BX14+np_oilgas!BD14+rwc!AN14+airports!AO14+cmv_c3!V14+'ptfire-wild'!AR14+np_solvents!AE14 -> 542 | P15: =rail!AD14+nonroad!AD14+'onroad all'!AK14+'onroad all'!AL14+'onroad all'!AM14+'onroad all'!AN14+'onroad all'!AO14+'onroad all'!AP14+ptnonipm!BI14+SUM(airports!AR14:AW14)+SUM(cmv_c1c2!AC14:AH14)+SUM(cmv_c3!AC14:AH14) -> 5,431 | Q15: =rail!AE14+nonroad!AE14+'onroad all'!AL14+'onroad all'!AM14+'onroad all'!AN14+'onroad all'!AO14+'onroad all'!AP14+ptnonipm!BJ14+SUM(airports!AS14:AW14)+SUM(cmv_c1c2!AD14:AH14)+SUM(cmv_c3!AD14:AH14) -> 5,177 | R15: =rail!P14+nonpt!T14+nonroad!R14+'onroad all'!AC14+ptegu!T14+ptnonipm!T14+pt_oilgas!S14+np_oilgas!Q14+SUM(cmv_c1c2!Z14:AA14)+SUM(cmv_c3!Z14:AA14) -> 2.46 | S15: =rail!K14+nonpt!L14+nonroad!U14+'onroad all'!M14+ptegu!L14+ptnonipm!L14+pt_oilgas!K14+np_oilgas!K14+SUM(cmv_c1c2!R14:S14)+SUM(cmv_c3!R14:S14) -> 2.15 | T15: =rail!O14+nonpt!P14+ptegu!P14+ptnonipm!P14+pt_oilgas!O14+np_oilgas!N14+rwc!M14+SUM(cmv_c1c2!W14:X14)+SUM(cmv_c3!W14:X14) -> 1.16 | U15: =rail!V14+nonpt!AI14+nonroad!T14+'onroad all'!CB14+ptegu!AH14+ptnonipm!AL14+pt_oilgas!AG14+np_oilgas!AA14+rwc!R14+SUM(cmv_c1c2!BF14:BG14)+SUM(cmv_c3!BF14:BG14) -> 24.56 | V15: =rail!T14+nonpt!AE14+nonroad!S14+'onroad all'!BS14+'onroad all'!BT14+ptegu!AD14+ptnonipm!AH14+pt_oilgas!AC14+np_oilgas!W14+rwc!P14+SUM(cmv_c1c2!BA14:BB14)+SUM(cmv_c3!BA14:BB14) -> 65.42 | W15: =nonpt!CW14+ptegu!BB14+ptnonipm!Z14 -> 3.15 | X15: X | AA15: Illinois | AB15: =B15+beis!H14 -> 1,375,272 | AC15: 74,770 | AD15: =D15+beis!T14 -> 332,110 | AE15: 383,560 | AF15: 96,272 | AG15: 85,582 | AH15: =H15+beis!Z14 -> 531,758 | AI15: =I15+beis!E14 -> 7,664 | AJ15: 3,049 | AK15: =K15+beis!N14 -> 11,476 | AL15: =L15+beis!R14 -> 32,049 | AM15: 490 | AN15: 497 | AO15: 542 | AP15: 5,431 | AQ15: 5,177 | AR15: 2.46 | AS15: 2.15 | AT15: 1.16 | AU15: 24.56 | AV15: 65.42 | AX15: Illinois | AY15: =B15-'ptfire-rx'!B14-'ptfire-wild'!B14 -> 1,223,224 | AZ15: =C15-'ptfire-rx'!C14-'ptfire-wild'!C14 -> 73,089 | BA15: =D15-'ptfire-rx'!D14-'ptfire-wild'!D14 -> 286,604 | BB15: =E15-'ptfire-rx'!E14-'ptfire-wild'!E14 -> 372,955 | BC15: =F15-'ptfire-rx'!F14-'ptfire-wild'!F14 -> 87,285 | BD15: =G15-'ptfire-rx'!G14-'ptfire-wild'!G14 -> 84,741 | BE15: =H15-'ptfire-rx'!H14-'ptfire-wild'!H14 -> 290,600 | BF15: =I15-'ptfire-rx'!AO14-'ptfire-wild'!AL14 -> 1,714 | BG15: =J15-'ptfire-rx'!AS14-'ptfire-wild'!AP14 -> 2,856 | BH15: =K15-'ptfire-rx'!BE14-'ptfire-wild'!BA14 -> 3,265 | BI15: =L15-'ptfire-rx'!BP14-'ptfire-wild'!BL14 -> 2,412 | BJ15: =M15-'ptfire-rx'!BR14-'ptfire-wild'!BN14 -> 281 | BK15: =N15-'ptfire-rx'!AL14-'ptfire-wild'!AJ14 -> 277 | BL15: =O15-'ptfire-rx'!AU14-'ptfire-wild'!AR14 -> 425 | BM15: 5,431 | BN15: 5,177 | BO15: 2.46 | BP15: 2.15 | BQ15: 1.16 | BR15: 24.56 | BS15: 65.42
A16: Indiana | B16: =rail!B15+nonpt!B15+ptagfire!B15+nonroad!B15+'onroad all'!AG15+cmv_c1c2!B15+'ptfire-rx'!B15+ptegu!B15+ptnonipm!B15+pt_oilgas!B15+np_oilgas!B15+rwc!B15+cmv_c3!B15+airports!B15+'ptfire-wild'!B15+np_solvents!B15 -> 1,124,487 | C16: =rail!C15+nonpt!C15+ptagfire!C15++nonroad!C15+'onroad all'!BZ15+cmv_c1c2!BE15+'ptfire-rx'!C15+ptegu!C15+ptnonipm!C15+pt_oilgas!C15+np_oilgas!C15+rwc!C15+cmv_c3!BE15+livestock!B15+airports!C15+'ptfire-wild'!C15+fertilizer!B15+np_solvents!C15 -> 96,500 | D16: =rail!D15+nonpt!D15+ptagfire!D15++nonroad!D15+cmv_c1c2!D15+'ptfire-rx'!D15+ptegu!DW15+ptnonipm!D15+pt_oilgas!D15+np_oilgas!D15+rwc!D15+cmv_c3!D15+'onroad all'!CI15+airports!D15+'ptfire-wild'!D15+np_solvents!D15 -> 247,079 | E16: =rail!E15+nonpt!E15+ptagfire!E15++nonroad!E15+cmv_c1c2!E15+'ptfire-rx'!E15+ptegu!E15+ptnonipm!E15+pt_oilgas!E15+np_oilgas!E15+rwc!E15+cmv_c3!E15+afdust!BA15+'onroad all'!DE15+'onroad all'!DD15+airports!E15+'ptfire-wild'!E15+np_solvents!E15 -> 96,276 | F16: =rail!F15+nonpt!F15+ptagfire!F15++nonroad!F15+cmv_c1c2!F15+'ptfire-rx'!F15+ptegu!F15+ptnonipm!F15+pt_oilgas!F15+np_oilgas!F15+rwc!F15+cmv_c3!F15+afdust!BB15+'onroad all'!DD15+airports!F15+'ptfire-wild'!F15+np_solvents!F15 -> 54,757 | G16: =rail!G15+nonpt!G15+ptagfire!G15++nonroad!G15+'onroad all'!DU15+cmv_c1c2!G15+'ptfire-rx'!G15+ptegu!FH15+ptnonipm!G15+pt_oilgas!G15+np_oilgas!G15+rwc!G15+cmv_c3!G15+airports!G15+'ptfire-wild'!G15+np_solvents!G15 -> 86,483 | H16: =rail!H15+nonpt!H15+ptagfire!H15++nonroad!H15+'onroad all'!EI15+cmv_c1c2!H15+'ptfire-rx'!H15+ptegu!H15+ptnonipm!H15+pt_oilgas!H15+np_oilgas!H15+rwc!H15+cmv_c3!H15+livestock!C15+airports!H15+'ptfire-wild'!H15+np_solvents!H15 -> 196,243 | I16: =rail!AO15+nonpt!BN15+ptagfire!AJ15+nonroad!AK15+'onroad all'!H15+cmv_c1c2!O15+'ptfire-rx'!AO15+ptegu!BM15+ptnonipm!BX15+pt_oilgas!BM15+np_oilgas!AU15+rwc!AH15+cmv_c3!O15+livestock!U15+airports!AJ15+'ptfire-wild'!AL15+np_solvents!AU15 -> 1,535 | J16: =rail!AU15+nonpt!BT15+ptagfire!AN15+nonroad!AP15+'onroad all'!P15+cmv_c1c2!T15+'ptfire-rx'!AS15+ptegu!BS15+ptnonipm!CD15+pt_oilgas!BS15+np_oilgas!BA15+rwc!AL15+cmv_c3!T15+livestock!X15+airports!AM15+'ptfire-wild'!AP15+np_solvents!AY15 -> 2,026 | K16: =rail!BR15+nonpt!CY15+ptagfire!AY15+nonroad!BH15+'onroad all'!BC15+cmv_c1c2!AO15+'ptfire-rx'!BE15+ptegu!CX15+ptnonipm!DP15+pt_oilgas!CW15+np_oilgas!BW15+rwc!AY15+cmv_c3!AP15+livestock!AH15+airports!BE15+'ptfire-wild'!BA15+np_solvents!BR15 -> 2,791 | L16: =rail!CF15+nonpt!DO15+ptagfire!BH15+nonroad!BT15+'onroad all'!BU15+cmv_c1c2!BC15+'ptfire-rx'!BP15+ptegu!DM15+ptnonipm!EH15+pt_oilgas!DM15+np_oilgas!CK15+rwc!BJ15+cmv_c3!BC15+livestock!AN15+airports!BN15+'ptfire-wild'!BL15+np_solvents!CF15 -> 1,984 | M16: =rail!CG15+nonpt!DQ15+nonroad!BU15+'onroad all'!BY15+cmv_c1c2!BD15+'ptfire-rx'!BR15+ptegu!DO15+ptnonipm!EJ15+pt_oilgas!DO15+np_oilgas!CL15+rwc!BK15+cmv_c3!BD15+airports!BO15+'ptfire-wild'!BN15+np_solvents!CG15+ptagfire!BJ15 -> 310 | N16: =rail!AN15+nonpt!BK15+nonroad!AJ15+'onroad all'!G15+cmv_c1c2!M15+'ptfire-rx'!AL15+ptegu!BK15+ptnonipm!BU15+pt_oilgas!BK15+np_oilgas!AT15+rwc!AG15+airports!AH15+cmv_c3!M15+'ptfire-wild'!AJ15+ptagfire!AH15 -> 250 | O16: =rail!AY15+nonpt!O15+ptagfire!AP15+nonroad!AR15+'onroad all'!Z15+cmv_c1c2!V15+'ptfire-rx'!AU15+ptegu!BX15+ptnonipm!CI15+pt_oilgas!BX15+np_oilgas!BD15+rwc!AN15+airports!AO15+cmv_c3!V15+'ptfire-wild'!AR15+np_solvents!AE15 -> 292 | P16: =rail!AD15+nonroad!AD15+'onroad all'!AK15+'onroad all'!AL15+'onroad all'!AM15+'onroad all'!AN15+'onroad all'!AO15+'onroad all'!AP15+ptnonipm!BI15+SUM(airports!AR15:AW15)+SUM(cmv_c1c2!AC15:AH15)+SUM(cmv_c3!AC15:AH15) -> 3,953 | Q16: =rail!AE15+nonroad!AE15+'onroad all'!AL15+'onroad all'!AM15+'onroad all'!AN15+'onroad all'!AO15+'onroad all'!AP15+ptnonipm!BJ15+SUM(airports!AS15:AW15)+SUM(cmv_c1c2!AD15:AH15)+SUM(cmv_c3!AD15:AH15) -> 3,755 | R16: =rail!P15+nonpt!T15+nonroad!R15+'onroad all'!AC15+ptegu!T15+ptnonipm!T15+pt_oilgas!S15+np_oilgas!Q15+SUM(cmv_c1c2!Z15:AA15)+SUM(cmv_c3!Z15:AA15) -> 1.03 | S16: =rail!K15+nonpt!L15+nonroad!U15+'onroad all'!M15+ptegu!L15+ptnonipm!L15+pt_oilgas!K15+np_oilgas!K15+SUM(cmv_c1c2!R15:S15)+SUM(cmv_c3!R15:S15) -> 1.94 | T16: =rail!O15+nonpt!P15+ptegu!P15+ptnonipm!P15+pt_oilgas!O15+np_oilgas!N15+rwc!M15+SUM(cmv_c1c2!W15:X15)+SUM(cmv_c3!W15:X15) -> 1.44 | U16: =rail!V15+nonpt!AI15+nonroad!T15+'onroad all'!CB15+ptegu!AH15+ptnonipm!AL15+pt_oilgas!AG15+np_oilgas!AA15+rwc!R15+SUM(cmv_c1c2!BF15:BG15)+SUM(cmv_c3!BF15:BG15) -> 13.01 | V16: =rail!T15+nonpt!AE15+nonroad!S15+'onroad all'!BS15+'onroad all'!BT15+ptegu!AD15+ptnonipm!AH15+pt_oilgas!AC15+np_oilgas!W15+rwc!P15+SUM(cmv_c1c2!BA15:BB15)+SUM(cmv_c3!BA15:BB15) -> 46.36 | W16: =nonpt!CW15+ptegu!BB15+ptnonipm!Z15 -> 0.22 | X16: X | AA16: Indiana | AB16: =B16+beis!H15 -> 1,158,999 | AC16: 96,500 | AD16: =D16+beis!T15 -> 272,468 | AE16: 96,276 | AF16: 54,757 | AG16: 86,483 | AH16: =H16+beis!Z15 -> 376,973 | AI16: =I16+beis!E15 -> 5,148 | AJ16: 2,026 | AK16: =K16+beis!N15 -> 7,719 | AL16: =L16+beis!R15 -> 20,956 | AM16: 310 | AN16: 250 | AO16: 292 | AP16: 3,953 | AQ16: 3,755 | AR16: 1.03 | AS16: 1.94 | AT16: 1.44 | AU16: 13.01 | AV16: 46.36 | AX16: Indiana | AY16: =B16-'ptfire-rx'!B15-'ptfire-wild'!B15 -> 1,090,625 | AZ16: =C16-'ptfire-rx'!C15-'ptfire-wild'!C15 -> 95,942 | BA16: =D16-'ptfire-rx'!D15-'ptfire-wild'!D15 -> 246,487 | BB16: =E16-'ptfire-rx'!E15-'ptfire-wild'!E15 -> 92,716 | BC16: =F16-'ptfire-rx'!F15-'ptfire-wild'!F15 -> 51,740 | BD16: =G16-'ptfire-rx'!G15-'ptfire-wild'!G15 -> 86,188 | BE16: =H16-'ptfire-rx'!H15-'ptfire-wild'!H15 -> 188,218 | BF16: =I16-'ptfire-rx'!AO15-'ptfire-wild'!AL15 -> 1,283 | BG16: =J16-'ptfire-rx'!AS15-'ptfire-wild'!AP15 -> 1,959 | BH16: =K16-'ptfire-rx'!BE15-'ptfire-wild'!BA15 -> 2,413 | BI16: =L16-'ptfire-rx'!BP15-'ptfire-wild'!BL15 -> 1,638 | BJ16: =M16-'ptfire-rx'!BR15-'ptfire-wild'!BN15 -> 237 | BK16: =N16-'ptfire-rx'!AL15-'ptfire-wild'!AJ15 -> 173 | BL16: =O16-'ptfire-rx'!AU15-'ptfire-wild'!AR15 -> 251 | BM16: 3,953 | BN16: 3,755 | BO16: 1.03 | BP16: 1.94 | BQ16: 1.44 | BR16: 13.01 | BS16: 46.36
A17: Iowa | B17: =rail!B16+nonpt!B16+ptagfire!B16+nonroad!B16+'onroad all'!AG16+cmv_c1c2!B16+'ptfire-rx'!B16+ptegu!B16+ptnonipm!B16+pt_oilgas!B16+np_oilgas!B16+rwc!B16+cmv_c3!B16+airports!B16+'ptfire-wild'!B16+np_solvents!B16 -> 536,711 | C17: =rail!C16+nonpt!C16+ptagfire!C16++nonroad!C16+'onroad all'!BZ16+cmv_c1c2!BE16+'ptfire-rx'!C16+ptegu!C16+ptnonipm!C16+pt_oilgas!C16+np_oilgas!C16+rwc!C16+cmv_c3!BE16+livestock!B16+airports!C16+'ptfire-wild'!C16+fertilizer!B16+np_solvents!C16 -> 326,987 | D17: =rail!D16+nonpt!D16+ptagfire!D16++nonroad!D16+cmv_c1c2!D16+'ptfire-rx'!D16+ptegu!DW16+ptnonipm!D16+pt_oilgas!D16+np_oilgas!D16+rwc!D16+cmv_c3!D16+'onroad all'!CI16+airports!D16+'ptfire-wild'!D16+np_solvents!D16 -> 144,666 | E17: =rail!E16+nonpt!E16+ptagfire!E16++nonroad!E16+cmv_c1c2!E16+'ptfire-rx'!E16+ptegu!E16+ptnonipm!E16+pt_oilgas!E16+np_oilgas!E16+rwc!E16+cmv_c3!E16+afdust!BA16+'onroad all'!DE16+'onroad all'!DD16+airports!E16+'ptfire-wild'!E16+np_solvents!E16 -> 139,767 | F17: =rail!F16+nonpt!F16+ptagfire!F16++nonroad!F16+cmv_c1c2!F16+'ptfire-rx'!F16+ptegu!F16+ptnonipm!F16+pt_oilgas!F16+np_oilgas!F16+rwc!F16+cmv_c3!F16+afdust!BB16+'onroad all'!DD16+airports!F16+'ptfire-wild'!F16+np_solvents!F16 -> 43,462 | G17: =rail!G16+nonpt!G16+ptagfire!G16++nonroad!G16+'onroad all'!DU16+cmv_c1c2!G16+'ptfire-rx'!G16+ptegu!FH16+ptnonipm!G16+pt_oilgas!G16+np_oilgas!G16+rwc!G16+cmv_c3!G16+airports!G16+'ptfire-wild'!G16+np_solvents!G16 -> 64,746 | H17: =rail!H16+nonpt!H16+ptagfire!H16++nonroad!H16+'onroad all'!EI16+cmv_c1c2!H16+'ptfire-rx'!H16+ptegu!H16+ptnonipm!H16+pt_oilgas!H16+np_oilgas!H16+rwc!H16+cmv_c3!H16+livestock!C16+airports!H16+'ptfire-wild'!H16+np_solvents!H16 -> 144,998 | I17: =rail!AO16+nonpt!BN16+ptagfire!AJ16+nonroad!AK16+'onroad all'!H16+cmv_c1c2!O16+'ptfire-rx'!AO16+ptegu!BM16+ptnonipm!BX16+pt_oilgas!BM16+np_oilgas!AU16+rwc!AH16+cmv_c3!O16+livestock!U16+airports!AJ16+'ptfire-wild'!AL16+np_solvents!AU16 -> 2,093 | J17: =rail!AU16+nonpt!BT16+ptagfire!AN16+nonroad!AP16+'onroad all'!P16+cmv_c1c2!T16+'ptfire-rx'!AS16+ptegu!BS16+ptnonipm!CD16+pt_oilgas!BS16+np_oilgas!BA16+rwc!AL16+cmv_c3!T16+livestock!X16+airports!AM16+'ptfire-wild'!AP16+np_solvents!AY16 -> 1,402 | K17: =rail!BR16+nonpt!CY16+ptagfire!AY16+nonroad!BH16+'onroad all'!BC16+cmv_c1c2!AO16+'ptfire-rx'!BE16+ptegu!CX16+ptnonipm!DP16+pt_oilgas!CW16+np_oilgas!BW16+rwc!AY16+cmv_c3!AP16+livestock!AH16+airports!BE16+'ptfire-wild'!BA16+np_solvents!BR16 -> 2,467 | L17: =rail!CF16+nonpt!DO16+ptagfire!BH16+nonroad!BT16+'onroad all'!BU16+cmv_c1c2!BC16+'ptfire-rx'!BP16+ptegu!DM16+ptnonipm!EH16+pt_oilgas!DM16+np_oilgas!CK16+rwc!BJ16+cmv_c3!BC16+livestock!AN16+airports!BN16+'ptfire-wild'!BL16+np_solvents!CF16 -> 2,001 | M17: =rail!CG16+nonpt!DQ16+nonroad!BU16+'onroad all'!BY16+cmv_c1c2!BD16+'ptfire-rx'!BR16+ptegu!DO16+ptnonipm!EJ16+pt_oilgas!DO16+np_oilgas!CL16+rwc!BK16+cmv_c3!BD16+airports!BO16+'ptfire-wild'!BN16+np_solvents!CG16+ptagfire!BJ16 -> 342 | N17: =rail!AN16+nonpt!BK16+nonroad!AJ16+'onroad all'!G16+cmv_c1c2!M16+'ptfire-rx'!AL16+ptegu!BK16+ptnonipm!BU16+pt_oilgas!BK16+np_oilgas!AT16+rwc!AG16+airports!AH16+cmv_c3!M16+'ptfire-wild'!AJ16+ptagfire!AH16 -> 371 | O17: =rail!AY16+nonpt!O16+ptagfire!AP16+nonroad!AR16+'onroad all'!Z16+cmv_c1c2!V16+'ptfire-rx'!AU16+ptegu!BX16+ptnonipm!CI16+pt_oilgas!BX16+np_oilgas!BD16+rwc!AN16+airports!AO16+cmv_c3!V16+'ptfire-wild'!AR16+np_solvents!AE16 -> 264 | P17: =rail!AD16+nonroad!AD16+'onroad all'!AK16+'onroad all'!AL16+'onroad all'!AM16+'onroad all'!AN16+'onroad all'!AO16+'onroad all'!AP16+ptnonipm!BI16+SUM(airports!AR16:AW16)+SUM(cmv_c1c2!AC16:AH16)+SUM(cmv_c3!AC16:AH16) -> 3,165 | Q17: =rail!AE16+nonroad!AE16+'onroad all'!AL16+'onroad all'!AM16+'onroad all'!AN16+'onroad all'!AO16+'onroad all'!AP16+ptnonipm!BJ16+SUM(airports!AS16:AW16)+SUM(cmv_c1c2!AD16:AH16)+SUM(cmv_c3!AD16:AH16) -> 3,028 | R17: =rail!P16+nonpt!T16+nonroad!R16+'onroad all'!AC16+ptegu!T16+ptnonipm!T16+pt_oilgas!S16+np_oilgas!Q16+SUM(cmv_c1c2!Z16:AA16)+SUM(cmv_c3!Z16:AA16) -> 0.42 | S17: =rail!K16+nonpt!L16+nonroad!U16+'onroad all'!M16+ptegu!L16+ptnonipm!L16+pt_oilgas!K16+np_oilgas!K16+SUM(cmv_c1c2!R16:S16)+SUM(cmv_c3!R16:S16) -> 1.87 | T17: =rail!O16+nonpt!P16+ptegu!P16+ptnonipm!P16+pt_oilgas!O16+np_oilgas!N16+rwc!M16+SUM(cmv_c1c2!W16:X16)+SUM(cmv_c3!W16:X16) -> 0.33 | U17: =rail!V16+nonpt!AI16+nonroad!T16+'onroad all'!CB16+ptegu!AH16+ptnonipm!AL16+pt_oilgas!AG16+np_oilgas!AA16+rwc!R16+SUM(cmv_c1c2!BF16:BG16)+SUM(cmv_c3!BF16:BG16) -> 5.33 | V17: =rail!T16+nonpt!AE16+nonroad!S16+'onroad all'!BS16+'onroad all'!BT16+ptegu!AD16+ptnonipm!AH16+pt_oilgas!AC16+np_oilgas!W16+rwc!P16+SUM(cmv_c1c2!BA16:BB16)+SUM(cmv_c3!BA16:BB16) -> 16.12 | W17: =nonpt!CW16+ptegu!BB16+ptnonipm!Z16 -> 1.79 | X17: X | AA17: Iowa | AB17: =B17+beis!H16 -> 576,914 | AC17: 326,987 | AD17: =D17+beis!T16 -> 185,006 | AE17: 139,767 | AF17: 43,462 | AG17: 64,746 | AH17: =H17+beis!Z16 -> 274,706 | AI17: =I17+beis!E16 -> 6,304 | AJ17: 1,402 | AK17: =K17+beis!N16 -> 8,211 | AL17: =L17+beis!R16 -> 23,991 | AM17: 342 | AN17: 371 | AO17: 264 | AP17: 3,165 | AQ17: 3,028 | AR17: 0.42 | AS17: 1.87 | AT17: 0.33 | AU17: 5.33 | AV17: 16.12 | AX17: Iowa | AY17: =B17-'ptfire-rx'!B16-'ptfire-wild'!B16 -> 465,238 | AZ17: =C17-'ptfire-rx'!C16-'ptfire-wild'!C16 -> 325,807 | BA17: =D17-'ptfire-rx'!D16-'ptfire-wild'!D16 -> 143,340 | BB17: =E17-'ptfire-rx'!E16-'ptfire-wild'!E16 -> 132,182 | BC17: =F17-'ptfire-rx'!F16-'ptfire-wild'!F16 -> 37,035 | BD17: =G17-'ptfire-rx'!G16-'ptfire-wild'!G16 -> 64,102 | BE17: =H17-'ptfire-rx'!H16-'ptfire-wild'!H16 -> 128,037 | BF17: =I17-'ptfire-rx'!AO16-'ptfire-wild'!AL16 -> 1,541 | BG17: =J17-'ptfire-rx'!AS16-'ptfire-wild'!AP16 -> 1,254 | BH17: =K17-'ptfire-rx'!BE16-'ptfire-wild'!BA16 -> 1,640 | BI17: =L17-'ptfire-rx'!BP16-'ptfire-wild'!BL16 -> 1,242 | BJ17: =M17-'ptfire-rx'!BR16-'ptfire-wild'!BN16 -> 183 | BK17: =N17-'ptfire-rx'!AL16-'ptfire-wild'!AJ16 -> 203 | BL17: =O17-'ptfire-rx'!AU16-'ptfire-wild'!AR16 -> 175 | BM17: 3,165 | BN17: 3,028 | BO17: 0.42 | BP17: 1.87 | BQ17: 0.33 | BR17: 5.33 | BS17: 16.12
A18: Kansas | B18: =rail!B17+nonpt!B17+ptagfire!B17+nonroad!B17+'onroad all'!AG17+cmv_c1c2!B17+'ptfire-rx'!B17+ptegu!B17+ptnonipm!B17+pt_oilgas!B17+np_oilgas!B17+rwc!B17+cmv_c3!B17+airports!B17+'ptfire-wild'!B17+np_solvents!B17 -> 970,566 | C18: =rail!C17+nonpt!C17+ptagfire!C17++nonroad!C17+'onroad all'!BZ17+cmv_c1c2!BE17+'ptfire-rx'!C17+ptegu!C17+ptnonipm!C17+pt_oilgas!C17+np_oilgas!C17+rwc!C17+cmv_c3!BE17+livestock!B17+airports!C17+'ptfire-wild'!C17+fertilizer!B17+np_solvents!C17 -> 239,439 | D18: =rail!D17+nonpt!D17+ptagfire!D17++nonroad!D17+cmv_c1c2!D17+'ptfire-rx'!D17+ptegu!DW17+ptnonipm!D17+pt_oilgas!D17+np_oilgas!D17+rwc!D17+cmv_c3!D17+'onroad all'!CI17+airports!D17+'ptfire-wild'!D17+np_solvents!D17 -> 195,238 | E18: =rail!E17+nonpt!E17+ptagfire!E17++nonroad!E17+cmv_c1c2!E17+'ptfire-rx'!E17+ptegu!E17+ptnonipm!E17+pt_oilgas!E17+np_oilgas!E17+rwc!E17+cmv_c3!E17+afdust!BA17+'onroad all'!DE17+'onroad all'!DD17+airports!E17+'ptfire-wild'!E17+np_solvents!E17 -> 410,244 | F18: =rail!F17+nonpt!F17+ptagfire!F17++nonroad!F17+cmv_c1c2!F17+'ptfire-rx'!F17+ptegu!F17+ptnonipm!F17+pt_oilgas!F17+np_oilgas!F17+rwc!F17+cmv_c3!F17+afdust!BB17+'onroad all'!DD17+airports!F17+'ptfire-wild'!F17+np_solvents!F17 -> 130,877 | G18: =rail!G17+nonpt!G17+ptagfire!G17++nonroad!G17+'onroad all'!DU17+cmv_c1c2!G17+'ptfire-rx'!G17+ptegu!FH17+ptnonipm!G17+pt_oilgas!G17+np_oilgas!G17+rwc!G17+cmv_c3!G17+airports!G17+'ptfire-wild'!G17+np_solvents!G17 -> 17,623 | H18: =rail!H17+nonpt!H17+ptagfire!H17++nonroad!H17+'onroad all'!EI17+cmv_c1c2!H17+'ptfire-rx'!H17+ptegu!H17+ptnonipm!H17+pt_oilgas!H17+np_oilgas!H17+rwc!H17+cmv_c3!H17+livestock!C17+airports!H17+'ptfire-wild'!H17+np_solvents!H17 -> 304,927 | I18: =rail!AO17+nonpt!BN17+ptagfire!AJ17+nonroad!AK17+'onroad all'!H17+cmv_c1c2!O17+'ptfire-rx'!AO17+ptegu!BM17+ptnonipm!BX17+pt_oilgas!BM17+np_oilgas!AU17+rwc!AH17+cmv_c3!O17+livestock!U17+airports!AJ17+'ptfire-wild'!AL17+np_solvents!AU17 -> 12,817 | J18: =rail!AU17+nonpt!BT17+ptagfire!AN17+nonroad!AP17+'onroad all'!P17+cmv_c1c2!T17+'ptfire-rx'!AS17+ptegu!BS17+ptnonipm!CD17+pt_oilgas!BS17+np_oilgas!BA17+rwc!AL17+cmv_c3!T17+livestock!X17+airports!AM17+'ptfire-wild'!AP17+np_solvents!AY17 -> 3,029 | K18: =rail!BR17+nonpt!CY17+ptagfire!AY17+nonroad!BH17+'onroad all'!BC17+cmv_c1c2!AO17+'ptfire-rx'!BE17+ptegu!CX17+ptnonipm!DP17+pt_oilgas!CW17+np_oilgas!BW17+rwc!AY17+cmv_c3!AP17+livestock!AH17+airports!BE17+'ptfire-wild'!BA17+np_solvents!BR17 -> 13,253 | L18: =rail!CF17+nonpt!DO17+ptagfire!BH17+nonroad!BT17+'onroad all'!BU17+cmv_c1c2!BC17+'ptfire-rx'!BP17+ptegu!DM17+ptnonipm!EH17+pt_oilgas!DM17+np_oilgas!CK17+rwc!BJ17+cmv_c3!BC17+livestock!AN17+airports!BN17+'ptfire-wild'!BL17+np_solvents!CF17 -> 9,759 | M18: =rail!CG17+nonpt!DQ17+nonroad!BU17+'onroad all'!BY17+cmv_c1c2!BD17+'ptfire-rx'!BR17+ptegu!DO17+ptnonipm!EJ17+pt_oilgas!DO17+np_oilgas!CL17+rwc!BK17+cmv_c3!BD17+airports!BO17+'ptfire-wild'!BN17+np_solvents!CG17+ptagfire!BJ17 -> 865 | N18: =rail!AN17+nonpt!BK17+nonroad!AJ17+'onroad all'!G17+cmv_c1c2!M17+'ptfire-rx'!AL17+ptegu!BK17+ptnonipm!BU17+pt_oilgas!BK17+np_oilgas!AT17+rwc!AG17+airports!AH17+cmv_c3!M17+'ptfire-wild'!AJ17+ptagfire!AH17 -> 4,772 | O18: =rail!AY17+nonpt!O17+ptagfire!AP17+nonroad!AR17+'onroad all'!Z17+cmv_c1c2!V17+'ptfire-rx'!AU17+ptegu!BX17+ptnonipm!CI17+pt_oilgas!BX17+np_oilgas!BD17+rwc!AN17+airports!AO17+cmv_c3!V17+'ptfire-wild'!AR17+np_solvents!AE17 -> 917 | P18: =rail!AD17+nonroad!AD17+'onroad all'!AK17+'onroad all'!AL17+'onroad all'!AM17+'onroad all'!AN17+'onroad all'!AO17+'onroad all'!AP17+ptnonipm!BI17+SUM(airports!AR17:AW17)+SUM(cmv_c1c2!AC17:AH17)+SUM(cmv_c3!AC17:AH17) -> 3,022 | Q18: =rail!AE17+nonroad!AE17+'onroad all'!AL17+'onroad all'!AM17+'onroad all'!AN17+'onroad all'!AO17+'onroad all'!AP17+ptnonipm!BJ17+SUM(airports!AS17:AW17)+SUM(cmv_c1c2!AD17:AH17)+SUM(cmv_c3!AD17:AH17) -> 2,885 | R18: =rail!P17+nonpt!T17+nonroad!R17+'onroad all'!AC17+ptegu!T17+ptnonipm!T17+pt_oilgas!S17+np_oilgas!Q17+SUM(cmv_c1c2!Z17:AA17)+SUM(cmv_c3!Z17:AA17) -> 0.74 | S18: =rail!K17+nonpt!L17+nonroad!U17+'onroad all'!M17+ptegu!L17+ptnonipm!L17+pt_oilgas!K17+np_oilgas!K17+SUM(cmv_c1c2!R17:S17)+SUM(cmv_c3!R17:S17) -> 1.00 | T18: =rail!O17+nonpt!P17+ptegu!P17+ptnonipm!P17+pt_oilgas!O17+np_oilgas!N17+rwc!M17+SUM(cmv_c1c2!W17:X17)+SUM(cmv_c3!W17:X17) -> 0.10 | U18: =rail!V17+nonpt!AI17+nonroad!T17+'onroad all'!CB17+ptegu!AH17+ptnonipm!AL17+pt_oilgas!AG17+np_oilgas!AA17+rwc!R17+SUM(cmv_c1c2!BF17:BG17)+SUM(cmv_c3!BF17:BG17) -> 5.54 | V18: =rail!T17+nonpt!AE17+nonroad!S17+'onroad all'!BS17+'onroad all'!BT17+ptegu!AD17+ptnonipm!AH17+pt_oilgas!AC17+np_oilgas!W17+rwc!P17+SUM(cmv_c1c2!BA17:BB17)+SUM(cmv_c3!BA17:BB17) -> 12.12 | W18: =nonpt!CW17+ptegu!BB17+ptnonipm!Z17 -> 0.32 | X18: X | AA18: Kansas | AB18: =B18+beis!H17 -> 1,044,090 | AC18: 239,439 | AD18: =D18+beis!T17 -> 231,000 | AE18: 410,244 | AF18: 130,877 | AG18: 17,623 | AH18: =H18+beis!Z17 -> 532,784 | AI18: =I18+beis!E17 -> 20,519 | AJ18: 3,029 | AK18: =K18+beis!N17 -> 23,757 | AL18: =L18+beis!R17 -> 55,138 | AM18: 865 | AN18: 4,772 | AO18: 917 | AP18: 3,022 | AQ18: 2,885 | AR18: 0.74 | AS18: 1.00 | AT18: 0.10 | AU18: 5.54 | AV18: 12.12 | AX18: Kansas | AY18: =B18-'ptfire-rx'!B17-'ptfire-wild'!B17 -> 495,751 | AZ18: =C18-'ptfire-rx'!C17-'ptfire-wild'!C17 -> 232,146 | BA18: =D18-'ptfire-rx'!D17-'ptfire-wild'!D17 -> 177,925 | BB18: =E18-'ptfire-rx'!E17-'ptfire-wild'!E17 -> 336,712 | BC18: =F18-'ptfire-rx'!F17-'ptfire-wild'!F17 -> 63,121 | BD18: =G18-'ptfire-rx'!G17-'ptfire-wild'!G17 -> 10,866 | BE18: =H18-'ptfire-rx'!H17-'ptfire-wild'!H17 -> 169,101 | BF18: =I18-'ptfire-rx'!AO17-'ptfire-wild'!AL17 -> 1,268 | BG18: =J18-'ptfire-rx'!AS17-'ptfire-wild'!AP17 -> 1,253 | BH18: =K18-'ptfire-rx'!BE17-'ptfire-wild'!BA17 -> 2,658 | BI18: =L18-'ptfire-rx'!BP17-'ptfire-wild'!BL17 -> 885 | BJ18: =M18-'ptfire-rx'!BR17-'ptfire-wild'!BN17 -> 123 | BK18: =N18-'ptfire-rx'!AL17-'ptfire-wild'!AJ17 -> 239 | BL18: =O18-'ptfire-rx'!AU17-'ptfire-wild'!AR17 -> 199 | BM18: 3,022 | BN18: 2,885 | BO18: 0.74 | BP18: 1.00 | BQ18: 0.10 | BR18: 5.54 | BS18: 12.12
A19: Kentucky | B19: =rail!B18+nonpt!B18+ptagfire!B18+nonroad!B18+'onroad all'!AG18+cmv_c1c2!B18+'ptfire-rx'!B18+ptegu!B18+ptnonipm!B18+pt_oilgas!B18+np_oilgas!B18+rwc!B18+cmv_c3!B18+airports!B18+'ptfire-wild'!B18+np_solvents!B18 -> 739,975 | C19: =rail!C18+nonpt!C18+ptagfire!C18++nonroad!C18+'onroad all'!BZ18+cmv_c1c2!BE18+'ptfire-rx'!C18+ptegu!C18+ptnonipm!C18+pt_oilgas!C18+np_oilgas!C18+rwc!C18+cmv_c3!BE18+livestock!B18+airports!C18+'ptfire-wild'!C18+fertilizer!B18+np_solvents!C18 -> 43,808 | D19: =rail!D18+nonpt!D18+ptagfire!D18++nonroad!D18+cmv_c1c2!D18+'ptfire-rx'!D18+ptegu!DW18+ptnonipm!D18+pt_oilgas!D18+np_oilgas!D18+rwc!D18+cmv_c3!D18+'onroad all'!CI18+airports!D18+'ptfire-wild'!D18+np_solvents!D18 -> 169,841 | E19: =rail!E18+nonpt!E18+ptagfire!E18++nonroad!E18+cmv_c1c2!E18+'ptfire-rx'!E18+ptegu!E18+ptnonipm!E18+pt_oilgas!E18+np_oilgas!E18+rwc!E18+cmv_c3!E18+afdust!BA18+'onroad all'!DE18+'onroad all'!DD18+airports!E18+'ptfire-wild'!E18+np_solvents!E18 -> 87,479 | F19: =rail!F18+nonpt!F18+ptagfire!F18++nonroad!F18+cmv_c1c2!F18+'ptfire-rx'!F18+ptegu!F18+ptnonipm!F18+pt_oilgas!F18+np_oilgas!F18+rwc!F18+cmv_c3!F18+afdust!BB18+'onroad all'!DD18+airports!F18+'ptfire-wild'!F18+np_solvents!F18 -> 44,262 | G19: =rail!G18+nonpt!G18+ptagfire!G18++nonroad!G18+'onroad all'!DU18+cmv_c1c2!G18+'ptfire-rx'!G18+ptegu!FH18+ptnonipm!G18+pt_oilgas!G18+np_oilgas!G18+rwc!G18+cmv_c3!G18+airports!G18+'ptfire-wild'!G18+np_solvents!G18 -> 62,952 | H19: =rail!H18+nonpt!H18+ptagfire!H18++nonroad!H18+'onroad all'!EI18+cmv_c1c2!H18+'ptfire-rx'!H18+ptegu!H18+ptnonipm!H18+pt_oilgas!H18+np_oilgas!H18+rwc!H18+cmv_c3!H18+livestock!C18+airports!H18+'ptfire-wild'!H18+np_solvents!H18 -> 212,715 | I19: =rail!AO18+nonpt!BN18+ptagfire!AJ18+nonroad!AK18+'onroad all'!H18+cmv_c1c2!O18+'ptfire-rx'!AO18+ptegu!BM18+ptnonipm!BX18+pt_oilgas!BM18+np_oilgas!AU18+rwc!AH18+cmv_c3!O18+livestock!U18+airports!AJ18+'ptfire-wild'!AL18+np_solvents!AU18 -> 1,543 | J19: =rail!AU18+nonpt!BT18+ptagfire!AN18+nonroad!AP18+'onroad all'!P18+cmv_c1c2!T18+'ptfire-rx'!AS18+ptegu!BS18+ptnonipm!CD18+pt_oilgas!BS18+np_oilgas!BA18+rwc!AL18+cmv_c3!T18+livestock!X18+airports!AM18+'ptfire-wild'!AP18+np_solvents!AY18 -> 2,060 | K19: =rail!BR18+nonpt!CY18+ptagfire!AY18+nonroad!BH18+'onroad all'!BC18+cmv_c1c2!AO18+'ptfire-rx'!BE18+ptegu!CX18+ptnonipm!DP18+pt_oilgas!CW18+np_oilgas!BW18+rwc!AY18+cmv_c3!AP18+livestock!AH18+airports!BE18+'ptfire-wild'!BA18+np_solvents!BR18 -> 3,484 | L19: =rail!CF18+nonpt!DO18+ptagfire!BH18+nonroad!BT18+'onroad all'!BU18+cmv_c1c2!BC18+'ptfire-rx'!BP18+ptegu!DM18+ptnonipm!EH18+pt_oilgas!DM18+np_oilgas!CK18+rwc!BJ18+cmv_c3!BC18+livestock!AN18+airports!BN18+'ptfire-wild'!BL18+np_solvents!CF18 -> 2,919 | M19: =rail!CG18+nonpt!DQ18+nonroad!BU18+'onroad all'!BY18+cmv_c1c2!BD18+'ptfire-rx'!BR18+ptegu!DO18+ptnonipm!EJ18+pt_oilgas!DO18+np_oilgas!CL18+rwc!BK18+cmv_c3!BD18+airports!BO18+'ptfire-wild'!BN18+np_solvents!CG18+ptagfire!BJ18 -> 521 | N19: =rail!AN18+nonpt!BK18+nonroad!AJ18+'onroad all'!G18+cmv_c1c2!M18+'ptfire-rx'!AL18+ptegu!BK18+ptnonipm!BU18+pt_oilgas!BK18+np_oilgas!AT18+rwc!AG18+airports!AH18+cmv_c3!M18+'ptfire-wild'!AJ18+ptagfire!AH18 -> 446 | O19: =rail!AY18+nonpt!O18+ptagfire!AP18+nonroad!AR18+'onroad all'!Z18+cmv_c1c2!V18+'ptfire-rx'!AU18+ptegu!BX18+ptnonipm!CI18+pt_oilgas!BX18+np_oilgas!BD18+rwc!AN18+airports!AO18+cmv_c3!V18+'ptfire-wild'!AR18+np_solvents!AE18 -> 451 | P19: =rail!AD18+nonroad!AD18+'onroad all'!AK18+'onroad all'!AL18+'onroad all'!AM18+'onroad all'!AN18+'onroad all'!AO18+'onroad all'!AP18+ptnonipm!BI18+SUM(airports!AR18:AW18)+SUM(cmv_c1c2!AC18:AH18)+SUM(cmv_c3!AC18:AH18) -> 2,231 | Q19: =rail!AE18+nonroad!AE18+'onroad all'!AL18+'onroad all'!AM18+'onroad all'!AN18+'onroad all'!AO18+'onroad all'!AP18+ptnonipm!BJ18+SUM(airports!AS18:AW18)+SUM(cmv_c1c2!AD18:AH18)+SUM(cmv_c3!AD18:AH18) -> 2,098 | R19: =rail!P18+nonpt!T18+nonroad!R18+'onroad all'!AC18+ptegu!T18+ptnonipm!T18+pt_oilgas!S18+np_oilgas!Q18+SUM(cmv_c1c2!Z18:AA18)+SUM(cmv_c3!Z18:AA18) -> 2.17 | S19: =rail!K18+nonpt!L18+nonroad!U18+'onroad all'!M18+ptegu!L18+ptnonipm!L18+pt_oilgas!K18+np_oilgas!K18+SUM(cmv_c1c2!R18:S18)+SUM(cmv_c3!R18:S18) -> 2.82 | T19: =rail!O18+nonpt!P18+ptegu!P18+ptnonipm!P18+pt_oilgas!O18+np_oilgas!N18+rwc!M18+SUM(cmv_c1c2!W18:X18)+SUM(cmv_c3!W18:X18) -> 0.42 | U19: =rail!V18+nonpt!AI18+nonroad!T18+'onroad all'!CB18+ptegu!AH18+ptnonipm!AL18+pt_oilgas!AG18+np_oilgas!AA18+rwc!R18+SUM(cmv_c1c2!BF18:BG18)+SUM(cmv_c3!BF18:BG18) -> 16.87 | V19: =rail!T18+nonpt!AE18+nonroad!S18+'onroad all'!BS18+'onroad all'!BT18+ptegu!AD18+ptnonipm!AH18+pt_oilgas!AC18+np_oilgas!W18+rwc!P18+SUM(cmv_c1c2!BA18:BB18)+SUM(cmv_c3!BA18:BB18) -> 24.87 | W19: =nonpt!CW18+ptegu!BB18+ptnonipm!Z18 -> 0.99 | X19: X | AA19: Kentucky | AB19: =B19+beis!H18 -> 796,839 | AC19: 43,808 | AD19: =D19+beis!T18 -> 189,604 | AE19: 87,479 | AF19: 44,262 | AG19: 62,952 | AH19: =H19+beis!Z18 -> 755,020 | AI19: =I19+beis!E18 -> 7,490 | AJ19: 2,060 | AK19: =K19+beis!N18 -> 11,594 | AL19: =L19+beis!R18 -> 34,980 | AM19: 521 | AN19: 446 | AO19: 451 | AP19: 2,231 | AQ19: 2,098 | AR19: 2.17 | AS19: 2.82 | AT19: 0.42 | AU19: 16.87 | AV19: 24.87 | AX19: Kentucky | AY19: =B19-'ptfire-rx'!B18-'ptfire-wild'!B18 -> 647,230 | AZ19: =C19-'ptfire-rx'!C18-'ptfire-wild'!C18 -> 42,271 | BA19: =D19-'ptfire-rx'!D18-'ptfire-wild'!D18 -> 167,836 | BB19: =E19-'ptfire-rx'!E18-'ptfire-wild'!E18 -> 77,383 | BC19: =F19-'ptfire-rx'!F18-'ptfire-wild'!F18 -> 35,707 | BD19: =G19-'ptfire-rx'!G18-'ptfire-wild'!G18 -> 62,029 | BE19: =H19-'ptfire-rx'!H18-'ptfire-wild'!H18 -> 190,627 | BF19: =I19-'ptfire-rx'!AO18-'ptfire-wild'!AL18 -> 908 | BG19: =J19-'ptfire-rx'!AS18-'ptfire-wild'!AP18 -> 1,766 | BH19: =K19-'ptfire-rx'!BE18-'ptfire-wild'!BA18 -> 1,870 | BI19: =L19-'ptfire-rx'!BP18-'ptfire-wild'!BL18 -> 1,957 | BJ19: =M19-'ptfire-rx'!BR18-'ptfire-wild'!BN18 -> 325 | BK19: =N19-'ptfire-rx'!AL18-'ptfire-wild'!AJ18 -> 145 | BL19: =O19-'ptfire-rx'!AU18-'ptfire-wild'!AR18 -> 226 | BM19: 2,231 | BN19: 2,098 | BO19: 2.17 | BP19: 2.82 | BQ19: 0.42 | BR19: 16.87 | BS19: 24.87
A20: Louisiana | B20: =rail!B19+nonpt!B19+ptagfire!B19+nonroad!B19+'onroad all'!AG19+cmv_c1c2!B19+'ptfire-rx'!B19+ptegu!B19+ptnonipm!B19+pt_oilgas!B19+np_oilgas!B19+rwc!B19+cmv_c3!B19+airports!B19+'ptfire-wild'!B19+np_solvents!B19 -> 1,054,789 | C20: =rail!C19+nonpt!C19+ptagfire!C19++nonroad!C19+'onroad all'!BZ19+cmv_c1c2!BE19+'ptfire-rx'!C19+ptegu!C19+ptnonipm!C19+pt_oilgas!C19+np_oilgas!C19+rwc!C19+cmv_c3!BE19+livestock!B19+airports!C19+'ptfire-wild'!C19+fertilizer!B19+np_solvents!C19 -> 54,974 | D20: =rail!D19+nonpt!D19+ptagfire!D19++nonroad!D19+cmv_c1c2!D19+'ptfire-rx'!D19+ptegu!DW19+ptnonipm!D19+pt_oilgas!D19+np_oilgas!D19+rwc!D19+cmv_c3!D19+'onroad all'!CI19+airports!D19+'ptfire-wild'!D19+np_solvents!D19 -> 293,419 | E20: =rail!E19+nonpt!E19+ptagfire!E19++nonroad!E19+cmv_c1c2!E19+'ptfire-rx'!E19+ptegu!E19+ptnonipm!E19+pt_oilgas!E19+np_oilgas!E19+rwc!E19+cmv_c3!E19+afdust!BA19+'onroad all'!DE19+'onroad all'!DD19+airports!E19+'ptfire-wild'!E19+np_solvents!E19 -> 156,783 | F20: =rail!F19+nonpt!F19+ptagfire!F19++nonroad!F19+cmv_c1c2!F19+'ptfire-rx'!F19+ptegu!F19+ptnonipm!F19+pt_oilgas!F19+np_oilgas!F19+rwc!F19+cmv_c3!F19+afdust!BB19+'onroad all'!DD19+airports!F19+'ptfire-wild'!F19+np_solvents!F19 -> 87,185 | G20: =rail!G19+nonpt!G19+ptagfire!G19++nonroad!G19+'onroad all'!DU19+cmv_c1c2!G19+'ptfire-rx'!G19+ptegu!FH19+ptnonipm!G19+pt_oilgas!G19+np_oilgas!G19+rwc!G19+cmv_c3!G19+airports!G19+'ptfire-wild'!G19+np_solvents!G19 -> 116,455 | H20: =rail!H19+nonpt!H19+ptagfire!H19++nonroad!H19+'onroad all'!EI19+cmv_c1c2!H19+'ptfire-rx'!H19+ptegu!H19+ptnonipm!H19+pt_oilgas!H19+np_oilgas!H19+rwc!H19+cmv_c3!H19+livestock!C19+airports!H19+'ptfire-wild'!H19+np_solvents!H19 -> 318,869 | I20: =rail!AO19+nonpt!BN19+ptagfire!AJ19+nonroad!AK19+'onroad all'!H19+cmv_c1c2!O19+'ptfire-rx'!AO19+ptegu!BM19+ptnonipm!BX19+pt_oilgas!BM19+np_oilgas!AU19+rwc!AH19+cmv_c3!O19+livestock!U19+airports!AJ19+'ptfire-wild'!AL19+np_solvents!AU19 -> 3,451 | J20: =rail!AU19+nonpt!BT19+ptagfire!AN19+nonroad!AP19+'onroad all'!P19+cmv_c1c2!T19+'ptfire-rx'!AS19+ptegu!BS19+ptnonipm!CD19+pt_oilgas!BS19+np_oilgas!BA19+rwc!AL19+cmv_c3!T19+livestock!X19+airports!AM19+'ptfire-wild'!AP19+np_solvents!AY19 -> 4,501 | K20: =rail!BR19+nonpt!CY19+ptagfire!AY19+nonroad!BH19+'onroad all'!BC19+cmv_c1c2!AO19+'ptfire-rx'!BE19+ptegu!CX19+ptnonipm!DP19+pt_oilgas!CW19+np_oilgas!BW19+rwc!AY19+cmv_c3!AP19+livestock!AH19+airports!BE19+'ptfire-wild'!BA19+np_solvents!BR19 -> 8,370 | L20: =rail!CF19+nonpt!DO19+ptagfire!BH19+nonroad!BT19+'onroad all'!BU19+cmv_c1c2!BC19+'ptfire-rx'!BP19+ptegu!DM19+ptnonipm!EH19+pt_oilgas!DM19+np_oilgas!CK19+rwc!BJ19+cmv_c3!BC19+livestock!AN19+airports!BN19+'ptfire-wild'!BL19+np_solvents!CF19 -> 9,424 | M20: =rail!CG19+nonpt!DQ19+nonroad!BU19+'onroad all'!BY19+cmv_c1c2!BD19+'ptfire-rx'!BR19+ptegu!DO19+ptnonipm!EJ19+pt_oilgas!DO19+np_oilgas!CL19+rwc!BK19+cmv_c3!BD19+airports!BO19+'ptfire-wild'!BN19+np_solvents!CG19+ptagfire!BJ19 -> 842 | N20: =rail!AN19+nonpt!BK19+nonroad!AJ19+'onroad all'!G19+cmv_c1c2!M19+'ptfire-rx'!AL19+ptegu!BK19+ptnonipm!BU19+pt_oilgas!BK19+np_oilgas!AT19+rwc!AG19+airports!AH19+cmv_c3!M19+'ptfire-wild'!AJ19+ptagfire!AH19 -> 1,253 | O20: =rail!AY19+nonpt!O19+ptagfire!AP19+nonroad!AR19+'onroad all'!Z19+cmv_c1c2!V19+'ptfire-rx'!AU19+ptegu!BX19+ptnonipm!CI19+pt_oilgas!BX19+np_oilgas!BD19+rwc!AN19+airports!AO19+cmv_c3!V19+'ptfire-wild'!AR19+np_solvents!AE19 -> 1,039 | P20: =rail!AD19+nonroad!AD19+'onroad all'!AK19+'onroad all'!AL19+'onroad all'!AM19+'onroad all'!AN19+'onroad all'!AO19+'onroad all'!AP19+ptnonipm!BI19+SUM(airports!AR19:AW19)+SUM(cmv_c1c2!AC19:AH19)+SUM(cmv_c3!AC19:AH19) -> 3,140 | Q20: =rail!AE19+nonroad!AE19+'onroad all'!AL19+'onroad all'!AM19+'onroad all'!AN19+'onroad all'!AO19+'onroad all'!AP19+ptnonipm!BJ19+SUM(airports!AS19:AW19)+SUM(cmv_c1c2!AD19:AH19)+SUM(cmv_c3!AD19:AH19) -> 2,958 | R20: =rail!P19+nonpt!T19+nonroad!R19+'onroad all'!AC19+ptegu!T19+ptnonipm!T19+pt_oilgas!S19+np_oilgas!Q19+SUM(cmv_c1c2!Z19:AA19)+SUM(cmv_c3!Z19:AA19) -> 0.48 | S20: =rail!K19+nonpt!L19+nonroad!U19+'onroad all'!M19+ptegu!L19+ptnonipm!L19+pt_oilgas!K19+np_oilgas!K19+SUM(cmv_c1c2!R19:S19)+SUM(cmv_c3!R19:S19) -> 1.01 | T20: =rail!O19+nonpt!P19+ptegu!P19+ptnonipm!P19+pt_oilgas!O19+np_oilgas!N19+rwc!M19+SUM(cmv_c1c2!W19:X19)+SUM(cmv_c3!W19:X19) -> 0.71 | U20: =rail!V19+nonpt!AI19+nonroad!T19+'onroad all'!CB19+ptegu!AH19+ptnonipm!AL19+pt_oilgas!AG19+np_oilgas!AA19+rwc!R19+SUM(cmv_c1c2!BF19:BG19)+SUM(cmv_c3!BF19:BG19) -> 15.22 | V20: =rail!T19+nonpt!AE19+nonroad!S19+'onroad all'!BS19+'onroad all'!BT19+ptegu!AD19+ptnonipm!AH19+pt_oilgas!AC19+np_oilgas!W19+rwc!P19+SUM(cmv_c1c2!BA19:BB19)+SUM(cmv_c3!BA19:BB19) -> 17.23 | W20: =nonpt!CW19+ptegu!BB19+ptnonipm!Z19 -> 18.90 | X20: X | AA20: Louisiana | AB20: =B20+beis!H19 -> 1,164,295 | AC20: 54,974 | AD20: =D20+beis!T19 -> 314,169 | AE20: 156,783 | AF20: 87,185 | AG20: 116,455 | AH20: =H20+beis!Z19 -> 1,389,638 | AI20: =I20+beis!E19 -> 14,916 | AJ20: 4,501 | AK20: =K20+beis!N19 -> 24,003 | AL20: =L20+beis!R19 -> 74,101 | AM20: 842 | AN20: 1,253 | AO20: 1,039 | AP20: 3,140 | AQ20: 2,958 | AR20: 0.48 | AS20: 1.01 | AT20: 0.71 | AU20: 15.22 | AV20: 17.23 | AX20: Louisiana | AY20: =B20-'ptfire-rx'!B19-'ptfire-wild'!B19 -> 683,934 | AZ20: =C20-'ptfire-rx'!C19-'ptfire-wild'!C19 -> 48,864 | BA20: =D20-'ptfire-rx'!D19-'ptfire-wild'!D19 -> 287,183 | BB20: =E20-'ptfire-rx'!E19-'ptfire-wild'!E19 -> 118,006 | BC20: =F20-'ptfire-rx'!F19-'ptfire-wild'!F19 -> 54,323 | BD20: =G20-'ptfire-rx'!G19-'ptfire-wild'!G19 -> 113,308 | BE20: =H20-'ptfire-rx'!H19-'ptfire-wild'!H19 -> 231,044 | BF20: =I20-'ptfire-rx'!AO19-'ptfire-wild'!AL19 -> 1,318 | BG20: =J20-'ptfire-rx'!AS19-'ptfire-wild'!AP19 -> 3,528 | BH20: =K20-'ptfire-rx'!BE19-'ptfire-wild'!BA19 -> 2,897 | BI20: =L20-'ptfire-rx'!BP19-'ptfire-wild'!BL19 -> 6,179 | BJ20: =M20-'ptfire-rx'!BR19-'ptfire-wild'!BN19 -> 184 | BK20: =N20-'ptfire-rx'!AL19-'ptfire-wild'!AJ19 -> 223 | BL20: =O20-'ptfire-rx'!AU19-'ptfire-wild'!AR19 -> 253 | BM20: 3,140 | BN20: 2,958 | BO20: 0.48 | BP20: 1.01 | BQ20: 0.71 | BR20: 15.22 | BS20: 17.23
A21: Maine | B21: =rail!B20+nonpt!B20+ptagfire!B20+nonroad!B20+'onroad all'!AG20+cmv_c1c2!B20+'ptfire-rx'!B20+ptegu!B20+ptnonipm!B20+pt_oilgas!B20+np_oilgas!B20+rwc!B20+cmv_c3!B20+airports!B20+'ptfire-wild'!B20+np_solvents!B20 -> 254,066 | C21: =rail!C20+nonpt!C20+ptagfire!C20++nonroad!C20+'onroad all'!BZ20+cmv_c1c2!BE20+'ptfire-rx'!C20+ptegu!C20+ptnonipm!C20+pt_oilgas!C20+np_oilgas!C20+rwc!C20+cmv_c3!BE20+livestock!B20+airports!C20+'ptfire-wild'!C20+fertilizer!B20+np_solvents!C20 -> 4,426 | D21: =rail!D20+nonpt!D20+ptagfire!D20++nonroad!D20+cmv_c1c2!D20+'ptfire-rx'!D20+ptegu!DW20+ptnonipm!D20+pt_oilgas!D20+np_oilgas!D20+rwc!D20+cmv_c3!D20+'onroad all'!CI20+airports!D20+'ptfire-wild'!D20+np_solvents!D20 -> 42,912 | E21: =rail!E20+nonpt!E20+ptagfire!E20++nonroad!E20+cmv_c1c2!E20+'ptfire-rx'!E20+ptegu!E20+ptnonipm!E20+pt_oilgas!E20+np_oilgas!E20+rwc!E20+cmv_c3!E20+afdust!BA20+'onroad all'!DE20+'onroad all'!DD20+airports!E20+'ptfire-wild'!E20+np_solvents!E20 -> 36,717 | F21: =rail!F20+nonpt!F20+ptagfire!F20++nonroad!F20+cmv_c1c2!F20+'ptfire-rx'!F20+ptegu!F20+ptnonipm!F20+pt_oilgas!F20+np_oilgas!F20+rwc!F20+cmv_c3!F20+afdust!BB20+'onroad all'!DD20+airports!F20+'ptfire-wild'!F20+np_solvents!F20 -> 22,917 | G21: =rail!G20+nonpt!G20+ptagfire!G20++nonroad!G20+'onroad all'!DU20+cmv_c1c2!G20+'ptfire-rx'!G20+ptegu!FH20+ptnonipm!G20+pt_oilgas!G20+np_oilgas!G20+rwc!G20+cmv_c3!G20+airports!G20+'ptfire-wild'!G20+np_solvents!G20 -> 5,074 | H21: =rail!H20+nonpt!H20+ptagfire!H20++nonroad!H20+'onroad all'!EI20+cmv_c1c2!H20+'ptfire-rx'!H20+ptegu!H20+ptnonipm!H20+pt_oilgas!H20+np_oilgas!H20+rwc!H20+cmv_c3!H20+livestock!C20+airports!H20+'ptfire-wild'!H20+np_solvents!H20 -> 44,166 | I21: =rail!AO20+nonpt!BN20+ptagfire!AJ20+nonroad!AK20+'onroad all'!H20+cmv_c1c2!O20+'ptfire-rx'!AO20+ptegu!BM20+ptnonipm!BX20+pt_oilgas!BM20+np_oilgas!AU20+rwc!AH20+cmv_c3!O20+livestock!U20+airports!AJ20+'ptfire-wild'!AL20+np_solvents!AU20 -> 523 | J21: =rail!AU20+nonpt!BT20+ptagfire!AN20+nonroad!AP20+'onroad all'!P20+cmv_c1c2!T20+'ptfire-rx'!AS20+ptegu!BS20+ptnonipm!CD20+pt_oilgas!BS20+np_oilgas!BA20+rwc!AL20+cmv_c3!T20+livestock!X20+airports!AM20+'ptfire-wild'!AP20+np_solvents!AY20 -> 1,010 | K21: =rail!BR20+nonpt!CY20+ptagfire!AY20+nonroad!BH20+'onroad all'!BC20+cmv_c1c2!AO20+'ptfire-rx'!BE20+ptegu!CX20+ptnonipm!DP20+pt_oilgas!CW20+np_oilgas!BW20+rwc!AY20+cmv_c3!AP20+livestock!AH20+airports!BE20+'ptfire-wild'!BA20+np_solvents!BR20 -> 819 | L21: =rail!CF20+nonpt!DO20+ptagfire!BH20+nonroad!BT20+'onroad all'!BU20+cmv_c1c2!BC20+'ptfire-rx'!BP20+ptegu!DM20+ptnonipm!EH20+pt_oilgas!DM20+np_oilgas!CK20+rwc!BJ20+cmv_c3!BC20+livestock!AN20+airports!BN20+'ptfire-wild'!BL20+np_solvents!CF20 -> 888 | M21: =rail!CG20+nonpt!DQ20+nonroad!BU20+'onroad all'!BY20+cmv_c1c2!BD20+'ptfire-rx'!BR20+ptegu!DO20+ptnonipm!EJ20+pt_oilgas!DO20+np_oilgas!CL20+rwc!BK20+cmv_c3!BD20+airports!BO20+'ptfire-wild'!BN20+np_solvents!CG20+ptagfire!BJ20 -> 117 | N21: =rail!AN20+nonpt!BK20+nonroad!AJ20+'onroad all'!G20+cmv_c1c2!M20+'ptfire-rx'!AL20+ptegu!BK20+ptnonipm!BU20+pt_oilgas!BK20+np_oilgas!AT20+rwc!AG20+airports!AH20+cmv_c3!M20+'ptfire-wild'!AJ20+ptagfire!AH20 -> 72 | O21: =rail!AY20+nonpt!O20+ptagfire!AP20+nonroad!AR20+'onroad all'!Z20+cmv_c1c2!V20+'ptfire-rx'!AU20+ptegu!BX20+ptnonipm!CI20+pt_oilgas!BX20+np_oilgas!BD20+rwc!AN20+airports!AO20+cmv_c3!V20+'ptfire-wild'!AR20+np_solvents!AE20 -> 139 | P21: =rail!AD20+nonroad!AD20+'onroad all'!AK20+'onroad all'!AL20+'onroad all'!AM20+'onroad all'!AN20+'onroad all'!AO20+'onroad all'!AP20+ptnonipm!BI20+SUM(airports!AR20:AW20)+SUM(cmv_c1c2!AC20:AH20)+SUM(cmv_c3!AC20:AH20) -> 505 | Q21: =rail!AE20+nonroad!AE20+'onroad all'!AL20+'onroad all'!AM20+'onroad all'!AN20+'onroad all'!AO20+'onroad all'!AP20+ptnonipm!BJ20+SUM(airports!AS20:AW20)+SUM(cmv_c1c2!AD20:AH20)+SUM(cmv_c3!AD20:AH20) -> 476 | R21: =rail!P20+nonpt!T20+nonroad!R20+'onroad all'!AC20+ptegu!T20+ptnonipm!T20+pt_oilgas!S20+np_oilgas!Q20+SUM(cmv_c1c2!Z20:AA20)+SUM(cmv_c3!Z20:AA20) -> 0.07 | S21: =rail!K20+nonpt!L20+nonroad!U20+'onroad all'!M20+ptegu!L20+ptnonipm!L20+pt_oilgas!K20+np_oilgas!K20+SUM(cmv_c1c2!R20:S20)+SUM(cmv_c3!R20:S20) -> 0.25 | T21: =rail!O20+nonpt!P20+ptegu!P20+ptnonipm!P20+pt_oilgas!O20+np_oilgas!N20+rwc!M20+SUM(cmv_c1c2!W20:X20)+SUM(cmv_c3!W20:X20) -> 0.14 | U21: =rail!V20+nonpt!AI20+nonroad!T20+'onroad all'!CB20+ptegu!AH20+ptnonipm!AL20+pt_oilgas!AG20+np_oilgas!AA20+rwc!R20+SUM(cmv_c1c2!BF20:BG20)+SUM(cmv_c3!BF20:BG20) -> 2.52 | V21: =rail!T20+nonpt!AE20+nonroad!S20+'onroad all'!BS20+'onroad all'!BT20+ptegu!AD20+ptnonipm!AH20+pt_oilgas!AC20+np_oilgas!W20+rwc!P20+SUM(cmv_c1c2!BA20:BB20)+SUM(cmv_c3!BA20:BB20) -> 5.28 | W21: =nonpt!CW20+ptegu!BB20+ptnonipm!Z20 -> 0.00 | X21: X | AA21: Maine | AB21: =B21+beis!H20 -> 297,396 | AC21: 4,426 | AD21: =D21+beis!T20 -> 45,113 | AE21: 36,717 | AF21: 22,917 | AG21: 5,074 | AH21: =H21+beis!Z20 -> 296,050 | AI21: =I21+beis!E20 -> 5,059 | AJ21: 1,010 | AK21: =K21+beis!N20 -> 7,004 | AL21: =L21+beis!R20 -> 16,288 | AM21: 117 | AN21: 72 | AO21: 139 | AP21: 505 | AQ21: 476 | AR21: 0.07 | AS21: 0.25 | AT21: 0.14 | AU21: 2.52 | AV21: 5.28 | AX21: Maine | AY21: =B21-'ptfire-rx'!B20-'ptfire-wild'!B20 -> 250,114 | AZ21: =C21-'ptfire-rx'!C20-'ptfire-wild'!C20 -> 4,361 | BA21: =D21-'ptfire-rx'!D20-'ptfire-wild'!D20 -> 42,864 | BB21: =E21-'ptfire-rx'!E20-'ptfire-wild'!E20 -> 36,320 | BC21: =F21-'ptfire-rx'!F20-'ptfire-wild'!F20 -> 22,581 | BD21: =G21-'ptfire-rx'!G20-'ptfire-wild'!G20 -> 5,046 | BE21: =H21-'ptfire-rx'!H20-'ptfire-wild'!H20 -> 43,235 | BF21: =I21-'ptfire-rx'!AO20-'ptfire-wild'!AL20 -> 505 | BG21: =J21-'ptfire-rx'!AS20-'ptfire-wild'!AP20 -> 1,002 | BH21: =K21-'ptfire-rx'!BE20-'ptfire-wild'!BA20 -> 771 | BI21: =L21-'ptfire-rx'!BP20-'ptfire-wild'!BL20 -> 860 | BJ21: =M21-'ptfire-rx'!BR20-'ptfire-wild'!BN20 -> 111 | BK21: =N21-'ptfire-rx'!AL20-'ptfire-wild'!AJ20 -> 63 | BL21: =O21-'ptfire-rx'!AU20-'ptfire-wild'!AR20 -> 131 | BM21: 505 | BN21: 476 | BO21: 0.07 | BP21: 0.25 | BQ21: 0.14 | BR21: 2.52 | BS21: 5.28
A22: Maryland | B22: =rail!B21+nonpt!B21+ptagfire!B21+nonroad!B21+'onroad all'!AG21+cmv_c1c2!B21+'ptfire-rx'!B21+ptegu!B21+ptnonipm!B21+pt_oilgas!B21+np_oilgas!B21+rwc!B21+cmv_c3!B21+airports!B21+'ptfire-wild'!B21+np_solvents!B21 -> 544,268 | C22: =rail!C21+nonpt!C21+ptagfire!C21++nonroad!C21+'onroad all'!BZ21+cmv_c1c2!BE21+'ptfire-rx'!C21+ptegu!C21+ptnonipm!C21+pt_oilgas!C21+np_oilgas!C21+rwc!C21+cmv_c3!BE21+livestock!B21+airports!C21+'ptfire-wild'!C21+fertilizer!B21+np_solvents!C21 -> 6,509 | D22: =rail!D21+nonpt!D21+ptagfire!D21++nonroad!D21+cmv_c1c2!D21+'ptfire-rx'!D21+ptegu!DW21+ptnonipm!D21+pt_oilgas!D21+np_oilgas!D21+rwc!D21+cmv_c3!D21+'onroad all'!CI21+airports!D21+'ptfire-wild'!D21+np_solvents!D21 -> 79,793 | E22: =rail!E21+nonpt!E21+ptagfire!E21++nonroad!E21+cmv_c1c2!E21+'ptfire-rx'!E21+ptegu!E21+ptnonipm!E21+pt_oilgas!E21+np_oilgas!E21+rwc!E21+cmv_c3!E21+afdust!BA21+'onroad all'!DE21+'onroad all'!DD21+airports!E21+'ptfire-wild'!E21+np_solvents!E21 -> 50,389 | F22: =rail!F21+nonpt!F21+ptagfire!F21++nonroad!F21+cmv_c1c2!F21+'ptfire-rx'!F21+ptegu!F21+ptnonipm!F21+pt_oilgas!F21+np_oilgas!F21+rwc!F21+cmv_c3!F21+afdust!BB21+'onroad all'!DD21+airports!F21+'ptfire-wild'!F21+np_solvents!F21 -> 23,598 | G22: =rail!G21+nonpt!G21+ptagfire!G21++nonroad!G21+'onroad all'!DU21+cmv_c1c2!G21+'ptfire-rx'!G21+ptegu!FH21+ptnonipm!G21+pt_oilgas!G21+np_oilgas!G21+rwc!G21+cmv_c3!G21+airports!G21+'ptfire-wild'!G21+np_solvents!G21 -> 12,043 | H22: =rail!H21+nonpt!H21+ptagfire!H21++nonroad!H21+'onroad all'!EI21+cmv_c1c2!H21+'ptfire-rx'!H21+ptegu!H21+ptnonipm!H21+pt_oilgas!H21+np_oilgas!H21+rwc!H21+cmv_c3!H21+livestock!C21+airports!H21+'ptfire-wild'!H21+np_solvents!H21 -> 94,357 | I22: =rail!AO21+nonpt!BN21+ptagfire!AJ21+nonroad!AK21+'onroad all'!H21+cmv_c1c2!O21+'ptfire-rx'!AO21+ptegu!BM21+ptnonipm!BX21+pt_oilgas!BM21+np_oilgas!AU21+rwc!AH21+cmv_c3!O21+livestock!U21+airports!AJ21+'ptfire-wild'!AL21+np_solvents!AU21 -> 703 | J22: =rail!AU21+nonpt!BT21+ptagfire!AN21+nonroad!AP21+'onroad all'!P21+cmv_c1c2!T21+'ptfire-rx'!AS21+ptegu!BS21+ptnonipm!CD21+pt_oilgas!BS21+np_oilgas!BA21+rwc!AL21+cmv_c3!T21+livestock!X21+airports!AM21+'ptfire-wild'!AP21+np_solvents!AY21 -> 1,156 | K22: =rail!BR21+nonpt!CY21+ptagfire!AY21+nonroad!BH21+'onroad all'!BC21+cmv_c1c2!AO21+'ptfire-rx'!BE21+ptegu!CX21+ptnonipm!DP21+pt_oilgas!CW21+np_oilgas!BW21+rwc!AY21+cmv_c3!AP21+livestock!AH21+airports!BE21+'ptfire-wild'!BA21+np_solvents!BR21 -> 1,344 | L22: =rail!CF21+nonpt!DO21+ptagfire!BH21+nonroad!BT21+'onroad all'!BU21+cmv_c1c2!BC21+'ptfire-rx'!BP21+ptegu!DM21+ptnonipm!EH21+pt_oilgas!DM21+np_oilgas!CK21+rwc!BJ21+cmv_c3!BC21+livestock!AN21+airports!BN21+'ptfire-wild'!BL21+np_solvents!CF21 -> 1,069 | M22: =rail!CG21+nonpt!DQ21+nonroad!BU21+'onroad all'!BY21+cmv_c1c2!BD21+'ptfire-rx'!BR21+ptegu!DO21+ptnonipm!EJ21+pt_oilgas!DO21+np_oilgas!CL21+rwc!BK21+cmv_c3!BD21+airports!BO21+'ptfire-wild'!BN21+np_solvents!CG21+ptagfire!BJ21 -> 153 | N22: =rail!AN21+nonpt!BK21+nonroad!AJ21+'onroad all'!G21+cmv_c1c2!M21+'ptfire-rx'!AL21+ptegu!BK21+ptnonipm!BU21+pt_oilgas!BK21+np_oilgas!AT21+rwc!AG21+airports!AH21+cmv_c3!M21+'ptfire-wild'!AJ21+ptagfire!AH21 -> 117 | O22: =rail!AY21+nonpt!O21+ptagfire!AP21+nonroad!AR21+'onroad all'!Z21+cmv_c1c2!V21+'ptfire-rx'!AU21+ptegu!BX21+ptnonipm!CI21+pt_oilgas!BX21+np_oilgas!BD21+rwc!AN21+airports!AO21+cmv_c3!V21+'ptfire-wild'!AR21+np_solvents!AE21 -> 222 | P22: =rail!AD21+nonroad!AD21+'onroad all'!AK21+'onroad all'!AL21+'onroad all'!AM21+'onroad all'!AN21+'onroad all'!AO21+'onroad all'!AP21+ptnonipm!BI21+SUM(airports!AR21:AW21)+SUM(cmv_c1c2!AC21:AH21)+SUM(cmv_c3!AC21:AH21) -> 1,394 | Q22: =rail!AE21+nonroad!AE21+'onroad all'!AL21+'onroad all'!AM21+'onroad all'!AN21+'onroad all'!AO21+'onroad all'!AP21+ptnonipm!BJ21+SUM(airports!AS21:AW21)+SUM(cmv_c1c2!AD21:AH21)+SUM(cmv_c3!AD21:AH21) -> 1,310 | R22: =rail!P21+nonpt!T21+nonroad!R21+'onroad all'!AC21+ptegu!T21+ptnonipm!T21+pt_oilgas!S21+np_oilgas!Q21+SUM(cmv_c1c2!Z21:AA21)+SUM(cmv_c3!Z21:AA21) -> 0.09 | S22: =rail!K21+nonpt!L21+nonroad!U21+'onroad all'!M21+ptegu!L21+ptnonipm!L21+pt_oilgas!K21+np_oilgas!K21+SUM(cmv_c1c2!R21:S21)+SUM(cmv_c3!R21:S21) -> 0.38 | T22: =rail!O21+nonpt!P21+ptegu!P21+ptnonipm!P21+pt_oilgas!O21+np_oilgas!N21+rwc!M21+SUM(cmv_c1c2!W21:X21)+SUM(cmv_c3!W21:X21) -> 0.10 | U22: =rail!V21+nonpt!AI21+nonroad!T21+'onroad all'!CB21+ptegu!AH21+ptnonipm!AL21+pt_oilgas!AG21+np_oilgas!AA21+rwc!R21+SUM(cmv_c1c2!BF21:BG21)+SUM(cmv_c3!BF21:BG21) -> 1.27 | V22: =rail!T21+nonpt!AE21+nonroad!S21+'onroad all'!BS21+'onroad all'!BT21+ptegu!AD21+ptnonipm!AH21+pt_oilgas!AC21+np_oilgas!W21+rwc!P21+SUM(cmv_c1c2!BA21:BB21)+SUM(cmv_c3!BA21:BB21) -> 5.20 | W22: =nonpt!CW21+ptegu!BB21+ptnonipm!Z21 -> 0.81 | X22: X | AA22: Maryland | AB22: =B22+beis!H21 -> 558,951 | AC22: 6,509 | AD22: =D22+beis!T21 -> 84,218 | AE22: 50,389 | AF22: 23,598 | AG22: 12,043 | AH22: =H22+beis!Z21 -> 226,520 | AI22: =I22+beis!E21 -> 2,239 | AJ22: 1,156 | AK22: =K22+beis!N21 -> 3,440 | AL22: =L22+beis!R21 -> 9,037 | AM22: 153 | AN22: 117 | AO22: 222 | AP22: 1,394 | AQ22: 1,310 | AR22: 0.09 | AS22: 0.38 | AT22: 0.10 | AU22: 1.27 | AV22: 5.20 | AX22: Maryland | AY22: =B22-'ptfire-rx'!B21-'ptfire-wild'!B21 -> 529,179 | AZ22: =C22-'ptfire-rx'!C21-'ptfire-wild'!C21 -> 6,261 | BA22: =D22-'ptfire-rx'!D21-'ptfire-wild'!D21 -> 79,574 | BB22: =E22-'ptfire-rx'!E21-'ptfire-wild'!E21 -> 48,842 | BC22: =F22-'ptfire-rx'!F21-'ptfire-wild'!F21 -> 22,287 | BD22: =G22-'ptfire-rx'!G21-'ptfire-wild'!G21 -> 11,926 | BE22: =H22-'ptfire-rx'!H21-'ptfire-wild'!H21 -> 90,793 | BF22: =I22-'ptfire-rx'!AO21-'ptfire-wild'!AL21 -> 623 | BG22: =J22-'ptfire-rx'!AS21-'ptfire-wild'!AP21 -> 1,120 | BH22: =K22-'ptfire-rx'!BE21-'ptfire-wild'!BA21 -> 1,140 | BI22: =L22-'ptfire-rx'!BP21-'ptfire-wild'!BL21 -> 948 | BJ22: =M22-'ptfire-rx'!BR21-'ptfire-wild'!BN21 -> 128 | BK22: =N22-'ptfire-rx'!AL21-'ptfire-wild'!AJ21 -> 78 | BL22: =O22-'ptfire-rx'!AU21-'ptfire-wild'!AR21 -> 193 | BM22: 1,394 | BN22: 1,310 | BO22: 0.09 | BP22: 0.38 | BQ22: 0.10 | BR22: 1.27 | BS22: 5.20
A23: Massachusetts | B23: =rail!B22+nonpt!B22+ptagfire!B22+nonroad!B22+'onroad all'!AG22+cmv_c1c2!B22+'ptfire-rx'!B22+ptegu!B22+ptnonipm!B22+pt_oilgas!B22+np_oilgas!B22+rwc!B22+cmv_c3!B22+airports!B22+'ptfire-wild'!B22+np_solvents!B22 -> 554,021 | C23: =rail!C22+nonpt!C22+ptagfire!C22++nonroad!C22+'onroad all'!BZ22+cmv_c1c2!BE22+'ptfire-rx'!C22+ptegu!C22+ptnonipm!C22+pt_oilgas!C22+np_oilgas!C22+rwc!C22+cmv_c3!BE22+livestock!B22+airports!C22+'ptfire-wild'!C22+fertilizer!B22+np_solvents!C22 -> 14,353 | D23: =rail!D22+nonpt!D22+ptagfire!D22++nonroad!D22+cmv_c1c2!D22+'ptfire-rx'!D22+ptegu!DW22+ptnonipm!D22+pt_oilgas!D22+np_oilgas!D22+rwc!D22+cmv_c3!D22+'onroad all'!CI22+airports!D22+'ptfire-wild'!D22+np_solvents!D22 -> 89,057 | E23: =rail!E22+nonpt!E22+ptagfire!E22++nonroad!E22+cmv_c1c2!E22+'ptfire-rx'!E22+ptegu!E22+ptnonipm!E22+pt_oilgas!E22+np_oilgas!E22+rwc!E22+cmv_c3!E22+afdust!BA22+'onroad all'!DE22+'onroad all'!DD22+airports!E22+'ptfire-wild'!E22+np_solvents!E22 -> 39,206 | F23: =rail!F22+nonpt!F22+ptagfire!F22++nonroad!F22+cmv_c1c2!F22+'ptfire-rx'!F22+ptegu!F22+ptnonipm!F22+pt_oilgas!F22+np_oilgas!F22+rwc!F22+cmv_c3!F22+afdust!BB22+'onroad all'!DD22+airports!F22+'ptfire-wild'!F22+np_solvents!F22 -> 20,907 | G23: =rail!G22+nonpt!G22+ptagfire!G22++nonroad!G22+'onroad all'!DU22+cmv_c1c2!G22+'ptfire-rx'!G22+ptegu!FH22+ptnonipm!G22+pt_oilgas!G22+np_oilgas!G22+rwc!G22+cmv_c3!G22+airports!G22+'ptfire-wild'!G22+np_solvents!G22 -> 5,002 | H23: =rail!H22+nonpt!H22+ptagfire!H22++nonroad!H22+'onroad all'!EI22+cmv_c1c2!H22+'ptfire-rx'!H22+ptegu!H22+ptnonipm!H22+pt_oilgas!H22+np_oilgas!H22+rwc!H22+cmv_c3!H22+livestock!C22+airports!H22+'ptfire-wild'!H22+np_solvents!H22 -> 108,671 | I23: =rail!AO22+nonpt!BN22+ptagfire!AJ22+nonroad!AK22+'onroad all'!H22+cmv_c1c2!O22+'ptfire-rx'!AO22+ptegu!BM22+ptnonipm!BX22+pt_oilgas!BM22+np_oilgas!AU22+rwc!AH22+cmv_c3!O22+livestock!U22+airports!AJ22+'ptfire-wild'!AL22+np_solvents!AU22 -> 645 | J23: =rail!AU22+nonpt!BT22+ptagfire!AN22+nonroad!AP22+'onroad all'!P22+cmv_c1c2!T22+'ptfire-rx'!AS22+ptegu!BS22+ptnonipm!CD22+pt_oilgas!BS22+np_oilgas!BA22+rwc!AL22+cmv_c3!T22+livestock!X22+airports!AM22+'ptfire-wild'!AP22+np_solvents!AY22 -> 1,272 | K23: =rail!BR22+nonpt!CY22+ptagfire!AY22+nonroad!BH22+'onroad all'!BC22+cmv_c1c2!AO22+'ptfire-rx'!BE22+ptegu!CX22+ptnonipm!DP22+pt_oilgas!CW22+np_oilgas!BW22+rwc!AY22+cmv_c3!AP22+livestock!AH22+airports!BE22+'ptfire-wild'!BA22+np_solvents!BR22 -> 1,222 | L23: =rail!CF22+nonpt!DO22+ptagfire!BH22+nonroad!BT22+'onroad all'!BU22+cmv_c1c2!BC22+'ptfire-rx'!BP22+ptegu!DM22+ptnonipm!EH22+pt_oilgas!DM22+np_oilgas!CK22+rwc!BJ22+cmv_c3!BC22+livestock!AN22+airports!BN22+'ptfire-wild'!BL22+np_solvents!CF22 -> 1,551 | M23: =rail!CG22+nonpt!DQ22+nonroad!BU22+'onroad all'!BY22+cmv_c1c2!BD22+'ptfire-rx'!BR22+ptegu!DO22+ptnonipm!EJ22+pt_oilgas!DO22+np_oilgas!CL22+rwc!BK22+cmv_c3!BD22+airports!BO22+'ptfire-wild'!BN22+np_solvents!CG22+ptagfire!BJ22 -> 135 | N23: =rail!AN22+nonpt!BK22+nonroad!AJ22+'onroad all'!G22+cmv_c1c2!M22+'ptfire-rx'!AL22+ptegu!BK22+ptnonipm!BU22+pt_oilgas!BK22+np_oilgas!AT22+rwc!AG22+airports!AH22+cmv_c3!M22+'ptfire-wild'!AJ22+ptagfire!AH22 -> 85 | O23: =rail!AY22+nonpt!O22+ptagfire!AP22+nonroad!AR22+'onroad all'!Z22+cmv_c1c2!V22+'ptfire-rx'!AU22+ptegu!BX22+ptnonipm!CI22+pt_oilgas!BX22+np_oilgas!BD22+rwc!AN22+airports!AO22+cmv_c3!V22+'ptfire-wild'!AR22+np_solvents!AE22 -> 209 | P23: =rail!AD22+nonroad!AD22+'onroad all'!AK22+'onroad all'!AL22+'onroad all'!AM22+'onroad all'!AN22+'onroad all'!AO22+'onroad all'!AP22+ptnonipm!BI22+SUM(airports!AR22:AW22)+SUM(cmv_c1c2!AC22:AH22)+SUM(cmv_c3!AC22:AH22) -> 1,509 | Q23: =rail!AE22+nonroad!AE22+'onroad all'!AL22+'onroad all'!AM22+'onroad all'!AN22+'onroad all'!AO22+'onroad all'!AP22+ptnonipm!BJ22+SUM(airports!AS22:AW22)+SUM(cmv_c1c2!AD22:AH22)+SUM(cmv_c3!AD22:AH22) -> 1,429 | R23: =rail!P22+nonpt!T22+nonroad!R22+'onroad all'!AC22+ptegu!T22+ptnonipm!T22+pt_oilgas!S22+np_oilgas!Q22+SUM(cmv_c1c2!Z22:AA22)+SUM(cmv_c3!Z22:AA22) -> 0.23 | S23: =rail!K22+nonpt!L22+nonroad!U22+'onroad all'!M22+ptegu!L22+ptnonipm!L22+pt_oilgas!K22+np_oilgas!K22+SUM(cmv_c1c2!R22:S22)+SUM(cmv_c3!R22:S22) -> 0.51 | T23: =rail!O22+nonpt!P22+ptegu!P22+ptnonipm!P22+pt_oilgas!O22+np_oilgas!N22+rwc!M22+SUM(cmv_c1c2!W22:X22)+SUM(cmv_c3!W22:X22) -> 0.22 | U23: =rail!V22+nonpt!AI22+nonroad!T22+'onroad all'!CB22+ptegu!AH22+ptnonipm!AL22+pt_oilgas!AG22+np_oilgas!AA22+rwc!R22+SUM(cmv_c1c2!BF22:BG22)+SUM(cmv_c3!BF22:BG22) -> 6.08 | V23: =rail!T22+nonpt!AE22+nonroad!S22+'onroad all'!BS22+'onroad all'!BT22+ptegu!AD22+ptnonipm!AH22+pt_oilgas!AC22+np_oilgas!W22+rwc!P22+SUM(cmv_c1c2!BA22:BB22)+SUM(cmv_c3!BA22:BB22) -> 1.69 | W23: =nonpt!CW22+ptegu!BB22+ptnonipm!Z22 -> 0.26 | X23: X | AA23: Massachusetts | AB23: =B23+beis!H22 -> 565,250 | AC23: 14,353 | AD23: =D23+beis!T22 -> 89,943 | AE23: 39,206 | AF23: 20,907 | AG23: 5,002 | AH23: =H23+beis!Z22 -> 204,258 | AI23: =I23+beis!E22 -> 1,820 | AJ23: 1,272 | AK23: =K23+beis!N22 -> 2,823 | AL23: =L23+beis!R22 -> 6,372 | AM23: 135 | AN23: 85 | AO23: 209 | AP23: 1,509 | AQ23: 1,429 | AR23: 0.23 | AS23: 0.51 | AT23: 0.22 | AU23: 6.08 | AV23: 1.69 | AX23: Massachusetts | AY23: =B23-'ptfire-rx'!B22-'ptfire-wild'!B22 -> 550,016 | AZ23: =C23-'ptfire-rx'!C22-'ptfire-wild'!C22 -> 14,287 | BA23: =D23-'ptfire-rx'!D22-'ptfire-wild'!D22 -> 88,994 | BB23: =E23-'ptfire-rx'!E22-'ptfire-wild'!E22 -> 38,792 | BC23: =F23-'ptfire-rx'!F22-'ptfire-wild'!F22 -> 20,556 | BD23: =G23-'ptfire-rx'!G22-'ptfire-wild'!G22 -> 4,969 | BE23: =H23-'ptfire-rx'!H22-'ptfire-wild'!H22 -> 107,724 | BF23: =I23-'ptfire-rx'!AO22-'ptfire-wild'!AL22 -> 624 | BG23: =J23-'ptfire-rx'!AS22-'ptfire-wild'!AP22 -> 1,263 | BH23: =K23-'ptfire-rx'!BE22-'ptfire-wild'!BA22 -> 1,166 | BI23: =L23-'ptfire-rx'!BP22-'ptfire-wild'!BL22 -> 1,518 | BJ23: =M23-'ptfire-rx'!BR22-'ptfire-wild'!BN22 -> 128 | BK23: =N23-'ptfire-rx'!AL22-'ptfire-wild'!AJ22 -> 74 | BL23: =O23-'ptfire-rx'!AU22-'ptfire-wild'!AR22 -> 201 | BM23: 1,509 | BN23: 1,429 | BO23: 0.23 | BP23: 0.51 | BQ23: 0.22 | BR23: 6.08 | BS23: 1.69
A24: Michigan | B24: =rail!B23+nonpt!B23+ptagfire!B23+nonroad!B23+'onroad all'!AG23+cmv_c1c2!B23+'ptfire-rx'!B23+ptegu!B23+ptnonipm!B23+pt_oilgas!B23+np_oilgas!B23+rwc!B23+cmv_c3!B23+airports!B23+'ptfire-wild'!B23+np_solvents!B23 -> 1,214,804 | C24: =rail!C23+nonpt!C23+ptagfire!C23++nonroad!C23+'onroad all'!BZ23+cmv_c1c2!BE23+'ptfire-rx'!C23+ptegu!C23+ptnonipm!C23+pt_oilgas!C23+np_oilgas!C23+rwc!C23+cmv_c3!BE23+livestock!B23+airports!C23+'ptfire-wild'!C23+fertilizer!B23+np_solvents!C23 -> 57,180 | D24: =rail!D23+nonpt!D23+ptagfire!D23++nonroad!D23+cmv_c1c2!D23+'ptfire-rx'!D23+ptegu!DW23+ptnonipm!D23+pt_oilgas!D23+np_oilgas!D23+rwc!D23+cmv_c3!D23+'onroad all'!CI23+airports!D23+'ptfire-wild'!D23+np_solvents!D23 -> 244,050 | E24: =rail!E23+nonpt!E23+ptagfire!E23++nonroad!E23+cmv_c1c2!E23+'ptfire-rx'!E23+ptegu!E23+ptnonipm!E23+pt_oilgas!E23+np_oilgas!E23+rwc!E23+cmv_c3!E23+afdust!BA23+'onroad all'!DE23+'onroad all'!DD23+airports!E23+'ptfire-wild'!E23+np_solvents!E23 -> 141,147 | F24: =rail!F23+nonpt!F23+ptagfire!F23++nonroad!F23+cmv_c1c2!F23+'ptfire-rx'!F23+ptegu!F23+ptnonipm!F23+pt_oilgas!F23+np_oilgas!F23+rwc!F23+cmv_c3!F23+afdust!BB23+'onroad all'!DD23+airports!F23+'ptfire-wild'!F23+np_solvents!F23 -> 61,627 | G24: =rail!G23+nonpt!G23+ptagfire!G23++nonroad!G23+'onroad all'!DU23+cmv_c1c2!G23+'ptfire-rx'!G23+ptegu!FH23+ptnonipm!G23+pt_oilgas!G23+np_oilgas!G23+rwc!G23+cmv_c3!G23+airports!G23+'ptfire-wild'!G23+np_solvents!G23 -> 69,519 | H24: =rail!H23+nonpt!H23+ptagfire!H23++nonroad!H23+'onroad all'!EI23+cmv_c1c2!H23+'ptfire-rx'!H23+ptegu!H23+ptnonipm!H23+pt_oilgas!H23+np_oilgas!H23+rwc!H23+cmv_c3!H23+livestock!C23+airports!H23+'ptfire-wild'!H23+np_solvents!H23 -> 250,704 | I24: =rail!AO23+nonpt!BN23+ptagfire!AJ23+nonroad!AK23+'onroad all'!H23+cmv_c1c2!O23+'ptfire-rx'!AO23+ptegu!BM23+ptnonipm!BX23+pt_oilgas!BM23+np_oilgas!AU23+rwc!AH23+cmv_c3!O23+livestock!U23+airports!AJ23+'ptfire-wild'!AL23+np_solvents!AU23 -> 1,731 | J24: =rail!AU23+nonpt!BT23+ptagfire!AN23+nonroad!AP23+'onroad all'!P23+cmv_c1c2!T23+'ptfire-rx'!AS23+ptegu!BS23+ptnonipm!CD23+pt_oilgas!BS23+np_oilgas!BA23+rwc!AL23+cmv_c3!T23+livestock!X23+airports!AM23+'ptfire-wild'!AP23+np_solvents!AY23 -> 3,098 | K24: =rail!BR23+nonpt!CY23+ptagfire!AY23+nonroad!BH23+'onroad all'!BC23+cmv_c1c2!AO23+'ptfire-rx'!BE23+ptegu!CX23+ptnonipm!DP23+pt_oilgas!CW23+np_oilgas!BW23+rwc!AY23+cmv_c3!AP23+livestock!AH23+airports!BE23+'ptfire-wild'!BA23+np_solvents!BR23 -> 3,420 | L24: =rail!CF23+nonpt!DO23+ptagfire!BH23+nonroad!BT23+'onroad all'!BU23+cmv_c1c2!BC23+'ptfire-rx'!BP23+ptegu!DM23+ptnonipm!EH23+pt_oilgas!DM23+np_oilgas!CK23+rwc!BJ23+cmv_c3!BC23+livestock!AN23+airports!BN23+'ptfire-wild'!BL23+np_solvents!CF23 -> 2,722 | M24: =rail!CG23+nonpt!DQ23+nonroad!BU23+'onroad all'!BY23+cmv_c1c2!BD23+'ptfire-rx'!BR23+ptegu!DO23+ptnonipm!EJ23+pt_oilgas!DO23+np_oilgas!CL23+rwc!BK23+cmv_c3!BD23+airports!BO23+'ptfire-wild'!BN23+np_solvents!CG23+ptagfire!BJ23 -> 457 | N24: =rail!AN23+nonpt!BK23+nonroad!AJ23+'onroad all'!G23+cmv_c1c2!M23+'ptfire-rx'!AL23+ptegu!BK23+ptnonipm!BU23+pt_oilgas!BK23+np_oilgas!AT23+rwc!AG23+airports!AH23+cmv_c3!M23+'ptfire-wild'!AJ23+ptagfire!AH23 -> 371 | O24: =rail!AY23+nonpt!O23+ptagfire!AP23+nonroad!AR23+'onroad all'!Z23+cmv_c1c2!V23+'ptfire-rx'!AU23+ptegu!BX23+ptnonipm!CI23+pt_oilgas!BX23+np_oilgas!BD23+rwc!AN23+airports!AO23+cmv_c3!V23+'ptfire-wild'!AR23+np_solvents!AE23 -> 525 | P24: =rail!AD23+nonroad!AD23+'onroad all'!AK23+'onroad all'!AL23+'onroad all'!AM23+'onroad all'!AN23+'onroad all'!AO23+'onroad all'!AP23+ptnonipm!BI23+SUM(airports!AR23:AW23)+SUM(cmv_c1c2!AC23:AH23)+SUM(cmv_c3!AC23:AH23) -> 2,813 | Q24: =rail!AE23+nonroad!AE23+'onroad all'!AL23+'onroad all'!AM23+'onroad all'!AN23+'onroad all'!AO23+'onroad all'!AP23+ptnonipm!BJ23+SUM(airports!AS23:AW23)+SUM(cmv_c1c2!AD23:AH23)+SUM(cmv_c3!AD23:AH23) -> 2,650 | R24: =rail!P23+nonpt!T23+nonroad!R23+'onroad all'!AC23+ptegu!T23+ptnonipm!T23+pt_oilgas!S23+np_oilgas!Q23+SUM(cmv_c1c2!Z23:AA23)+SUM(cmv_c3!Z23:AA23) -> 1.05 | S24: =rail!K23+nonpt!L23+nonroad!U23+'onroad all'!M23+ptegu!L23+ptnonipm!L23+pt_oilgas!K23+np_oilgas!K23+SUM(cmv_c1c2!R23:S23)+SUM(cmv_c3!R23:S23) -> 0.70 | T24: =rail!O23+nonpt!P23+ptegu!P23+ptnonipm!P23+pt_oilgas!O23+np_oilgas!N23+rwc!M23+SUM(cmv_c1c2!W23:X23)+SUM(cmv_c3!W23:X23) -> 1.16 | U24: =rail!V23+nonpt!AI23+nonroad!T23+'onroad all'!CB23+ptegu!AH23+ptnonipm!AL23+pt_oilgas!AG23+np_oilgas!AA23+rwc!R23+SUM(cmv_c1c2!BF23:BG23)+SUM(cmv_c3!BF23:BG23) -> 15.42 | V24: =rail!T23+nonpt!AE23+nonroad!S23+'onroad all'!BS23+'onroad all'!BT23+ptegu!AD23+ptnonipm!AH23+pt_oilgas!AC23+np_oilgas!W23+rwc!P23+SUM(cmv_c1c2!BA23:BB23)+SUM(cmv_c3!BA23:BB23) -> 40.75 | W24: =nonpt!CW23+ptegu!BB23+ptnonipm!Z23 -> 0.33 | X24: X | AA24: Michigan | AB24: =B24+beis!H23 -> 1,269,940 | AC24: 57,180 | AD24: =D24+beis!T23 -> 261,457 | AE24: 141,147 | AF24: 61,627 | AG24: 69,519 | AH24: =H24+beis!Z23 -> 592,172 | AI24: =I24+beis!E23 -> 7,503 | AJ24: 3,098 | AK24: =K24+beis!N23 -> 11,290 | AL24: =L24+beis!R23 -> 26,951 | AM24: 457 | AN24: 371 | AO24: 525 | AP24: 2,813 | AQ24: 2,650 | AR24: 1.05 | AS24: 0.70 | AT24: 1.16 | AU24: 15.42 | AV24: 40.75 | AX24: Michigan | AY24: =B24-'ptfire-rx'!B23-'ptfire-wild'!B23 -> 1,146,069 | AZ24: =C24-'ptfire-rx'!C23-'ptfire-wild'!C23 -> 56,056 | BA24: =D24-'ptfire-rx'!D23-'ptfire-wild'!D23 -> 243,353 | BB24: =E24-'ptfire-rx'!E23-'ptfire-wild'!E23 -> 134,369 | BC24: =F24-'ptfire-rx'!F23-'ptfire-wild'!F23 -> 55,883 | BD24: =G24-'ptfire-rx'!G23-'ptfire-wild'!G23 -> 69,076 | BE24: =H24-'ptfire-rx'!H23-'ptfire-wild'!H23 -> 234,555 | BF24: =I24-'ptfire-rx'!AO23-'ptfire-wild'!AL23 -> 1,438 | BG24: =J24-'ptfire-rx'!AS23-'ptfire-wild'!AP23 -> 2,967 | BH24: =K24-'ptfire-rx'!BE23-'ptfire-wild'!BA23 -> 2,656 | BI24: =L24-'ptfire-rx'!BP23-'ptfire-wild'!BL23 -> 2,272 | BJ24: =M24-'ptfire-rx'!BR23-'ptfire-wild'!BN23 -> 366 | BK24: =N24-'ptfire-rx'!AL23-'ptfire-wild'!AJ23 -> 225 | BL24: =O24-'ptfire-rx'!AU23-'ptfire-wild'!AR23 -> 410 | BM24: 2,813 | BN24: 2,650 | BO24: 1.05 | BP24: 0.70 | BQ24: 1.16 | BR24: 15.42 | BS24: 40.75
A25: Minnesota | B25: =rail!B24+nonpt!B24+ptagfire!B24+nonroad!B24+'onroad all'!AG24+cmv_c1c2!B24+'ptfire-rx'!B24+ptegu!B24+ptnonipm!B24+pt_oilgas!B24+np_oilgas!B24+rwc!B24+cmv_c3!B24+airports!B24+'ptfire-wild'!B24+np_solvents!B24 -> 1,316,210 | C25: =rail!C24+nonpt!C24+ptagfire!C24++nonroad!C24+'onroad all'!BZ24+cmv_c1c2!BE24+'ptfire-rx'!C24+ptegu!C24+ptnonipm!C24+pt_oilgas!C24+np_oilgas!C24+rwc!C24+cmv_c3!BE24+livestock!B24+airports!C24+'ptfire-wild'!C24+fertilizer!B24+np_solvents!C24 -> 172,978 | D25: =rail!D24+nonpt!D24+ptagfire!D24++nonroad!D24+cmv_c1c2!D24+'ptfire-rx'!D24+ptegu!DW24+ptnonipm!D24+pt_oilgas!D24+np_oilgas!D24+rwc!D24+cmv_c3!D24+'onroad all'!CI24+airports!D24+'ptfire-wild'!D24+np_solvents!D24 -> 185,272 | E25: =rail!E24+nonpt!E24+ptagfire!E24++nonroad!E24+cmv_c1c2!E24+'ptfire-rx'!E24+ptegu!E24+ptnonipm!E24+pt_oilgas!E24+np_oilgas!E24+rwc!E24+cmv_c3!E24+afdust!BA24+'onroad all'!DE24+'onroad all'!DD24+airports!E24+'ptfire-wild'!E24+np_solvents!E24 -> 222,858 | F25: =rail!F24+nonpt!F24+ptagfire!F24++nonroad!F24+cmv_c1c2!F24+'ptfire-rx'!F24+ptegu!F24+ptnonipm!F24+pt_oilgas!F24+np_oilgas!F24+rwc!F24+cmv_c3!F24+afdust!BB24+'onroad all'!DD24+airports!F24+'ptfire-wild'!F24+np_solvents!F24 -> 105,812 | G25: =rail!G24+nonpt!G24+ptagfire!G24++nonroad!G24+'onroad all'!DU24+cmv_c1c2!G24+'ptfire-rx'!G24+ptegu!FH24+ptnonipm!G24+pt_oilgas!G24+np_oilgas!G24+rwc!G24+cmv_c3!G24+airports!G24+'ptfire-wild'!G24+np_solvents!G24 -> 29,130 | H25: =rail!H24+nonpt!H24+ptagfire!H24++nonroad!H24+'onroad all'!EI24+cmv_c1c2!H24+'ptfire-rx'!H24+ptegu!H24+ptnonipm!H24+pt_oilgas!H24+np_oilgas!H24+rwc!H24+cmv_c3!H24+livestock!C24+airports!H24+'ptfire-wild'!H24+np_solvents!H24 -> 281,281 | I25: =rail!AO24+nonpt!BN24+ptagfire!AJ24+nonroad!AK24+'onroad all'!H24+cmv_c1c2!O24+'ptfire-rx'!AO24+ptegu!BM24+ptnonipm!BX24+pt_oilgas!BM24+np_oilgas!AU24+rwc!AH24+cmv_c3!O24+livestock!U24+airports!AJ24+'ptfire-wild'!AL24+np_solvents!AU24 -> 3,419 | J25: =rail!AU24+nonpt!BT24+ptagfire!AN24+nonroad!AP24+'onroad all'!P24+cmv_c1c2!T24+'ptfire-rx'!AS24+ptegu!BS24+ptnonipm!CD24+pt_oilgas!BS24+np_oilgas!BA24+rwc!AL24+cmv_c3!T24+livestock!X24+airports!AM24+'ptfire-wild'!AP24+np_solvents!AY24 -> 4,131 | K25: =rail!BR24+nonpt!CY24+ptagfire!AY24+nonroad!BH24+'onroad all'!BC24+cmv_c1c2!AO24+'ptfire-rx'!BE24+ptegu!CX24+ptnonipm!DP24+pt_oilgas!CW24+np_oilgas!BW24+rwc!AY24+cmv_c3!AP24+livestock!AH24+airports!BE24+'ptfire-wild'!BA24+np_solvents!BR24 -> 6,889 | L25: =rail!CF24+nonpt!DO24+ptagfire!BH24+nonroad!BT24+'onroad all'!BU24+cmv_c1c2!BC24+'ptfire-rx'!BP24+ptegu!DM24+ptnonipm!EH24+pt_oilgas!DM24+np_oilgas!CK24+rwc!BJ24+cmv_c3!BC24+livestock!AN24+airports!BN24+'ptfire-wild'!BL24+np_solvents!CF24 -> 3,742 | M25: =rail!CG24+nonpt!DQ24+nonroad!BU24+'onroad all'!BY24+cmv_c1c2!BD24+'ptfire-rx'!BR24+ptegu!DO24+ptnonipm!EJ24+pt_oilgas!DO24+np_oilgas!CL24+rwc!BK24+cmv_c3!BD24+airports!BO24+'ptfire-wild'!BN24+np_solvents!CG24+ptagfire!BJ24 -> 955 | N25: =rail!AN24+nonpt!BK24+nonroad!AJ24+'onroad all'!G24+cmv_c1c2!M24+'ptfire-rx'!AL24+ptegu!BK24+ptnonipm!BU24+pt_oilgas!BK24+np_oilgas!AT24+rwc!AG24+airports!AH24+cmv_c3!M24+'ptfire-wild'!AJ24+ptagfire!AH24 -> 910 | O25: =rail!AY24+nonpt!O24+ptagfire!AP24+nonroad!AR24+'onroad all'!Z24+cmv_c1c2!V24+'ptfire-rx'!AU24+ptegu!BX24+ptnonipm!CI24+pt_oilgas!BX24+np_oilgas!BD24+rwc!AN24+airports!AO24+cmv_c3!V24+'ptfire-wild'!AR24+np_solvents!AE24 -> 936 | P25: =rail!AD24+nonroad!AD24+'onroad all'!AK24+'onroad all'!AL24+'onroad all'!AM24+'onroad all'!AN24+'onroad all'!AO24+'onroad all'!AP24+ptnonipm!BI24+SUM(airports!AR24:AW24)+SUM(cmv_c1c2!AC24:AH24)+SUM(cmv_c3!AC24:AH24) -> 3,655 | Q25: =rail!AE24+nonroad!AE24+'onroad all'!AL24+'onroad all'!AM24+'onroad all'!AN24+'onroad all'!AO24+'onroad all'!AP24+ptnonipm!BJ24+SUM(airports!AS24:AW24)+SUM(cmv_c1c2!AD24:AH24)+SUM(cmv_c3!AD24:AH24) -> 3,501 | R25: =rail!P24+nonpt!T24+nonroad!R24+'onroad all'!AC24+ptegu!T24+ptnonipm!T24+pt_oilgas!S24+np_oilgas!Q24+SUM(cmv_c1c2!Z24:AA24)+SUM(cmv_c3!Z24:AA24) -> 0.86 | S25: =rail!K24+nonpt!L24+nonroad!U24+'onroad all'!M24+ptegu!L24+ptnonipm!L24+pt_oilgas!K24+np_oilgas!K24+SUM(cmv_c1c2!R24:S24)+SUM(cmv_c3!R24:S24) -> 7.42 | T25: =rail!O24+nonpt!P24+ptegu!P24+ptnonipm!P24+pt_oilgas!O24+np_oilgas!N24+rwc!M24+SUM(cmv_c1c2!W24:X24)+SUM(cmv_c3!W24:X24) -> 0.52 | U25: =rail!V24+nonpt!AI24+nonroad!T24+'onroad all'!CB24+ptegu!AH24+ptnonipm!AL24+pt_oilgas!AG24+np_oilgas!AA24+rwc!R24+SUM(cmv_c1c2!BF24:BG24)+SUM(cmv_c3!BF24:BG24) -> 8.20 | V25: =rail!T24+nonpt!AE24+nonroad!S24+'onroad all'!BS24+'onroad all'!BT24+ptegu!AD24+ptnonipm!AH24+pt_oilgas!AC24+np_oilgas!W24+rwc!P24+SUM(cmv_c1c2!BA24:BB24)+SUM(cmv_c3!BA24:BB24) -> 32.99 | W25: =nonpt!CW24+ptegu!BB24+ptnonipm!Z24 -> 0.88 | X25: X | AA25: Minnesota | AB25: =B25+beis!H24 -> 1,376,496 | AC25: 172,978 | AD25: =D25+beis!T24 -> 217,183 | AE25: 222,858 | AF25: 105,812 | AG25: 29,130 | AH25: =H25+beis!Z24 -> 612,588 | AI25: =I25+beis!E24 -> 9,732 | AJ25: 4,131 | AK25: =K25+beis!N24 -> 15,499 | AL25: =L25+beis!R24 -> 31,637 | AM25: 955 | AN25: 910 | AO25: 936 | AP25: 3,655 | AQ25: 3,501 | AR25: 0.86 | AS25: 7.42 | AT25: 0.52 | AU25: 8.20 | AV25: 32.99 | AX25: Minnesota | AY25: =B25-'ptfire-rx'!B24-'ptfire-wild'!B24 -> 983,469 | AZ25: =C25-'ptfire-rx'!C24-'ptfire-wild'!C24 -> 167,552 | BA25: =D25-'ptfire-rx'!D24-'ptfire-wild'!D24 -> 182,560 | BB25: =E25-'ptfire-rx'!E24-'ptfire-wild'!E24 -> 190,642 | BC25: =F25-'ptfire-rx'!F24-'ptfire-wild'!F24 -> 78,509 | BD25: =G25-'ptfire-rx'!G24-'ptfire-wild'!G24 -> 27,188 | BE25: =H25-'ptfire-rx'!H24-'ptfire-wild'!H24 -> 203,287 | BF25: =I25-'ptfire-rx'!AO24-'ptfire-wild'!AL24 -> 2,135 | BG25: =J25-'ptfire-rx'!AS24-'ptfire-wild'!AP24 -> 3,559 | BH25: =K25-'ptfire-rx'!BE24-'ptfire-wild'!BA24 -> 3,544 | BI25: =L25-'ptfire-rx'!BP24-'ptfire-wild'!BL24 -> 1,774 | BJ25: =M25-'ptfire-rx'!BR24-'ptfire-wild'!BN24 -> 557 | BK25: =N25-'ptfire-rx'!AL24-'ptfire-wild'!AJ24 -> 271 | BL25: =O25-'ptfire-rx'!AU24-'ptfire-wild'!AR24 -> 431 | BM25: 3,655 | BN25: 3,501 | BO25: 0.86 | BP25: 7.42 | BQ25: 0.52 | BR25: 8.20 | BS25: 32.99
A26: Mississippi | B26: =rail!B25+nonpt!B25+ptagfire!B25+nonroad!B25+'onroad all'!AG25+cmv_c1c2!B25+'ptfire-rx'!B25+ptegu!B25+ptnonipm!B25+pt_oilgas!B25+np_oilgas!B25+rwc!B25+cmv_c3!B25+airports!B25+'ptfire-wild'!B25+np_solvents!B25 -> 679,933 | C26: =rail!C25+nonpt!C25+ptagfire!C25++nonroad!C25+'onroad all'!BZ25+cmv_c1c2!BE25+'ptfire-rx'!C25+ptegu!C25+ptnonipm!C25+pt_oilgas!C25+np_oilgas!C25+rwc!C25+cmv_c3!BE25+livestock!B25+airports!C25+'ptfire-wild'!C25+fertilizer!B25+np_solvents!C25 -> 63,758 | D26: =rail!D25+nonpt!D25+ptagfire!D25++nonroad!D25+cmv_c1c2!D25+'ptfire-rx'!D25+ptegu!DW25+ptnonipm!D25+pt_oilgas!D25+np_oilgas!D25+rwc!D25+cmv_c3!D25+'onroad all'!CI25+airports!D25+'ptfire-wild'!D25+np_solvents!D25 -> 124,120 | E26: =rail!E25+nonpt!E25+ptagfire!E25++nonroad!E25+cmv_c1c2!E25+'ptfire-rx'!E25+ptegu!E25+ptnonipm!E25+pt_oilgas!E25+np_oilgas!E25+rwc!E25+cmv_c3!E25+afdust!BA25+'onroad all'!DE25+'onroad all'!DD25+airports!E25+'ptfire-wild'!E25+np_solvents!E25 -> 169,005 | F26: =rail!F25+nonpt!F25+ptagfire!F25++nonroad!F25+cmv_c1c2!F25+'ptfire-rx'!F25+ptegu!F25+ptnonipm!F25+pt_oilgas!F25+np_oilgas!F25+rwc!F25+cmv_c3!F25+afdust!BB25+'onroad all'!DD25+airports!F25+'ptfire-wild'!F25+np_solvents!F25 -> 65,187 | G26: =rail!G25+nonpt!G25+ptagfire!G25++nonroad!G25+'onroad all'!DU25+cmv_c1c2!G25+'ptfire-rx'!G25+ptegu!FH25+ptnonipm!G25+pt_oilgas!G25+np_oilgas!G25+rwc!G25+cmv_c3!G25+airports!G25+'ptfire-wild'!G25+np_solvents!G25 -> 12,170 | H26: =rail!H25+nonpt!H25+ptagfire!H25++nonroad!H25+'onroad all'!EI25+cmv_c1c2!H25+'ptfire-rx'!H25+ptegu!H25+ptnonipm!H25+pt_oilgas!H25+np_oilgas!H25+rwc!H25+cmv_c3!H25+livestock!C25+airports!H25+'ptfire-wild'!H25+np_solvents!H25 -> 173,492 | I26: =rail!AO25+nonpt!BN25+ptagfire!AJ25+nonroad!AK25+'onroad all'!H25+cmv_c1c2!O25+'ptfire-rx'!AO25+ptegu!BM25+ptnonipm!BX25+pt_oilgas!BM25+np_oilgas!AU25+rwc!AH25+cmv_c3!O25+livestock!U25+airports!AJ25+'ptfire-wild'!AL25+np_solvents!AU25 -> 2,451 | J26: =rail!AU25+nonpt!BT25+ptagfire!AN25+nonroad!AP25+'onroad all'!P25+cmv_c1c2!T25+'ptfire-rx'!AS25+ptegu!BS25+ptnonipm!CD25+pt_oilgas!BS25+np_oilgas!BA25+rwc!AL25+cmv_c3!T25+livestock!X25+airports!AM25+'ptfire-wild'!AP25+np_solvents!AY25 -> 1,739 | K26: =rail!BR25+nonpt!CY25+ptagfire!AY25+nonroad!BH25+'onroad all'!BC25+cmv_c1c2!AO25+'ptfire-rx'!BE25+ptegu!CX25+ptnonipm!DP25+pt_oilgas!CW25+np_oilgas!BW25+rwc!AY25+cmv_c3!AP25+livestock!AH25+airports!BE25+'ptfire-wild'!BA25+np_solvents!BR25 -> 5,359 | L26: =rail!CF25+nonpt!DO25+ptagfire!BH25+nonroad!BT25+'onroad all'!BU25+cmv_c1c2!BC25+'ptfire-rx'!BP25+ptegu!DM25+ptnonipm!EH25+pt_oilgas!DM25+np_oilgas!CK25+rwc!BJ25+cmv_c3!BC25+livestock!AN25+airports!BN25+'ptfire-wild'!BL25+np_solvents!CF25 -> 6,162 | M26: =rail!CG25+nonpt!DQ25+nonroad!BU25+'onroad all'!BY25+cmv_c1c2!BD25+'ptfire-rx'!BR25+ptegu!DO25+ptnonipm!EJ25+pt_oilgas!DO25+np_oilgas!CL25+rwc!BK25+cmv_c3!BD25+airports!BO25+'ptfire-wild'!BN25+np_solvents!CG25+ptagfire!BJ25 -> 677 | N26: =rail!AN25+nonpt!BK25+nonroad!AJ25+'onroad all'!G25+cmv_c1c2!M25+'ptfire-rx'!AL25+ptegu!BK25+ptnonipm!BU25+pt_oilgas!BK25+np_oilgas!AT25+rwc!AG25+airports!AH25+cmv_c3!M25+'ptfire-wild'!AJ25+ptagfire!AH25 -> 832 | O26: =rail!AY25+nonpt!O25+ptagfire!AP25+nonroad!AR25+'onroad all'!Z25+cmv_c1c2!V25+'ptfire-rx'!AU25+ptegu!BX25+ptnonipm!CI25+pt_oilgas!BX25+np_oilgas!BD25+rwc!AN25+airports!AO25+cmv_c3!V25+'ptfire-wild'!AR25+np_solvents!AE25 -> 688 | P26: =rail!AD25+nonroad!AD25+'onroad all'!AK25+'onroad all'!AL25+'onroad all'!AM25+'onroad all'!AN25+'onroad all'!AO25+'onroad all'!AP25+ptnonipm!BI25+SUM(airports!AR25:AW25)+SUM(cmv_c1c2!AC25:AH25)+SUM(cmv_c3!AC25:AH25) -> 1,640 | Q26: =rail!AE25+nonroad!AE25+'onroad all'!AL25+'onroad all'!AM25+'onroad all'!AN25+'onroad all'!AO25+'onroad all'!AP25+ptnonipm!BJ25+SUM(airports!AS25:AW25)+SUM(cmv_c1c2!AD25:AH25)+SUM(cmv_c3!AD25:AH25) -> 1,547 | R26: =rail!P25+nonpt!T25+nonroad!R25+'onroad all'!AC25+ptegu!T25+ptnonipm!T25+pt_oilgas!S25+np_oilgas!Q25+SUM(cmv_c1c2!Z25:AA25)+SUM(cmv_c3!Z25:AA25) -> 0.49 | S26: =rail!K25+nonpt!L25+nonroad!U25+'onroad all'!M25+ptegu!L25+ptnonipm!L25+pt_oilgas!K25+np_oilgas!K25+SUM(cmv_c1c2!R25:S25)+SUM(cmv_c3!R25:S25) -> 0.54 | T26: =rail!O25+nonpt!P25+ptegu!P25+ptnonipm!P25+pt_oilgas!O25+np_oilgas!N25+rwc!M25+SUM(cmv_c1c2!W25:X25)+SUM(cmv_c3!W25:X25) -> 0.45 | U26: =rail!V25+nonpt!AI25+nonroad!T25+'onroad all'!CB25+ptegu!AH25+ptnonipm!AL25+pt_oilgas!AG25+np_oilgas!AA25+rwc!R25+SUM(cmv_c1c2!BF25:BG25)+SUM(cmv_c3!BF25:BG25) -> 5.97 | V26: =rail!T25+nonpt!AE25+nonroad!S25+'onroad all'!BS25+'onroad all'!BT25+ptegu!AD25+ptnonipm!AH25+pt_oilgas!AC25+np_oilgas!W25+rwc!P25+SUM(cmv_c1c2!BA25:BB25)+SUM(cmv_c3!BA25:BB25) -> 47.35 | W26: =nonpt!CW25+ptegu!BB25+ptnonipm!Z25 -> 0.01 | X26: X | AA26: Mississippi | AB26: =B26+beis!H25 -> 793,173 | AC26: 63,758 | AD26: =D26+beis!T25 -> 147,764 | AE26: 169,005 | AF26: 65,187 | AG26: 12,170 | AH26: =H26+beis!Z25 -> 1,408,221 | AI26: =I26+beis!E25 -> 14,305 | AJ26: 1,739 | AK26: =K26+beis!N25 -> 21,525 | AL26: =L26+beis!R25 -> 74,896 | AM26: 677 | AN26: 832 | AO26: 688 | AP26: 1,640 | AQ26: 1,547 | AR26: 0.49 | AS26: 0.54 | AT26: 0.45 | AU26: 5.97 | AV26: 47.35 | AX26: Mississippi | AY26: =B26-'ptfire-rx'!B25-'ptfire-wild'!B25 -> 474,504 | AZ26: =C26-'ptfire-rx'!C25-'ptfire-wild'!C25 -> 60,355 | BA26: =D26-'ptfire-rx'!D25-'ptfire-wild'!D25 -> 119,699 | BB26: =E26-'ptfire-rx'!E25-'ptfire-wild'!E25 -> 146,662 | BC26: =F26-'ptfire-rx'!F25-'ptfire-wild'!F25 -> 46,252 | BD26: =G26-'ptfire-rx'!G25-'ptfire-wild'!G25 -> 10,131 | BE26: =H26-'ptfire-rx'!H25-'ptfire-wild'!H25 -> 124,573 | BF26: =I26-'ptfire-rx'!AO25-'ptfire-wild'!AL25 -> 1,077 | BG26: =J26-'ptfire-rx'!AS25-'ptfire-wild'!AP25 -> 1,116 | BH26: =K26-'ptfire-rx'!BE25-'ptfire-wild'!BA25 -> 1,822 | BI26: =L26-'ptfire-rx'!BP25-'ptfire-wild'!BL25 -> 4,069 | BJ26: =M26-'ptfire-rx'!BR25-'ptfire-wild'!BN25 -> 253 | BK26: =N26-'ptfire-rx'!AL25-'ptfire-wild'!AJ25 -> 163 | BL26: =O26-'ptfire-rx'!AU25-'ptfire-wild'!AR25 -> 175 | BM26: 1,640 | BN26: 1,547 | BO26: 0.49 | BP26: 0.54 | BQ26: 0.45 | BR26: 5.97 | BS26: 47.35
A27: Missouri | B27: =rail!B26+nonpt!B26+ptagfire!B26+nonroad!B26+'onroad all'!AG26+cmv_c1c2!B26+'ptfire-rx'!B26+ptegu!B26+ptnonipm!B26+pt_oilgas!B26+np_oilgas!B26+rwc!B26+cmv_c3!B26+airports!B26+'ptfire-wild'!B26+np_solvents!B26 -> 1,449,632 | C27: =rail!C26+nonpt!C26+ptagfire!C26++nonroad!C26+'onroad all'!BZ26+cmv_c1c2!BE26+'ptfire-rx'!C26+ptegu!C26+ptnonipm!C26+pt_oilgas!C26+np_oilgas!C26+rwc!C26+cmv_c3!BE26+livestock!B26+airports!C26+'ptfire-wild'!C26+fertilizer!B26+np_solvents!C26 -> 135,603 | D27: =rail!D26+nonpt!D26+ptagfire!D26++nonroad!D26+cmv_c1c2!D26+'ptfire-rx'!D26+ptegu!DW26+ptnonipm!D26+pt_oilgas!D26+np_oilgas!D26+rwc!D26+cmv_c3!D26+'onroad all'!CI26+airports!D26+'ptfire-wild'!D26+np_solvents!D26 -> 248,300 | E27: =rail!E26+nonpt!E26+ptagfire!E26++nonroad!E26+cmv_c1c2!E26+'ptfire-rx'!E26+ptegu!E26+ptnonipm!E26+pt_oilgas!E26+np_oilgas!E26+rwc!E26+cmv_c3!E26+afdust!BA26+'onroad all'!DE26+'onroad all'!DD26+airports!E26+'ptfire-wild'!E26+np_solvents!E26 -> 435,299 | F27: =rail!F26+nonpt!F26+ptagfire!F26++nonroad!F26+cmv_c1c2!F26+'ptfire-rx'!F26+ptegu!F26+ptnonipm!F26+pt_oilgas!F26+np_oilgas!F26+rwc!F26+cmv_c3!F26+afdust!BB26+'onroad all'!DD26+airports!F26+'ptfire-wild'!F26+np_solvents!F26 -> 121,808 | G27: =rail!G26+nonpt!G26+ptagfire!G26++nonroad!G26+'onroad all'!DU26+cmv_c1c2!G26+'ptfire-rx'!G26+ptegu!FH26+ptnonipm!G26+pt_oilgas!G26+np_oilgas!G26+rwc!G26+cmv_c3!G26+airports!G26+'ptfire-wild'!G26+np_solvents!G26 -> 109,112 | H27: =rail!H26+nonpt!H26+ptagfire!H26++nonroad!H26+'onroad all'!EI26+cmv_c1c2!H26+'ptfire-rx'!H26+ptegu!H26+ptnonipm!H26+pt_oilgas!H26+np_oilgas!H26+rwc!H26+cmv_c3!H26+livestock!C26+airports!H26+'ptfire-wild'!H26+np_solvents!H26 -> 278,746 | I27: =rail!AO26+nonpt!BN26+ptagfire!AJ26+nonroad!AK26+'onroad all'!H26+cmv_c1c2!O26+'ptfire-rx'!AO26+ptegu!BM26+ptnonipm!BX26+pt_oilgas!BM26+np_oilgas!AU26+rwc!AH26+cmv_c3!O26+livestock!U26+airports!AJ26+'ptfire-wild'!AL26+np_solvents!AU26 -> 4,923 | J27: =rail!AU26+nonpt!BT26+ptagfire!AN26+nonroad!AP26+'onroad all'!P26+cmv_c1c2!T26+'ptfire-rx'!AS26+ptegu!BS26+ptnonipm!CD26+pt_oilgas!BS26+np_oilgas!BA26+rwc!AL26+cmv_c3!T26+livestock!X26+airports!AM26+'ptfire-wild'!AP26+np_solvents!AY26 -> 3,294 | K27: =rail!BR26+nonpt!CY26+ptagfire!AY26+nonroad!BH26+'onroad all'!BC26+cmv_c1c2!AO26+'ptfire-rx'!BE26+ptegu!CX26+ptnonipm!DP26+pt_oilgas!CW26+np_oilgas!BW26+rwc!AY26+cmv_c3!AP26+livestock!AH26+airports!BE26+'ptfire-wild'!BA26+np_solvents!BR26 -> 7,815 | L27: =rail!CF26+nonpt!DO26+ptagfire!BH26+nonroad!BT26+'onroad all'!BU26+cmv_c1c2!BC26+'ptfire-rx'!BP26+ptegu!DM26+ptnonipm!EH26+pt_oilgas!DM26+np_oilgas!CK26+rwc!BJ26+cmv_c3!BC26+livestock!AN26+airports!BN26+'ptfire-wild'!BL26+np_solvents!CF26 -> 5,943 | M27: =rail!CG26+nonpt!DQ26+nonroad!BU26+'onroad all'!BY26+cmv_c1c2!BD26+'ptfire-rx'!BR26+ptegu!DO26+ptnonipm!EJ26+pt_oilgas!DO26+np_oilgas!CL26+rwc!BK26+cmv_c3!BD26+airports!BO26+'ptfire-wild'!BN26+np_solvents!CG26+ptagfire!BJ26 -> 1,381 | N27: =rail!AN26+nonpt!BK26+nonroad!AJ26+'onroad all'!G26+cmv_c1c2!M26+'ptfire-rx'!AL26+ptegu!BK26+ptnonipm!BU26+pt_oilgas!BK26+np_oilgas!AT26+rwc!AG26+airports!AH26+cmv_c3!M26+'ptfire-wild'!AJ26+ptagfire!AH26 -> 1,187 | O27: =rail!AY26+nonpt!O26+ptagfire!AP26+nonroad!AR26+'onroad all'!Z26+cmv_c1c2!V26+'ptfire-rx'!AU26+ptegu!BX26+ptnonipm!CI26+pt_oilgas!BX26+np_oilgas!BD26+rwc!AN26+airports!AO26+cmv_c3!V26+'ptfire-wild'!AR26+np_solvents!AE26 -> 877 | P27: =rail!AD26+nonroad!AD26+'onroad all'!AK26+'onroad all'!AL26+'onroad all'!AM26+'onroad all'!AN26+'onroad all'!AO26+'onroad all'!AP26+ptnonipm!BI26+SUM(airports!AR26:AW26)+SUM(cmv_c1c2!AC26:AH26)+SUM(cmv_c3!AC26:AH26) -> 4,710 | Q27: =rail!AE26+nonroad!AE26+'onroad all'!AL26+'onroad all'!AM26+'onroad all'!AN26+'onroad all'!AO26+'onroad all'!AP26+ptnonipm!BJ26+SUM(airports!AS26:AW26)+SUM(cmv_c1c2!AD26:AH26)+SUM(cmv_c3!AD26:AH26) -> 4,454 | R27: =rail!P26+nonpt!T26+nonroad!R26+'onroad all'!AC26+ptegu!T26+ptnonipm!T26+pt_oilgas!S26+np_oilgas!Q26+SUM(cmv_c1c2!Z26:AA26)+SUM(cmv_c3!Z26:AA26) -> 1.04 | S27: =rail!K26+nonpt!L26+nonroad!U26+'onroad all'!M26+ptegu!L26+ptnonipm!L26+pt_oilgas!K26+np_oilgas!K26+SUM(cmv_c1c2!R26:S26)+SUM(cmv_c3!R26:S26) -> 1.45 | T27: =rail!O26+nonpt!P26+ptegu!P26+ptnonipm!P26+pt_oilgas!O26+np_oilgas!N26+rwc!M26+SUM(cmv_c1c2!W26:X26)+SUM(cmv_c3!W26:X26) -> 0.26 | U27: =rail!V26+nonpt!AI26+nonroad!T26+'onroad all'!CB26+ptegu!AH26+ptnonipm!AL26+pt_oilgas!AG26+np_oilgas!AA26+rwc!R26+SUM(cmv_c1c2!BF26:BG26)+SUM(cmv_c3!BF26:BG26) -> 18.43 | V27: =rail!T26+nonpt!AE26+nonroad!S26+'onroad all'!BS26+'onroad all'!BT26+ptegu!AD26+ptnonipm!AH26+pt_oilgas!AC26+np_oilgas!W26+rwc!P26+SUM(cmv_c1c2!BA26:BB26)+SUM(cmv_c3!BA26:BB26) -> 33.81 | W27: =nonpt!CW26+ptegu!BB26+ptnonipm!Z26 -> 2.97 | X27: X | AA27: Missouri | AB27: =B27+beis!H26 -> 1,530,630 | AC27: 135,603 | AD27: =D27+beis!T26 -> 288,108 | AE27: 435,299 | AF27: 121,808 | AG27: 109,112 | AH27: =H27+beis!Z26 -> 980,041 | AI27: =I27+beis!E26 -> 13,401 | AJ27: 3,294 | AK27: =K27+beis!N26 -> 19,375 | AL27: =L27+beis!R26 -> 51,700 | AM27: 1,381 | AN27: 1,187 | AO27: 877 | AP27: 4,710 | AQ27: 4,454 | AR27: 1.04 | AS27: 1.45 | AT27: 0.26 | AU27: 18.43 | AV27: 33.81 | AX27: Missouri | AY27: =B27-'ptfire-rx'!B26-'ptfire-wild'!B26 -> 978,187 | AZ27: =C27-'ptfire-rx'!C26-'ptfire-wild'!C26 -> 127,845 | BA27: =D27-'ptfire-rx'!D26-'ptfire-wild'!D26 -> 240,804 | BB27: =E27-'ptfire-rx'!E26-'ptfire-wild'!E26 -> 386,389 | BC27: =F27-'ptfire-rx'!F26-'ptfire-wild'!F26 -> 80,359 | BD27: =G27-'ptfire-rx'!G26-'ptfire-wild'!G26 -> 105,244 | BE27: =H27-'ptfire-rx'!H26-'ptfire-wild'!H26 -> 167,221 | BF27: =I27-'ptfire-rx'!AO26-'ptfire-wild'!AL26 -> 1,611 | BG27: =J27-'ptfire-rx'!AS26-'ptfire-wild'!AP26 -> 2,404 | BH27: =K27-'ptfire-rx'!BE26-'ptfire-wild'!BA26 -> 2,851 | BI27: =L27-'ptfire-rx'!BP26-'ptfire-wild'!BL26 -> 1,390 | BJ27: =M27-'ptfire-rx'!BR26-'ptfire-wild'!BN26 -> 421 | BK27: =N27-'ptfire-rx'!AL26-'ptfire-wild'!AJ26 -> 176 | BL27: =O27-'ptfire-rx'!AU26-'ptfire-wild'!AR26 -> 340 | BM27: 4,710 | BN27: 4,454 | BO27: 1.04 | BP27: 1.45 | BQ27: 0.26 | BR27: 18.43 | BS27: 33.81
A28: Montana | B28: =rail!B27+nonpt!B27+ptagfire!B27+nonroad!B27+'onroad all'!AG27+cmv_c1c2!B27+'ptfire-rx'!B27+ptegu!B27+ptnonipm!B27+pt_oilgas!B27+np_oilgas!B27+rwc!B27+cmv_c3!B27+airports!B27+'ptfire-wild'!B27+np_solvents!B27 -> 414,758 | C28: =rail!C27+nonpt!C27+ptagfire!C27++nonroad!C27+'onroad all'!BZ27+cmv_c1c2!BE27+'ptfire-rx'!C27+ptegu!C27+ptnonipm!C27+pt_oilgas!C27+np_oilgas!C27+rwc!C27+cmv_c3!BE27+livestock!B27+airports!C27+'ptfire-wild'!C27+fertilizer!B27+np_solvents!C27 -> 55,136 | D28: =rail!D27+nonpt!D27+ptagfire!D27++nonroad!D27+cmv_c1c2!D27+'ptfire-rx'!D27+ptegu!DW27+ptnonipm!D27+pt_oilgas!D27+np_oilgas!D27+rwc!D27+cmv_c3!D27+'onroad all'!CI27+airports!D27+'ptfire-wild'!D27+np_solvents!D27 -> 85,980 | E28: =rail!E27+nonpt!E27+ptagfire!E27++nonroad!E27+cmv_c1c2!E27+'ptfire-rx'!E27+ptegu!E27+ptnonipm!E27+pt_oilgas!E27+np_oilgas!E27+rwc!E27+cmv_c3!E27+afdust!BA27+'onroad all'!DE27+'onroad all'!DD27+airports!E27+'ptfire-wild'!E27+np_solvents!E27 -> 200,349 | F28: =rail!F27+nonpt!F27+ptagfire!F27++nonroad!F27+cmv_c1c2!F27+'ptfire-rx'!F27+ptegu!F27+ptnonipm!F27+pt_oilgas!F27+np_oilgas!F27+rwc!F27+cmv_c3!F27+afdust!BB27+'onroad all'!DD27+airports!F27+'ptfire-wild'!F27+np_solvents!F27 -> 50,253 | G28: =rail!G27+nonpt!G27+ptagfire!G27++nonroad!G27+'onroad all'!DU27+cmv_c1c2!G27+'ptfire-rx'!G27+ptegu!FH27+ptnonipm!G27+pt_oilgas!G27+np_oilgas!G27+rwc!G27+cmv_c3!G27+airports!G27+'ptfire-wild'!G27+np_solvents!G27 -> 19,396 | H28: =rail!H27+nonpt!H27+ptagfire!H27++nonroad!H27+'onroad all'!EI27+cmv_c1c2!H27+'ptfire-rx'!H27+ptegu!H27+ptnonipm!H27+pt_oilgas!H27+np_oilgas!H27+rwc!H27+cmv_c3!H27+livestock!C27+airports!H27+'ptfire-wild'!H27+np_solvents!H27 -> 123,533 | I28: =rail!AO27+nonpt!BN27+ptagfire!AJ27+nonroad!AK27+'onroad all'!H27+cmv_c1c2!O27+'ptfire-rx'!AO27+ptegu!BM27+ptnonipm!BX27+pt_oilgas!BM27+np_oilgas!AU27+rwc!AH27+cmv_c3!O27+livestock!U27+airports!AJ27+'ptfire-wild'!AL27+np_solvents!AU27 -> 2,064 | J28: =rail!AU27+nonpt!BT27+ptagfire!AN27+nonroad!AP27+'onroad all'!P27+cmv_c1c2!T27+'ptfire-rx'!AS27+ptegu!BS27+ptnonipm!CD27+pt_oilgas!BS27+np_oilgas!BA27+rwc!AL27+cmv_c3!T27+livestock!X27+airports!AM27+'ptfire-wild'!AP27+np_solvents!AY27 -> 1,535 | K28: =rail!BR27+nonpt!CY27+ptagfire!AY27+nonroad!BH27+'onroad all'!BC27+cmv_c1c2!AO27+'ptfire-rx'!BE27+ptegu!CX27+ptnonipm!DP27+pt_oilgas!CW27+np_oilgas!BW27+rwc!AY27+cmv_c3!AP27+livestock!AH27+airports!BE27+'ptfire-wild'!BA27+np_solvents!BR27 -> 4,311 | L28: =rail!CF27+nonpt!DO27+ptagfire!BH27+nonroad!BT27+'onroad all'!BU27+cmv_c1c2!BC27+'ptfire-rx'!BP27+ptegu!DM27+ptnonipm!EH27+pt_oilgas!DM27+np_oilgas!CK27+rwc!BJ27+cmv_c3!BC27+livestock!AN27+airports!BN27+'ptfire-wild'!BL27+np_solvents!CF27 -> 3,811 | M28: =rail!CG27+nonpt!DQ27+nonroad!BU27+'onroad all'!BY27+cmv_c1c2!BD27+'ptfire-rx'!BR27+ptegu!DO27+ptnonipm!EJ27+pt_oilgas!DO27+np_oilgas!CL27+rwc!BK27+cmv_c3!BD27+airports!BO27+'ptfire-wild'!BN27+np_solvents!CG27+ptagfire!BJ27 -> 566 | N28: =rail!AN27+nonpt!BK27+nonroad!AJ27+'onroad all'!G27+cmv_c1c2!M27+'ptfire-rx'!AL27+ptegu!BK27+ptnonipm!BU27+pt_oilgas!BK27+np_oilgas!AT27+rwc!AG27+airports!AH27+cmv_c3!M27+'ptfire-wild'!AJ27+ptagfire!AH27 -> 575 | O28: =rail!AY27+nonpt!O27+ptagfire!AP27+nonroad!AR27+'onroad all'!Z27+cmv_c1c2!V27+'ptfire-rx'!AU27+ptegu!BX27+ptnonipm!CI27+pt_oilgas!BX27+np_oilgas!BD27+rwc!AN27+airports!AO27+cmv_c3!V27+'ptfire-wild'!AR27+np_solvents!AE27 -> 348 | P28: =rail!AD27+nonroad!AD27+'onroad all'!AK27+'onroad all'!AL27+'onroad all'!AM27+'onroad all'!AN27+'onroad all'!AO27+'onroad all'!AP27+ptnonipm!BI27+SUM(airports!AR27:AW27)+SUM(cmv_c1c2!AC27:AH27)+SUM(cmv_c3!AC27:AH27) -> 1,670 | Q28: =rail!AE27+nonroad!AE27+'onroad all'!AL27+'onroad all'!AM27+'onroad all'!AN27+'onroad all'!AO27+'onroad all'!AP27+ptnonipm!BJ27+SUM(airports!AS27:AW27)+SUM(cmv_c1c2!AD27:AH27)+SUM(cmv_c3!AD27:AH27) -> 1,597 | R28: =rail!P27+nonpt!T27+nonroad!R27+'onroad all'!AC27+ptegu!T27+ptnonipm!T27+pt_oilgas!S27+np_oilgas!Q27+SUM(cmv_c1c2!Z27:AA27)+SUM(cmv_c3!Z27:AA27) -> 0.13 | S28: =rail!K27+nonpt!L27+nonroad!U27+'onroad all'!M27+ptegu!L27+ptnonipm!L27+pt_oilgas!K27+np_oilgas!K27+SUM(cmv_c1c2!R27:S27)+SUM(cmv_c3!R27:S27) -> 0.94 | T28: =rail!O27+nonpt!P27+ptegu!P27+ptnonipm!P27+pt_oilgas!O27+np_oilgas!N27+rwc!M27+SUM(cmv_c1c2!W27:X27)+SUM(cmv_c3!W27:X27) -> 0.04 | U28: =rail!V27+nonpt!AI27+nonroad!T27+'onroad all'!CB27+ptegu!AH27+ptnonipm!AL27+pt_oilgas!AG27+np_oilgas!AA27+rwc!R27+SUM(cmv_c1c2!BF27:BG27)+SUM(cmv_c3!BF27:BG27) -> 3.01 | V28: =rail!T27+nonpt!AE27+nonroad!S27+'onroad all'!BS27+'onroad all'!BT27+ptegu!AD27+ptnonipm!AH27+pt_oilgas!AC27+np_oilgas!W27+rwc!P27+SUM(cmv_c1c2!BA27:BB27)+SUM(cmv_c3!BA27:BB27) -> 3.47 | W28: =nonpt!CW27+ptegu!BB27+ptnonipm!Z27 -> 0.00 | AA28: Montana | AB28: =B28+beis!H27 -> 518,635 | AC28: 55,136 | AD28: =D28+beis!T27 -> 105,372 | AE28: 200,349 | AF28: 50,253 | AG28: 19,396 | AH28: =H28+beis!Z27 -> 680,330 | AI28: =I28+beis!E27 -> 12,946 | AJ28: 1,535 | AK28: =K28+beis!N27 -> 19,151 | AL28: =L28+beis!R27 -> 52,451 | AM28: 566 | AN28: 575 | AO28: 348 | AP28: 1,670 | AQ28: 1,597 | AR28: 0.13 | AS28: 0.94 | AT28: 0.04 | AU28: 3.01 | AV28: 3.47 | AX28: Montana | AY28: =B28-'ptfire-rx'!B27-'ptfire-wild'!B27 -> 228,925 | AZ28: =C28-'ptfire-rx'!C27-'ptfire-wild'!C27 -> 52,089 | BA28: =D28-'ptfire-rx'!D27-'ptfire-wild'!D27 -> 83,600 | BB28: =E28-'ptfire-rx'!E27-'ptfire-wild'!E27 -> 181,584 | BC28: =F28-'ptfire-rx'!F27-'ptfire-wild'!F27 -> 34,350 | BD28: =G28-'ptfire-rx'!G27-'ptfire-wild'!G27 -> 18,047 | BE28: =H28-'ptfire-rx'!H27-'ptfire-wild'!H27 -> 79,733 | BF28: =I28-'ptfire-rx'!AO27-'ptfire-wild'!AL27 -> 521 | BG28: =J28-'ptfire-rx'!AS27-'ptfire-wild'!AP27 -> 1,122 | BH28: =K28-'ptfire-rx'!BE27-'ptfire-wild'!BA27 -> 1,230 | BI28: =L28-'ptfire-rx'!BP27-'ptfire-wild'!BL27 -> 343 | BJ28: =M28-'ptfire-rx'!BR27-'ptfire-wild'!BN27 -> 118 | BK28: =N28-'ptfire-rx'!AL27-'ptfire-wild'!AJ27 -> 104 | BL28: =O28-'ptfire-rx'!AU27-'ptfire-wild'!AR27 -> 99 | BM28: 1,670 | BN28: 1,597 | BO28: 0.13 | BP28: 0.94 | BQ28: 0.04 | BR28: 3.01 | BS28: 3.47
A29: Nebraska | B29: =rail!B28+nonpt!B28+ptagfire!B28+nonroad!B28+'onroad all'!AG28+cmv_c1c2!B28+'ptfire-rx'!B28+ptegu!B28+ptnonipm!B28+pt_oilgas!B28+np_oilgas!B28+rwc!B28+cmv_c3!B28+airports!B28+'ptfire-wild'!B28+np_solvents!B28 -> 379,179 | C29: =rail!C28+nonpt!C28+ptagfire!C28++nonroad!C28+'onroad all'!BZ28+cmv_c1c2!BE28+'ptfire-rx'!C28+ptegu!C28+ptnonipm!C28+pt_oilgas!C28+np_oilgas!C28+rwc!C28+cmv_c3!BE28+livestock!B28+airports!C28+'ptfire-wild'!C28+fertilizer!B28+np_solvents!C28 -> 190,766 | D29: =rail!D28+nonpt!D28+ptagfire!D28++nonroad!D28+cmv_c1c2!D28+'ptfire-rx'!D28+ptegu!DW28+ptnonipm!D28+pt_oilgas!D28+np_oilgas!D28+rwc!D28+cmv_c3!D28+'onroad all'!CI28+airports!D28+'ptfire-wild'!D28+np_solvents!D28 -> 127,127 | E29: =rail!E28+nonpt!E28+ptagfire!E28++nonroad!E28+cmv_c1c2!E28+'ptfire-rx'!E28+ptegu!E28+ptnonipm!E28+pt_oilgas!E28+np_oilgas!E28+rwc!E28+cmv_c3!E28+afdust!BA28+'onroad all'!DE28+'onroad all'!DD28+airports!E28+'ptfire-wild'!E28+np_solvents!E28 -> 270,070 | F29: =rail!F28+nonpt!F28+ptagfire!F28++nonroad!F28+cmv_c1c2!F28+'ptfire-rx'!F28+ptegu!F28+ptnonipm!F28+pt_oilgas!F28+np_oilgas!F28+rwc!F28+cmv_c3!F28+afdust!BB28+'onroad all'!DD28+airports!F28+'ptfire-wild'!F28+np_solvents!F28 -> 52,986 | G29: =rail!G28+nonpt!G28+ptagfire!G28++nonroad!G28+'onroad all'!DU28+cmv_c1c2!G28+'ptfire-rx'!G28+ptegu!FH28+ptnonipm!G28+pt_oilgas!G28+np_oilgas!G28+rwc!G28+cmv_c3!G28+airports!G28+'ptfire-wild'!G28+np_solvents!G28 -> 52,512 | H29: =rail!H28+nonpt!H28+ptagfire!H28++nonroad!H28+'onroad all'!EI28+cmv_c1c2!H28+'ptfire-rx'!H28+ptegu!H28+ptnonipm!H28+pt_oilgas!H28+np_oilgas!H28+rwc!H28+cmv_c3!H28+livestock!C28+airports!H28+'ptfire-wild'!H28+np_solvents!H28 -> 93,850 | I29: =rail!AO28+nonpt!BN28+ptagfire!AJ28+nonroad!AK28+'onroad all'!H28+cmv_c1c2!O28+'ptfire-rx'!AO28+ptegu!BM28+ptnonipm!BX28+pt_oilgas!BM28+np_oilgas!AU28+rwc!AH28+cmv_c3!O28+livestock!U28+airports!AJ28+'ptfire-wild'!AL28+np_solvents!AU28 -> 1,545 | J29: =rail!AU28+nonpt!BT28+ptagfire!AN28+nonroad!AP28+'onroad all'!P28+cmv_c1c2!T28+'ptfire-rx'!AS28+ptegu!BS28+ptnonipm!CD28+pt_oilgas!BS28+np_oilgas!BA28+rwc!AL28+cmv_c3!T28+livestock!X28+airports!AM28+'ptfire-wild'!AP28+np_solvents!AY28 -> 897 | K29: =rail!BR28+nonpt!CY28+ptagfire!AY28+nonroad!BH28+'onroad all'!BC28+cmv_c1c2!AO28+'ptfire-rx'!BE28+ptegu!CX28+ptnonipm!DP28+pt_oilgas!CW28+np_oilgas!BW28+rwc!AY28+cmv_c3!AP28+livestock!AH28+airports!BE28+'ptfire-wild'!BA28+np_solvents!BR28 -> 2,592 | L29: =rail!CF28+nonpt!DO28+ptagfire!BH28+nonroad!BT28+'onroad all'!BU28+cmv_c1c2!BC28+'ptfire-rx'!BP28+ptegu!DM28+ptnonipm!EH28+pt_oilgas!DM28+np_oilgas!CK28+rwc!BJ28+cmv_c3!BC28+livestock!AN28+airports!BN28+'ptfire-wild'!BL28+np_solvents!CF28 -> 1,927 | M29: =rail!CG28+nonpt!DQ28+nonroad!BU28+'onroad all'!BY28+cmv_c1c2!BD28+'ptfire-rx'!BR28+ptegu!DO28+ptnonipm!EJ28+pt_oilgas!DO28+np_oilgas!CL28+rwc!BK28+cmv_c3!BD28+airports!BO28+'ptfire-wild'!BN28+np_solvents!CG28+ptagfire!BJ28 -> 369 | N29: =rail!AN28+nonpt!BK28+nonroad!AJ28+'onroad all'!G28+cmv_c1c2!M28+'ptfire-rx'!AL28+ptegu!BK28+ptnonipm!BU28+pt_oilgas!BK28+np_oilgas!AT28+rwc!AG28+airports!AH28+cmv_c3!M28+'ptfire-wild'!AJ28+ptagfire!AH28 -> 318 | O29: =rail!AY28+nonpt!O28+ptagfire!AP28+nonroad!AR28+'onroad all'!Z28+cmv_c1c2!V28+'ptfire-rx'!AU28+ptegu!BX28+ptnonipm!CI28+pt_oilgas!BX28+np_oilgas!BD28+rwc!AN28+airports!AO28+cmv_c3!V28+'ptfire-wild'!AR28+np_solvents!AE28 -> 221 | P29: =rail!AD28+nonroad!AD28+'onroad all'!AK28+'onroad all'!AL28+'onroad all'!AM28+'onroad all'!AN28+'onroad all'!AO28+'onroad all'!AP28+ptnonipm!BI28+SUM(airports!AR28:AW28)+SUM(cmv_c1c2!AC28:AH28)+SUM(cmv_c3!AC28:AH28) -> 2,822 | Q29: =rail!AE28+nonroad!AE28+'onroad all'!AL28+'onroad all'!AM28+'onroad all'!AN28+'onroad all'!AO28+'onroad all'!AP28+ptnonipm!BJ28+SUM(airports!AS28:AW28)+SUM(cmv_c1c2!AD28:AH28)+SUM(cmv_c3!AD28:AH28) -> 2,710 | R29: =rail!P28+nonpt!T28+nonroad!R28+'onroad all'!AC28+ptegu!T28+ptnonipm!T28+pt_oilgas!S28+np_oilgas!Q28+SUM(cmv_c1c2!Z28:AA28)+SUM(cmv_c3!Z28:AA28) -> 5.16 | S29: =rail!K28+nonpt!L28+nonroad!U28+'onroad all'!M28+ptegu!L28+ptnonipm!L28+pt_oilgas!K28+np_oilgas!K28+SUM(cmv_c1c2!R28:S28)+SUM(cmv_c3!R28:S28) -> 1.84 | T29: =rail!O28+nonpt!P28+ptegu!P28+ptnonipm!P28+pt_oilgas!O28+np_oilgas!N28+rwc!M28+SUM(cmv_c1c2!W28:X28)+SUM(cmv_c3!W28:X28) -> 0.22 | U29: =rail!V28+nonpt!AI28+nonroad!T28+'onroad all'!CB28+ptegu!AH28+ptnonipm!AL28+pt_oilgas!AG28+np_oilgas!AA28+rwc!R28+SUM(cmv_c1c2!BF28:BG28)+SUM(cmv_c3!BF28:BG28) -> 5.86 | V29: =rail!T28+nonpt!AE28+nonroad!S28+'onroad all'!BS28+'onroad all'!BT28+ptegu!AD28+ptnonipm!AH28+pt_oilgas!AC28+np_oilgas!W28+rwc!P28+SUM(cmv_c1c2!BA28:BB28)+SUM(cmv_c3!BA28:BB28) -> 24.65 | W29: =nonpt!CW28+ptegu!BB28+ptnonipm!Z28 -> 1.24 | X29: X | AA29: Nebraska | AB29: =B29+beis!H28 -> 431,484 | AC29: 190,766 | AD29: =D29+beis!T28 -> 160,302 | AE29: 270,070 | AF29: 52,986 | AG29: 52,512 | AH29: =H29+beis!Z28 -> 247,614 | AI29: =I29+beis!E28 -> 7,025 | AJ29: 897 | AK29: =K29+beis!N28 -> 10,064 | AL29: =L29+beis!R28 -> 32,690 | AM29: 369 | AN29: 318 | AO29: 221 | AP29: 2,822 | AQ29: 2,710 | AR29: 5.16 | AS29: 1.84 | AT29: 0.22 | AU29: 5.86 | AV29: 24.65 | AX29: Nebraska | AY29: =B29-'ptfire-rx'!B28-'ptfire-wild'!B28 -> 311,306 | AZ29: =C29-'ptfire-rx'!C28-'ptfire-wild'!C28 -> 189,649 | BA29: =D29-'ptfire-rx'!D28-'ptfire-wild'!D28 -> 126,042 | BB29: =E29-'ptfire-rx'!E28-'ptfire-wild'!E28 -> 263,023 | BC29: =F29-'ptfire-rx'!F28-'ptfire-wild'!F28 -> 47,014 | BD29: =G29-'ptfire-rx'!G28-'ptfire-wild'!G28 -> 51,953 | BE29: =H29-'ptfire-rx'!H28-'ptfire-wild'!H28 -> 77,792 | BF29: =I29-'ptfire-rx'!AO28-'ptfire-wild'!AL28 -> 907 | BG29: =J29-'ptfire-rx'!AS28-'ptfire-wild'!AP28 -> 726 | BH29: =K29-'ptfire-rx'!BE28-'ptfire-wild'!BA28 -> 1,316 | BI29: =L29-'ptfire-rx'!BP28-'ptfire-wild'!BL28 -> 492 | BJ29: =M29-'ptfire-rx'!BR28-'ptfire-wild'!BN28 -> 184 | BK29: =N29-'ptfire-rx'!AL28-'ptfire-wild'!AJ28 -> 123 | BL29: =O29-'ptfire-rx'!AU28-'ptfire-wild'!AR28 -> 118 | BM29: 2,822 | BN29: 2,710 | BO29: 5.16 | BP29: 1.84 | BQ29: 0.22 | BR29: 5.86 | BS29: 24.65
A30: Nevada | B30: =rail!B29+nonpt!B29+ptagfire!B29+nonroad!B29+'onroad all'!AG29+cmv_c1c2!B29+'ptfire-rx'!B29+ptegu!B29+ptnonipm!B29+pt_oilgas!B29+np_oilgas!B29+rwc!B29+cmv_c3!B29+airports!B29+'ptfire-wild'!B29+np_solvents!B29 -> 330,102 | C30: =rail!C29+nonpt!C29+ptagfire!C29++nonroad!C29+'onroad all'!BZ29+cmv_c1c2!BE29+'ptfire-rx'!C29+ptegu!C29+ptnonipm!C29+pt_oilgas!C29+np_oilgas!C29+rwc!C29+cmv_c3!BE29+livestock!B29+airports!C29+'ptfire-wild'!C29+fertilizer!B29+np_solvents!C29 -> 31,484 | D30: =rail!D29+nonpt!D29+ptagfire!D29++nonroad!D29+cmv_c1c2!D29+'ptfire-rx'!D29+ptegu!DW29+ptnonipm!D29+pt_oilgas!D29+np_oilgas!D29+rwc!D29+cmv_c3!D29+'onroad all'!CI29+airports!D29+'ptfire-wild'!D29+np_solvents!D29 -> 63,356 | E30: =rail!E29+nonpt!E29+ptagfire!E29++nonroad!E29+cmv_c1c2!E29+'ptfire-rx'!E29+ptegu!E29+ptnonipm!E29+pt_oilgas!E29+np_oilgas!E29+rwc!E29+cmv_c3!E29+afdust!BA29+'onroad all'!DE29+'onroad all'!DD29+airports!E29+'ptfire-wild'!E29+np_solvents!E29 -> 98,017 | F30: =rail!F29+nonpt!F29+ptagfire!F29++nonroad!F29+cmv_c1c2!F29+'ptfire-rx'!F29+ptegu!F29+ptnonipm!F29+pt_oilgas!F29+np_oilgas!F29+rwc!F29+cmv_c3!F29+afdust!BB29+'onroad all'!DD29+airports!F29+'ptfire-wild'!F29+np_solvents!F29 -> 22,239 | G30: =rail!G29+nonpt!G29+ptagfire!G29++nonroad!G29+'onroad all'!DU29+cmv_c1c2!G29+'ptfire-rx'!G29+ptegu!FH29+ptnonipm!G29+pt_oilgas!G29+np_oilgas!G29+rwc!G29+cmv_c3!G29+airports!G29+'ptfire-wild'!G29+np_solvents!G29 -> 6,690 | H30: =rail!H29+nonpt!H29+ptagfire!H29++nonroad!H29+'onroad all'!EI29+cmv_c1c2!H29+'ptfire-rx'!H29+ptegu!H29+ptnonipm!H29+pt_oilgas!H29+np_oilgas!H29+rwc!H29+cmv_c3!H29+livestock!C29+airports!H29+'ptfire-wild'!H29+np_solvents!H29 -> 65,019 | I30: =rail!AO29+nonpt!BN29+ptagfire!AJ29+nonroad!AK29+'onroad all'!H29+cmv_c1c2!O29+'ptfire-rx'!AO29+ptegu!BM29+ptnonipm!BX29+pt_oilgas!BM29+np_oilgas!AU29+rwc!AH29+cmv_c3!O29+livestock!U29+airports!AJ29+'ptfire-wild'!AL29+np_solvents!AU29 -> 919 | J30: =rail!AU29+nonpt!BT29+ptagfire!AN29+nonroad!AP29+'onroad all'!P29+cmv_c1c2!T29+'ptfire-rx'!AS29+ptegu!BS29+ptnonipm!CD29+pt_oilgas!BS29+np_oilgas!BA29+rwc!AL29+cmv_c3!T29+livestock!X29+airports!AM29+'ptfire-wild'!AP29+np_solvents!AY29 -> 734 | K30: =rail!BR29+nonpt!CY29+ptagfire!AY29+nonroad!BH29+'onroad all'!BC29+cmv_c1c2!AO29+'ptfire-rx'!BE29+ptegu!CX29+ptnonipm!DP29+pt_oilgas!CW29+np_oilgas!BW29+rwc!AY29+cmv_c3!AP29+livestock!AH29+airports!BE29+'ptfire-wild'!BA29+np_solvents!BR29 -> 1,380 | L30: =rail!CF29+nonpt!DO29+ptagfire!BH29+nonroad!BT29+'onroad all'!BU29+cmv_c1c2!BC29+'ptfire-rx'!BP29+ptegu!DM29+ptnonipm!EH29+pt_oilgas!DM29+np_oilgas!CK29+rwc!BJ29+cmv_c3!BC29+livestock!AN29+airports!BN29+'ptfire-wild'!BL29+np_solvents!CF29 -> 824 | M30: =rail!CG29+nonpt!DQ29+nonroad!BU29+'onroad all'!BY29+cmv_c1c2!BD29+'ptfire-rx'!BR29+ptegu!DO29+ptnonipm!EJ29+pt_oilgas!DO29+np_oilgas!CL29+rwc!BK29+cmv_c3!BD29+airports!BO29+'ptfire-wild'!BN29+np_solvents!CG29+ptagfire!BJ29 -> 200 | N30: =rail!AN29+nonpt!BK29+nonroad!AJ29+'onroad all'!G29+cmv_c1c2!M29+'ptfire-rx'!AL29+ptegu!BK29+ptnonipm!BU29+pt_oilgas!BK29+np_oilgas!AT29+rwc!AG29+airports!AH29+cmv_c3!M29+'ptfire-wild'!AJ29+ptagfire!AH29 -> 124 | O30: =rail!AY29+nonpt!O29+ptagfire!AP29+nonroad!AR29+'onroad all'!Z29+cmv_c1c2!V29+'ptfire-rx'!AU29+ptegu!BX29+ptnonipm!CI29+pt_oilgas!BX29+np_oilgas!BD29+rwc!AN29+airports!AO29+cmv_c3!V29+'ptfire-wild'!AR29+np_solvents!AE29 -> 150 | P30: =rail!AD29+nonroad!AD29+'onroad all'!AK29+'onroad all'!AL29+'onroad all'!AM29+'onroad all'!AN29+'onroad all'!AO29+'onroad all'!AP29+ptnonipm!BI29+SUM(airports!AR29:AW29)+SUM(cmv_c1c2!AC29:AH29)+SUM(cmv_c3!AC29:AH29) -> 1,463 | Q30: =rail!AE29+nonroad!AE29+'onroad all'!AL29+'onroad all'!AM29+'onroad all'!AN29+'onroad all'!AO29+'onroad all'!AP29+ptnonipm!BJ29+SUM(airports!AS29:AW29)+SUM(cmv_c1c2!AD29:AH29)+SUM(cmv_c3!AD29:AH29) -> 1,398 | R30: =rail!P29+nonpt!T29+nonroad!R29+'onroad all'!AC29+ptegu!T29+ptnonipm!T29+pt_oilgas!S29+np_oilgas!Q29+SUM(cmv_c1c2!Z29:AA29)+SUM(cmv_c3!Z29:AA29) -> 1.92 | S30: =rail!K29+nonpt!L29+nonroad!U29+'onroad all'!M29+ptegu!L29+ptnonipm!L29+pt_oilgas!K29+np_oilgas!K29+SUM(cmv_c1c2!R29:S29)+SUM(cmv_c3!R29:S29) -> 4.30 | T30: =rail!O29+nonpt!P29+ptegu!P29+ptnonipm!P29+pt_oilgas!O29+np_oilgas!N29+rwc!M29+SUM(cmv_c1c2!W29:X29)+SUM(cmv_c3!W29:X29) -> 0.10 | U30: =rail!V29+nonpt!AI29+nonroad!T29+'onroad all'!CB29+ptegu!AH29+ptnonipm!AL29+pt_oilgas!AG29+np_oilgas!AA29+rwc!R29+SUM(cmv_c1c2!BF29:BG29)+SUM(cmv_c3!BF29:BG29) -> 2.10 | V30: =rail!T29+nonpt!AE29+nonroad!S29+'onroad all'!BS29+'onroad all'!BT29+ptegu!AD29+ptnonipm!AH29+pt_oilgas!AC29+np_oilgas!W29+rwc!P29+SUM(cmv_c1c2!BA29:BB29)+SUM(cmv_c3!BA29:BB29) -> 41.96 | W30: =nonpt!CW29+ptegu!BB29+ptnonipm!Z29 -> 0.04 | AA30: Nevada | AB30: =B30+beis!H29 -> 409,218 | AC30: 31,484 | AD30: =D30+beis!T29 -> 76,901 | AE30: 98,017 | AF30: 22,239 | AG30: 6,690 | AH30: =H30+beis!Z29 -> 375,408 | AI30: =I30+beis!E29 -> 9,208 | AJ30: 734 | AK30: =K30+beis!N29 -> 12,683 | AL30: =L30+beis!R29 -> 51,589 | AM30: 200 | AN30: 124 | AO30: 150 | AP30: 1,463 | AQ30: 1,398 | AR30: 1.92 | AS30: 4.30 | AT30: 0.10 | AU30: 2.10 | AV30: 41.96 | AX30: Nevada | AY30: =B30-'ptfire-rx'!B29-'ptfire-wild'!B29 -> 311,309 | AZ30: =C30-'ptfire-rx'!C29-'ptfire-wild'!C29 -> 31,171 | BA30: =D30-'ptfire-rx'!D29-'ptfire-wild'!D29 -> 62,882 | BB30: =E30-'ptfire-rx'!E29-'ptfire-wild'!E29 -> 95,911 | BC30: =F30-'ptfire-rx'!F29-'ptfire-wild'!F29 -> 20,454 | BD30: =G30-'ptfire-rx'!G29-'ptfire-wild'!G29 -> 6,482 | BE30: =H30-'ptfire-rx'!H29-'ptfire-wild'!H29 -> 60,525 | BF30: =I30-'ptfire-rx'!AO29-'ptfire-wild'!AL29 -> 741 | BG30: =J30-'ptfire-rx'!AS29-'ptfire-wild'!AP29 -> 686 | BH30: =K30-'ptfire-rx'!BE29-'ptfire-wild'!BA29 -> 1,114 | BI30: =L30-'ptfire-rx'!BP29-'ptfire-wild'!BL29 -> 580 | BJ30: =M30-'ptfire-rx'!BR29-'ptfire-wild'!BN29 -> 148 | BK30: =N30-'ptfire-rx'!AL29-'ptfire-wild'!AJ29 -> 70 | BL30: =O30-'ptfire-rx'!AU29-'ptfire-wild'!AR29 -> 121 | BM30: 1,463 | BN30: 1,398 | BO30: 1.92 | BP30: 4.30 | BQ30: 0.10 | BR30: 2.10 | BS30: 41.96
A31: New Hampshire | B31: =rail!B30+nonpt!B30+ptagfire!B30+nonroad!B30+'onroad all'!AG30+cmv_c1c2!B30+'ptfire-rx'!B30+ptegu!B30+ptnonipm!B30+pt_oilgas!B30+np_oilgas!B30+rwc!B30+cmv_c3!B30+airports!B30+'ptfire-wild'!B30+np_solvents!B30 -> 183,823 | C31: =rail!C30+nonpt!C30+ptagfire!C30++nonroad!C30+'onroad all'!BZ30+cmv_c1c2!BE30+'ptfire-rx'!C30+ptegu!C30+ptnonipm!C30+pt_oilgas!C30+np_oilgas!C30+rwc!C30+cmv_c3!BE30+livestock!B30+airports!C30+'ptfire-wild'!C30+fertilizer!B30+np_solvents!C30 -> 1,717 | D31: =rail!D30+nonpt!D30+ptagfire!D30++nonroad!D30+cmv_c1c2!D30+'ptfire-rx'!D30+ptegu!DW30+ptnonipm!D30+pt_oilgas!D30+np_oilgas!D30+rwc!D30+cmv_c3!D30+'onroad all'!CI30+airports!D30+'ptfire-wild'!D30+np_solvents!D30 -> 24,051 | E31: =rail!E30+nonpt!E30+ptagfire!E30++nonroad!E30+cmv_c1c2!E30+'ptfire-rx'!E30+ptegu!E30+ptnonipm!E30+pt_oilgas!E30+np_oilgas!E30+rwc!E30+cmv_c3!E30+afdust!BA30+'onroad all'!DE30+'onroad all'!DD30+airports!E30+'ptfire-wild'!E30+np_solvents!E30 -> 13,038 | F31: =rail!F30+nonpt!F30+ptagfire!F30++nonroad!F30+cmv_c1c2!F30+'ptfire-rx'!F30+ptegu!F30+ptnonipm!F30+pt_oilgas!F30+np_oilgas!F30+rwc!F30+cmv_c3!F30+afdust!BB30+'onroad all'!DD30+airports!F30+'ptfire-wild'!F30+np_solvents!F30 -> 9,267 | G31: =rail!G30+nonpt!G30+ptagfire!G30++nonroad!G30+'onroad all'!DU30+cmv_c1c2!G30+'ptfire-rx'!G30+ptegu!FH30+ptnonipm!G30+pt_oilgas!G30+np_oilgas!G30+rwc!G30+cmv_c3!G30+airports!G30+'ptfire-wild'!G30+np_solvents!G30 -> 5,833 | H31: =rail!H30+nonpt!H30+ptagfire!H30++nonroad!H30+'onroad all'!EI30+cmv_c1c2!H30+'ptfire-rx'!H30+ptegu!H30+ptnonipm!H30+pt_oilgas!H30+np_oilgas!H30+rwc!H30+cmv_c3!H30+livestock!C30+airports!H30+'ptfire-wild'!H30+np_solvents!H30 -> 30,880 | I31: =rail!AO30+nonpt!BN30+ptagfire!AJ30+nonroad!AK30+'onroad all'!H30+cmv_c1c2!O30+'ptfire-rx'!AO30+ptegu!BM30+ptnonipm!BX30+pt_oilgas!BM30+np_oilgas!AU30+rwc!AH30+cmv_c3!O30+livestock!U30+airports!AJ30+'ptfire-wild'!AL30+np_solvents!AU30 -> 247 | J31: =rail!AU30+nonpt!BT30+ptagfire!AN30+nonroad!AP30+'onroad all'!P30+cmv_c1c2!T30+'ptfire-rx'!AS30+ptegu!BS30+ptnonipm!CD30+pt_oilgas!BS30+np_oilgas!BA30+rwc!AL30+cmv_c3!T30+livestock!X30+airports!AM30+'ptfire-wild'!AP30+np_solvents!AY30 -> 575 | K31: =rail!BR30+nonpt!CY30+ptagfire!AY30+nonroad!BH30+'onroad all'!BC30+cmv_c1c2!AO30+'ptfire-rx'!BE30+ptegu!CX30+ptnonipm!DP30+pt_oilgas!CW30+np_oilgas!BW30+rwc!AY30+cmv_c3!AP30+livestock!AH30+airports!BE30+'ptfire-wild'!BA30+np_solvents!BR30 -> 522 | L31: =rail!CF30+nonpt!DO30+ptagfire!BH30+nonroad!BT30+'onroad all'!BU30+cmv_c1c2!BC30+'ptfire-rx'!BP30+ptegu!DM30+ptnonipm!EH30+pt_oilgas!DM30+np_oilgas!CK30+rwc!BJ30+cmv_c3!BC30+livestock!AN30+airports!BN30+'ptfire-wild'!BL30+np_solvents!CF30 -> 241 | M31: =rail!CG30+nonpt!DQ30+nonroad!BU30+'onroad all'!BY30+cmv_c1c2!BD30+'ptfire-rx'!BR30+ptegu!DO30+ptnonipm!EJ30+pt_oilgas!DO30+np_oilgas!CL30+rwc!BK30+cmv_c3!BD30+airports!BO30+'ptfire-wild'!BN30+np_solvents!CG30+ptagfire!BJ30 -> 90 | N31: =rail!AN30+nonpt!BK30+nonroad!AJ30+'onroad all'!G30+cmv_c1c2!M30+'ptfire-rx'!AL30+ptegu!BK30+ptnonipm!BU30+pt_oilgas!BK30+np_oilgas!AT30+rwc!AG30+airports!AH30+cmv_c3!M30+'ptfire-wild'!AJ30+ptagfire!AH30 -> 30 | O31: =rail!AY30+nonpt!O30+ptagfire!AP30+nonroad!AR30+'onroad all'!Z30+cmv_c1c2!V30+'ptfire-rx'!AU30+ptegu!BX30+ptnonipm!CI30+pt_oilgas!BX30+np_oilgas!BD30+rwc!AN30+airports!AO30+cmv_c3!V30+'ptfire-wild'!AR30+np_solvents!AE30 -> 80 | P31: =rail!AD30+nonroad!AD30+'onroad all'!AK30+'onroad all'!AL30+'onroad all'!AM30+'onroad all'!AN30+'onroad all'!AO30+'onroad all'!AP30+ptnonipm!BI30+SUM(airports!AR30:AW30)+SUM(cmv_c1c2!AC30:AH30)+SUM(cmv_c3!AC30:AH30) -> 312 | Q31: =rail!AE30+nonroad!AE30+'onroad all'!AL30+'onroad all'!AM30+'onroad all'!AN30+'onroad all'!AO30+'onroad all'!AP30+ptnonipm!BJ30+SUM(airports!AS30:AW30)+SUM(cmv_c1c2!AD30:AH30)+SUM(cmv_c3!AD30:AH30) -> 295 | R31: =rail!P30+nonpt!T30+nonroad!R30+'onroad all'!AC30+ptegu!T30+ptnonipm!T30+pt_oilgas!S30+np_oilgas!Q30+SUM(cmv_c1c2!Z30:AA30)+SUM(cmv_c3!Z30:AA30) -> 0.08 | S31: =rail!K30+nonpt!L30+nonroad!U30+'onroad all'!M30+ptegu!L30+ptnonipm!L30+pt_oilgas!K30+np_oilgas!K30+SUM(cmv_c1c2!R30:S30)+SUM(cmv_c3!R30:S30) -> 0.80 | T31: =rail!O30+nonpt!P30+ptegu!P30+ptnonipm!P30+pt_oilgas!O30+np_oilgas!N30+rwc!M30+SUM(cmv_c1c2!W30:X30)+SUM(cmv_c3!W30:X30) -> 0.51 | U31: =rail!V30+nonpt!AI30+nonroad!T30+'onroad all'!CB30+ptegu!AH30+ptnonipm!AL30+pt_oilgas!AG30+np_oilgas!AA30+rwc!R30+SUM(cmv_c1c2!BF30:BG30)+SUM(cmv_c3!BF30:BG30) -> 1.11 | V31: =rail!T30+nonpt!AE30+nonroad!S30+'onroad all'!BS30+'onroad all'!BT30+ptegu!AD30+ptnonipm!AH30+pt_oilgas!AC30+np_oilgas!W30+rwc!P30+SUM(cmv_c1c2!BA30:BB30)+SUM(cmv_c3!BA30:BB30) -> 7.58 | W31: =nonpt!CW30+ptegu!BB30+ptnonipm!Z30 -> 0.01 | X31: X | AA31: New Hampshire | AB31: =B31+beis!H30 -> 196,834 | AC31: 1,717 | AD31: =D31+beis!T30 -> 24,633 | AE31: 13,038 | AF31: 9,267 | AG31: 5,833 | AH31: =H31+beis!Z30 -> 117,208 | AI31: =I31+beis!E30 -> 1,608 | AJ31: 575 | AK31: =K31+beis!N30 -> 2,379 | AL31: =L31+beis!R30 -> 5,414 | AM31: 90 | AN31: 30 | AO31: 80 | AP31: 312 | AQ31: 295 | AR31: 0.08 | AS31: 0.80 | AT31: 0.51 | AU31: 1.11 | AV31: 7.58 | AX31: New Hampshire | AY31: =B31-'ptfire-rx'!B30-'ptfire-wild'!B30 -> 183,113 | AZ31: =C31-'ptfire-rx'!C30-'ptfire-wild'!C30 -> 1,706 | BA31: =D31-'ptfire-rx'!D30-'ptfire-wild'!D30 -> 24,040 | BB31: =E31-'ptfire-rx'!E30-'ptfire-wild'!E30 -> 12,964 | BC31: =F31-'ptfire-rx'!F30-'ptfire-wild'!F30 -> 9,204 | BD31: =G31-'ptfire-rx'!G30-'ptfire-wild'!G30 -> 5,827 | BE31: =H31-'ptfire-rx'!H30-'ptfire-wild'!H30 -> 30,712 | BF31: =I31-'ptfire-rx'!AO30-'ptfire-wild'!AL30 -> 243 | BG31: =J31-'ptfire-rx'!AS30-'ptfire-wild'!AP30 -> 573 | BH31: =K31-'ptfire-rx'!BE30-'ptfire-wild'!BA30 -> 513 | BI31: =L31-'ptfire-rx'!BP30-'ptfire-wild'!BL30 -> 235 | BJ31: =M31-'ptfire-rx'!BR30-'ptfire-wild'!BN30 -> 89 | BK31: =N31-'ptfire-rx'!AL30-'ptfire-wild'!AJ30 -> 28 | BL31: =O31-'ptfire-rx'!AU30-'ptfire-wild'!AR30 -> 79 | BM31: 312 | BN31: 295 | BO31: 0.08 | BP31: 0.80 | BQ31: 0.51 | BR31: 1.11 | BS31: 7.58
A32: New Jersey | B32: =rail!B31+nonpt!B31+ptagfire!B31+nonroad!B31+'onroad all'!AG31+cmv_c1c2!B31+'ptfire-rx'!B31+ptegu!B31+ptnonipm!B31+pt_oilgas!B31+np_oilgas!B31+rwc!B31+cmv_c3!B31+airports!B31+'ptfire-wild'!B31+np_solvents!B31 -> 716,751 | C32: =rail!C31+nonpt!C31+ptagfire!C31++nonroad!C31+'onroad all'!BZ31+cmv_c1c2!BE31+'ptfire-rx'!C31+ptegu!C31+ptnonipm!C31+pt_oilgas!C31+np_oilgas!C31+rwc!C31+cmv_c3!BE31+livestock!B31+airports!C31+'ptfire-wild'!C31+fertilizer!B31+np_solvents!C31 -> 6,590 | D32: =rail!D31+nonpt!D31+ptagfire!D31++nonroad!D31+cmv_c1c2!D31+'ptfire-rx'!D31+ptegu!DW31+ptnonipm!D31+pt_oilgas!D31+np_oilgas!D31+rwc!D31+cmv_c3!D31+'onroad all'!CI31+airports!D31+'ptfire-wild'!D31+np_solvents!D31 -> 114,701 | E32: =rail!E31+nonpt!E31+ptagfire!E31++nonroad!E31+cmv_c1c2!E31+'ptfire-rx'!E31+ptegu!E31+ptnonipm!E31+pt_oilgas!E31+np_oilgas!E31+rwc!E31+cmv_c3!E31+afdust!BA31+'onroad all'!DE31+'onroad all'!DD31+airports!E31+'ptfire-wild'!E31+np_solvents!E31 -> 35,683 | F32: =rail!F31+nonpt!F31+ptagfire!F31++nonroad!F31+cmv_c1c2!F31+'ptfire-rx'!F31+ptegu!F31+ptnonipm!F31+pt_oilgas!F31+np_oilgas!F31+rwc!F31+cmv_c3!F31+afdust!BB31+'onroad all'!DD31+airports!F31+'ptfire-wild'!F31+np_solvents!F31 -> 22,160 | G32: =rail!G31+nonpt!G31+ptagfire!G31++nonroad!G31+'onroad all'!DU31+cmv_c1c2!G31+'ptfire-rx'!G31+ptegu!FH31+ptnonipm!G31+pt_oilgas!G31+np_oilgas!G31+rwc!G31+cmv_c3!G31+airports!G31+'ptfire-wild'!G31+np_solvents!G31 -> 3,858 | H32: =rail!H31+nonpt!H31+ptagfire!H31++nonroad!H31+'onroad all'!EI31+cmv_c1c2!H31+'ptfire-rx'!H31+ptegu!H31+ptnonipm!H31+pt_oilgas!H31+np_oilgas!H31+rwc!H31+cmv_c3!H31+livestock!C31+airports!H31+'ptfire-wild'!H31+np_solvents!H31 -> 146,865 | I32: =rail!AO31+nonpt!BN31+ptagfire!AJ31+nonroad!AK31+'onroad all'!H31+cmv_c1c2!O31+'ptfire-rx'!AO31+ptegu!BM31+ptnonipm!BX31+pt_oilgas!BM31+np_oilgas!AU31+rwc!AH31+cmv_c3!O31+livestock!U31+airports!AJ31+'ptfire-wild'!AL31+np_solvents!AU31 -> 934 | J32: =rail!AU31+nonpt!BT31+ptagfire!AN31+nonroad!AP31+'onroad all'!P31+cmv_c1c2!T31+'ptfire-rx'!AS31+ptegu!BS31+ptnonipm!CD31+pt_oilgas!BS31+np_oilgas!BA31+rwc!AL31+cmv_c3!T31+livestock!X31+airports!AM31+'ptfire-wild'!AP31+np_solvents!AY31 -> 1,576 | K32: =rail!BR31+nonpt!CY31+ptagfire!AY31+nonroad!BH31+'onroad all'!BC31+cmv_c1c2!AO31+'ptfire-rx'!BE31+ptegu!CX31+ptnonipm!DP31+pt_oilgas!CW31+np_oilgas!BW31+rwc!AY31+cmv_c3!AP31+livestock!AH31+airports!BE31+'ptfire-wild'!BA31+np_solvents!BR31 -> 1,971 | L32: =rail!CF31+nonpt!DO31+ptagfire!BH31+nonroad!BT31+'onroad all'!BU31+cmv_c1c2!BC31+'ptfire-rx'!BP31+ptegu!DM31+ptnonipm!EH31+pt_oilgas!DM31+np_oilgas!CK31+rwc!BJ31+cmv_c3!BC31+livestock!AN31+airports!BN31+'ptfire-wild'!BL31+np_solvents!CF31 -> 1,610 | M32: =rail!CG31+nonpt!DQ31+nonroad!BU31+'onroad all'!BY31+cmv_c1c2!BD31+'ptfire-rx'!BR31+ptegu!DO31+ptnonipm!EJ31+pt_oilgas!DO31+np_oilgas!CL31+rwc!BK31+cmv_c3!BD31+airports!BO31+'ptfire-wild'!BN31+np_solvents!CG31+ptagfire!BJ31 -> 273 | N32: =rail!AN31+nonpt!BK31+nonroad!AJ31+'onroad all'!G31+cmv_c1c2!M31+'ptfire-rx'!AL31+ptegu!BK31+ptnonipm!BU31+pt_oilgas!BK31+np_oilgas!AT31+rwc!AG31+airports!AH31+cmv_c3!M31+'ptfire-wild'!AJ31+ptagfire!AH31 -> 176 | O32: =rail!AY31+nonpt!O31+ptagfire!AP31+nonroad!AR31+'onroad all'!Z31+cmv_c1c2!V31+'ptfire-rx'!AU31+ptegu!BX31+ptnonipm!CI31+pt_oilgas!BX31+np_oilgas!BD31+rwc!AN31+airports!AO31+cmv_c3!V31+'ptfire-wild'!AR31+np_solvents!AE31 -> 277 | P32: =rail!AD31+nonroad!AD31+'onroad all'!AK31+'onroad all'!AL31+'onroad all'!AM31+'onroad all'!AN31+'onroad all'!AO31+'onroad all'!AP31+ptnonipm!BI31+SUM(airports!AR31:AW31)+SUM(cmv_c1c2!AC31:AH31)+SUM(cmv_c3!AC31:AH31) -> 2,174 | Q32: =rail!AE31+nonroad!AE31+'onroad all'!AL31+'onroad all'!AM31+'onroad all'!AN31+'onroad all'!AO31+'onroad all'!AP31+ptnonipm!BJ31+SUM(airports!AS31:AW31)+SUM(cmv_c1c2!AD31:AH31)+SUM(cmv_c3!AD31:AH31) -> 2,057 | R32: =rail!P31+nonpt!T31+nonroad!R31+'onroad all'!AC31+ptegu!T31+ptnonipm!T31+pt_oilgas!S31+np_oilgas!Q31+SUM(cmv_c1c2!Z31:AA31)+SUM(cmv_c3!Z31:AA31) -> 0.14 | S32: =rail!K31+nonpt!L31+nonroad!U31+'onroad all'!M31+ptegu!L31+ptnonipm!L31+pt_oilgas!K31+np_oilgas!K31+SUM(cmv_c1c2!R31:S31)+SUM(cmv_c3!R31:S31) -> 0.49 | T32: =rail!O31+nonpt!P31+ptegu!P31+ptnonipm!P31+pt_oilgas!O31+np_oilgas!N31+rwc!M31+SUM(cmv_c1c2!W31:X31)+SUM(cmv_c3!W31:X31) -> 0.21 | U32: =rail!V31+nonpt!AI31+nonroad!T31+'onroad all'!CB31+ptegu!AH31+ptnonipm!AL31+pt_oilgas!AG31+np_oilgas!AA31+rwc!R31+SUM(cmv_c1c2!BF31:BG31)+SUM(cmv_c3!BF31:BG31) -> 1.87 | V32: =rail!T31+nonpt!AE31+nonroad!S31+'onroad all'!BS31+'onroad all'!BT31+ptegu!AD31+ptnonipm!AH31+pt_oilgas!AC31+np_oilgas!W31+rwc!P31+SUM(cmv_c1c2!BA31:BB31)+SUM(cmv_c3!BA31:BB31) -> 2.37 | W32: =nonpt!CW31+ptegu!BB31+ptnonipm!Z31 -> 1.54 | X32: X | AA32: New Jersey | AB32: =B32+beis!H31 -> 727,184 | AC32: 6,590 | AD32: =D32+beis!T31 -> 116,765 | AE32: 35,683 | AF32: 22,160 | AG32: 3,858 | AH32: =H32+beis!Z31 -> 242,205 | AI32: =I32+beis!E31 -> 2,026 | AJ32: 1,576 | AK32: =K32+beis!N31 -> 3,460 | AL32: =L32+beis!R31 -> 6,832 | AM32: 273 | AN32: 176 | AO32: 277 | AP32: 2,174 | AQ32: 2,057 | AR32: 0.14 | AS32: 0.49 | AT32: 0.21 | AU32: 1.87 | AV32: 2.37 | AX32: New Jersey | AY32: =B32-'ptfire-rx'!B31-'ptfire-wild'!B31 -> 684,346 | AZ32: =C32-'ptfire-rx'!C31-'ptfire-wild'!C31 -> 6,059 | BA32: =D32-'ptfire-rx'!D31-'ptfire-wild'!D31 -> 114,315 | BB32: =E32-'ptfire-rx'!E31-'ptfire-wild'!E31 -> 32,437 | BC32: =F32-'ptfire-rx'!F31-'ptfire-wild'!F31 -> 19,409 | BD32: =G32-'ptfire-rx'!G31-'ptfire-wild'!G31 -> 3,631 | BE32: =H32-'ptfire-rx'!H31-'ptfire-wild'!H31 -> 139,236 | BF32: =I32-'ptfire-rx'!AO31-'ptfire-wild'!AL31 -> 748 | BG32: =J32-'ptfire-rx'!AS31-'ptfire-wild'!AP31 -> 1,478 | BH32: =K32-'ptfire-rx'!BE31-'ptfire-wild'!BA31 -> 1,546 | BI32: =L32-'ptfire-rx'!BP31-'ptfire-wild'!BL31 -> 1,343 | BJ32: =M32-'ptfire-rx'!BR31-'ptfire-wild'!BN31 -> 218 | BK32: =N32-'ptfire-rx'!AL31-'ptfire-wild'!AJ31 -> 105 | BL32: =O32-'ptfire-rx'!AU31-'ptfire-wild'!AR31 -> 240 | BM32: 2,174 | BN32: 2,057 | BO32: 0.14 | BP32: 0.49 | BQ32: 0.21 | BR32: 1.87 | BS32: 2.37
A33: New Mexico | B33: =rail!B32+nonpt!B32+ptagfire!B32+nonroad!B32+'onroad all'!AG32+cmv_c1c2!B32+'ptfire-rx'!B32+ptegu!B32+ptnonipm!B32+pt_oilgas!B32+np_oilgas!B32+rwc!B32+cmv_c3!B32+airports!B32+'ptfire-wild'!B32+np_solvents!B32 -> 477,193 | C33: =rail!C32+nonpt!C32+ptagfire!C32++nonroad!C32+'onroad all'!BZ32+cmv_c1c2!BE32+'ptfire-rx'!C32+ptegu!C32+ptnonipm!C32+pt_oilgas!C32+np_oilgas!C32+rwc!C32+cmv_c3!BE32+livestock!B32+airports!C32+'ptfire-wild'!C32+fertilizer!B32+np_solvents!C32 -> 40,986 | D33: =rail!D32+nonpt!D32+ptagfire!D32++nonroad!D32+cmv_c1c2!D32+'ptfire-rx'!D32+ptegu!DW32+ptnonipm!D32+pt_oilgas!D32+np_oilgas!D32+rwc!D32+cmv_c3!D32+'onroad all'!CI32+airports!D32+'ptfire-wild'!D32+np_solvents!D32 -> 152,733 | E33: =rail!E32+nonpt!E32+ptagfire!E32++nonroad!E32+cmv_c1c2!E32+'ptfire-rx'!E32+ptegu!E32+ptnonipm!E32+pt_oilgas!E32+np_oilgas!E32+rwc!E32+cmv_c3!E32+afdust!BA32+'onroad all'!DE32+'onroad all'!DD32+airports!E32+'ptfire-wild'!E32+np_solvents!E32 -> 149,788 | F33: =rail!F32+nonpt!F32+ptagfire!F32++nonroad!F32+cmv_c1c2!F32+'ptfire-rx'!F32+ptegu!F32+ptnonipm!F32+pt_oilgas!F32+np_oilgas!F32+rwc!F32+cmv_c3!F32+afdust!BB32+'onroad all'!DD32+airports!F32+'ptfire-wild'!F32+np_solvents!F32 -> 35,974 | G33: =rail!G32+nonpt!G32+ptagfire!G32++nonroad!G32+'onroad all'!DU32+cmv_c1c2!G32+'ptfire-rx'!G32+ptegu!FH32+ptnonipm!G32+pt_oilgas!G32+np_oilgas!G32+rwc!G32+cmv_c3!G32+airports!G32+'ptfire-wild'!G32+np_solvents!G32 -> 13,356 | H33: =rail!H32+nonpt!H32+ptagfire!H32++nonroad!H32+'onroad all'!EI32+cmv_c1c2!H32+'ptfire-rx'!H32+ptegu!H32+ptnonipm!H32+pt_oilgas!H32+np_oilgas!H32+rwc!H32+cmv_c3!H32+livestock!C32+airports!H32+'ptfire-wild'!H32+np_solvents!H32 -> 297,056 | I33: =rail!AO32+nonpt!BN32+ptagfire!AJ32+nonroad!AK32+'onroad all'!H32+cmv_c1c2!O32+'ptfire-rx'!AO32+ptegu!BM32+ptnonipm!BX32+pt_oilgas!BM32+np_oilgas!AU32+rwc!AH32+cmv_c3!O32+livestock!U32+airports!AJ32+'ptfire-wild'!AL32+np_solvents!AU32 -> 1,562 | J33: =rail!AU32+nonpt!BT32+ptagfire!AN32+nonroad!AP32+'onroad all'!P32+cmv_c1c2!T32+'ptfire-rx'!AS32+ptegu!BS32+ptnonipm!CD32+pt_oilgas!BS32+np_oilgas!BA32+rwc!AL32+cmv_c3!T32+livestock!X32+airports!AM32+'ptfire-wild'!AP32+np_solvents!AY32 -> 2,890 | K33: =rail!BR32+nonpt!CY32+ptagfire!AY32+nonroad!BH32+'onroad all'!BC32+cmv_c1c2!AO32+'ptfire-rx'!BE32+ptegu!CX32+ptnonipm!DP32+pt_oilgas!CW32+np_oilgas!BW32+rwc!AY32+cmv_c3!AP32+livestock!AH32+airports!BE32+'ptfire-wild'!BA32+np_solvents!BR32 -> 3,461 | L33: =rail!CF32+nonpt!DO32+ptagfire!BH32+nonroad!BT32+'onroad all'!BU32+cmv_c1c2!BC32+'ptfire-rx'!BP32+ptegu!DM32+ptnonipm!EH32+pt_oilgas!DM32+np_oilgas!CK32+rwc!BJ32+cmv_c3!BC32+livestock!AN32+airports!BN32+'ptfire-wild'!BL32+np_solvents!CF32 -> 2,077 | M33: =rail!CG32+nonpt!DQ32+nonroad!BU32+'onroad all'!BY32+cmv_c1c2!BD32+'ptfire-rx'!BR32+ptegu!DO32+ptnonipm!EJ32+pt_oilgas!DO32+np_oilgas!CL32+rwc!BK32+cmv_c3!BD32+airports!BO32+'ptfire-wild'!BN32+np_solvents!CG32+ptagfire!BJ32 -> 509 | N33: =rail!AN32+nonpt!BK32+nonroad!AJ32+'onroad all'!G32+cmv_c1c2!M32+'ptfire-rx'!AL32+ptegu!BK32+ptnonipm!BU32+pt_oilgas!BK32+np_oilgas!AT32+rwc!AG32+airports!AH32+cmv_c3!M32+'ptfire-wild'!AJ32+ptagfire!AH32 -> 481 | O33: =rail!AY32+nonpt!O32+ptagfire!AP32+nonroad!AR32+'onroad all'!Z32+cmv_c1c2!V32+'ptfire-rx'!AU32+ptegu!BX32+ptnonipm!CI32+pt_oilgas!BX32+np_oilgas!BD32+rwc!AN32+airports!AO32+cmv_c3!V32+'ptfire-wild'!AR32+np_solvents!AE32 -> 263 | P33: =rail!AD32+nonroad!AD32+'onroad all'!AK32+'onroad all'!AL32+'onroad all'!AM32+'onroad all'!AN32+'onroad all'!AO32+'onroad all'!AP32+ptnonipm!BI32+SUM(airports!AR32:AW32)+SUM(cmv_c1c2!AC32:AH32)+SUM(cmv_c3!AC32:AH32) -> 1,737 | Q33: =rail!AE32+nonroad!AE32+'onroad all'!AL32+'onroad all'!AM32+'onroad all'!AN32+'onroad all'!AO32+'onroad all'!AP32+ptnonipm!BJ32+SUM(airports!AS32:AW32)+SUM(cmv_c1c2!AD32:AH32)+SUM(cmv_c3!AD32:AH32) -> 1,642 | R33: =rail!P32+nonpt!T32+nonroad!R32+'onroad all'!AC32+ptegu!T32+ptnonipm!T32+pt_oilgas!S32+np_oilgas!Q32+SUM(cmv_c1c2!Z32:AA32)+SUM(cmv_c3!Z32:AA32) -> 0.03 | S33: =rail!K32+nonpt!L32+nonroad!U32+'onroad all'!M32+ptegu!L32+ptnonipm!L32+pt_oilgas!K32+np_oilgas!K32+SUM(cmv_c1c2!R32:S32)+SUM(cmv_c3!R32:S32) -> 0.70 | T33: =rail!O32+nonpt!P32+ptegu!P32+ptnonipm!P32+pt_oilgas!O32+np_oilgas!N32+rwc!M32+SUM(cmv_c1c2!W32:X32)+SUM(cmv_c3!W32:X32) -> 0.05 | U33: =rail!V32+nonpt!AI32+nonroad!T32+'onroad all'!CB32+ptegu!AH32+ptnonipm!AL32+pt_oilgas!AG32+np_oilgas!AA32+rwc!R32+SUM(cmv_c1c2!BF32:BG32)+SUM(cmv_c3!BF32:BG32) -> 2.91 | V33: =rail!T32+nonpt!AE32+nonroad!S32+'onroad all'!BS32+'onroad all'!BT32+ptegu!AD32+ptnonipm!AH32+pt_oilgas!AC32+np_oilgas!W32+rwc!P32+SUM(cmv_c1c2!BA32:BB32)+SUM(cmv_c3!BA32:BB32) -> 1.77 | W33: =nonpt!CW32+ptegu!BB32+ptnonipm!Z32 -> 3.73 | AA33: New Mexico | AB33: =B33+beis!H32 -> 592,060 | AC33: 40,986 | AD33: =D33+beis!T32 -> 168,588 | AE33: 149,788 | AF33: 35,974 | AG33: 13,356 | AH33: =H33+beis!Z32 -> 795,530 | AI33: =I33+beis!E32 -> 13,596 | AJ33: 2,890 | AK33: =K33+beis!N32 -> 19,870 | AL33: =L33+beis!R32 -> 77,024 | AM33: 509 | AN33: 481 | AO33: 263 | AP33: 1,737 | AQ33: 1,642 | AR33: 0.03 | AS33: 0.70 | AT33: 0.05 | AU33: 2.91 | AV33: 1.77 | AX33: New Mexico | AY33: =B33-'ptfire-rx'!B32-'ptfire-wild'!B32 -> 364,297 | AZ33: =C33-'ptfire-rx'!C32-'ptfire-wild'!C32 -> 39,122 | BA33: =D33-'ptfire-rx'!D32-'ptfire-wild'!D32 -> 150,621 | BB33: =E33-'ptfire-rx'!E32-'ptfire-wild'!E32 -> 137,792 | BC33: =F33-'ptfire-rx'!F32-'ptfire-wild'!F32 -> 25,809 | BD33: =G33-'ptfire-rx'!G32-'ptfire-wild'!G32 -> 12,332 | BE33: =H33-'ptfire-rx'!H32-'ptfire-wild'!H32 -> 270,261 | BF33: =I33-'ptfire-rx'!AO32-'ptfire-wild'!AL32 -> 686 | BG33: =J33-'ptfire-rx'!AS32-'ptfire-wild'!AP32 -> 2,655 | BH33: =K33-'ptfire-rx'!BE32-'ptfire-wild'!BA32 -> 2,148 | BI33: =L33-'ptfire-rx'!BP32-'ptfire-wild'!BL32 -> 872 | BJ33: =M33-'ptfire-rx'!BR32-'ptfire-wild'!BN32 -> 255 | BK33: =N33-'ptfire-rx'!AL32-'ptfire-wild'!AJ32 -> 213 | BL33: =O33-'ptfire-rx'!AU32-'ptfire-wild'!AR32 -> 121 | BM33: 1,737 | BN33: 1,642 | BO33: 0.03 | BP33: 0.70 | BQ33: 0.05 | BR33: 2.91 | BS33: 1.77
A34: New York | B34: =rail!B33+nonpt!B33+ptagfire!B33+nonroad!B33+'onroad all'!AG33+cmv_c1c2!B33+'ptfire-rx'!B33+ptegu!B33+ptnonipm!B33+pt_oilgas!B33+np_oilgas!B33+rwc!B33+cmv_c3!B33+airports!B33+'ptfire-wild'!B33+np_solvents!B33 -> 1,212,209 | C34: =rail!C33+nonpt!C33+ptagfire!C33++nonroad!C33+'onroad all'!BZ33+cmv_c1c2!BE33+'ptfire-rx'!C33+ptegu!C33+ptnonipm!C33+pt_oilgas!C33+np_oilgas!C33+rwc!C33+cmv_c3!BE33+livestock!B33+airports!C33+'ptfire-wild'!C33+fertilizer!B33+np_solvents!C33 -> 40,307 | D34: =rail!D33+nonpt!D33+ptagfire!D33++nonroad!D33+cmv_c1c2!D33+'ptfire-rx'!D33+ptegu!DW33+ptnonipm!D33+pt_oilgas!D33+np_oilgas!D33+rwc!D33+cmv_c3!D33+'onroad all'!CI33+airports!D33+'ptfire-wild'!D33+np_solvents!D33 -> 209,912 | E34: =rail!E33+nonpt!E33+ptagfire!E33++nonroad!E33+cmv_c1c2!E33+'ptfire-rx'!E33+ptegu!E33+ptnonipm!E33+pt_oilgas!E33+np_oilgas!E33+rwc!E33+cmv_c3!E33+afdust!BA33+'onroad all'!DE33+'onroad all'!DD33+airports!E33+'ptfire-wild'!E33+np_solvents!E33 -> 102,356 | F34: =rail!F33+nonpt!F33+ptagfire!F33++nonroad!F33+cmv_c1c2!F33+'ptfire-rx'!F33+ptegu!F33+ptnonipm!F33+pt_oilgas!F33+np_oilgas!F33+rwc!F33+cmv_c3!F33+afdust!BB33+'onroad all'!DD33+airports!F33+'ptfire-wild'!F33+np_solvents!F33 -> 48,096 | G34: =rail!G33+nonpt!G33+ptagfire!G33++nonroad!G33+'onroad all'!DU33+cmv_c1c2!G33+'ptfire-rx'!G33+ptegu!FH33+ptnonipm!G33+pt_oilgas!G33+np_oilgas!G33+rwc!G33+cmv_c3!G33+airports!G33+'ptfire-wild'!G33+np_solvents!G33 -> 15,899 | H34: =rail!H33+nonpt!H33+ptagfire!H33++nonroad!H33+'onroad all'!EI33+cmv_c1c2!H33+'ptfire-rx'!H33+ptegu!H33+ptnonipm!H33+pt_oilgas!H33+np_oilgas!H33+rwc!H33+cmv_c3!H33+livestock!C33+airports!H33+'ptfire-wild'!H33+np_solvents!H33 -> 278,775 | I34: =rail!AO33+nonpt!BN33+ptagfire!AJ33+nonroad!AK33+'onroad all'!H33+cmv_c1c2!O33+'ptfire-rx'!AO33+ptegu!BM33+ptnonipm!BX33+pt_oilgas!BM33+np_oilgas!AU33+rwc!AH33+cmv_c3!O33+livestock!U33+airports!AJ33+'ptfire-wild'!AL33+np_solvents!AU33 -> 1,352 | J34: =rail!AU33+nonpt!BT33+ptagfire!AN33+nonroad!AP33+'onroad all'!P33+cmv_c1c2!T33+'ptfire-rx'!AS33+ptegu!BS33+ptnonipm!CD33+pt_oilgas!BS33+np_oilgas!BA33+rwc!AL33+cmv_c3!T33+livestock!X33+airports!AM33+'ptfire-wild'!AP33+np_solvents!AY33 -> 2,786 | K34: =rail!BR33+nonpt!CY33+ptagfire!AY33+nonroad!BH33+'onroad all'!BC33+cmv_c1c2!AO33+'ptfire-rx'!BE33+ptegu!CX33+ptnonipm!DP33+pt_oilgas!CW33+np_oilgas!BW33+rwc!AY33+cmv_c3!AP33+livestock!AH33+airports!BE33+'ptfire-wild'!BA33+np_solvents!BR33 -> 2,847 | L34: =rail!CF33+nonpt!DO33+ptagfire!BH33+nonroad!BT33+'onroad all'!BU33+cmv_c1c2!BC33+'ptfire-rx'!BP33+ptegu!DM33+ptnonipm!EH33+pt_oilgas!DM33+np_oilgas!CK33+rwc!BJ33+cmv_c3!BC33+livestock!AN33+airports!BN33+'ptfire-wild'!BL33+np_solvents!CF33 -> 4,117 | M34: =rail!CG33+nonpt!DQ33+nonroad!BU33+'onroad all'!BY33+cmv_c1c2!BD33+'ptfire-rx'!BR33+ptegu!DO33+ptnonipm!EJ33+pt_oilgas!DO33+np_oilgas!CL33+rwc!BK33+cmv_c3!BD33+airports!BO33+'ptfire-wild'!BN33+np_solvents!CG33+ptagfire!BJ33 -> 384 | N34: =rail!AN33+nonpt!BK33+nonroad!AJ33+'onroad all'!G33+cmv_c1c2!M33+'ptfire-rx'!AL33+ptegu!BK33+ptnonipm!BU33+pt_oilgas!BK33+np_oilgas!AT33+rwc!AG33+airports!AH33+cmv_c3!M33+'ptfire-wild'!AJ33+ptagfire!AH33 -> 190 | O34: =rail!AY33+nonpt!O33+ptagfire!AP33+nonroad!AR33+'onroad all'!Z33+cmv_c1c2!V33+'ptfire-rx'!AU33+ptegu!BX33+ptnonipm!CI33+pt_oilgas!BX33+np_oilgas!BD33+rwc!AN33+airports!AO33+cmv_c3!V33+'ptfire-wild'!AR33+np_solvents!AE33 -> 430 | P34: =rail!AD33+nonroad!AD33+'onroad all'!AK33+'onroad all'!AL33+'onroad all'!AM33+'onroad all'!AN33+'onroad all'!AO33+'onroad all'!AP33+ptnonipm!BI33+SUM(airports!AR33:AW33)+SUM(cmv_c1c2!AC33:AH33)+SUM(cmv_c3!AC33:AH33) -> 3,702 | Q34: =rail!AE33+nonroad!AE33+'onroad all'!AL33+'onroad all'!AM33+'onroad all'!AN33+'onroad all'!AO33+'onroad all'!AP33+ptnonipm!BJ33+SUM(airports!AS33:AW33)+SUM(cmv_c1c2!AD33:AH33)+SUM(cmv_c3!AD33:AH33) -> 3,502 | R34: =rail!P33+nonpt!T33+nonroad!R33+'onroad all'!AC33+ptegu!T33+ptnonipm!T33+pt_oilgas!S33+np_oilgas!Q33+SUM(cmv_c1c2!Z33:AA33)+SUM(cmv_c3!Z33:AA33) -> 0.18 | S34: =rail!K33+nonpt!L33+nonroad!U33+'onroad all'!M33+ptegu!L33+ptnonipm!L33+pt_oilgas!K33+np_oilgas!K33+SUM(cmv_c1c2!R33:S33)+SUM(cmv_c3!R33:S33) -> 1.28 | T34: =rail!O33+nonpt!P33+ptegu!P33+ptnonipm!P33+pt_oilgas!O33+np_oilgas!N33+rwc!M33+SUM(cmv_c1c2!W33:X33)+SUM(cmv_c3!W33:X33) -> 0.58 | U34: =rail!V33+nonpt!AI33+nonroad!T33+'onroad all'!CB33+ptegu!AH33+ptnonipm!AL33+pt_oilgas!AG33+np_oilgas!AA33+rwc!R33+SUM(cmv_c1c2!BF33:BG33)+SUM(cmv_c3!BF33:BG33) -> 9.32 | V34: =rail!T33+nonpt!AE33+nonroad!S33+'onroad all'!BS33+'onroad all'!BT33+ptegu!AD33+ptnonipm!AH33+pt_oilgas!AC33+np_oilgas!W33+rwc!P33+SUM(cmv_c1c2!BA33:BB33)+SUM(cmv_c3!BA33:BB33) -> 9.13 | W34: =nonpt!CW33+ptegu!BB33+ptnonipm!Z33 -> 1.39 | X34: X | AA34: New York | AB34: =B34+beis!H33 -> 1,260,150 | AC34: 40,307 | AD34: =D34+beis!T33 -> 220,878 | AE34: 102,356 | AF34: 48,096 | AG34: 15,899 | AH34: =H34+beis!Z33 -> 593,621 | AI34: =I34+beis!E33 -> 6,366 | AJ34: 2,786 | AK34: =K34+beis!N33 -> 9,684 | AL34: =L34+beis!R33 -> 24,561 | AM34: 384 | AN34: 190 | AO34: 430 | AP34: 3,702 | AQ34: 3,502 | AR34: 0.18 | AS34: 1.28 | AT34: 0.58 | AU34: 9.32 | AV34: 9.13 | AX34: New York | AY34: =B34-'ptfire-rx'!B33-'ptfire-wild'!B33 -> 1,203,895 | AZ34: =C34-'ptfire-rx'!C33-'ptfire-wild'!C33 -> 40,171 | BA34: =D34-'ptfire-rx'!D33-'ptfire-wild'!D33 -> 209,787 | BB34: =E34-'ptfire-rx'!E33-'ptfire-wild'!E33 -> 101,500 | BC34: =F34-'ptfire-rx'!F33-'ptfire-wild'!F33 -> 47,371 | BD34: =G34-'ptfire-rx'!G33-'ptfire-wild'!G33 -> 15,832 | BE34: =H34-'ptfire-rx'!H33-'ptfire-wild'!H33 -> 276,810 | BF34: =I34-'ptfire-rx'!AO33-'ptfire-wild'!AL33 -> 1,309 | BG34: =J34-'ptfire-rx'!AS33-'ptfire-wild'!AP33 -> 2,767 | BH34: =K34-'ptfire-rx'!BE33-'ptfire-wild'!BA33 -> 2,734 | BI34: =L34-'ptfire-rx'!BP33-'ptfire-wild'!BL33 -> 4,050 | BJ34: =M34-'ptfire-rx'!BR33-'ptfire-wild'!BN33 -> 371 | BK34: =N34-'ptfire-rx'!AL33-'ptfire-wild'!AJ33 -> 169 | BL34: =O34-'ptfire-rx'!AU33-'ptfire-wild'!AR33 -> 412 | BM34: 3,702 | BN34: 3,502 | BO34: 0.18 | BP34: 1.28 | BQ34: 0.58 | BR34: 9.32 | BS34: 9.13
A35: North Carolina | B35: =rail!B34+nonpt!B34+ptagfire!B34+nonroad!B34+'onroad all'!AG34+cmv_c1c2!B34+'ptfire-rx'!B34+ptegu!B34+ptnonipm!B34+pt_oilgas!B34+np_oilgas!B34+rwc!B34+cmv_c3!B34+airports!B34+'ptfire-wild'!B34+np_solvents!B34 -> 1,399,015 | C35: =rail!C34+nonpt!C34+ptagfire!C34++nonroad!C34+'onroad all'!BZ34+cmv_c1c2!BE34+'ptfire-rx'!C34+ptegu!C34+ptnonipm!C34+pt_oilgas!C34+np_oilgas!C34+rwc!C34+cmv_c3!BE34+livestock!B34+airports!C34+'ptfire-wild'!C34+fertilizer!B34+np_solvents!C34 -> 213,383 | D35: =rail!D34+nonpt!D34+ptagfire!D34++nonroad!D34+cmv_c1c2!D34+'ptfire-rx'!D34+ptegu!DW34+ptnonipm!D34+pt_oilgas!D34+np_oilgas!D34+rwc!D34+cmv_c3!D34+'onroad all'!CI34+airports!D34+'ptfire-wild'!D34+np_solvents!D34 -> 200,963 | E35: =rail!E34+nonpt!E34+ptagfire!E34++nonroad!E34+cmv_c1c2!E34+'ptfire-rx'!E34+ptegu!E34+ptnonipm!E34+pt_oilgas!E34+np_oilgas!E34+rwc!E34+cmv_c3!E34+afdust!BA34+'onroad all'!DE34+'onroad all'!DD34+airports!E34+'ptfire-wild'!E34+np_solvents!E34 -> 129,981 | F35: =rail!F34+nonpt!F34+ptagfire!F34++nonroad!F34+cmv_c1c2!F34+'ptfire-rx'!F34+ptegu!F34+ptnonipm!F34+pt_oilgas!F34+np_oilgas!F34+rwc!F34+cmv_c3!F34+afdust!BB34+'onroad all'!DD34+airports!F34+'ptfire-wild'!F34+np_solvents!F34 -> 60,285 | G35: =rail!G34+nonpt!G34+ptagfire!G34++nonroad!G34+'onroad all'!DU34+cmv_c1c2!G34+'ptfire-rx'!G34+ptegu!FH34+ptnonipm!G34+pt_oilgas!G34+np_oilgas!G34+rwc!G34+cmv_c3!G34+airports!G34+'ptfire-wild'!G34+np_solvents!G34 -> 36,941 | H35: =rail!H34+nonpt!H34+ptagfire!H34++nonroad!H34+'onroad all'!EI34+cmv_c1c2!H34+'ptfire-rx'!H34+ptegu!H34+ptnonipm!H34+pt_oilgas!H34+np_oilgas!H34+rwc!H34+cmv_c3!H34+livestock!C34+airports!H34+'ptfire-wild'!H34+np_solvents!H34 -> 275,678 | I35: =rail!AO34+nonpt!BN34+ptagfire!AJ34+nonroad!AK34+'onroad all'!H34+cmv_c1c2!O34+'ptfire-rx'!AO34+ptegu!BM34+ptnonipm!BX34+pt_oilgas!BM34+np_oilgas!AU34+rwc!AH34+cmv_c3!O34+livestock!U34+airports!AJ34+'ptfire-wild'!AL34+np_solvents!AU34 -> 2,872 | J35: =rail!AU34+nonpt!BT34+ptagfire!AN34+nonroad!AP34+'onroad all'!P34+cmv_c1c2!T34+'ptfire-rx'!AS34+ptegu!BS34+ptnonipm!CD34+pt_oilgas!BS34+np_oilgas!BA34+rwc!AL34+cmv_c3!T34+livestock!X34+airports!AM34+'ptfire-wild'!AP34+np_solvents!AY34 -> 3,154 | K35: =rail!BR34+nonpt!CY34+ptagfire!AY34+nonroad!BH34+'onroad all'!BC34+cmv_c1c2!AO34+'ptfire-rx'!BE34+ptegu!CX34+ptnonipm!DP34+pt_oilgas!CW34+np_oilgas!BW34+rwc!AY34+cmv_c3!AP34+livestock!AH34+airports!BE34+'ptfire-wild'!BA34+np_solvents!BR34 -> 5,646 | L35: =rail!CF34+nonpt!DO34+ptagfire!BH34+nonroad!BT34+'onroad all'!BU34+cmv_c1c2!BC34+'ptfire-rx'!BP34+ptegu!DM34+ptnonipm!EH34+pt_oilgas!DM34+np_oilgas!CK34+rwc!BJ34+cmv_c3!BC34+livestock!AN34+airports!BN34+'ptfire-wild'!BL34+np_solvents!CF34 -> 6,771 | M35: =rail!CG34+nonpt!DQ34+nonroad!BU34+'onroad all'!BY34+cmv_c1c2!BD34+'ptfire-rx'!BR34+ptegu!DO34+ptnonipm!EJ34+pt_oilgas!DO34+np_oilgas!CL34+rwc!BK34+cmv_c3!BD34+airports!BO34+'ptfire-wild'!BN34+np_solvents!CG34+ptagfire!BJ34 -> 563 | N35: =rail!AN34+nonpt!BK34+nonroad!AJ34+'onroad all'!G34+cmv_c1c2!M34+'ptfire-rx'!AL34+ptegu!BK34+ptnonipm!BU34+pt_oilgas!BK34+np_oilgas!AT34+rwc!AG34+airports!AH34+cmv_c3!M34+'ptfire-wild'!AJ34+ptagfire!AH34 -> 787 | O35: =rail!AY34+nonpt!O34+ptagfire!AP34+nonroad!AR34+'onroad all'!Z34+cmv_c1c2!V34+'ptfire-rx'!AU34+ptegu!BX34+ptnonipm!CI34+pt_oilgas!BX34+np_oilgas!BD34+rwc!AN34+airports!AO34+cmv_c3!V34+'ptfire-wild'!AR34+np_solvents!AE34 -> 816 | P35: =rail!AD34+nonroad!AD34+'onroad all'!AK34+'onroad all'!AL34+'onroad all'!AM34+'onroad all'!AN34+'onroad all'!AO34+'onroad all'!AP34+ptnonipm!BI34+SUM(airports!AR34:AW34)+SUM(cmv_c1c2!AC34:AH34)+SUM(cmv_c3!AC34:AH34) -> 2,979 | Q35: =rail!AE34+nonroad!AE34+'onroad all'!AL34+'onroad all'!AM34+'onroad all'!AN34+'onroad all'!AO34+'onroad all'!AP34+ptnonipm!BJ34+SUM(airports!AS34:AW34)+SUM(cmv_c1c2!AD34:AH34)+SUM(cmv_c3!AD34:AH34) -> 2,807 | R35: =rail!P34+nonpt!T34+nonroad!R34+'onroad all'!AC34+ptegu!T34+ptnonipm!T34+pt_oilgas!S34+np_oilgas!Q34+SUM(cmv_c1c2!Z34:AA34)+SUM(cmv_c3!Z34:AA34) -> 1.87 | S35: =rail!K34+nonpt!L34+nonroad!U34+'onroad all'!M34+ptegu!L34+ptnonipm!L34+pt_oilgas!K34+np_oilgas!K34+SUM(cmv_c1c2!R34:S34)+SUM(cmv_c3!R34:S34) -> 1.27 | T35: =rail!O34+nonpt!P34+ptegu!P34+ptnonipm!P34+pt_oilgas!O34+np_oilgas!N34+rwc!M34+SUM(cmv_c1c2!W34:X34)+SUM(cmv_c3!W34:X34) -> 0.46 | U35: =rail!V34+nonpt!AI34+nonroad!T34+'onroad all'!CB34+ptegu!AH34+ptnonipm!AL34+pt_oilgas!AG34+np_oilgas!AA34+rwc!R34+SUM(cmv_c1c2!BF34:BG34)+SUM(cmv_c3!BF34:BG34) -> 4.74 | V35: =rail!T34+nonpt!AE34+nonroad!S34+'onroad all'!BS34+'onroad all'!BT34+ptegu!AD34+ptnonipm!AH34+pt_oilgas!AC34+np_oilgas!W34+rwc!P34+SUM(cmv_c1c2!BA34:BB34)+SUM(cmv_c3!BA34:BB34) -> 21.37 | W35: =nonpt!CW34+ptegu!BB34+ptnonipm!Z34 -> 1.09 | X35: X | AA35: North Carolina | AB35: =B35+beis!H34 -> 1,494,957 | AC35: 213,383 | AD35: =D35+beis!T34 -> 222,849 | AE35: 129,981 | AF35: 60,285 | AG35: 36,941 | AH35: =H35+beis!Z34 -> 1,192,387 | AI35: =I35+beis!E34 -> 12,914 | AJ35: 3,154 | AK35: =K35+beis!N34 -> 19,340 | AL35: =L35+beis!R34 -> 61,678 | AM35: 563 | AN35: 787 | AO35: 816 | AP35: 2,979 | AQ35: 2,807 | AR35: 1.87 | AS35: 1.27 | AT35: 0.46 | AU35: 4.74 | AV35: 21.37 | AX35: North Carolina | AY35: =B35-'ptfire-rx'!B34-'ptfire-wild'!B34 -> 1,216,423 | AZ35: =C35-'ptfire-rx'!C34-'ptfire-wild'!C34 -> 210,369 | BA35: =D35-'ptfire-rx'!D34-'ptfire-wild'!D34 -> 197,594 | BB35: =E35-'ptfire-rx'!E34-'ptfire-wild'!E34 -> 110,621 | BC35: =F35-'ptfire-rx'!F34-'ptfire-wild'!F34 -> 43,879 | BD35: =G35-'ptfire-rx'!G34-'ptfire-wild'!G34 -> 35,300 | BE35: =H35-'ptfire-rx'!H34-'ptfire-wild'!H34 -> 232,354 | BF35: =I35-'ptfire-rx'!AO34-'ptfire-wild'!AL34 -> 1,788 | BG35: =J35-'ptfire-rx'!AS34-'ptfire-wild'!AP34 -> 2,671 | BH35: =K35-'ptfire-rx'!BE34-'ptfire-wild'!BA34 -> 2,819 | BI35: =L35-'ptfire-rx'!BP34-'ptfire-wild'!BL34 -> 5,108 | BJ35: =M35-'ptfire-rx'!BR34-'ptfire-wild'!BN34 -> 227 | BK35: =N35-'ptfire-rx'!AL34-'ptfire-wild'!AJ34 -> 247 | BL35: =O35-'ptfire-rx'!AU34-'ptfire-wild'!AR34 -> 390 | BM35: 2,979 | BN35: 2,807 | BO35: 1.87 | BP35: 1.27 | BQ35: 0.46 | BR35: 4.74 | BS35: 21.37
A36: North Dakota | B36: =rail!B35+nonpt!B35+ptagfire!B35+nonroad!B35+'onroad all'!AG35+cmv_c1c2!B35+'ptfire-rx'!B35+ptegu!B35+ptnonipm!B35+pt_oilgas!B35+np_oilgas!B35+rwc!B35+cmv_c3!B35+airports!B35+'ptfire-wild'!B35+np_solvents!B35 -> 264,913 | C36: =rail!C35+nonpt!C35+ptagfire!C35++nonroad!C35+'onroad all'!BZ35+cmv_c1c2!BE35+'ptfire-rx'!C35+ptegu!C35+ptnonipm!C35+pt_oilgas!C35+np_oilgas!C35+rwc!C35+cmv_c3!BE35+livestock!B35+airports!C35+'ptfire-wild'!C35+fertilizer!B35+np_solvents!C35 -> 66,882 | D36: =rail!D35+nonpt!D35+ptagfire!D35++nonroad!D35+cmv_c1c2!D35+'ptfire-rx'!D35+ptegu!DW35+ptnonipm!D35+pt_oilgas!D35+np_oilgas!D35+rwc!D35+cmv_c3!D35+'onroad all'!CI35+airports!D35+'ptfire-wild'!D35+np_solvents!D35 -> 143,470 | E36: =rail!E35+nonpt!E35+ptagfire!E35++nonroad!E35+cmv_c1c2!E35+'ptfire-rx'!E35+ptegu!E35+ptnonipm!E35+pt_oilgas!E35+np_oilgas!E35+rwc!E35+cmv_c3!E35+afdust!BA35+'onroad all'!DE35+'onroad all'!DD35+airports!E35+'ptfire-wild'!E35+np_solvents!E35 -> 165,561 | F36: =rail!F35+nonpt!F35+ptagfire!F35++nonroad!F35+cmv_c1c2!F35+'ptfire-rx'!F35+ptegu!F35+ptnonipm!F35+pt_oilgas!F35+np_oilgas!F35+rwc!F35+cmv_c3!F35+afdust!BB35+'onroad all'!DD35+airports!F35+'ptfire-wild'!F35+np_solvents!F35 -> 40,538 | G36: =rail!G35+nonpt!G35+ptagfire!G35++nonroad!G35+'onroad all'!DU35+cmv_c1c2!G35+'ptfire-rx'!G35+ptegu!FH35+ptnonipm!G35+pt_oilgas!G35+np_oilgas!G35+rwc!G35+cmv_c3!G35+airports!G35+'ptfire-wild'!G35+np_solvents!G35 -> 101,637 | H36: =rail!H35+nonpt!H35+ptagfire!H35++nonroad!H35+'onroad all'!EI35+cmv_c1c2!H35+'ptfire-rx'!H35+ptegu!H35+ptnonipm!H35+pt_oilgas!H35+np_oilgas!H35+rwc!H35+cmv_c3!H35+livestock!C35+airports!H35+'ptfire-wild'!H35+np_solvents!H35 -> 520,948 | I36: =rail!AO35+nonpt!BN35+ptagfire!AJ35+nonroad!AK35+'onroad all'!H35+cmv_c1c2!O35+'ptfire-rx'!AO35+ptegu!BM35+ptnonipm!BX35+pt_oilgas!BM35+np_oilgas!AU35+rwc!AH35+cmv_c3!O35+livestock!U35+airports!AJ35+'ptfire-wild'!AL35+np_solvents!AU35 -> 1,087 | J36: =rail!AU35+nonpt!BT35+ptagfire!AN35+nonroad!AP35+'onroad all'!P35+cmv_c1c2!T35+'ptfire-rx'!AS35+ptegu!BS35+ptnonipm!CD35+pt_oilgas!BS35+np_oilgas!BA35+rwc!AL35+cmv_c3!T35+livestock!X35+airports!AM35+'ptfire-wild'!AP35+np_solvents!AY35 -> 6,232 | K36: =rail!BR35+nonpt!CY35+ptagfire!AY35+nonroad!BH35+'onroad all'!BC35+cmv_c1c2!AO35+'ptfire-rx'!BE35+ptegu!CX35+ptnonipm!DP35+pt_oilgas!CW35+np_oilgas!BW35+rwc!AY35+cmv_c3!AP35+livestock!AH35+airports!BE35+'ptfire-wild'!BA35+np_solvents!BR35 -> 5,142 | L36: =rail!CF35+nonpt!DO35+ptagfire!BH35+nonroad!BT35+'onroad all'!BU35+cmv_c1c2!BC35+'ptfire-rx'!BP35+ptegu!DM35+ptnonipm!EH35+pt_oilgas!DM35+np_oilgas!CK35+rwc!BJ35+cmv_c3!BC35+livestock!AN35+airports!BN35+'ptfire-wild'!BL35+np_solvents!CF35 -> 1,329 | M36: =rail!CG35+nonpt!DQ35+nonroad!BU35+'onroad all'!BY35+cmv_c1c2!BD35+'ptfire-rx'!BR35+ptegu!DO35+ptnonipm!EJ35+pt_oilgas!DO35+np_oilgas!CL35+rwc!BK35+cmv_c3!BD35+airports!BO35+'ptfire-wild'!BN35+np_solvents!CG35+ptagfire!BJ35 -> 230 | N36: =rail!AN35+nonpt!BK35+nonroad!AJ35+'onroad all'!G35+cmv_c1c2!M35+'ptfire-rx'!AL35+ptegu!BK35+ptnonipm!BU35+pt_oilgas!BK35+np_oilgas!AT35+rwc!AG35+airports!AH35+cmv_c3!M35+'ptfire-wild'!AJ35+ptagfire!AH35 -> 168 | O36: =rail!AY35+nonpt!O35+ptagfire!AP35+nonroad!AR35+'onroad all'!Z35+cmv_c1c2!V35+'ptfire-rx'!AU35+ptegu!BX35+ptnonipm!CI35+pt_oilgas!BX35+np_oilgas!BD35+rwc!AN35+airports!AO35+cmv_c3!V35+'ptfire-wild'!AR35+np_solvents!AE35 -> 141 | P36: =rail!AD35+nonroad!AD35+'onroad all'!AK35+'onroad all'!AL35+'onroad all'!AM35+'onroad all'!AN35+'onroad all'!AO35+'onroad all'!AP35+ptnonipm!BI35+SUM(airports!AR35:AW35)+SUM(cmv_c1c2!AC35:AH35)+SUM(cmv_c3!AC35:AH35) -> 2,446 | Q36: =rail!AE35+nonroad!AE35+'onroad all'!AL35+'onroad all'!AM35+'onroad all'!AN35+'onroad all'!AO35+'onroad all'!AP35+ptnonipm!BJ35+SUM(airports!AS35:AW35)+SUM(cmv_c1c2!AD35:AH35)+SUM(cmv_c3!AD35:AH35) -> 2,354 | R36: =rail!P35+nonpt!T35+nonroad!R35+'onroad all'!AC35+ptegu!T35+ptnonipm!T35+pt_oilgas!S35+np_oilgas!Q35+SUM(cmv_c1c2!Z35:AA35)+SUM(cmv_c3!Z35:AA35) -> 0.35 | S36: =rail!K35+nonpt!L35+nonroad!U35+'onroad all'!M35+ptegu!L35+ptnonipm!L35+pt_oilgas!K35+np_oilgas!K35+SUM(cmv_c1c2!R35:S35)+SUM(cmv_c3!R35:S35) -> 4.13 | T36: =rail!O35+nonpt!P35+ptegu!P35+ptnonipm!P35+pt_oilgas!O35+np_oilgas!N35+rwc!M35+SUM(cmv_c1c2!W35:X35)+SUM(cmv_c3!W35:X35) -> 0.17 | U36: =rail!V35+nonpt!AI35+nonroad!T35+'onroad all'!CB35+ptegu!AH35+ptnonipm!AL35+pt_oilgas!AG35+np_oilgas!AA35+rwc!R35+SUM(cmv_c1c2!BF35:BG35)+SUM(cmv_c3!BF35:BG35) -> 6.09 | V36: =rail!T35+nonpt!AE35+nonroad!S35+'onroad all'!BS35+'onroad all'!BT35+ptegu!AD35+ptnonipm!AH35+pt_oilgas!AC35+np_oilgas!W35+rwc!P35+SUM(cmv_c1c2!BA35:BB35)+SUM(cmv_c3!BA35:BB35) -> 7.94 | W36: =nonpt!CW35+ptegu!BB35+ptnonipm!Z35 -> 0.00 | X36: X | AA36: North Dakota | AB36: =B36+beis!H35 -> 300,222 | AC36: 66,882 | AD36: =D36+beis!T35 -> 171,385 | AE36: 165,561 | AF36: 40,538 | AG36: 101,637 | AH36: =H36+beis!Z35 -> 624,587 | AI36: =I36+beis!E35 -> 4,786 | AJ36: 6,232 | AK36: =K36+beis!N35 -> 10,186 | AL36: =L36+beis!R35 -> 19,363 | AM36: 230 | AN36: 168 | AO36: 141 | AP36: 2,446 | AQ36: 2,354 | AR36: 0.35 | AS36: 4.13 | AT36: 0.17 | AU36: 6.09 | AV36: 7.94 | AX36: North Dakota | AY36: =B36-'ptfire-rx'!B35-'ptfire-wild'!B35 -> 237,108 | AZ36: =C36-'ptfire-rx'!C35-'ptfire-wild'!C35 -> 66,424 | BA36: =D36-'ptfire-rx'!D35-'ptfire-wild'!D35 -> 143,002 | BB36: =E36-'ptfire-rx'!E35-'ptfire-wild'!E35 -> 162,653 | BC36: =F36-'ptfire-rx'!F35-'ptfire-wild'!F35 -> 38,074 | BD36: =G36-'ptfire-rx'!G35-'ptfire-wild'!G35 -> 101,401 | BE36: =H36-'ptfire-rx'!H35-'ptfire-wild'!H35 -> 514,363 | BF36: =I36-'ptfire-rx'!AO35-'ptfire-wild'!AL35 -> 817 | BG36: =J36-'ptfire-rx'!AS35-'ptfire-wild'!AP35 -> 6,159 | BH36: =K36-'ptfire-rx'!BE35-'ptfire-wild'!BA35 -> 4,604 | BI36: =L36-'ptfire-rx'!BP35-'ptfire-wild'!BL35 -> 723 | BJ36: =M36-'ptfire-rx'!BR35-'ptfire-wild'!BN35 -> 151 | BK36: =N36-'ptfire-rx'!AL35-'ptfire-wild'!AJ35 -> 86 | BL36: =O36-'ptfire-rx'!AU35-'ptfire-wild'!AR35 -> 97 | BM36: 2,446 | BN36: 2,354 | BO36: 0.35 | BP36: 4.13 | BQ36: 0.17 | BR36: 6.09 | BS36: 7.94
A37: Ohio | B37: =rail!B36+nonpt!B36+ptagfire!B36+nonroad!B36+'onroad all'!AG36+cmv_c1c2!B36+'ptfire-rx'!B36+ptegu!B36+ptnonipm!B36+pt_oilgas!B36+np_oilgas!B36+rwc!B36+cmv_c3!B36+airports!B36+'ptfire-wild'!B36+np_solvents!B36 -> 1,390,232 | C37: =rail!C36+nonpt!C36+ptagfire!C36++nonroad!C36+'onroad all'!BZ36+cmv_c1c2!BE36+'ptfire-rx'!C36+ptegu!C36+ptnonipm!C36+pt_oilgas!C36+np_oilgas!C36+rwc!C36+cmv_c3!BE36+livestock!B36+airports!C36+'ptfire-wild'!C36+fertilizer!B36+np_solvents!C36 -> 85,803 | D37: =rail!D36+nonpt!D36+ptagfire!D36++nonroad!D36+cmv_c1c2!D36+'ptfire-rx'!D36+ptegu!DW36+ptnonipm!D36+pt_oilgas!D36+np_oilgas!D36+rwc!D36+cmv_c3!D36+'onroad all'!CI36+airports!D36+'ptfire-wild'!D36+np_solvents!D36 -> 275,648 | E37: =rail!E36+nonpt!E36+ptagfire!E36++nonroad!E36+cmv_c1c2!E36+'ptfire-rx'!E36+ptegu!E36+ptnonipm!E36+pt_oilgas!E36+np_oilgas!E36+rwc!E36+cmv_c3!E36+afdust!BA36+'onroad all'!DE36+'onroad all'!DD36+airports!E36+'ptfire-wild'!E36+np_solvents!E36 -> 126,926 | F37: =rail!F36+nonpt!F36+ptagfire!F36++nonroad!F36+cmv_c1c2!F36+'ptfire-rx'!F36+ptegu!F36+ptnonipm!F36+pt_oilgas!F36+np_oilgas!F36+rwc!F36+cmv_c3!F36+afdust!BB36+'onroad all'!DD36+airports!F36+'ptfire-wild'!F36+np_solvents!F36 -> 63,616 | G37: =rail!G36+nonpt!G36+ptagfire!G36++nonroad!G36+'onroad all'!DU36+cmv_c1c2!G36+'ptfire-rx'!G36+ptegu!FH36+ptnonipm!G36+pt_oilgas!G36+np_oilgas!G36+rwc!G36+cmv_c3!G36+airports!G36+'ptfire-wild'!G36+np_solvents!G36 -> 102,158 | H37: =rail!H36+nonpt!H36+ptagfire!H36++nonroad!H36+'onroad all'!EI36+cmv_c1c2!H36+'ptfire-rx'!H36+ptegu!H36+ptnonipm!H36+pt_oilgas!H36+np_oilgas!H36+rwc!H36+cmv_c3!H36+livestock!C36+airports!H36+'ptfire-wild'!H36+np_solvents!H36 -> 275,746 | I37: =rail!AO36+nonpt!BN36+ptagfire!AJ36+nonroad!AK36+'onroad all'!H36+cmv_c1c2!O36+'ptfire-rx'!AO36+ptegu!BM36+ptnonipm!BX36+pt_oilgas!BM36+np_oilgas!AU36+rwc!AH36+cmv_c3!O36+livestock!U36+airports!AJ36+'ptfire-wild'!AL36+np_solvents!AU36 -> 1,840 | J37: =rail!AU36+nonpt!BT36+ptagfire!AN36+nonroad!AP36+'onroad all'!P36+cmv_c1c2!T36+'ptfire-rx'!AS36+ptegu!BS36+ptnonipm!CD36+pt_oilgas!BS36+np_oilgas!BA36+rwc!AL36+cmv_c3!T36+livestock!X36+airports!AM36+'ptfire-wild'!AP36+np_solvents!AY36 -> 3,171 | K37: =rail!BR36+nonpt!CY36+ptagfire!AY36+nonroad!BH36+'onroad all'!BC36+cmv_c1c2!AO36+'ptfire-rx'!BE36+ptegu!CX36+ptnonipm!DP36+pt_oilgas!CW36+np_oilgas!BW36+rwc!AY36+cmv_c3!AP36+livestock!AH36+airports!BE36+'ptfire-wild'!BA36+np_solvents!BR36 -> 3,521 | L37: =rail!CF36+nonpt!DO36+ptagfire!BH36+nonroad!BT36+'onroad all'!BU36+cmv_c1c2!BC36+'ptfire-rx'!BP36+ptegu!DM36+ptnonipm!EH36+pt_oilgas!DM36+np_oilgas!CK36+rwc!BJ36+cmv_c3!BC36+livestock!AN36+airports!BN36+'ptfire-wild'!BL36+np_solvents!CF36 -> 2,542 | M37: =rail!CG36+nonpt!DQ36+nonroad!BU36+'onroad all'!BY36+cmv_c1c2!BD36+'ptfire-rx'!BR36+ptegu!DO36+ptnonipm!EJ36+pt_oilgas!DO36+np_oilgas!CL36+rwc!BK36+cmv_c3!BD36+airports!BO36+'ptfire-wild'!BN36+np_solvents!CG36+ptagfire!BJ36 -> 415 | N37: =rail!AN36+nonpt!BK36+nonroad!AJ36+'onroad all'!G36+cmv_c1c2!M36+'ptfire-rx'!AL36+ptegu!BK36+ptnonipm!BU36+pt_oilgas!BK36+np_oilgas!AT36+rwc!AG36+airports!AH36+cmv_c3!M36+'ptfire-wild'!AJ36+ptagfire!AH36 -> 257 | O37: =rail!AY36+nonpt!O36+ptagfire!AP36+nonroad!AR36+'onroad all'!Z36+cmv_c1c2!V36+'ptfire-rx'!AU36+ptegu!BX36+ptnonipm!CI36+pt_oilgas!BX36+np_oilgas!BD36+rwc!AN36+airports!AO36+cmv_c3!V36+'ptfire-wild'!AR36+np_solvents!AE36 -> 433 | P37: =rail!AD36+nonroad!AD36+'onroad all'!AK36+'onroad all'!AL36+'onroad all'!AM36+'onroad all'!AN36+'onroad all'!AO36+'onroad all'!AP36+ptnonipm!BI36+SUM(airports!AR36:AW36)+SUM(cmv_c1c2!AC36:AH36)+SUM(cmv_c3!AC36:AH36) -> 4,974 | Q37: =rail!AE36+nonroad!AE36+'onroad all'!AL36+'onroad all'!AM36+'onroad all'!AN36+'onroad all'!AO36+'onroad all'!AP36+ptnonipm!BJ36+SUM(airports!AS36:AW36)+SUM(cmv_c1c2!AD36:AH36)+SUM(cmv_c3!AD36:AH36) -> 4,703 | R37: =rail!P36+nonpt!T36+nonroad!R36+'onroad all'!AC36+ptegu!T36+ptnonipm!T36+pt_oilgas!S36+np_oilgas!Q36+SUM(cmv_c1c2!Z36:AA36)+SUM(cmv_c3!Z36:AA36) -> 1.89 | S37: =rail!K36+nonpt!L36+nonroad!U36+'onroad all'!M36+ptegu!L36+ptnonipm!L36+pt_oilgas!K36+np_oilgas!K36+SUM(cmv_c1c2!R36:S36)+SUM(cmv_c3!R36:S36) -> 1.72 | T37: =rail!O36+nonpt!P36+ptegu!P36+ptnonipm!P36+pt_oilgas!O36+np_oilgas!N36+rwc!M36+SUM(cmv_c1c2!W36:X36)+SUM(cmv_c3!W36:X36) -> 1.90 | U37: =rail!V36+nonpt!AI36+nonroad!T36+'onroad all'!CB36+ptegu!AH36+ptnonipm!AL36+pt_oilgas!AG36+np_oilgas!AA36+rwc!R36+SUM(cmv_c1c2!BF36:BG36)+SUM(cmv_c3!BF36:BG36) -> 40.99 | V37: =rail!T36+nonpt!AE36+nonroad!S36+'onroad all'!BS36+'onroad all'!BT36+ptegu!AD36+ptnonipm!AH36+pt_oilgas!AC36+np_oilgas!W36+rwc!P36+SUM(cmv_c1c2!BA36:BB36)+SUM(cmv_c3!BA36:BB36) -> 64.29 | W37: =nonpt!CW36+ptegu!BB36+ptnonipm!Z36 -> 0.10 | X37: X | AA37: Ohio | AB37: =B37+beis!H36 -> 1,431,339 | AC37: 85,803 | AD37: =D37+beis!T36 -> 297,965 | AE37: 126,926 | AF37: 63,616 | AG37: 102,158 | AH37: =H37+beis!Z36 -> 538,513 | AI37: =I37+beis!E36 -> 6,142 | AJ37: 3,171 | AK37: =K37+beis!N36 -> 9,388 | AL37: =L37+beis!R36 -> 24,216 | AM37: 415 | AN37: 257 | AO37: 433 | AP37: 4,974 | AQ37: 4,703 | AR37: 1.89 | AS37: 1.72 | AT37: 1.90 | AU37: 40.99 | AV37: 64.29 | AX37: Ohio | AY37: =B37-'ptfire-rx'!B36-'ptfire-wild'!B36 -> 1,370,361 | AZ37: =C37-'ptfire-rx'!C36-'ptfire-wild'!C36 -> 85,475 | BA37: =D37-'ptfire-rx'!D36-'ptfire-wild'!D36 -> 275,282 | BB37: =E37-'ptfire-rx'!E36-'ptfire-wild'!E36 -> 124,820 | BC37: =F37-'ptfire-rx'!F36-'ptfire-wild'!F36 -> 61,831 | BD37: =G37-'ptfire-rx'!G36-'ptfire-wild'!G36 -> 101,980 | BE37: =H37-'ptfire-rx'!H36-'ptfire-wild'!H36 -> 271,032 | BF37: =I37-'ptfire-rx'!AO36-'ptfire-wild'!AL36 -> 1,687 | BG37: =J37-'ptfire-rx'!AS36-'ptfire-wild'!AP36 -> 3,130 | BH37: =K37-'ptfire-rx'!BE36-'ptfire-wild'!BA36 -> 3,292 | BI37: =L37-'ptfire-rx'!BP36-'ptfire-wild'!BL36 -> 2,332 | BJ37: =M37-'ptfire-rx'!BR36-'ptfire-wild'!BN36 -> 371 | BK37: =N37-'ptfire-rx'!AL36-'ptfire-wild'!AJ36 -> 211 | BL37: =O37-'ptfire-rx'!AU36-'ptfire-wild'!AR36 -> 408 | BM37: 4,974 | BN37: 4,703 | BO37: 1.89 | BP37: 1.72 | BQ37: 1.90 | BR37: 40.99 | BS37: 64.29
A38: Oklahoma | B38: =rail!B37+nonpt!B37+ptagfire!B37+nonroad!B37+'onroad all'!AG37+cmv_c1c2!B37+'ptfire-rx'!B37+ptegu!B37+ptnonipm!B37+pt_oilgas!B37+np_oilgas!B37+rwc!B37+cmv_c3!B37+airports!B37+'ptfire-wild'!B37+np_solvents!B37 -> 1,257,728 | C38: =rail!C37+nonpt!C37+ptagfire!C37++nonroad!C37+'onroad all'!BZ37+cmv_c1c2!BE37+'ptfire-rx'!C37+ptegu!C37+ptnonipm!C37+pt_oilgas!C37+np_oilgas!C37+rwc!C37+cmv_c3!BE37+livestock!B37+airports!C37+'ptfire-wild'!C37+fertilizer!B37+np_solvents!C37 -> 189,441 | D38: =rail!D37+nonpt!D37+ptagfire!D37++nonroad!D37+cmv_c1c2!D37+'ptfire-rx'!D37+ptegu!DW37+ptnonipm!D37+pt_oilgas!D37+np_oilgas!D37+rwc!D37+cmv_c3!D37+'onroad all'!CI37+airports!D37+'ptfire-wild'!D37+np_solvents!D37 -> 242,262 | E38: =rail!E37+nonpt!E37+ptagfire!E37++nonroad!E37+cmv_c1c2!E37+'ptfire-rx'!E37+ptegu!E37+ptnonipm!E37+pt_oilgas!E37+np_oilgas!E37+rwc!E37+cmv_c3!E37+afdust!BA37+'onroad all'!DE37+'onroad all'!DD37+airports!E37+'ptfire-wild'!E37+np_solvents!E37 -> 367,045 | F38: =rail!F37+nonpt!F37+ptagfire!F37++nonroad!F37+cmv_c1c2!F37+'ptfire-rx'!F37+ptegu!F37+ptnonipm!F37+pt_oilgas!F37+np_oilgas!F37+rwc!F37+cmv_c3!F37+afdust!BB37+'onroad all'!DD37+airports!F37+'ptfire-wild'!F37+np_solvents!F37 -> 119,202 | G38: =rail!G37+nonpt!G37+ptagfire!G37++nonroad!G37+'onroad all'!DU37+cmv_c1c2!G37+'ptfire-rx'!G37+ptegu!FH37+ptnonipm!G37+pt_oilgas!G37+np_oilgas!G37+rwc!G37+cmv_c3!G37+airports!G37+'ptfire-wild'!G37+np_solvents!G37 -> 38,440 | H38: =rail!H37+nonpt!H37+ptagfire!H37++nonroad!H37+'onroad all'!EI37+cmv_c1c2!H37+'ptfire-rx'!H37+ptegu!H37+ptnonipm!H37+pt_oilgas!H37+np_oilgas!H37+rwc!H37+cmv_c3!H37+livestock!C37+airports!H37+'ptfire-wild'!H37+np_solvents!H37 -> 472,727 | I38: =rail!AO37+nonpt!BN37+ptagfire!AJ37+nonroad!AK37+'onroad all'!H37+cmv_c1c2!O37+'ptfire-rx'!AO37+ptegu!BM37+ptnonipm!BX37+pt_oilgas!BM37+np_oilgas!AU37+rwc!AH37+cmv_c3!O37+livestock!U37+airports!AJ37+'ptfire-wild'!AL37+np_solvents!AU37 -> 7,757 | J38: =rail!AU37+nonpt!BT37+ptagfire!AN37+nonroad!AP37+'onroad all'!P37+cmv_c1c2!T37+'ptfire-rx'!AS37+ptegu!BS37+ptnonipm!CD37+pt_oilgas!BS37+np_oilgas!BA37+rwc!AL37+cmv_c3!T37+livestock!X37+airports!AM37+'ptfire-wild'!AP37+np_solvents!AY37 -> 3,730 | K38: =rail!BR37+nonpt!CY37+ptagfire!AY37+nonroad!BH37+'onroad all'!BC37+cmv_c1c2!AO37+'ptfire-rx'!BE37+ptegu!CX37+ptnonipm!DP37+pt_oilgas!CW37+np_oilgas!BW37+rwc!AY37+cmv_c3!AP37+livestock!AH37+airports!BE37+'ptfire-wild'!BA37+np_solvents!BR37 -> 12,785 | L38: =rail!CF37+nonpt!DO37+ptagfire!BH37+nonroad!BT37+'onroad all'!BU37+cmv_c1c2!BC37+'ptfire-rx'!BP37+ptegu!DM37+ptnonipm!EH37+pt_oilgas!DM37+np_oilgas!CK37+rwc!BJ37+cmv_c3!BC37+livestock!AN37+airports!BN37+'ptfire-wild'!BL37+np_solvents!CF37 -> 10,531 | M38: =rail!CG37+nonpt!DQ37+nonroad!BU37+'onroad all'!BY37+cmv_c1c2!BD37+'ptfire-rx'!BR37+ptegu!DO37+ptnonipm!EJ37+pt_oilgas!DO37+np_oilgas!CL37+rwc!BK37+cmv_c3!BD37+airports!BO37+'ptfire-wild'!BN37+np_solvents!CG37+ptagfire!BJ37 -> 1,513 | N38: =rail!AN37+nonpt!BK37+nonroad!AJ37+'onroad all'!G37+cmv_c1c2!M37+'ptfire-rx'!AL37+ptegu!BK37+ptnonipm!BU37+pt_oilgas!BK37+np_oilgas!AT37+rwc!AG37+airports!AH37+cmv_c3!M37+'ptfire-wild'!AJ37+ptagfire!AH37 -> 2,561 | O38: =rail!AY37+nonpt!O37+ptagfire!AP37+nonroad!AR37+'onroad all'!Z37+cmv_c1c2!V37+'ptfire-rx'!AU37+ptegu!BX37+ptnonipm!CI37+pt_oilgas!BX37+np_oilgas!BD37+rwc!AN37+airports!AO37+cmv_c3!V37+'ptfire-wild'!AR37+np_solvents!AE37 -> 1,130 | P38: =rail!AD37+nonroad!AD37+'onroad all'!AK37+'onroad all'!AL37+'onroad all'!AM37+'onroad all'!AN37+'onroad all'!AO37+'onroad all'!AP37+ptnonipm!BI37+SUM(airports!AR37:AW37)+SUM(cmv_c1c2!AC37:AH37)+SUM(cmv_c3!AC37:AH37) -> 2,142 | Q38: =rail!AE37+nonroad!AE37+'onroad all'!AL37+'onroad all'!AM37+'onroad all'!AN37+'onroad all'!AO37+'onroad all'!AP37+ptnonipm!BJ37+SUM(airports!AS37:AW37)+SUM(cmv_c1c2!AD37:AH37)+SUM(cmv_c3!AD37:AH37) -> 2,023 | R38: =rail!P37+nonpt!T37+nonroad!R37+'onroad all'!AC37+ptegu!T37+ptnonipm!T37+pt_oilgas!S37+np_oilgas!Q37+SUM(cmv_c1c2!Z37:AA37)+SUM(cmv_c3!Z37:AA37) -> 0.65 | S38: =rail!K37+nonpt!L37+nonroad!U37+'onroad all'!M37+ptegu!L37+ptnonipm!L37+pt_oilgas!K37+np_oilgas!K37+SUM(cmv_c1c2!R37:S37)+SUM(cmv_c3!R37:S37) -> 0.88 | T38: =rail!O37+nonpt!P37+ptegu!P37+ptnonipm!P37+pt_oilgas!O37+np_oilgas!N37+rwc!M37+SUM(cmv_c1c2!W37:X37)+SUM(cmv_c3!W37:X37) -> 0.18 | U38: =rail!V37+nonpt!AI37+nonroad!T37+'onroad all'!CB37+ptegu!AH37+ptnonipm!AL37+pt_oilgas!AG37+np_oilgas!AA37+rwc!R37+SUM(cmv_c1c2!BF37:BG37)+SUM(cmv_c3!BF37:BG37) -> 7.82 | V38: =rail!T37+nonpt!AE37+nonroad!S37+'onroad all'!BS37+'onroad all'!BT37+ptegu!AD37+ptnonipm!AH37+pt_oilgas!AC37+np_oilgas!W37+rwc!P37+SUM(cmv_c1c2!BA37:BB37)+SUM(cmv_c3!BA37:BB37) -> 6.57 | W38: =nonpt!CW37+ptegu!BB37+ptnonipm!Z37 -> 1.09 | X38: X | AA38: Oklahoma | AB38: =B38+beis!H37 -> 1,340,645 | AC38: 189,441 | AD38: =D38+beis!T37 -> 267,202 | AE38: 367,045 | AF38: 119,202 | AG38: 38,440 | AH38: =H38+beis!Z37 -> 934,238 | AI38: =I38+beis!E37 -> 16,442 | AJ38: 3,730 | AK38: =K38+beis!N37 -> 24,628 | AL38: =L38+beis!R37 -> 61,474 | AM38: 1,513 | AN38: 2,561 | AO38: 1,130 | AP38: 2,142 | AQ38: 2,023 | AR38: 0.65 | AS38: 0.88 | AT38: 0.18 | AU38: 7.82 | AV38: 6.57 | AX38: Oklahoma | AY38: =B38-'ptfire-rx'!B37-'ptfire-wild'!B37 -> 692,579 | AZ38: =C38-'ptfire-rx'!C37-'ptfire-wild'!C37 -> 180,180 | BA38: =D38-'ptfire-rx'!D37-'ptfire-wild'!D37 -> 229,109 | BB38: =E38-'ptfire-rx'!E37-'ptfire-wild'!E37 -> 302,052 | BC38: =F38-'ptfire-rx'!F37-'ptfire-wild'!F37 -> 63,199 | BD38: =G38-'ptfire-rx'!G37-'ptfire-wild'!G37 -> 32,551 | BE38: =H38-'ptfire-rx'!H37-'ptfire-wild'!H37 -> 334,342 | BF38: =I38-'ptfire-rx'!AO37-'ptfire-wild'!AL37 -> 1,736 | BG38: =J38-'ptfire-rx'!AS37-'ptfire-wild'!AP37 -> 2,338 | BH38: =K38-'ptfire-rx'!BE37-'ptfire-wild'!BA37 -> 4,901 | BI38: =L38-'ptfire-rx'!BP37-'ptfire-wild'!BL37 -> 3,444 | BJ38: =M38-'ptfire-rx'!BR37-'ptfire-wild'!BN37 -> 210 | BK38: =N38-'ptfire-rx'!AL37-'ptfire-wild'!AJ37 -> 551 | BL38: =O38-'ptfire-rx'!AU37-'ptfire-wild'!AR37 -> 349 | BM38: 2,142 | BN38: 2,023 | BO38: 0.65 | BP38: 0.88 | BQ38: 0.18 | BR38: 7.82 | BS38: 6.57
A39: Oregon | B39: =rail!B38+nonpt!B38+ptagfire!B38+nonroad!B38+'onroad all'!AG38+cmv_c1c2!B38+'ptfire-rx'!B38+ptegu!B38+ptnonipm!B38+pt_oilgas!B38+np_oilgas!B38+rwc!B38+cmv_c3!B38+airports!B38+'ptfire-wild'!B38+np_solvents!B38 -> 1,412,438 | C39: =rail!C38+nonpt!C38+ptagfire!C38++nonroad!C38+'onroad all'!BZ38+cmv_c1c2!BE38+'ptfire-rx'!C38+ptegu!C38+ptnonipm!C38+pt_oilgas!C38+np_oilgas!C38+rwc!C38+cmv_c3!BE38+livestock!B38+airports!C38+'ptfire-wild'!C38+fertilizer!B38+np_solvents!C38 -> 45,016 | D39: =rail!D38+nonpt!D38+ptagfire!D38++nonroad!D38+cmv_c1c2!D38+'ptfire-rx'!D38+ptegu!DW38+ptnonipm!D38+pt_oilgas!D38+np_oilgas!D38+rwc!D38+cmv_c3!D38+'onroad all'!CI38+airports!D38+'ptfire-wild'!D38+np_solvents!D38 -> 108,911 | E39: =rail!E38+nonpt!E38+ptagfire!E38++nonroad!E38+cmv_c1c2!E38+'ptfire-rx'!E38+ptegu!E38+ptnonipm!E38+pt_oilgas!E38+np_oilgas!E38+rwc!E38+cmv_c3!E38+afdust!BA38+'onroad all'!DE38+'onroad all'!DD38+airports!E38+'ptfire-wild'!E38+np_solvents!E38 -> 333,098 | F39: =rail!F38+nonpt!F38+ptagfire!F38++nonroad!F38+cmv_c1c2!F38+'ptfire-rx'!F38+ptegu!F38+ptnonipm!F38+pt_oilgas!F38+np_oilgas!F38+rwc!F38+cmv_c3!F38+afdust!BB38+'onroad all'!DD38+airports!F38+'ptfire-wild'!F38+np_solvents!F38 -> 122,579 | G39: =rail!G38+nonpt!G38+ptagfire!G38++nonroad!G38+'onroad all'!DU38+cmv_c1c2!G38+'ptfire-rx'!G38+ptegu!FH38+ptnonipm!G38+pt_oilgas!G38+np_oilgas!G38+rwc!G38+cmv_c3!G38+airports!G38+'ptfire-wild'!G38+np_solvents!G38 -> 13,834 | H39: =rail!H38+nonpt!H38+ptagfire!H38++nonroad!H38+'onroad all'!EI38+cmv_c1c2!H38+'ptfire-rx'!H38+ptegu!H38+ptnonipm!H38+pt_oilgas!H38+np_oilgas!H38+rwc!H38+cmv_c3!H38+livestock!C38+airports!H38+'ptfire-wild'!H38+np_solvents!H38 -> 306,668 | I39: =rail!AO38+nonpt!BN38+ptagfire!AJ38+nonroad!AK38+'onroad all'!H38+cmv_c1c2!O38+'ptfire-rx'!AO38+ptegu!BM38+ptnonipm!BX38+pt_oilgas!BM38+np_oilgas!AU38+rwc!AH38+cmv_c3!O38+livestock!U38+airports!AJ38+'ptfire-wild'!AL38+np_solvents!AU38 -> 7,409 | J39: =rail!AU38+nonpt!BT38+ptagfire!AN38+nonroad!AP38+'onroad all'!P38+cmv_c1c2!T38+'ptfire-rx'!AS38+ptegu!BS38+ptnonipm!CD38+pt_oilgas!BS38+np_oilgas!BA38+rwc!AL38+cmv_c3!T38+livestock!X38+airports!AM38+'ptfire-wild'!AP38+np_solvents!AY38 -> 3,259 | K39: =rail!BR38+nonpt!CY38+ptagfire!AY38+nonroad!BH38+'onroad all'!BC38+cmv_c1c2!AO38+'ptfire-rx'!BE38+ptegu!CX38+ptnonipm!DP38+pt_oilgas!CW38+np_oilgas!BW38+rwc!AY38+cmv_c3!AP38+livestock!AH38+airports!BE38+'ptfire-wild'!BA38+np_solvents!BR38 -> 14,434 | L39: =rail!CF38+nonpt!DO38+ptagfire!BH38+nonroad!BT38+'onroad all'!BU38+cmv_c1c2!BC38+'ptfire-rx'!BP38+ptegu!DM38+ptnonipm!EH38+pt_oilgas!DM38+np_oilgas!CK38+rwc!BJ38+cmv_c3!BC38+livestock!AN38+airports!BN38+'ptfire-wild'!BL38+np_solvents!CF38 -> 16,600 | M39: =rail!CG38+nonpt!DQ38+nonroad!BU38+'onroad all'!BY38+cmv_c1c2!BD38+'ptfire-rx'!BR38+ptegu!DO38+ptnonipm!EJ38+pt_oilgas!DO38+np_oilgas!CL38+rwc!BK38+cmv_c3!BD38+airports!BO38+'ptfire-wild'!BN38+np_solvents!CG38+ptagfire!BJ38 -> 2,115 | N39: =rail!AN38+nonpt!BK38+nonroad!AJ38+'onroad all'!G38+cmv_c1c2!M38+'ptfire-rx'!AL38+ptegu!BK38+ptnonipm!BU38+pt_oilgas!BK38+np_oilgas!AT38+rwc!AG38+airports!AH38+cmv_c3!M38+'ptfire-wild'!AJ38+ptagfire!AH38 -> 2,075 | O39: =rail!AY38+nonpt!O38+ptagfire!AP38+nonroad!AR38+'onroad all'!Z38+cmv_c1c2!V38+'ptfire-rx'!AU38+ptegu!BX38+ptnonipm!CI38+pt_oilgas!BX38+np_oilgas!BD38+rwc!AN38+airports!AO38+cmv_c3!V38+'ptfire-wild'!AR38+np_solvents!AE38 -> 1,268 | P39: =rail!AD38+nonroad!AD38+'onroad all'!AK38+'onroad all'!AL38+'onroad all'!AM38+'onroad all'!AN38+'onroad all'!AO38+'onroad all'!AP38+ptnonipm!BI38+SUM(airports!AR38:AW38)+SUM(cmv_c1c2!AC38:AH38)+SUM(cmv_c3!AC38:AH38) -> 2,183 | Q39: =rail!AE38+nonroad!AE38+'onroad all'!AL38+'onroad all'!AM38+'onroad all'!AN38+'onroad all'!AO38+'onroad all'!AP38+ptnonipm!BJ38+SUM(airports!AS38:AW38)+SUM(cmv_c1c2!AD38:AH38)+SUM(cmv_c3!AD38:AH38) -> 2,053 | R39: =rail!P38+nonpt!T38+nonroad!R38+'onroad all'!AC38+ptegu!T38+ptnonipm!T38+pt_oilgas!S38+np_oilgas!Q38+SUM(cmv_c1c2!Z38:AA38)+SUM(cmv_c3!Z38:AA38) -> 0.77 | S39: =rail!K38+nonpt!L38+nonroad!U38+'onroad all'!M38+ptegu!L38+ptnonipm!L38+pt_oilgas!K38+np_oilgas!K38+SUM(cmv_c1c2!R38:S38)+SUM(cmv_c3!R38:S38) -> 0.59 | T39: =rail!O38+nonpt!P38+ptegu!P38+ptnonipm!P38+pt_oilgas!O38+np_oilgas!N38+rwc!M38+SUM(cmv_c1c2!W38:X38)+SUM(cmv_c3!W38:X38) -> 0.15 | U39: =rail!V38+nonpt!AI38+nonroad!T38+'onroad all'!CB38+ptegu!AH38+ptnonipm!AL38+pt_oilgas!AG38+np_oilgas!AA38+rwc!R38+SUM(cmv_c1c2!BF38:BG38)+SUM(cmv_c3!BF38:BG38) -> 1.97 | V39: =rail!T38+nonpt!AE38+nonroad!S38+'onroad all'!BS38+'onroad all'!BT38+ptegu!AD38+ptnonipm!AH38+pt_oilgas!AC38+np_oilgas!W38+rwc!P38+SUM(cmv_c1c2!BA38:BB38)+SUM(cmv_c3!BA38:BB38) -> 5.30 | W39: =nonpt!CW38+ptegu!BB38+ptnonipm!Z38 -> 0.02 | AA39: Oregon | AB39: =B39+beis!H38 -> 1,546,763 | AC39: 45,016 | AD39: =D39+beis!T38 -> 122,683 | AE39: 333,098 | AF39: 122,579 | AG39: 13,834 | AH39: =H39+beis!Z38 -> 1,064,540 | AI39: =I39+beis!E38 -> 21,480 | AJ39: 3,259 | AK39: =K39+beis!N38 -> 33,622 | AL39: =L39+beis!R38 -> 72,276 | AM39: 2,115 | AN39: 2,075 | AO39: 1,268 | AP39: 2,183 | AQ39: 2,053 | AR39: 0.77 | AS39: 0.59 | AT39: 0.15 | AU39: 1.97 | AV39: 5.30 | AX39: Oregon | AY39: =B39-'ptfire-rx'!B38-'ptfire-wild'!B38 -> 551,755 | AZ39: =C39-'ptfire-rx'!C38-'ptfire-wild'!C38 -> 30,948 | BA39: =D39-'ptfire-rx'!D38-'ptfire-wild'!D38 -> 100,118 | BB39: =E39-'ptfire-rx'!E38-'ptfire-wild'!E38 -> 248,177 | BC39: =F39-'ptfire-rx'!F38-'ptfire-wild'!F38 -> 50,611 | BD39: =G39-'ptfire-rx'!G38-'ptfire-wild'!G38 -> 8,268 | BE39: =H39-'ptfire-rx'!H38-'ptfire-wild'!H38 -> 104,430 | BF39: =I39-'ptfire-rx'!AO38-'ptfire-wild'!AL38 -> 1,034 | BG39: =J39-'ptfire-rx'!AS38-'ptfire-wild'!AP38 -> 1,550 | BH39: =K39-'ptfire-rx'!BE38-'ptfire-wild'!BA38 -> 1,701 | BI39: =L39-'ptfire-rx'!BP38-'ptfire-wild'!BL38 -> 2,272 | BJ39: =M39-'ptfire-rx'!BR38-'ptfire-wild'!BN38 -> 263 | BK39: =N39-'ptfire-rx'!AL38-'ptfire-wild'!AJ38 -> 127 | BL39: =O39-'ptfire-rx'!AU38-'ptfire-wild'!AR38 -> 237 | BM39: 2,183 | BN39: 2,053 | BO39: 0.77 | BP39: 0.59 | BQ39: 0.15 | BR39: 1.97 | BS39: 5.30
A40: Pennsylvania | B40: =rail!B39+nonpt!B39+ptagfire!B39+nonroad!B39+'onroad all'!AG39+cmv_c1c2!B39+'ptfire-rx'!B39+ptegu!B39+ptnonipm!B39+pt_oilgas!B39+np_oilgas!B39+rwc!B39+cmv_c3!B39+airports!B39+'ptfire-wild'!B39+np_solvents!B39 -> 1,251,686 | C40: =rail!C39+nonpt!C39+ptagfire!C39++nonroad!C39+'onroad all'!BZ39+cmv_c1c2!BE39+'ptfire-rx'!C39+ptegu!C39+ptnonipm!C39+pt_oilgas!C39+np_oilgas!C39+rwc!C39+cmv_c3!BE39+livestock!B39+airports!C39+'ptfire-wild'!C39+fertilizer!B39+np_solvents!C39 -> 62,778 | D40: =rail!D39+nonpt!D39+ptagfire!D39++nonroad!D39+cmv_c1c2!D39+'ptfire-rx'!D39+ptegu!DW39+ptnonipm!D39+pt_oilgas!D39+np_oilgas!D39+rwc!D39+cmv_c3!D39+'onroad all'!CI39+airports!D39+'ptfire-wild'!D39+np_solvents!D39 -> 289,617 | E40: =rail!E39+nonpt!E39+ptagfire!E39++nonroad!E39+cmv_c1c2!E39+'ptfire-rx'!E39+ptegu!E39+ptnonipm!E39+pt_oilgas!E39+np_oilgas!E39+rwc!E39+cmv_c3!E39+afdust!BA39+'onroad all'!DE39+'onroad all'!DD39+airports!E39+'ptfire-wild'!E39+np_solvents!E39 -> 113,556 | F40: =rail!F39+nonpt!F39+ptagfire!F39++nonroad!F39+cmv_c1c2!F39+'ptfire-rx'!F39+ptegu!F39+ptnonipm!F39+pt_oilgas!F39+np_oilgas!F39+rwc!F39+cmv_c3!F39+afdust!BB39+'onroad all'!DD39+airports!F39+'ptfire-wild'!F39+np_solvents!F39 -> 73,380 | G40: =rail!G39+nonpt!G39+ptagfire!G39++nonroad!G39+'onroad all'!DU39+cmv_c1c2!G39+'ptfire-rx'!G39+ptegu!FH39+ptnonipm!G39+pt_oilgas!G39+np_oilgas!G39+rwc!G39+cmv_c3!G39+airports!G39+'ptfire-wild'!G39+np_solvents!G39 -> 81,342 | H40: =rail!H39+nonpt!H39+ptagfire!H39++nonroad!H39+'onroad all'!EI39+cmv_c1c2!H39+'ptfire-rx'!H39+ptegu!H39+ptnonipm!H39+pt_oilgas!H39+np_oilgas!H39+rwc!H39+cmv_c3!H39+livestock!C39+airports!H39+'ptfire-wild'!H39+np_solvents!H39 -> 381,901 | I40: =rail!AO39+nonpt!BN39+ptagfire!AJ39+nonroad!AK39+'onroad all'!H39+cmv_c1c2!O39+'ptfire-rx'!AO39+ptegu!BM39+ptnonipm!BX39+pt_oilgas!BM39+np_oilgas!AU39+rwc!AH39+cmv_c3!O39+livestock!U39+airports!AJ39+'ptfire-wild'!AL39+np_solvents!AU39 -> 1,718 | J40: =rail!AU39+nonpt!BT39+ptagfire!AN39+nonroad!AP39+'onroad all'!P39+cmv_c1c2!T39+'ptfire-rx'!AS39+ptegu!BS39+ptnonipm!CD39+pt_oilgas!BS39+np_oilgas!BA39+rwc!AL39+cmv_c3!T39+livestock!X39+airports!AM39+'ptfire-wild'!AP39+np_solvents!AY39 -> 9,732 | K40: =rail!BR39+nonpt!CY39+ptagfire!AY39+nonroad!BH39+'onroad all'!BC39+cmv_c1c2!AO39+'ptfire-rx'!BE39+ptegu!CX39+ptnonipm!DP39+pt_oilgas!CW39+np_oilgas!BW39+rwc!AY39+cmv_c3!AP39+livestock!AH39+airports!BE39+'ptfire-wild'!BA39+np_solvents!BR39 -> 3,982 | L40: =rail!CF39+nonpt!DO39+ptagfire!BH39+nonroad!BT39+'onroad all'!BU39+cmv_c1c2!BC39+'ptfire-rx'!BP39+ptegu!DM39+ptnonipm!EH39+pt_oilgas!DM39+np_oilgas!CK39+rwc!BJ39+cmv_c3!BC39+livestock!AN39+airports!BN39+'ptfire-wild'!BL39+np_solvents!CF39 -> 3,342 | M40: =rail!CG39+nonpt!DQ39+nonroad!BU39+'onroad all'!BY39+cmv_c1c2!BD39+'ptfire-rx'!BR39+ptegu!DO39+ptnonipm!EJ39+pt_oilgas!DO39+np_oilgas!CL39+rwc!BK39+cmv_c3!BD39+airports!BO39+'ptfire-wild'!BN39+np_solvents!CG39+ptagfire!BJ39 -> 703 | N40: =rail!AN39+nonpt!BK39+nonroad!AJ39+'onroad all'!G39+cmv_c1c2!M39+'ptfire-rx'!AL39+ptegu!BK39+ptnonipm!BU39+pt_oilgas!BK39+np_oilgas!AT39+rwc!AG39+airports!AH39+cmv_c3!M39+'ptfire-wild'!AJ39+ptagfire!AH39 -> 307 | O40: =rail!AY39+nonpt!O39+ptagfire!AP39+nonroad!AR39+'onroad all'!Z39+cmv_c1c2!V39+'ptfire-rx'!AU39+ptegu!BX39+ptnonipm!CI39+pt_oilgas!BX39+np_oilgas!BD39+rwc!AN39+airports!AO39+cmv_c3!V39+'ptfire-wild'!AR39+np_solvents!AE39 -> 463 | P40: =rail!AD39+nonroad!AD39+'onroad all'!AK39+'onroad all'!AL39+'onroad all'!AM39+'onroad all'!AN39+'onroad all'!AO39+'onroad all'!AP39+ptnonipm!BI39+SUM(airports!AR39:AW39)+SUM(cmv_c1c2!AC39:AH39)+SUM(cmv_c3!AC39:AH39) -> 3,864 | Q40: =rail!AE39+nonroad!AE39+'onroad all'!AL39+'onroad all'!AM39+'onroad all'!AN39+'onroad all'!AO39+'onroad all'!AP39+ptnonipm!BJ39+SUM(airports!AS39:AW39)+SUM(cmv_c1c2!AD39:AH39)+SUM(cmv_c3!AD39:AH39) -> 3,651 | R40: =rail!P39+nonpt!T39+nonroad!R39+'onroad all'!AC39+ptegu!T39+ptnonipm!T39+pt_oilgas!S39+np_oilgas!Q39+SUM(cmv_c1c2!Z39:AA39)+SUM(cmv_c3!Z39:AA39) -> 2.70 | S40: =rail!K39+nonpt!L39+nonroad!U39+'onroad all'!M39+ptegu!L39+ptnonipm!L39+pt_oilgas!K39+np_oilgas!K39+SUM(cmv_c1c2!R39:S39)+SUM(cmv_c3!R39:S39) -> 2.44 | T40: =rail!O39+nonpt!P39+ptegu!P39+ptnonipm!P39+pt_oilgas!O39+np_oilgas!N39+rwc!M39+SUM(cmv_c1c2!W39:X39)+SUM(cmv_c3!W39:X39) -> 1.16 | U40: =rail!V39+nonpt!AI39+nonroad!T39+'onroad all'!CB39+ptegu!AH39+ptnonipm!AL39+pt_oilgas!AG39+np_oilgas!AA39+rwc!R39+SUM(cmv_c1c2!BF39:BG39)+SUM(cmv_c3!BF39:BG39) -> 20.73 | V40: =rail!T39+nonpt!AE39+nonroad!S39+'onroad all'!BS39+'onroad all'!BT39+ptegu!AD39+ptnonipm!AH39+pt_oilgas!AC39+np_oilgas!W39+rwc!P39+SUM(cmv_c1c2!BA39:BB39)+SUM(cmv_c3!BA39:BB39) -> 28.80 | W40: =nonpt!CW39+ptegu!BB39+ptnonipm!Z39 -> 2.13 | X40: X | AA40: Pennsylvania | AB40: =B40+beis!H39 -> 1,301,606 | AC40: 62,778 | AD40: =D40+beis!T39 -> 302,267 | AE40: 113,556 | AF40: 73,380 | AG40: 81,342 | AH40: =H40+beis!Z39 -> 814,803 | AI40: =I40+beis!E39 -> 6,937 | AJ40: 9,732 | AK40: =K40+beis!N39 -> 11,099 | AL40: =L40+beis!R39 -> 26,345 | AM40: 703 | AN40: 307 | AO40: 463 | AP40: 3,864 | AQ40: 3,651 | AR40: 2.70 | AS40: 2.44 | AT40: 1.16 | AU40: 20.73 | AV40: 28.80 | AX40: Pennsylvania | AY40: =B40-'ptfire-rx'!B39-'ptfire-wild'!B39 -> 1,229,875 | AZ40: =C40-'ptfire-rx'!C39-'ptfire-wild'!C39 -> 62,418 | BA40: =D40-'ptfire-rx'!D39-'ptfire-wild'!D39 -> 289,220 | BB40: =E40-'ptfire-rx'!E39-'ptfire-wild'!E39 -> 111,249 | BC40: =F40-'ptfire-rx'!F39-'ptfire-wild'!F39 -> 71,425 | BD40: =G40-'ptfire-rx'!G39-'ptfire-wild'!G39 -> 81,147 | BE40: =H40-'ptfire-rx'!H39-'ptfire-wild'!H39 -> 376,728 | BF40: =I40-'ptfire-rx'!AO39-'ptfire-wild'!AL39 -> 1,591 | BG40: =J40-'ptfire-rx'!AS39-'ptfire-wild'!AP39 -> 9,676 | BH40: =K40-'ptfire-rx'!BE39-'ptfire-wild'!BA39 -> 3,649 | BI40: =L40-'ptfire-rx'!BP39-'ptfire-wild'!BL39 -> 3,146 | BJ40: =M40-'ptfire-rx'!BR39-'ptfire-wild'!BN39 -> 664 | BK40: =N40-'ptfire-rx'!AL39-'ptfire-wild'!AJ39 -> 243 | BL40: =O40-'ptfire-rx'!AU39-'ptfire-wild'!AR39 -> 411 | BM40: 3,864 | BN40: 3,651 | BO40: 2.70 | BP40: 2.44 | BQ40: 1.16 | BR40: 20.73 | BS40: 28.80
A41: Rhode Island | B41: =rail!B40+nonpt!B40+ptagfire!B40+nonroad!B40+'onroad all'!AG40+cmv_c1c2!B40+'ptfire-rx'!B40+ptegu!B40+ptnonipm!B40+pt_oilgas!B40+np_oilgas!B40+rwc!B40+cmv_c3!B40+airports!B40+'ptfire-wild'!B40+np_solvents!B40 -> 75,841 | C41: =rail!C40+nonpt!C40+ptagfire!C40++nonroad!C40+'onroad all'!BZ40+cmv_c1c2!BE40+'ptfire-rx'!C40+ptegu!C40+ptnonipm!C40+pt_oilgas!C40+np_oilgas!C40+rwc!C40+cmv_c3!BE40+livestock!B40+airports!C40+'ptfire-wild'!C40+fertilizer!B40+np_solvents!C40 -> 775 | D41: =rail!D40+nonpt!D40+ptagfire!D40++nonroad!D40+cmv_c1c2!D40+'ptfire-rx'!D40+ptegu!DW40+ptnonipm!D40+pt_oilgas!D40+np_oilgas!D40+rwc!D40+cmv_c3!D40+'onroad all'!CI40+airports!D40+'ptfire-wild'!D40+np_solvents!D40 -> 11,990 | E41: =rail!E40+nonpt!E40+ptagfire!E40++nonroad!E40+cmv_c1c2!E40+'ptfire-rx'!E40+ptegu!E40+ptnonipm!E40+pt_oilgas!E40+np_oilgas!E40+rwc!E40+cmv_c3!E40+afdust!BA40+'onroad all'!DE40+'onroad all'!DD40+airports!E40+'ptfire-wild'!E40+np_solvents!E40 -> 4,810 | F41: =rail!F40+nonpt!F40+ptagfire!F40++nonroad!F40+cmv_c1c2!F40+'ptfire-rx'!F40+ptegu!F40+ptnonipm!F40+pt_oilgas!F40+np_oilgas!F40+rwc!F40+cmv_c3!F40+afdust!BB40+'onroad all'!DD40+airports!F40+'ptfire-wild'!F40+np_solvents!F40 -> 3,034 | G41: =rail!G40+nonpt!G40+ptagfire!G40++nonroad!G40+'onroad all'!DU40+cmv_c1c2!G40+'ptfire-rx'!G40+ptegu!FH40+ptnonipm!G40+pt_oilgas!G40+np_oilgas!G40+rwc!G40+cmv_c3!G40+airports!G40+'ptfire-wild'!G40+np_solvents!G40 -> 886 | H41: =rail!H40+nonpt!H40+ptagfire!H40++nonroad!H40+'onroad all'!EI40+cmv_c1c2!H40+'ptfire-rx'!H40+ptegu!H40+ptnonipm!H40+pt_oilgas!H40+np_oilgas!H40+rwc!H40+cmv_c3!H40+livestock!C40+airports!H40+'ptfire-wild'!H40+np_solvents!H40 -> 14,713 | I41: =rail!AO40+nonpt!BN40+ptagfire!AJ40+nonroad!AK40+'onroad all'!H40+cmv_c1c2!O40+'ptfire-rx'!AO40+ptegu!BM40+ptnonipm!BX40+pt_oilgas!BM40+np_oilgas!AU40+rwc!AH40+cmv_c3!O40+livestock!U40+airports!AJ40+'ptfire-wild'!AL40+np_solvents!AU40 -> 95 | J41: =rail!AU40+nonpt!BT40+ptagfire!AN40+nonroad!AP40+'onroad all'!P40+cmv_c1c2!T40+'ptfire-rx'!AS40+ptegu!BS40+ptnonipm!CD40+pt_oilgas!BS40+np_oilgas!BA40+rwc!AL40+cmv_c3!T40+livestock!X40+airports!AM40+'ptfire-wild'!AP40+np_solvents!AY40 -> 177 | K41: =rail!BR40+nonpt!CY40+ptagfire!AY40+nonroad!BH40+'onroad all'!BC40+cmv_c1c2!AO40+'ptfire-rx'!BE40+ptegu!CX40+ptnonipm!DP40+pt_oilgas!CW40+np_oilgas!BW40+rwc!AY40+cmv_c3!AP40+livestock!AH40+airports!BE40+'ptfire-wild'!BA40+np_solvents!BR40 -> 192 | L41: =rail!CF40+nonpt!DO40+ptagfire!BH40+nonroad!BT40+'onroad all'!BU40+cmv_c1c2!BC40+'ptfire-rx'!BP40+ptegu!DM40+ptnonipm!EH40+pt_oilgas!DM40+np_oilgas!CK40+rwc!BJ40+cmv_c3!BC40+livestock!AN40+airports!BN40+'ptfire-wild'!BL40+np_solvents!CF40 -> 183 | M41: =rail!CG40+nonpt!DQ40+nonroad!BU40+'onroad all'!BY40+cmv_c1c2!BD40+'ptfire-rx'!BR40+ptegu!DO40+ptnonipm!EJ40+pt_oilgas!DO40+np_oilgas!CL40+rwc!BK40+cmv_c3!BD40+airports!BO40+'ptfire-wild'!BN40+np_solvents!CG40+ptagfire!BJ40 -> 18 | N41: =rail!AN40+nonpt!BK40+nonroad!AJ40+'onroad all'!G40+cmv_c1c2!M40+'ptfire-rx'!AL40+ptegu!BK40+ptnonipm!BU40+pt_oilgas!BK40+np_oilgas!AT40+rwc!AG40+airports!AH40+cmv_c3!M40+'ptfire-wild'!AJ40+ptagfire!AH40 -> 11 | O41: =rail!AY40+nonpt!O40+ptagfire!AP40+nonroad!AR40+'onroad all'!Z40+cmv_c1c2!V40+'ptfire-rx'!AU40+ptegu!BX40+ptnonipm!CI40+pt_oilgas!BX40+np_oilgas!BD40+rwc!AN40+airports!AO40+cmv_c3!V40+'ptfire-wild'!AR40+np_solvents!AE40 -> 28 | P41: =rail!AD40+nonroad!AD40+'onroad all'!AK40+'onroad all'!AL40+'onroad all'!AM40+'onroad all'!AN40+'onroad all'!AO40+'onroad all'!AP40+ptnonipm!BI40+SUM(airports!AR40:AW40)+SUM(cmv_c1c2!AC40:AH40)+SUM(cmv_c3!AC40:AH40) -> 225 | Q41: =rail!AE40+nonroad!AE40+'onroad all'!AL40+'onroad all'!AM40+'onroad all'!AN40+'onroad all'!AO40+'onroad all'!AP40+ptnonipm!BJ40+SUM(airports!AS40:AW40)+SUM(cmv_c1c2!AD40:AH40)+SUM(cmv_c3!AD40:AH40) -> 213 | R41: =rail!P40+nonpt!T40+nonroad!R40+'onroad all'!AC40+ptegu!T40+ptnonipm!T40+pt_oilgas!S40+np_oilgas!Q40+SUM(cmv_c1c2!Z40:AA40)+SUM(cmv_c3!Z40:AA40) -> 0.01 | S41: =rail!K40+nonpt!L40+nonroad!U40+'onroad all'!M40+ptegu!L40+ptnonipm!L40+pt_oilgas!K40+np_oilgas!K40+SUM(cmv_c1c2!R40:S40)+SUM(cmv_c3!R40:S40) -> 0.05 | T41: =rail!O40+nonpt!P40+ptegu!P40+ptnonipm!P40+pt_oilgas!O40+np_oilgas!N40+rwc!M40+SUM(cmv_c1c2!W40:X40)+SUM(cmv_c3!W40:X40) -> 0.03 | U41: =rail!V40+nonpt!AI40+nonroad!T40+'onroad all'!CB40+ptegu!AH40+ptnonipm!AL40+pt_oilgas!AG40+np_oilgas!AA40+rwc!R40+SUM(cmv_c1c2!BF40:BG40)+SUM(cmv_c3!BF40:BG40) -> 0.48 | V41: =rail!T40+nonpt!AE40+nonroad!S40+'onroad all'!BS40+'onroad all'!BT40+ptegu!AD40+ptnonipm!AH40+pt_oilgas!AC40+np_oilgas!W40+rwc!P40+SUM(cmv_c1c2!BA40:BB40)+SUM(cmv_c3!BA40:BB40) -> 0.22 | W41: =nonpt!CW40+ptegu!BB40+ptnonipm!Z40 -> 0.36 | X41: X | AA41: Rhode Island | AB41: =B41+beis!H40 -> 77,458 | AC41: 775 | AD41: =D41+beis!T40 -> 12,148 | AE41: 4,810 | AF41: 3,034 | AG41: 886 | AH41: =H41+beis!Z40 -> 32,054 | AI41: =I41+beis!E40 -> 264 | AJ41: 177 | AK41: =K41+beis!N40 -> 422 | AL41: =L41+beis!R40 -> 894 | AM41: 18 | AN41: 11 | AO41: 28 | AP41: 225 | AQ41: 213 | AR41: 0.01 | AS41: 0.05 | AT41: 0.03 | AU41: 0.48 | AV41: 0.22 | AX41: Rhode Island | AY41: =B41-'ptfire-rx'!B40-'ptfire-wild'!B40 -> 75,747 | AZ41: =C41-'ptfire-rx'!C40-'ptfire-wild'!C40 -> 773 | BA41: =D41-'ptfire-rx'!D40-'ptfire-wild'!D40 -> 11,989 | BB41: =E41-'ptfire-rx'!E40-'ptfire-wild'!E40 -> 4,800 | BC41: =F41-'ptfire-rx'!F40-'ptfire-wild'!F40 -> 3,025 | BD41: =G41-'ptfire-rx'!G40-'ptfire-wild'!G40 -> 885 | BE41: =H41-'ptfire-rx'!H40-'ptfire-wild'!H40 -> 14,691 | BF41: =I41-'ptfire-rx'!AO40-'ptfire-wild'!AL40 -> 94 | BG41: =J41-'ptfire-rx'!AS40-'ptfire-wild'!AP40 -> 176 | BH41: =K41-'ptfire-rx'!BE40-'ptfire-wild'!BA40 -> 190 | BI41: =L41-'ptfire-rx'!BP40-'ptfire-wild'!BL40 -> 182 | BJ41: =M41-'ptfire-rx'!BR40-'ptfire-wild'!BN40 -> 18 | BK41: =N41-'ptfire-rx'!AL40-'ptfire-wild'!AJ40 -> 11 | BL41: =O41-'ptfire-rx'!AU40-'ptfire-wild'!AR40 -> 28 | BM41: 225 | BN41: 213 | BO41: 0.01 | BP41: 0.05 | BQ41: 0.03 | BR41: 0.48 | BS41: 0.22
A42: South Carolina | B42: =rail!B41+nonpt!B41+ptagfire!B41+nonroad!B41+'onroad all'!AG41+cmv_c1c2!B41+'ptfire-rx'!B41+ptegu!B41+ptnonipm!B41+pt_oilgas!B41+np_oilgas!B41+rwc!B41+cmv_c3!B41+airports!B41+'ptfire-wild'!B41+np_solvents!B41 -> 1,057,612 | C42: =rail!C41+nonpt!C41+ptagfire!C41++nonroad!C41+'onroad all'!BZ41+cmv_c1c2!BE41+'ptfire-rx'!C41+ptegu!C41+ptnonipm!C41+pt_oilgas!C41+np_oilgas!C41+rwc!C41+cmv_c3!BE41+livestock!B41+airports!C41+'ptfire-wild'!C41+fertilizer!B41+np_solvents!C41 -> 39,168 | D42: =rail!D41+nonpt!D41+ptagfire!D41++nonroad!D41+cmv_c1c2!D41+'ptfire-rx'!D41+ptegu!DW41+ptnonipm!D41+pt_oilgas!D41+np_oilgas!D41+rwc!D41+cmv_c3!D41+'onroad all'!CI41+airports!D41+'ptfire-wild'!D41+np_solvents!D41 -> 133,170 | E42: =rail!E41+nonpt!E41+ptagfire!E41++nonroad!E41+cmv_c1c2!E41+'ptfire-rx'!E41+ptegu!E41+ptnonipm!E41+pt_oilgas!E41+np_oilgas!E41+rwc!E41+cmv_c3!E41+afdust!BA41+'onroad all'!DE41+'onroad all'!DD41+airports!E41+'ptfire-wild'!E41+np_solvents!E41 -> 105,382 | F42: =rail!F41+nonpt!F41+ptagfire!F41++nonroad!F41+cmv_c1c2!F41+'ptfire-rx'!F41+ptegu!F41+ptnonipm!F41+pt_oilgas!F41+np_oilgas!F41+rwc!F41+cmv_c3!F41+afdust!BB41+'onroad all'!DD41+airports!F41+'ptfire-wild'!F41+np_solvents!F41 -> 62,832 | G42: =rail!G41+nonpt!G41+ptagfire!G41++nonroad!G41+'onroad all'!DU41+cmv_c1c2!G41+'ptfire-rx'!G41+ptegu!FH41+ptnonipm!G41+pt_oilgas!G41+np_oilgas!G41+rwc!G41+cmv_c3!G41+airports!G41+'ptfire-wild'!G41+np_solvents!G41 -> 21,266 | H42: =rail!H41+nonpt!H41+ptagfire!H41++nonroad!H41+'onroad all'!EI41+cmv_c1c2!H41+'ptfire-rx'!H41+ptegu!H41+ptnonipm!H41+pt_oilgas!H41+np_oilgas!H41+rwc!H41+cmv_c3!H41+livestock!C41+airports!H41+'ptfire-wild'!H41+np_solvents!H41 -> 201,292 | I42: =rail!AO41+nonpt!BN41+ptagfire!AJ41+nonroad!AK41+'onroad all'!H41+cmv_c1c2!O41+'ptfire-rx'!AO41+ptegu!BM41+ptnonipm!BX41+pt_oilgas!BM41+np_oilgas!AU41+rwc!AH41+cmv_c3!O41+livestock!U41+airports!AJ41+'ptfire-wild'!AL41+np_solvents!AU41 -> 2,774 | J42: =rail!AU41+nonpt!BT41+ptagfire!AN41+nonroad!AP41+'onroad all'!P41+cmv_c1c2!T41+'ptfire-rx'!AS41+ptegu!BS41+ptnonipm!CD41+pt_oilgas!BS41+np_oilgas!BA41+rwc!AL41+cmv_c3!T41+livestock!X41+airports!AM41+'ptfire-wild'!AP41+np_solvents!AY41 -> 2,328 | K42: =rail!BR41+nonpt!CY41+ptagfire!AY41+nonroad!BH41+'onroad all'!BC41+cmv_c1c2!AO41+'ptfire-rx'!BE41+ptegu!CX41+ptnonipm!DP41+pt_oilgas!CW41+np_oilgas!BW41+rwc!AY41+cmv_c3!AP41+livestock!AH41+airports!BE41+'ptfire-wild'!BA41+np_solvents!BR41 -> 5,951 | L42: =rail!CF41+nonpt!DO41+ptagfire!BH41+nonroad!BT41+'onroad all'!BU41+cmv_c1c2!BC41+'ptfire-rx'!BP41+ptegu!DM41+ptnonipm!EH41+pt_oilgas!DM41+np_oilgas!CK41+rwc!BJ41+cmv_c3!BC41+livestock!AN41+airports!BN41+'ptfire-wild'!BL41+np_solvents!CF41 -> 6,477 | M42: =rail!CG41+nonpt!DQ41+nonroad!BU41+'onroad all'!BY41+cmv_c1c2!BD41+'ptfire-rx'!BR41+ptegu!DO41+ptnonipm!EJ41+pt_oilgas!DO41+np_oilgas!CL41+rwc!BK41+cmv_c3!BD41+airports!BO41+'ptfire-wild'!BN41+np_solvents!CG41+ptagfire!BJ41 -> 665 | N42: =rail!AN41+nonpt!BK41+nonroad!AJ41+'onroad all'!G41+cmv_c1c2!M41+'ptfire-rx'!AL41+ptegu!BK41+ptnonipm!BU41+pt_oilgas!BK41+np_oilgas!AT41+rwc!AG41+airports!AH41+cmv_c3!M41+'ptfire-wild'!AJ41+ptagfire!AH41 -> 1,019 | O42: =rail!AY41+nonpt!O41+ptagfire!AP41+nonroad!AR41+'onroad all'!Z41+cmv_c1c2!V41+'ptfire-rx'!AU41+ptegu!BX41+ptnonipm!CI41+pt_oilgas!BX41+np_oilgas!BD41+rwc!AN41+airports!AO41+cmv_c3!V41+'ptfire-wild'!AR41+np_solvents!AE41 -> 889 | P42: =rail!AD41+nonroad!AD41+'onroad all'!AK41+'onroad all'!AL41+'onroad all'!AM41+'onroad all'!AN41+'onroad all'!AO41+'onroad all'!AP41+ptnonipm!BI41+SUM(airports!AR41:AW41)+SUM(cmv_c1c2!AC41:AH41)+SUM(cmv_c3!AC41:AH41) -> 2,099 | Q42: =rail!AE41+nonroad!AE41+'onroad all'!AL41+'onroad all'!AM41+'onroad all'!AN41+'onroad all'!AO41+'onroad all'!AP41+ptnonipm!BJ41+SUM(airports!AS41:AW41)+SUM(cmv_c1c2!AD41:AH41)+SUM(cmv_c3!AD41:AH41) -> 1,965 | R42: =rail!P41+nonpt!T41+nonroad!R41+'onroad all'!AC41+ptegu!T41+ptnonipm!T41+pt_oilgas!S41+np_oilgas!Q41+SUM(cmv_c1c2!Z41:AA41)+SUM(cmv_c3!Z41:AA41) -> 0.57 | S42: =rail!K41+nonpt!L41+nonroad!U41+'onroad all'!M41+ptegu!L41+ptnonipm!L41+pt_oilgas!K41+np_oilgas!K41+SUM(cmv_c1c2!R41:S41)+SUM(cmv_c3!R41:S41) -> 1.18 | T42: =rail!O41+nonpt!P41+ptegu!P41+ptnonipm!P41+pt_oilgas!O41+np_oilgas!N41+rwc!M41+SUM(cmv_c1c2!W41:X41)+SUM(cmv_c3!W41:X41) -> 0.27 | U42: =rail!V41+nonpt!AI41+nonroad!T41+'onroad all'!CB41+ptegu!AH41+ptnonipm!AL41+pt_oilgas!AG41+np_oilgas!AA41+rwc!R41+SUM(cmv_c1c2!BF41:BG41)+SUM(cmv_c3!BF41:BG41) -> 4.17 | V42: =rail!T41+nonpt!AE41+nonroad!S41+'onroad all'!BS41+'onroad all'!BT41+ptegu!AD41+ptnonipm!AH41+pt_oilgas!AC41+np_oilgas!W41+rwc!P41+SUM(cmv_c1c2!BA41:BB41)+SUM(cmv_c3!BA41:BB41) -> 24.76 | W42: =nonpt!CW41+ptegu!BB41+ptnonipm!Z41 -> 3.12 | X42: X | AA42: South Carolina | AB42: =B42+beis!H41 -> 1,134,403 | AC42: 39,168 | AD42: =D42+beis!T41 -> 145,618 | AE42: 105,382 | AF42: 62,832 | AG42: 21,266 | AH42: =H42+beis!Z41 -> 1,017,670 | AI42: =I42+beis!E41 -> 10,813 | AJ42: 2,328 | AK42: =K42+beis!N41 -> 16,914 | AL42: =L42+beis!R41 -> 52,204 | AM42: 665 | AN42: 1,019 | AO42: 889 | AP42: 2,099 | AQ42: 1,965 | AR42: 0.57 | AS42: 1.18 | AT42: 0.27 | AU42: 4.17 | AV42: 24.76 | AX42: South Carolina | AY42: =B42-'ptfire-rx'!B41-'ptfire-wild'!B41 -> 769,929 | AZ42: =C42-'ptfire-rx'!C41-'ptfire-wild'!C41 -> 34,421 | BA42: =D42-'ptfire-rx'!D41-'ptfire-wild'!D41 -> 127,970 | BB42: =E42-'ptfire-rx'!E41-'ptfire-wild'!E41 -> 74,978 | BC42: =F42-'ptfire-rx'!F41-'ptfire-wild'!F41 -> 37,066 | BD42: =G42-'ptfire-rx'!G41-'ptfire-wild'!G41 -> 18,715 | BE42: =H42-'ptfire-rx'!H41-'ptfire-wild'!H41 -> 133,063 | BF42: =I42-'ptfire-rx'!AO41-'ptfire-wild'!AL41 -> 1,092 | BG42: =J42-'ptfire-rx'!AS41-'ptfire-wild'!AP41 -> 1,581 | BH42: =K42-'ptfire-rx'!BE41-'ptfire-wild'!BA41 -> 1,559 | BI42: =L42-'ptfire-rx'!BP41-'ptfire-wild'!BL41 -> 3,895 | BJ42: =M42-'ptfire-rx'!BR41-'ptfire-wild'!BN41 -> 143 | BK42: =N42-'ptfire-rx'!AL41-'ptfire-wild'!AJ41 -> 178 | BL42: =O42-'ptfire-rx'!AU41-'ptfire-wild'!AR41 -> 223 | BM42: 2,099 | BN42: 1,965 | BO42: 0.57 | BP42: 1.18 | BQ42: 0.27 | BR42: 4.17 | BS42: 24.76
A43: South Dakota | B43: =rail!B42+nonpt!B42+ptagfire!B42+nonroad!B42+'onroad all'!AG42+cmv_c1c2!B42+'ptfire-rx'!B42+ptegu!B42+ptnonipm!B42+pt_oilgas!B42+np_oilgas!B42+rwc!B42+cmv_c3!B42+airports!B42+'ptfire-wild'!B42+np_solvents!B42 -> 179,475 | C43: =rail!C42+nonpt!C42+ptagfire!C42++nonroad!C42+'onroad all'!BZ42+cmv_c1c2!BE42+'ptfire-rx'!C42+ptegu!C42+ptnonipm!C42+pt_oilgas!C42+np_oilgas!C42+rwc!C42+cmv_c3!BE42+livestock!B42+airports!C42+'ptfire-wild'!C42+fertilizer!B42+np_solvents!C42 -> 81,904 | D43: =rail!D42+nonpt!D42+ptagfire!D42++nonroad!D42+cmv_c1c2!D42+'ptfire-rx'!D42+ptegu!DW42+ptnonipm!D42+pt_oilgas!D42+np_oilgas!D42+rwc!D42+cmv_c3!D42+'onroad all'!CI42+airports!D42+'ptfire-wild'!D42+np_solvents!D42 -> 40,492 | E43: =rail!E42+nonpt!E42+ptagfire!E42++nonroad!E42+cmv_c1c2!E42+'ptfire-rx'!E42+ptegu!E42+ptnonipm!E42+pt_oilgas!E42+np_oilgas!E42+rwc!E42+cmv_c3!E42+afdust!BA42+'onroad all'!DE42+'onroad all'!DD42+airports!E42+'ptfire-wild'!E42+np_solvents!E42 -> 78,797 | F43: =rail!F42+nonpt!F42+ptagfire!F42++nonroad!F42+cmv_c1c2!F42+'ptfire-rx'!F42+ptegu!F42+ptnonipm!F42+pt_oilgas!F42+np_oilgas!F42+rwc!F42+cmv_c3!F42+afdust!BB42+'onroad all'!DD42+airports!F42+'ptfire-wild'!F42+np_solvents!F42 -> 20,723 | G43: =rail!G42+nonpt!G42+ptagfire!G42++nonroad!G42+'onroad all'!DU42+cmv_c1c2!G42+'ptfire-rx'!G42+ptegu!FH42+ptnonipm!G42+pt_oilgas!G42+np_oilgas!G42+rwc!G42+cmv_c3!G42+airports!G42+'ptfire-wild'!G42+np_solvents!G42 -> 3,476 | H43: =rail!H42+nonpt!H42+ptagfire!H42++nonroad!H42+'onroad all'!EI42+cmv_c1c2!H42+'ptfire-rx'!H42+ptegu!H42+ptnonipm!H42+pt_oilgas!H42+np_oilgas!H42+rwc!H42+cmv_c3!H42+livestock!C42+airports!H42+'ptfire-wild'!H42+np_solvents!H42 -> 57,197 | I43: =rail!AO42+nonpt!BN42+ptagfire!AJ42+nonroad!AK42+'onroad all'!H42+cmv_c1c2!O42+'ptfire-rx'!AO42+ptegu!BM42+ptnonipm!BX42+pt_oilgas!BM42+np_oilgas!AU42+rwc!AH42+cmv_c3!O42+livestock!U42+airports!AJ42+'ptfire-wild'!AL42+np_solvents!AU42 -> 664 | J43: =rail!AU42+nonpt!BT42+ptagfire!AN42+nonroad!AP42+'onroad all'!P42+cmv_c1c2!T42+'ptfire-rx'!AS42+ptegu!BS42+ptnonipm!CD42+pt_oilgas!BS42+np_oilgas!BA42+rwc!AL42+cmv_c3!T42+livestock!X42+airports!AM42+'ptfire-wild'!AP42+np_solvents!AY42 -> 527 | K43: =rail!BR42+nonpt!CY42+ptagfire!AY42+nonroad!BH42+'onroad all'!BC42+cmv_c1c2!AO42+'ptfire-rx'!BE42+ptegu!CX42+ptnonipm!DP42+pt_oilgas!CW42+np_oilgas!BW42+rwc!AY42+cmv_c3!AP42+livestock!AH42+airports!BE42+'ptfire-wild'!BA42+np_solvents!BR42 -> 1,131 | L43: =rail!CF42+nonpt!DO42+ptagfire!BH42+nonroad!BT42+'onroad all'!BU42+cmv_c1c2!BC42+'ptfire-rx'!BP42+ptegu!DM42+ptnonipm!EH42+pt_oilgas!DM42+np_oilgas!CK42+rwc!BJ42+cmv_c3!BC42+livestock!AN42+airports!BN42+'ptfire-wild'!BL42+np_solvents!CF42 -> 986 | M43: =rail!CG42+nonpt!DQ42+nonroad!BU42+'onroad all'!BY42+cmv_c1c2!BD42+'ptfire-rx'!BR42+ptegu!DO42+ptnonipm!EJ42+pt_oilgas!DO42+np_oilgas!CL42+rwc!BK42+cmv_c3!BD42+airports!BO42+'ptfire-wild'!BN42+np_solvents!CG42+ptagfire!BJ42 -> 368 | N43: =rail!AN42+nonpt!BK42+nonroad!AJ42+'onroad all'!G42+cmv_c1c2!M42+'ptfire-rx'!AL42+ptegu!BK42+ptnonipm!BU42+pt_oilgas!BK42+np_oilgas!AT42+rwc!AG42+airports!AH42+cmv_c3!M42+'ptfire-wild'!AJ42+ptagfire!AH42 -> 143 | O43: =rail!AY42+nonpt!O42+ptagfire!AP42+nonroad!AR42+'onroad all'!Z42+cmv_c1c2!V42+'ptfire-rx'!AU42+ptegu!BX42+ptnonipm!CI42+pt_oilgas!BX42+np_oilgas!BD42+rwc!AN42+airports!AO42+cmv_c3!V42+'ptfire-wild'!AR42+np_solvents!AE42 -> 100 | P43: =rail!AD42+nonroad!AD42+'onroad all'!AK42+'onroad all'!AL42+'onroad all'!AM42+'onroad all'!AN42+'onroad all'!AO42+'onroad all'!AP42+ptnonipm!BI42+SUM(airports!AR42:AW42)+SUM(cmv_c1c2!AC42:AH42)+SUM(cmv_c3!AC42:AH42) -> 1,330 | Q43: =rail!AE42+nonroad!AE42+'onroad all'!AL42+'onroad all'!AM42+'onroad all'!AN42+'onroad all'!AO42+'onroad all'!AP42+ptnonipm!BJ42+SUM(airports!AS42:AW42)+SUM(cmv_c1c2!AD42:AH42)+SUM(cmv_c3!AD42:AH42) -> 1,274 | R43: =rail!P42+nonpt!T42+nonroad!R42+'onroad all'!AC42+ptegu!T42+ptnonipm!T42+pt_oilgas!S42+np_oilgas!Q42+SUM(cmv_c1c2!Z42:AA42)+SUM(cmv_c3!Z42:AA42) -> 0.01 | S43: =rail!K42+nonpt!L42+nonroad!U42+'onroad all'!M42+ptegu!L42+ptnonipm!L42+pt_oilgas!K42+np_oilgas!K42+SUM(cmv_c1c2!R42:S42)+SUM(cmv_c3!R42:S42) -> 0.14 | T43: =rail!O42+nonpt!P42+ptegu!P42+ptnonipm!P42+pt_oilgas!O42+np_oilgas!N42+rwc!M42+SUM(cmv_c1c2!W42:X42)+SUM(cmv_c3!W42:X42) -> 0.02 | U43: =rail!V42+nonpt!AI42+nonroad!T42+'onroad all'!CB42+ptegu!AH42+ptnonipm!AL42+pt_oilgas!AG42+np_oilgas!AA42+rwc!R42+SUM(cmv_c1c2!BF42:BG42)+SUM(cmv_c3!BF42:BG42) -> 0.57 | V43: =rail!T42+nonpt!AE42+nonroad!S42+'onroad all'!BS42+'onroad all'!BT42+ptegu!AD42+ptnonipm!AH42+pt_oilgas!AC42+np_oilgas!W42+rwc!P42+SUM(cmv_c1c2!BA42:BB42)+SUM(cmv_c3!BA42:BB42) -> 3.69 | W43: =nonpt!CW42+ptegu!BB42+ptnonipm!Z42 -> 0.00 | X43: X | AA43: South Dakota | AB43: =B43+beis!H42 -> 224,699 | AC43: 81,904 | AD43: =D43+beis!T42 -> 66,100 | AE43: 78,797 | AF43: 20,723 | AG43: 3,476 | AH43: =H43+beis!Z42 -> 205,031 | AI43: =I43+beis!E42 -> 5,402 | AJ43: 527 | AK43: =K43+beis!N42 -> 7,591 | AL43: =L43+beis!R42 -> 25,505 | AM43: 368 | AN43: 143 | AO43: 100 | AP43: 1,330 | AQ43: 1,274 | AR43: 0.01 | AS43: 0.14 | AT43: 0.02 | AU43: 0.57 | AV43: 3.69 | AX43: South Dakota | AY43: =B43-'ptfire-rx'!B42-'ptfire-wild'!B42 -> 142,945 | AZ43: =C43-'ptfire-rx'!C42-'ptfire-wild'!C42 -> 81,305 | BA43: =D43-'ptfire-rx'!D42-'ptfire-wild'!D42 -> 40,021 | BB43: =E43-'ptfire-rx'!E42-'ptfire-wild'!E42 -> 75,105 | BC43: =F43-'ptfire-rx'!F42-'ptfire-wild'!F42 -> 17,595 | BD43: =G43-'ptfire-rx'!G42-'ptfire-wild'!G42 -> 3,210 | BE43: =H43-'ptfire-rx'!H42-'ptfire-wild'!H42 -> 48,585 | BF43: =I43-'ptfire-rx'!AO42-'ptfire-wild'!AL42 -> 360 | BG43: =J43-'ptfire-rx'!AS42-'ptfire-wild'!AP42 -> 446 | BH43: =K43-'ptfire-rx'!BE42-'ptfire-wild'!BA42 -> 523 | BI43: =L43-'ptfire-rx'!BP42-'ptfire-wild'!BL42 -> 302 | BJ43: =M43-'ptfire-rx'!BR42-'ptfire-wild'!BN42 -> 279 | BK43: =N43-'ptfire-rx'!AL42-'ptfire-wild'!AJ42 -> 50 | BL43: =O43-'ptfire-rx'!AU42-'ptfire-wild'!AR42 -> 51 | BM43: 1,330 | BN43: 1,274 | BO43: 0.01 | BP43: 0.14 | BQ43: 0.02 | BR43: 0.57 | BS43: 3.69
A44: Tennessee | B44: =rail!B43+nonpt!B43+ptagfire!B43+nonroad!B43+'onroad all'!AG43+cmv_c1c2!B43+'ptfire-rx'!B43+ptegu!B43+ptnonipm!B43+pt_oilgas!B43+np_oilgas!B43+rwc!B43+cmv_c3!B43+airports!B43+'ptfire-wild'!B43+np_solvents!B43 -> 1,009,911 | C44: =rail!C43+nonpt!C43+ptagfire!C43++nonroad!C43+'onroad all'!BZ43+cmv_c1c2!BE43+'ptfire-rx'!C43+ptegu!C43+ptnonipm!C43+pt_oilgas!C43+np_oilgas!C43+rwc!C43+cmv_c3!BE43+livestock!B43+airports!C43+'ptfire-wild'!C43+fertilizer!B43+np_solvents!C43 -> 32,244 | D44: =rail!D43+nonpt!D43+ptagfire!D43++nonroad!D43+cmv_c1c2!D43+'ptfire-rx'!D43+ptegu!DW43+ptnonipm!D43+pt_oilgas!D43+np_oilgas!D43+rwc!D43+cmv_c3!D43+'onroad all'!CI43+airports!D43+'ptfire-wild'!D43+np_solvents!D43 -> 165,977 | E44: =rail!E43+nonpt!E43+ptagfire!E43++nonroad!E43+cmv_c1c2!E43+'ptfire-rx'!E43+ptegu!E43+ptnonipm!E43+pt_oilgas!E43+np_oilgas!E43+rwc!E43+cmv_c3!E43+afdust!BA43+'onroad all'!DE43+'onroad all'!DD43+airports!E43+'ptfire-wild'!E43+np_solvents!E43 -> 96,968 | F44: =rail!F43+nonpt!F43+ptagfire!F43++nonroad!F43+cmv_c1c2!F43+'ptfire-rx'!F43+ptegu!F43+ptnonipm!F43+pt_oilgas!F43+np_oilgas!F43+rwc!F43+cmv_c3!F43+afdust!BB43+'onroad all'!DD43+airports!F43+'ptfire-wild'!F43+np_solvents!F43 -> 56,316 | G44: =rail!G43+nonpt!G43+ptagfire!G43++nonroad!G43+'onroad all'!DU43+cmv_c1c2!G43+'ptfire-rx'!G43+ptegu!FH43+ptnonipm!G43+pt_oilgas!G43+np_oilgas!G43+rwc!G43+cmv_c3!G43+airports!G43+'ptfire-wild'!G43+np_solvents!G43 -> 25,999 | H44: =rail!H43+nonpt!H43+ptagfire!H43++nonroad!H43+'onroad all'!EI43+cmv_c1c2!H43+'ptfire-rx'!H43+ptegu!H43+ptnonipm!H43+pt_oilgas!H43+np_oilgas!H43+rwc!H43+cmv_c3!H43+livestock!C43+airports!H43+'ptfire-wild'!H43+np_solvents!H43 -> 204,669 | I44: =rail!AO43+nonpt!BN43+ptagfire!AJ43+nonroad!AK43+'onroad all'!H43+cmv_c1c2!O43+'ptfire-rx'!AO43+ptegu!BM43+ptnonipm!BX43+pt_oilgas!BM43+np_oilgas!AU43+rwc!AH43+cmv_c3!O43+livestock!U43+airports!AJ43+'ptfire-wild'!AL43+np_solvents!AU43 -> 1,952 | J44: =rail!AU43+nonpt!BT43+ptagfire!AN43+nonroad!AP43+'onroad all'!P43+cmv_c1c2!T43+'ptfire-rx'!AS43+ptegu!BS43+ptnonipm!CD43+pt_oilgas!BS43+np_oilgas!BA43+rwc!AL43+cmv_c3!T43+livestock!X43+airports!AM43+'ptfire-wild'!AP43+np_solvents!AY43 -> 2,174 | K44: =rail!BR43+nonpt!CY43+ptagfire!AY43+nonroad!BH43+'onroad all'!BC43+cmv_c1c2!AO43+'ptfire-rx'!BE43+ptegu!CX43+ptnonipm!DP43+pt_oilgas!CW43+np_oilgas!BW43+rwc!AY43+cmv_c3!AP43+livestock!AH43+airports!BE43+'ptfire-wild'!BA43+np_solvents!BR43 -> 3,928 | L44: =rail!CF43+nonpt!DO43+ptagfire!BH43+nonroad!BT43+'onroad all'!BU43+cmv_c1c2!BC43+'ptfire-rx'!BP43+ptegu!DM43+ptnonipm!EH43+pt_oilgas!DM43+np_oilgas!CK43+rwc!BJ43+cmv_c3!BC43+livestock!AN43+airports!BN43+'ptfire-wild'!BL43+np_solvents!CF43 -> 3,588 | M44: =rail!CG43+nonpt!DQ43+nonroad!BU43+'onroad all'!BY43+cmv_c1c2!BD43+'ptfire-rx'!BR43+ptegu!DO43+ptnonipm!EJ43+pt_oilgas!DO43+np_oilgas!CL43+rwc!BK43+cmv_c3!BD43+airports!BO43+'ptfire-wild'!BN43+np_solvents!CG43+ptagfire!BJ43 -> 520 | N44: =rail!AN43+nonpt!BK43+nonroad!AJ43+'onroad all'!G43+cmv_c1c2!M43+'ptfire-rx'!AL43+ptegu!BK43+ptnonipm!BU43+pt_oilgas!BK43+np_oilgas!AT43+rwc!AG43+airports!AH43+cmv_c3!M43+'ptfire-wild'!AJ43+ptagfire!AH43 -> 566 | O44: =rail!AY43+nonpt!O43+ptagfire!AP43+nonroad!AR43+'onroad all'!Z43+cmv_c1c2!V43+'ptfire-rx'!AU43+ptegu!BX43+ptnonipm!CI43+pt_oilgas!BX43+np_oilgas!BD43+rwc!AN43+airports!AO43+cmv_c3!V43+'ptfire-wild'!AR43+np_solvents!AE43 -> 589 | P44: =rail!AD43+nonroad!AD43+'onroad all'!AK43+'onroad all'!AL43+'onroad all'!AM43+'onroad all'!AN43+'onroad all'!AO43+'onroad all'!AP43+ptnonipm!BI43+SUM(airports!AR43:AW43)+SUM(cmv_c1c2!AC43:AH43)+SUM(cmv_c3!AC43:AH43) -> 2,826 | Q44: =rail!AE43+nonroad!AE43+'onroad all'!AL43+'onroad all'!AM43+'onroad all'!AN43+'onroad all'!AO43+'onroad all'!AP43+ptnonipm!BJ43+SUM(airports!AS43:AW43)+SUM(cmv_c1c2!AD43:AH43)+SUM(cmv_c3!AD43:AH43) -> 2,658 | R44: =rail!P43+nonpt!T43+nonroad!R43+'onroad all'!AC43+ptegu!T43+ptnonipm!T43+pt_oilgas!S43+np_oilgas!Q43+SUM(cmv_c1c2!Z43:AA43)+SUM(cmv_c3!Z43:AA43) -> 0.59 | S44: =rail!K43+nonpt!L43+nonroad!U43+'onroad all'!M43+ptegu!L43+ptnonipm!L43+pt_oilgas!K43+np_oilgas!K43+SUM(cmv_c1c2!R43:S43)+SUM(cmv_c3!R43:S43) -> 1.10 | T44: =rail!O43+nonpt!P43+ptegu!P43+ptnonipm!P43+pt_oilgas!O43+np_oilgas!N43+rwc!M43+SUM(cmv_c1c2!W43:X43)+SUM(cmv_c3!W43:X43) -> 0.25 | U44: =rail!V43+nonpt!AI43+nonroad!T43+'onroad all'!CB43+ptegu!AH43+ptnonipm!AL43+pt_oilgas!AG43+np_oilgas!AA43+rwc!R43+SUM(cmv_c1c2!BF43:BG43)+SUM(cmv_c3!BF43:BG43) -> 4.20 | V44: =rail!T43+nonpt!AE43+nonroad!S43+'onroad all'!BS43+'onroad all'!BT43+ptegu!AD43+ptnonipm!AH43+pt_oilgas!AC43+np_oilgas!W43+rwc!P43+SUM(cmv_c1c2!BA43:BB43)+SUM(cmv_c3!BA43:BB43) -> 28.71 | W44: =nonpt!CW43+ptegu!BB43+ptnonipm!Z43 -> 2.12 | X44: X | AA44: Tennessee | AB44: =B44+beis!H43 -> 1,077,728 | AC44: 32,244 | AD44: =D44+beis!T43 -> 185,295 | AE44: 96,968 | AF44: 56,316 | AG44: 25,999 | AH44: =H44+beis!Z43 -> 933,408 | AI44: =I44+beis!E43 -> 9,045 | AJ44: 2,174 | AK44: =K44+beis!N43 -> 13,601 | AL44: =L44+beis!R43 -> 42,736 | AM44: 520 | AN44: 566 | AO44: 589 | AP44: 2,826 | AQ44: 2,658 | AR44: 0.59 | AS44: 1.10 | AT44: 0.25 | AU44: 4.20 | AV44: 28.71 | AX44: Tennessee | AY44: =B44-'ptfire-rx'!B43-'ptfire-wild'!B43 -> 880,804 | AZ44: =C44-'ptfire-rx'!C43-'ptfire-wild'!C43 -> 30,107 | BA44: =D44-'ptfire-rx'!D43-'ptfire-wild'!D43 -> 163,252 | BB44: =E44-'ptfire-rx'!E43-'ptfire-wild'!E43 -> 82,974 | BC44: =F44-'ptfire-rx'!F43-'ptfire-wild'!F43 -> 44,457 | BD44: =G44-'ptfire-rx'!G43-'ptfire-wild'!G43 -> 24,734 | BE44: =H44-'ptfire-rx'!H43-'ptfire-wild'!H43 -> 173,940 | BF44: =I44-'ptfire-rx'!AO43-'ptfire-wild'!AL43 -> 1,116 | BG44: =J44-'ptfire-rx'!AS43-'ptfire-wild'!AP43 -> 1,802 | BH44: =K44-'ptfire-rx'!BE43-'ptfire-wild'!BA43 -> 1,749 | BI44: =L44-'ptfire-rx'!BP43-'ptfire-wild'!BL43 -> 2,306 | BJ44: =M44-'ptfire-rx'!BR43-'ptfire-wild'!BN43 -> 261 | BK44: =N44-'ptfire-rx'!AL43-'ptfire-wild'!AJ43 -> 150 | BL44: =O44-'ptfire-rx'!AU43-'ptfire-wild'!AR43 -> 261 | BM44: 2,826 | BN44: 2,658 | BO44: 0.59 | BP44: 1.10 | BQ44: 0.25 | BR44: 4.20 | BS44: 28.71
A45: Texas | B45: =rail!B44+nonpt!B44+ptagfire!B44+nonroad!B44+'onroad all'!AG44+cmv_c1c2!B44+'ptfire-rx'!B44+ptegu!B44+ptnonipm!B44+pt_oilgas!B44+np_oilgas!B44+rwc!B44+cmv_c3!B44+airports!B44+'ptfire-wild'!B44+np_solvents!B44 -> 3,549,044 | C45: =rail!C44+nonpt!C44+ptagfire!C44++nonroad!C44+'onroad all'!BZ44+cmv_c1c2!BE44+'ptfire-rx'!C44+ptegu!C44+ptnonipm!C44+pt_oilgas!C44+np_oilgas!C44+rwc!C44+cmv_c3!BE44+livestock!B44+airports!C44+'ptfire-wild'!C44+fertilizer!B44+np_solvents!C44 -> 514,786 | D45: =rail!D44+nonpt!D44+ptagfire!D44++nonroad!D44+cmv_c1c2!D44+'ptfire-rx'!D44+ptegu!DW44+ptnonipm!D44+pt_oilgas!D44+np_oilgas!D44+rwc!D44+cmv_c3!D44+'onroad all'!CI44+airports!D44+'ptfire-wild'!D44+np_solvents!D44 -> 902,969 | E45: =rail!E44+nonpt!E44+ptagfire!E44++nonroad!E44+cmv_c1c2!E44+'ptfire-rx'!E44+ptegu!E44+ptnonipm!E44+pt_oilgas!E44+np_oilgas!E44+rwc!E44+cmv_c3!E44+afdust!BA44+'onroad all'!DE44+'onroad all'!DD44+airports!E44+'ptfire-wild'!E44+np_solvents!E44 -> 845,926 | F45: =rail!F44+nonpt!F44+ptagfire!F44++nonroad!F44+cmv_c1c2!F44+'ptfire-rx'!F44+ptegu!F44+ptnonipm!F44+pt_oilgas!F44+np_oilgas!F44+rwc!F44+cmv_c3!F44+afdust!BB44+'onroad all'!DD44+airports!F44+'ptfire-wild'!F44+np_solvents!F44 -> 255,469 | G45: =rail!G44+nonpt!G44+ptagfire!G44++nonroad!G44+'onroad all'!DU44+cmv_c1c2!G44+'ptfire-rx'!G44+ptegu!FH44+ptnonipm!G44+pt_oilgas!G44+np_oilgas!G44+rwc!G44+cmv_c3!G44+airports!G44+'ptfire-wild'!G44+np_solvents!G44 -> 255,695 | H45: =rail!H44+nonpt!H44+ptagfire!H44++nonroad!H44+'onroad all'!EI44+cmv_c1c2!H44+'ptfire-rx'!H44+ptegu!H44+ptnonipm!H44+pt_oilgas!H44+np_oilgas!H44+rwc!H44+cmv_c3!H44+livestock!C44+airports!H44+'ptfire-wild'!H44+np_solvents!H44 -> 1,665,741 | I45: =rail!AO44+nonpt!BN44+ptagfire!AJ44+nonroad!AK44+'onroad all'!H44+cmv_c1c2!O44+'ptfire-rx'!AO44+ptegu!BM44+ptnonipm!BX44+pt_oilgas!BM44+np_oilgas!AU44+rwc!AH44+cmv_c3!O44+livestock!U44+airports!AJ44+'ptfire-wild'!AL44+np_solvents!AU44 -> 10,531 | J45: =rail!AU44+nonpt!BT44+ptagfire!AN44+nonroad!AP44+'onroad all'!P44+cmv_c1c2!T44+'ptfire-rx'!AS44+ptegu!BS44+ptnonipm!CD44+pt_oilgas!BS44+np_oilgas!BA44+rwc!AL44+cmv_c3!T44+livestock!X44+airports!AM44+'ptfire-wild'!AP44+np_solvents!AY44 -> 16,514 | K45: =rail!BR44+nonpt!CY44+ptagfire!AY44+nonroad!BH44+'onroad all'!BC44+cmv_c1c2!AO44+'ptfire-rx'!BE44+ptegu!CX44+ptnonipm!DP44+pt_oilgas!CW44+np_oilgas!BW44+rwc!AY44+cmv_c3!AP44+livestock!AH44+airports!BE44+'ptfire-wild'!BA44+np_solvents!BR44 -> 20,806 | L45: =rail!CF44+nonpt!DO44+ptagfire!BH44+nonroad!BT44+'onroad all'!BU44+cmv_c1c2!BC44+'ptfire-rx'!BP44+ptegu!DM44+ptnonipm!EH44+pt_oilgas!DM44+np_oilgas!CK44+rwc!BJ44+cmv_c3!BC44+livestock!AN44+airports!BN44+'ptfire-wild'!BL44+np_solvents!CF44 -> 17,525 | M45: =rail!CG44+nonpt!DQ44+nonroad!BU44+'onroad all'!BY44+cmv_c1c2!BD44+'ptfire-rx'!BR44+ptegu!DO44+ptnonipm!EJ44+pt_oilgas!DO44+np_oilgas!CL44+rwc!BK44+cmv_c3!BD44+airports!BO44+'ptfire-wild'!BN44+np_solvents!CG44+ptagfire!BJ44 -> 2,828 | N45: =rail!AN44+nonpt!BK44+nonroad!AJ44+'onroad all'!G44+cmv_c1c2!M44+'ptfire-rx'!AL44+ptegu!BK44+ptnonipm!BU44+pt_oilgas!BK44+np_oilgas!AT44+rwc!AG44+airports!AH44+cmv_c3!M44+'ptfire-wild'!AJ44+ptagfire!AH44 -> 2,984 | O45: =rail!AY44+nonpt!O44+ptagfire!AP44+nonroad!AR44+'onroad all'!Z44+cmv_c1c2!V44+'ptfire-rx'!AU44+ptegu!BX44+ptnonipm!CI44+pt_oilgas!BX44+np_oilgas!BD44+rwc!AN44+airports!AO44+cmv_c3!V44+'ptfire-wild'!AR44+np_solvents!AE44 -> 2,084 | P45: =rail!AD44+nonroad!AD44+'onroad all'!AK44+'onroad all'!AL44+'onroad all'!AM44+'onroad all'!AN44+'onroad all'!AO44+'onroad all'!AP44+ptnonipm!BI44+SUM(airports!AR44:AW44)+SUM(cmv_c1c2!AC44:AH44)+SUM(cmv_c3!AC44:AH44) -> 12,530 | Q45: =rail!AE44+nonroad!AE44+'onroad all'!AL44+'onroad all'!AM44+'onroad all'!AN44+'onroad all'!AO44+'onroad all'!AP44+ptnonipm!BJ44+SUM(airports!AS44:AW44)+SUM(cmv_c1c2!AD44:AH44)+SUM(cmv_c3!AD44:AH44) -> 11,833 | R45: =rail!P44+nonpt!T44+nonroad!R44+'onroad all'!AC44+ptegu!T44+ptnonipm!T44+pt_oilgas!S44+np_oilgas!Q44+SUM(cmv_c1c2!Z44:AA44)+SUM(cmv_c3!Z44:AA44) -> 3.53 | S45: =rail!K44+nonpt!L44+nonroad!U44+'onroad all'!M44+ptegu!L44+ptnonipm!L44+pt_oilgas!K44+np_oilgas!K44+SUM(cmv_c1c2!R44:S44)+SUM(cmv_c3!R44:S44) -> 3.70 | T45: =rail!O44+nonpt!P44+ptegu!P44+ptnonipm!P44+pt_oilgas!O44+np_oilgas!N44+rwc!M44+SUM(cmv_c1c2!W44:X44)+SUM(cmv_c3!W44:X44) -> 2.46 | U45: =rail!V44+nonpt!AI44+nonroad!T44+'onroad all'!CB44+ptegu!AH44+ptnonipm!AL44+pt_oilgas!AG44+np_oilgas!AA44+rwc!R44+SUM(cmv_c1c2!BF44:BG44)+SUM(cmv_c3!BF44:BG44) -> 25.06 | V45: =rail!T44+nonpt!AE44+nonroad!S44+'onroad all'!BS44+'onroad all'!BT44+ptegu!AD44+ptnonipm!AH44+pt_oilgas!AC44+np_oilgas!W44+rwc!P44+SUM(cmv_c1c2!BA44:BB44)+SUM(cmv_c3!BA44:BB44) -> 37.67 | W45: =nonpt!CW44+ptegu!BB44+ptnonipm!Z44 -> 44.68 | X45: X | AA45: Texas | AB45: =B45+beis!H44 -> 3,969,970 | AC45: 514,786 | AD45: =D45+beis!T44 -> 1,000,338 | AE45: 845,926 | AF45: 255,469 | AG45: 255,695 | AH45: =H45+beis!Z44 -> 3,785,242 | AI45: =I45+beis!E44 -> 54,625 | AJ45: 16,514 | AK45: =K45+beis!N44 -> 80,935 | AL45: =L45+beis!R44 -> 279,535 | AM45: 2,828 | AN45: 2,984 | AO45: 2,084 | AP45: 12,530 | AQ45: 11,833 | AR45: 3.53 | AS45: 3.70 | AT45: 2.46 | AU45: 25.06 | AV45: 37.67 | AX45: Texas | AY45: =B45-'ptfire-rx'!B44-'ptfire-wild'!B44 -> 2,698,905 | AZ45: =C45-'ptfire-rx'!C44-'ptfire-wild'!C44 -> 500,786 | BA45: =D45-'ptfire-rx'!D44-'ptfire-wild'!D44 -> 888,955 | BB45: =E45-'ptfire-rx'!E44-'ptfire-wild'!E44 -> 757,286 | BC45: =F45-'ptfire-rx'!F44-'ptfire-wild'!F44 -> 180,351 | BD45: =G45-'ptfire-rx'!G44-'ptfire-wild'!G44 -> 248,568 | BE45: =H45-'ptfire-rx'!H44-'ptfire-wild'!H44 -> 1,464,492 | BF45: =I45-'ptfire-rx'!AO44-'ptfire-wild'!AL44 -> 4,428 | BG45: =J45-'ptfire-rx'!AS44-'ptfire-wild'!AP44 -> 14,875 | BH45: =K45-'ptfire-rx'!BE44-'ptfire-wild'!BA44 -> 11,659 | BI45: =L45-'ptfire-rx'!BP44-'ptfire-wild'!BL44 -> 9,135 | BJ45: =M45-'ptfire-rx'!BR44-'ptfire-wild'!BN44 -> 1,059 | BK45: =N45-'ptfire-rx'!AL44-'ptfire-wild'!AJ44 -> 1,120 | BL45: =O45-'ptfire-rx'!AU44-'ptfire-wild'!AR44 -> 1,093 | BM45: 12,530 | BN45: 11,833 | BO45: 3.53 | BP45: 3.70 | BQ45: 2.46 | BR45: 25.06 | BS45: 37.67
A46: Utah | B46: =rail!B45+nonpt!B45+ptagfire!B45+nonroad!B45+'onroad all'!AG45+cmv_c1c2!B45+'ptfire-rx'!B45+ptegu!B45+ptnonipm!B45+pt_oilgas!B45+np_oilgas!B45+rwc!B45+cmv_c3!B45+airports!B45+'ptfire-wild'!B45+np_solvents!B45 -> 469,850 | C46: =rail!C45+nonpt!C45+ptagfire!C45++nonroad!C45+'onroad all'!BZ45+cmv_c1c2!BE45+'ptfire-rx'!C45+ptegu!C45+ptnonipm!C45+pt_oilgas!C45+np_oilgas!C45+rwc!C45+cmv_c3!BE45+livestock!B45+airports!C45+'ptfire-wild'!C45+fertilizer!B45+np_solvents!C45 -> 41,855 | D46: =rail!D45+nonpt!D45+ptagfire!D45++nonroad!D45+cmv_c1c2!D45+'ptfire-rx'!D45+ptegu!DW45+ptnonipm!D45+pt_oilgas!D45+np_oilgas!D45+rwc!D45+cmv_c3!D45+'onroad all'!CI45+airports!D45+'ptfire-wild'!D45+np_solvents!D45 -> 105,004 | E46: =rail!E45+nonpt!E45+ptagfire!E45++nonroad!E45+cmv_c1c2!E45+'ptfire-rx'!E45+ptegu!E45+ptnonipm!E45+pt_oilgas!E45+np_oilgas!E45+rwc!E45+cmv_c3!E45+afdust!BA45+'onroad all'!DE45+'onroad all'!DD45+airports!E45+'ptfire-wild'!E45+np_solvents!E45 -> 98,988 | F46: =rail!F45+nonpt!F45+ptagfire!F45++nonroad!F45+cmv_c1c2!F45+'ptfire-rx'!F45+ptegu!F45+ptnonipm!F45+pt_oilgas!F45+np_oilgas!F45+rwc!F45+cmv_c3!F45+afdust!BB45+'onroad all'!DD45+airports!F45+'ptfire-wild'!F45+np_solvents!F45 -> 30,606 | G46: =rail!G45+nonpt!G45+ptagfire!G45++nonroad!G45+'onroad all'!DU45+cmv_c1c2!G45+'ptfire-rx'!G45+ptegu!FH45+ptnonipm!G45+pt_oilgas!G45+np_oilgas!G45+rwc!G45+cmv_c3!G45+airports!G45+'ptfire-wild'!G45+np_solvents!G45 -> 11,218 | H46: =rail!H45+nonpt!H45+ptagfire!H45++nonroad!H45+'onroad all'!EI45+cmv_c1c2!H45+'ptfire-rx'!H45+ptegu!H45+ptnonipm!H45+pt_oilgas!H45+np_oilgas!H45+rwc!H45+cmv_c3!H45+livestock!C45+airports!H45+'ptfire-wild'!H45+np_solvents!H45 -> 155,987 | I46: =rail!AO45+nonpt!BN45+ptagfire!AJ45+nonroad!AK45+'onroad all'!H45+cmv_c1c2!O45+'ptfire-rx'!AO45+ptegu!BM45+ptnonipm!BX45+pt_oilgas!BM45+np_oilgas!AU45+rwc!AH45+cmv_c3!O45+livestock!U45+airports!AJ45+'ptfire-wild'!AL45+np_solvents!AU45 -> 1,643 | J46: =rail!AU45+nonpt!BT45+ptagfire!AN45+nonroad!AP45+'onroad all'!P45+cmv_c1c2!T45+'ptfire-rx'!AS45+ptegu!BS45+ptnonipm!CD45+pt_oilgas!BS45+np_oilgas!BA45+rwc!AL45+cmv_c3!T45+livestock!X45+airports!AM45+'ptfire-wild'!AP45+np_solvents!AY45 -> 1,699 | K46: =rail!BR45+nonpt!CY45+ptagfire!AY45+nonroad!BH45+'onroad all'!BC45+cmv_c1c2!AO45+'ptfire-rx'!BE45+ptegu!CX45+ptnonipm!DP45+pt_oilgas!CW45+np_oilgas!BW45+rwc!AY45+cmv_c3!AP45+livestock!AH45+airports!BE45+'ptfire-wild'!BA45+np_solvents!BR45 -> 3,345 | L46: =rail!CF45+nonpt!DO45+ptagfire!BH45+nonroad!BT45+'onroad all'!BU45+cmv_c1c2!BC45+'ptfire-rx'!BP45+ptegu!DM45+ptnonipm!EH45+pt_oilgas!DM45+np_oilgas!CK45+rwc!BJ45+cmv_c3!BC45+livestock!AN45+airports!BN45+'ptfire-wild'!BL45+np_solvents!CF45 -> 3,754 | M46: =rail!CG45+nonpt!DQ45+nonroad!BU45+'onroad all'!BY45+cmv_c1c2!BD45+'ptfire-rx'!BR45+ptegu!DO45+ptnonipm!EJ45+pt_oilgas!DO45+np_oilgas!CL45+rwc!BK45+cmv_c3!BD45+airports!BO45+'ptfire-wild'!BN45+np_solvents!CG45+ptagfire!BJ45 -> 465 | N46: =rail!AN45+nonpt!BK45+nonroad!AJ45+'onroad all'!G45+cmv_c1c2!M45+'ptfire-rx'!AL45+ptegu!BK45+ptnonipm!BU45+pt_oilgas!BK45+np_oilgas!AT45+rwc!AG45+airports!AH45+cmv_c3!M45+'ptfire-wild'!AJ45+ptagfire!AH45 -> 458 | O46: =rail!AY45+nonpt!O45+ptagfire!AP45+nonroad!AR45+'onroad all'!Z45+cmv_c1c2!V45+'ptfire-rx'!AU45+ptegu!BX45+ptnonipm!CI45+pt_oilgas!BX45+np_oilgas!BD45+rwc!AN45+airports!AO45+cmv_c3!V45+'ptfire-wild'!AR45+np_solvents!AE45 -> 301 | P46: =rail!AD45+nonroad!AD45+'onroad all'!AK45+'onroad all'!AL45+'onroad all'!AM45+'onroad all'!AN45+'onroad all'!AO45+'onroad all'!AP45+ptnonipm!BI45+SUM(airports!AR45:AW45)+SUM(cmv_c1c2!AC45:AH45)+SUM(cmv_c3!AC45:AH45) -> 1,561 | Q46: =rail!AE45+nonroad!AE45+'onroad all'!AL45+'onroad all'!AM45+'onroad all'!AN45+'onroad all'!AO45+'onroad all'!AP45+ptnonipm!BJ45+SUM(airports!AS45:AW45)+SUM(cmv_c1c2!AD45:AH45)+SUM(cmv_c3!AD45:AH45) -> 1,421 | R46: =rail!P45+nonpt!T45+nonroad!R45+'onroad all'!AC45+ptegu!T45+ptnonipm!T45+pt_oilgas!S45+np_oilgas!Q45+SUM(cmv_c1c2!Z45:AA45)+SUM(cmv_c3!Z45:AA45) -> 0.29 | S46: =rail!K45+nonpt!L45+nonroad!U45+'onroad all'!M45+ptegu!L45+ptnonipm!L45+pt_oilgas!K45+np_oilgas!K45+SUM(cmv_c1c2!R45:S45)+SUM(cmv_c3!R45:S45) -> 3.61 | T46: =rail!O45+nonpt!P45+ptegu!P45+ptnonipm!P45+pt_oilgas!O45+np_oilgas!N45+rwc!M45+SUM(cmv_c1c2!W45:X45)+SUM(cmv_c3!W45:X45) -> 0.57 | U46: =rail!V45+nonpt!AI45+nonroad!T45+'onroad all'!CB45+ptegu!AH45+ptnonipm!AL45+pt_oilgas!AG45+np_oilgas!AA45+rwc!R45+SUM(cmv_c1c2!BF45:BG45)+SUM(cmv_c3!BF45:BG45) -> 3.29 | V46: =rail!T45+nonpt!AE45+nonroad!S45+'onroad all'!BS45+'onroad all'!BT45+ptegu!AD45+ptnonipm!AH45+pt_oilgas!AC45+np_oilgas!W45+rwc!P45+SUM(cmv_c1c2!BA45:BB45)+SUM(cmv_c3!BA45:BB45) -> 5.33 | W46: =nonpt!CW45+ptegu!BB45+ptnonipm!Z45 -> 1.42 | AA46: Utah | AB46: =B46+beis!H45 -> 528,523 | AC46: 41,855 | AD46: =D46+beis!T45 -> 116,178 | AE46: 98,988 | AF46: 30,606 | AG46: 11,218 | AH46: =H46+beis!Z45 -> 402,737 | AI46: =I46+beis!E45 -> 7,790 | AJ46: 1,699 | AK46: =K46+beis!N45 -> 11,727 | AL46: =L46+beis!R45 -> 40,992 | AM46: 465 | AN46: 458 | AO46: 301 | AP46: 1,561 | AQ46: 1,421 | AR46: 0.29 | AS46: 3.61 | AT46: 0.57 | AU46: 3.29 | AV46: 5.33 | AX46: Utah | AY46: =B46-'ptfire-rx'!B45-'ptfire-wild'!B45 -> 317,420 | AZ46: =C46-'ptfire-rx'!C45-'ptfire-wild'!C45 -> 39,354 | BA46: =D46-'ptfire-rx'!D45-'ptfire-wild'!D45 -> 102,939 | BB46: =E46-'ptfire-rx'!E45-'ptfire-wild'!E45 -> 83,495 | BC46: =F46-'ptfire-rx'!F45-'ptfire-wild'!F45 -> 17,477 | BD46: =G46-'ptfire-rx'!G45-'ptfire-wild'!G45 -> 10,077 | BE46: =H46-'ptfire-rx'!H45-'ptfire-wild'!H45 -> 120,028 | BF46: =I46-'ptfire-rx'!AO45-'ptfire-wild'!AL45 -> 339 | BG46: =J46-'ptfire-rx'!AS45-'ptfire-wild'!AP45 -> 1,349 | BH46: =K46-'ptfire-rx'!BE45-'ptfire-wild'!BA45 -> 739 | BI46: =L46-'ptfire-rx'!BP45-'ptfire-wild'!BL45 -> 822 | BJ46: =M46-'ptfire-rx'!BR45-'ptfire-wild'!BN45 -> 86 | BK46: =N46-'ptfire-rx'!AL45-'ptfire-wild'!AJ45 -> 59 | BL46: =O46-'ptfire-rx'!AU45-'ptfire-wild'!AR45 -> 90 | BM46: 1,561 | BN46: 1,421 | BO46: 0.29 | BP46: 3.61 | BQ46: 0.57 | BR46: 3.29 | BS46: 5.33
A47: Vermont | B47: =rail!B46+nonpt!B46+ptagfire!B46+nonroad!B46+'onroad all'!AG46+cmv_c1c2!B46+'ptfire-rx'!B46+ptegu!B46+ptnonipm!B46+pt_oilgas!B46+np_oilgas!B46+rwc!B46+cmv_c3!B46+airports!B46+'ptfire-wild'!B46+np_solvents!B46 -> 107,602 | C47: =rail!C46+nonpt!C46+ptagfire!C46++nonroad!C46+'onroad all'!BZ46+cmv_c1c2!BE46+'ptfire-rx'!C46+ptegu!C46+ptnonipm!C46+pt_oilgas!C46+np_oilgas!C46+rwc!C46+cmv_c3!BE46+livestock!B46+airports!C46+'ptfire-wild'!C46+fertilizer!B46+np_solvents!C46 -> 5,913 | D47: =rail!D46+nonpt!D46+ptagfire!D46++nonroad!D46+cmv_c1c2!D46+'ptfire-rx'!D46+ptegu!DW46+ptnonipm!D46+pt_oilgas!D46+np_oilgas!D46+rwc!D46+cmv_c3!D46+'onroad all'!CI46+airports!D46+'ptfire-wild'!D46+np_solvents!D46 -> 13,090 | E47: =rail!E46+nonpt!E46+ptagfire!E46++nonroad!E46+cmv_c1c2!E46+'ptfire-rx'!E46+ptegu!E46+ptnonipm!E46+pt_oilgas!E46+np_oilgas!E46+rwc!E46+cmv_c3!E46+afdust!BA46+'onroad all'!DE46+'onroad all'!DD46+airports!E46+'ptfire-wild'!E46+np_solvents!E46 -> 16,344 | F47: =rail!F46+nonpt!F46+ptagfire!F46++nonroad!F46+cmv_c1c2!F46+'ptfire-rx'!F46+ptegu!F46+ptnonipm!F46+pt_oilgas!F46+np_oilgas!F46+rwc!F46+cmv_c3!F46+afdust!BB46+'onroad all'!DD46+airports!F46+'ptfire-wild'!F46+np_solvents!F46 -> 8,216 | G47: =rail!G46+nonpt!G46+ptagfire!G46++nonroad!G46+'onroad all'!DU46+cmv_c1c2!G46+'ptfire-rx'!G46+ptegu!FH46+ptnonipm!G46+pt_oilgas!G46+np_oilgas!G46+rwc!G46+cmv_c3!G46+airports!G46+'ptfire-wild'!G46+np_solvents!G46 -> 723 | H47: =rail!H46+nonpt!H46+ptagfire!H46++nonroad!H46+'onroad all'!EI46+cmv_c1c2!H46+'ptfire-rx'!H46+ptegu!H46+ptnonipm!H46+pt_oilgas!H46+np_oilgas!H46+rwc!H46+cmv_c3!H46+livestock!C46+airports!H46+'ptfire-wild'!H46+np_solvents!H46 -> 19,015 | I47: =rail!AO46+nonpt!BN46+ptagfire!AJ46+nonroad!AK46+'onroad all'!H46+cmv_c1c2!O46+'ptfire-rx'!AO46+ptegu!BM46+ptnonipm!BX46+pt_oilgas!BM46+np_oilgas!AU46+rwc!AH46+cmv_c3!O46+livestock!U46+airports!AJ46+'ptfire-wild'!AL46+np_solvents!AU46 -> 226 | J47: =rail!AU46+nonpt!BT46+ptagfire!AN46+nonroad!AP46+'onroad all'!P46+cmv_c1c2!T46+'ptfire-rx'!AS46+ptegu!BS46+ptnonipm!CD46+pt_oilgas!BS46+np_oilgas!BA46+rwc!AL46+cmv_c3!T46+livestock!X46+airports!AM46+'ptfire-wild'!AP46+np_solvents!AY46 -> 497 | K47: =rail!BR46+nonpt!CY46+ptagfire!AY46+nonroad!BH46+'onroad all'!BC46+cmv_c1c2!AO46+'ptfire-rx'!BE46+ptegu!CX46+ptnonipm!DP46+pt_oilgas!CW46+np_oilgas!BW46+rwc!AY46+cmv_c3!AP46+livestock!AH46+airports!BE46+'ptfire-wild'!BA46+np_solvents!BR46 -> 490 | L47: =rail!CF46+nonpt!DO46+ptagfire!BH46+nonroad!BT46+'onroad all'!BU46+cmv_c1c2!BC46+'ptfire-rx'!BP46+ptegu!DM46+ptnonipm!EH46+pt_oilgas!DM46+np_oilgas!CK46+rwc!BJ46+cmv_c3!BC46+livestock!AN46+airports!BN46+'ptfire-wild'!BL46+np_solvents!CF46 -> 287 | M47: =rail!CG46+nonpt!DQ46+nonroad!BU46+'onroad all'!BY46+cmv_c1c2!BD46+'ptfire-rx'!BR46+ptegu!DO46+ptnonipm!EJ46+pt_oilgas!DO46+np_oilgas!CL46+rwc!BK46+cmv_c3!BD46+airports!BO46+'ptfire-wild'!BN46+np_solvents!CG46+ptagfire!BJ46 -> 79 | N47: =rail!AN46+nonpt!BK46+nonroad!AJ46+'onroad all'!G46+cmv_c1c2!M46+'ptfire-rx'!AL46+ptegu!BK46+ptnonipm!BU46+pt_oilgas!BK46+np_oilgas!AT46+rwc!AG46+airports!AH46+cmv_c3!M46+'ptfire-wild'!AJ46+ptagfire!AH46 -> 37 | O47: =rail!AY46+nonpt!O46+ptagfire!AP46+nonroad!AR46+'onroad all'!Z46+cmv_c1c2!V46+'ptfire-rx'!AU46+ptegu!BX46+ptnonipm!CI46+pt_oilgas!BX46+np_oilgas!BD46+rwc!AN46+airports!AO46+cmv_c3!V46+'ptfire-wild'!AR46+np_solvents!AE46 -> 64 | P47: =rail!AD46+nonroad!AD46+'onroad all'!AK46+'onroad all'!AL46+'onroad all'!AM46+'onroad all'!AN46+'onroad all'!AO46+'onroad all'!AP46+ptnonipm!BI46+SUM(airports!AR46:AW46)+SUM(cmv_c1c2!AC46:AH46)+SUM(cmv_c3!AC46:AH46) -> 351 | Q47: =rail!AE46+nonroad!AE46+'onroad all'!AL46+'onroad all'!AM46+'onroad all'!AN46+'onroad all'!AO46+'onroad all'!AP46+ptnonipm!BJ46+SUM(airports!AS46:AW46)+SUM(cmv_c1c2!AD46:AH46)+SUM(cmv_c3!AD46:AH46) -> 338 | R47: =rail!P46+nonpt!T46+nonroad!R46+'onroad all'!AC46+ptegu!T46+ptnonipm!T46+pt_oilgas!S46+np_oilgas!Q46+SUM(cmv_c1c2!Z46:AA46)+SUM(cmv_c3!Z46:AA46) -> 0.01 | S47: =rail!K46+nonpt!L46+nonroad!U46+'onroad all'!M46+ptegu!L46+ptnonipm!L46+pt_oilgas!K46+np_oilgas!K46+SUM(cmv_c1c2!R46:S46)+SUM(cmv_c3!R46:S46) -> 0.12 | T47: =rail!O46+nonpt!P46+ptegu!P46+ptnonipm!P46+pt_oilgas!O46+np_oilgas!N46+rwc!M46+SUM(cmv_c1c2!W46:X46)+SUM(cmv_c3!W46:X46) -> 0.03 | U47: =rail!V46+nonpt!AI46+nonroad!T46+'onroad all'!CB46+ptegu!AH46+ptnonipm!AL46+pt_oilgas!AG46+np_oilgas!AA46+rwc!R46+SUM(cmv_c1c2!BF46:BG46)+SUM(cmv_c3!BF46:BG46) -> 1.03 | V47: =rail!T46+nonpt!AE46+nonroad!S46+'onroad all'!BS46+'onroad all'!BT46+ptegu!AD46+ptnonipm!AH46+pt_oilgas!AC46+np_oilgas!W46+rwc!P46+SUM(cmv_c1c2!BA46:BB46)+SUM(cmv_c3!BA46:BB46) -> 3.40 | W47: =nonpt!CW46+ptegu!BB46+ptnonipm!Z46 -> 0.00 | X47: X | AA47: Vermont | AB47: =B47+beis!H46 -> 118,555 | AC47: 5,913 | AD47: =D47+beis!T46 -> 14,275 | AE47: 16,344 | AF47: 8,216 | AG47: 723 | AH47: =H47+beis!Z46 -> 83,079 | AI47: =I47+beis!E46 -> 1,371 | AJ47: 497 | AK47: =K47+beis!N46 -> 2,052 | AL47: =L47+beis!R46 -> 4,616 | AM47: 79 | AN47: 37 | AO47: 64 | AP47: 351 | AQ47: 338 | AR47: 0.01 | AS47: 0.12 | AT47: 0.03 | AU47: 1.03 | AV47: 3.40 | AX47: Vermont | AY47: =B47-'ptfire-rx'!B46-'ptfire-wild'!B46 -> 105,144 | AZ47: =C47-'ptfire-rx'!C46-'ptfire-wild'!C46 -> 5,872 | BA47: =D47-'ptfire-rx'!D46-'ptfire-wild'!D46 -> 13,055 | BB47: =E47-'ptfire-rx'!E46-'ptfire-wild'!E46 -> 16,093 | BC47: =F47-'ptfire-rx'!F46-'ptfire-wild'!F46 -> 8,003 | BD47: =G47-'ptfire-rx'!G46-'ptfire-wild'!G46 -> 705 | BE47: =H47-'ptfire-rx'!H46-'ptfire-wild'!H46 -> 18,434 | BF47: =I47-'ptfire-rx'!AO46-'ptfire-wild'!AL46 -> 214 | BG47: =J47-'ptfire-rx'!AS46-'ptfire-wild'!AP46 -> 491 | BH47: =K47-'ptfire-rx'!BE46-'ptfire-wild'!BA46 -> 458 | BI47: =L47-'ptfire-rx'!BP46-'ptfire-wild'!BL46 -> 268 | BJ47: =M47-'ptfire-rx'!BR46-'ptfire-wild'!BN46 -> 75 | BK47: =N47-'ptfire-rx'!AL46-'ptfire-wild'!AJ46 -> 31 | BL47: =O47-'ptfire-rx'!AU46-'ptfire-wild'!AR46 -> 60 | BM47: 351 | BN47: 338 | BO47: 0.01 | BP47: 0.12 | BQ47: 0.03 | BR47: 1.03 | BS47: 3.40
A48: Virginia | B48: =rail!B47+nonpt!B47+ptagfire!B47+nonroad!B47+'onroad all'!AG47+cmv_c1c2!B47+'ptfire-rx'!B47+ptegu!B47+ptnonipm!B47+pt_oilgas!B47+np_oilgas!B47+rwc!B47+cmv_c3!B47+airports!B47+'ptfire-wild'!B47+np_solvents!B47 -> 1,082,985 | C48: =rail!C47+nonpt!C47+ptagfire!C47++nonroad!C47+'onroad all'!BZ47+cmv_c1c2!BE47+'ptfire-rx'!C47+ptegu!C47+ptnonipm!C47+pt_oilgas!C47+np_oilgas!C47+rwc!C47+cmv_c3!BE47+livestock!B47+airports!C47+'ptfire-wild'!C47+fertilizer!B47+np_solvents!C47 -> 45,607 | D48: =rail!D47+nonpt!D47+ptagfire!D47++nonroad!D47+cmv_c1c2!D47+'ptfire-rx'!D47+ptegu!DW47+ptnonipm!D47+pt_oilgas!D47+np_oilgas!D47+rwc!D47+cmv_c3!D47+'onroad all'!CI47+airports!D47+'ptfire-wild'!D47+np_solvents!D47 -> 167,473 | E48: =rail!E47+nonpt!E47+ptagfire!E47++nonroad!E47+cmv_c1c2!E47+'ptfire-rx'!E47+ptegu!E47+ptnonipm!E47+pt_oilgas!E47+np_oilgas!E47+rwc!E47+cmv_c3!E47+afdust!BA47+'onroad all'!DE47+'onroad all'!DD47+airports!E47+'ptfire-wild'!E47+np_solvents!E47 -> 84,247 | F48: =rail!F47+nonpt!F47+ptagfire!F47++nonroad!F47+cmv_c1c2!F47+'ptfire-rx'!F47+ptegu!F47+ptnonipm!F47+pt_oilgas!F47+np_oilgas!F47+rwc!F47+cmv_c3!F47+afdust!BB47+'onroad all'!DD47+airports!F47+'ptfire-wild'!F47+np_solvents!F47 -> 52,445 | G48: =rail!G47+nonpt!G47+ptagfire!G47++nonroad!G47+'onroad all'!DU47+cmv_c1c2!G47+'ptfire-rx'!G47+ptegu!FH47+ptnonipm!G47+pt_oilgas!G47+np_oilgas!G47+rwc!G47+cmv_c3!G47+airports!G47+'ptfire-wild'!G47+np_solvents!G47 -> 19,443 | H48: =rail!H47+nonpt!H47+ptagfire!H47++nonroad!H47+'onroad all'!EI47+cmv_c1c2!H47+'ptfire-rx'!H47+ptegu!H47+ptnonipm!H47+pt_oilgas!H47+np_oilgas!H47+rwc!H47+cmv_c3!H47+livestock!C47+airports!H47+'ptfire-wild'!H47+np_solvents!H47 -> 218,800 | I48: =rail!AO47+nonpt!BN47+ptagfire!AJ47+nonroad!AK47+'onroad all'!H47+cmv_c1c2!O47+'ptfire-rx'!AO47+ptegu!BM47+ptnonipm!BX47+pt_oilgas!BM47+np_oilgas!AU47+rwc!AH47+cmv_c3!O47+livestock!U47+airports!AJ47+'ptfire-wild'!AL47+np_solvents!AU47 -> 2,036 | J48: =rail!AU47+nonpt!BT47+ptagfire!AN47+nonroad!AP47+'onroad all'!P47+cmv_c1c2!T47+'ptfire-rx'!AS47+ptegu!BS47+ptnonipm!CD47+pt_oilgas!BS47+np_oilgas!BA47+rwc!AL47+cmv_c3!T47+livestock!X47+airports!AM47+'ptfire-wild'!AP47+np_solvents!AY47 -> 2,665 | K48: =rail!BR47+nonpt!CY47+ptagfire!AY47+nonroad!BH47+'onroad all'!BC47+cmv_c1c2!AO47+'ptfire-rx'!BE47+ptegu!CX47+ptnonipm!DP47+pt_oilgas!CW47+np_oilgas!BW47+rwc!AY47+cmv_c3!AP47+livestock!AH47+airports!BE47+'ptfire-wild'!BA47+np_solvents!BR47 -> 4,294 | L48: =rail!CF47+nonpt!DO47+ptagfire!BH47+nonroad!BT47+'onroad all'!BU47+cmv_c1c2!BC47+'ptfire-rx'!BP47+ptegu!DM47+ptnonipm!EH47+pt_oilgas!DM47+np_oilgas!CK47+rwc!BJ47+cmv_c3!BC47+livestock!AN47+airports!BN47+'ptfire-wild'!BL47+np_solvents!CF47 -> 4,821 | M48: =rail!CG47+nonpt!DQ47+nonroad!BU47+'onroad all'!BY47+cmv_c1c2!BD47+'ptfire-rx'!BR47+ptegu!DO47+ptnonipm!EJ47+pt_oilgas!DO47+np_oilgas!CL47+rwc!BK47+cmv_c3!BD47+airports!BO47+'ptfire-wild'!BN47+np_solvents!CG47+ptagfire!BJ47 -> 575 | N48: =rail!AN47+nonpt!BK47+nonroad!AJ47+'onroad all'!G47+cmv_c1c2!M47+'ptfire-rx'!AL47+ptegu!BK47+ptnonipm!BU47+pt_oilgas!BK47+np_oilgas!AT47+rwc!AG47+airports!AH47+cmv_c3!M47+'ptfire-wild'!AJ47+ptagfire!AH47 -> 579 | O48: =rail!AY47+nonpt!O47+ptagfire!AP47+nonroad!AR47+'onroad all'!Z47+cmv_c1c2!V47+'ptfire-rx'!AU47+ptegu!BX47+ptnonipm!CI47+pt_oilgas!BX47+np_oilgas!BD47+rwc!AN47+airports!AO47+cmv_c3!V47+'ptfire-wild'!AR47+np_solvents!AE47 -> 637 | P48: =rail!AD47+nonroad!AD47+'onroad all'!AK47+'onroad all'!AL47+'onroad all'!AM47+'onroad all'!AN47+'onroad all'!AO47+'onroad all'!AP47+ptnonipm!BI47+SUM(airports!AR47:AW47)+SUM(cmv_c1c2!AC47:AH47)+SUM(cmv_c3!AC47:AH47) -> 2,609 | Q48: =rail!AE47+nonroad!AE47+'onroad all'!AL47+'onroad all'!AM47+'onroad all'!AN47+'onroad all'!AO47+'onroad all'!AP47+ptnonipm!BJ47+SUM(airports!AS47:AW47)+SUM(cmv_c1c2!AD47:AH47)+SUM(cmv_c3!AD47:AH47) -> 2,467 | R48: =rail!P47+nonpt!T47+nonroad!R47+'onroad all'!AC47+ptegu!T47+ptnonipm!T47+pt_oilgas!S47+np_oilgas!Q47+SUM(cmv_c1c2!Z47:AA47)+SUM(cmv_c3!Z47:AA47) -> 0.08 | S48: =rail!K47+nonpt!L47+nonroad!U47+'onroad all'!M47+ptegu!L47+ptnonipm!L47+pt_oilgas!K47+np_oilgas!K47+SUM(cmv_c1c2!R47:S47)+SUM(cmv_c3!R47:S47) -> 0.86 | T48: =rail!O47+nonpt!P47+ptegu!P47+ptnonipm!P47+pt_oilgas!O47+np_oilgas!N47+rwc!M47+SUM(cmv_c1c2!W47:X47)+SUM(cmv_c3!W47:X47) -> 0.20 | U48: =rail!V47+nonpt!AI47+nonroad!T47+'onroad all'!CB47+ptegu!AH47+ptnonipm!AL47+pt_oilgas!AG47+np_oilgas!AA47+rwc!R47+SUM(cmv_c1c2!BF47:BG47)+SUM(cmv_c3!BF47:BG47) -> 3.53 | V48: =rail!T47+nonpt!AE47+nonroad!S47+'onroad all'!BS47+'onroad all'!BT47+ptegu!AD47+ptnonipm!AH47+pt_oilgas!AC47+np_oilgas!W47+rwc!P47+SUM(cmv_c1c2!BA47:BB47)+SUM(cmv_c3!BA47:BB47) -> 9.13 | W48: =nonpt!CW47+ptegu!BB47+ptnonipm!Z47 -> 5.36 | X48: X | AA48: Virginia | AB48: =B48+beis!H47 -> 1,152,895 | AC48: 45,607 | AD48: =D48+beis!T47 -> 178,788 | AE48: 84,247 | AF48: 52,445 | AG48: 19,443 | AH48: =H48+beis!Z47 -> 1,007,838 | AI48: =I48+beis!E47 -> 9,347 | AJ48: 2,665 | AK48: =K48+beis!N47 -> 14,263 | AL48: =L48+beis!R47 -> 43,293 | AM48: 575 | AN48: 579 | AO48: 637 | AP48: 2,609 | AQ48: 2,467 | AR48: 0.08 | AS48: 0.86 | AT48: 0.20 | AU48: 3.53 | AV48: 9.13 | AX48: Virginia | AY48: =B48-'ptfire-rx'!B47-'ptfire-wild'!B47 -> 971,218 | AZ48: =C48-'ptfire-rx'!C47-'ptfire-wild'!C47 -> 43,758 | BA48: =D48-'ptfire-rx'!D47-'ptfire-wild'!D47 -> 165,242 | BB48: =E48-'ptfire-rx'!E47-'ptfire-wild'!E47 -> 72,247 | BC48: =F48-'ptfire-rx'!F47-'ptfire-wild'!F47 -> 42,275 | BD48: =G48-'ptfire-rx'!G47-'ptfire-wild'!G47 -> 18,387 | BE48: =H48-'ptfire-rx'!H47-'ptfire-wild'!H47 -> 192,233 | BF48: =I48-'ptfire-rx'!AO47-'ptfire-wild'!AL47 -> 1,339 | BG48: =J48-'ptfire-rx'!AS47-'ptfire-wild'!AP47 -> 2,355 | BH48: =K48-'ptfire-rx'!BE47-'ptfire-wild'!BA47 -> 2,476 | BI48: =L48-'ptfire-rx'!BP47-'ptfire-wild'!BL47 -> 3,753 | BJ48: =M48-'ptfire-rx'!BR47-'ptfire-wild'!BN47 -> 359 | BK48: =N48-'ptfire-rx'!AL47-'ptfire-wild'!AJ47 -> 232 | BL48: =O48-'ptfire-rx'!AU47-'ptfire-wild'!AR47 -> 362 | BM48: 2,609 | BN48: 2,467 | BO48: 0.08 | BP48: 0.86 | BQ48: 0.20 | BR48: 3.53 | BS48: 9.13
A49: Washington | B49: =rail!B48+nonpt!B48+ptagfire!B48+nonroad!B48+'onroad all'!AG48+cmv_c1c2!B48+'ptfire-rx'!B48+ptegu!B48+ptnonipm!B48+pt_oilgas!B48+np_oilgas!B48+rwc!B48+cmv_c3!B48+airports!B48+'ptfire-wild'!B48+np_solvents!B48 -> 1,285,481 | C49: =rail!C48+nonpt!C48+ptagfire!C48++nonroad!C48+'onroad all'!BZ48+cmv_c1c2!BE48+'ptfire-rx'!C48+ptegu!C48+ptnonipm!C48+pt_oilgas!C48+np_oilgas!C48+rwc!C48+cmv_c3!BE48+livestock!B48+airports!C48+'ptfire-wild'!C48+fertilizer!B48+np_solvents!C48 -> 70,987 | D49: =rail!D48+nonpt!D48+ptagfire!D48++nonroad!D48+cmv_c1c2!D48+'ptfire-rx'!D48+ptegu!DW48+ptnonipm!D48+pt_oilgas!D48+np_oilgas!D48+rwc!D48+cmv_c3!D48+'onroad all'!CI48+airports!D48+'ptfire-wild'!D48+np_solvents!D48 -> 163,748 | E49: =rail!E48+nonpt!E48+ptagfire!E48++nonroad!E48+cmv_c1c2!E48+'ptfire-rx'!E48+ptegu!E48+ptnonipm!E48+pt_oilgas!E48+np_oilgas!E48+rwc!E48+cmv_c3!E48+afdust!BA48+'onroad all'!DE48+'onroad all'!DD48+airports!E48+'ptfire-wild'!E48+np_solvents!E48 -> 193,751 | F49: =rail!F48+nonpt!F48+ptagfire!F48++nonroad!F48+cmv_c1c2!F48+'ptfire-rx'!F48+ptegu!F48+ptnonipm!F48+pt_oilgas!F48+np_oilgas!F48+rwc!F48+cmv_c3!F48+afdust!BB48+'onroad all'!DD48+airports!F48+'ptfire-wild'!F48+np_solvents!F48 -> 84,947 | G49: =rail!G48+nonpt!G48+ptagfire!G48++nonroad!G48+'onroad all'!DU48+cmv_c1c2!G48+'ptfire-rx'!G48+ptegu!FH48+ptnonipm!G48+pt_oilgas!G48+np_oilgas!G48+rwc!G48+cmv_c3!G48+airports!G48+'ptfire-wild'!G48+np_solvents!G48 -> 14,437 | H49: =rail!H48+nonpt!H48+ptagfire!H48++nonroad!H48+'onroad all'!EI48+cmv_c1c2!H48+'ptfire-rx'!H48+ptegu!H48+ptnonipm!H48+pt_oilgas!H48+np_oilgas!H48+rwc!H48+cmv_c3!H48+livestock!C48+airports!H48+'ptfire-wild'!H48+np_solvents!H48 -> 268,898 | I49: =rail!AO48+nonpt!BN48+ptagfire!AJ48+nonroad!AK48+'onroad all'!H48+cmv_c1c2!O48+'ptfire-rx'!AO48+ptegu!BM48+ptnonipm!BX48+pt_oilgas!BM48+np_oilgas!AU48+rwc!AH48+cmv_c3!O48+livestock!U48+airports!AJ48+'ptfire-wild'!AL48+np_solvents!AU48 -> 5,103 | J49: =rail!AU48+nonpt!BT48+ptagfire!AN48+nonroad!AP48+'onroad all'!P48+cmv_c1c2!T48+'ptfire-rx'!AS48+ptegu!BS48+ptnonipm!CD48+pt_oilgas!BS48+np_oilgas!BA48+rwc!AL48+cmv_c3!T48+livestock!X48+airports!AM48+'ptfire-wild'!AP48+np_solvents!AY48 -> 3,247 | K49: =rail!BR48+nonpt!CY48+ptagfire!AY48+nonroad!BH48+'onroad all'!BC48+cmv_c1c2!AO48+'ptfire-rx'!BE48+ptegu!CX48+ptnonipm!DP48+pt_oilgas!CW48+np_oilgas!BW48+rwc!AY48+cmv_c3!AP48+livestock!AH48+airports!BE48+'ptfire-wild'!BA48+np_solvents!BR48 -> 9,554 | L49: =rail!CF48+nonpt!DO48+ptagfire!BH48+nonroad!BT48+'onroad all'!BU48+cmv_c1c2!BC48+'ptfire-rx'!BP48+ptegu!DM48+ptnonipm!EH48+pt_oilgas!DM48+np_oilgas!CK48+rwc!BJ48+cmv_c3!BC48+livestock!AN48+airports!BN48+'ptfire-wild'!BL48+np_solvents!CF48 -> 11,318 | M49: =rail!CG48+nonpt!DQ48+nonroad!BU48+'onroad all'!BY48+cmv_c1c2!BD48+'ptfire-rx'!BR48+ptegu!DO48+ptnonipm!EJ48+pt_oilgas!DO48+np_oilgas!CL48+rwc!BK48+cmv_c3!BD48+airports!BO48+'ptfire-wild'!BN48+np_solvents!CG48+ptagfire!BJ48 -> 1,352 | N49: =rail!AN48+nonpt!BK48+nonroad!AJ48+'onroad all'!G48+cmv_c1c2!M48+'ptfire-rx'!AL48+ptegu!BK48+ptnonipm!BU48+pt_oilgas!BK48+np_oilgas!AT48+rwc!AG48+airports!AH48+cmv_c3!M48+'ptfire-wild'!AJ48+ptagfire!AH48 -> 1,280 | O49: =rail!AY48+nonpt!O48+ptagfire!AP48+nonroad!AR48+'onroad all'!Z48+cmv_c1c2!V48+'ptfire-rx'!AU48+ptegu!BX48+ptnonipm!CI48+pt_oilgas!BX48+np_oilgas!BD48+rwc!AN48+airports!AO48+cmv_c3!V48+'ptfire-wild'!AR48+np_solvents!AE48 -> 946 | P49: =rail!AD48+nonroad!AD48+'onroad all'!AK48+'onroad all'!AL48+'onroad all'!AM48+'onroad all'!AN48+'onroad all'!AO48+'onroad all'!AP48+ptnonipm!BI48+SUM(airports!AR48:AW48)+SUM(cmv_c1c2!AC48:AH48)+SUM(cmv_c3!AC48:AH48) -> 3,028 | Q49: =rail!AE48+nonroad!AE48+'onroad all'!AL48+'onroad all'!AM48+'onroad all'!AN48+'onroad all'!AO48+'onroad all'!AP48+ptnonipm!BJ48+SUM(airports!AS48:AW48)+SUM(cmv_c1c2!AD48:AH48)+SUM(cmv_c3!AD48:AH48) -> 2,871 | R49: =rail!P48+nonpt!T48+nonroad!R48+'onroad all'!AC48+ptegu!T48+ptnonipm!T48+pt_oilgas!S48+np_oilgas!Q48+SUM(cmv_c1c2!Z48:AA48)+SUM(cmv_c3!Z48:AA48) -> 0.35 | S49: =rail!K48+nonpt!L48+nonroad!U48+'onroad all'!M48+ptegu!L48+ptnonipm!L48+pt_oilgas!K48+np_oilgas!K48+SUM(cmv_c1c2!R48:S48)+SUM(cmv_c3!R48:S48) -> 0.80 | T49: =rail!O48+nonpt!P48+ptegu!P48+ptnonipm!P48+pt_oilgas!O48+np_oilgas!N48+rwc!M48+SUM(cmv_c1c2!W48:X48)+SUM(cmv_c3!W48:X48) -> 0.72 | U49: =rail!V48+nonpt!AI48+nonroad!T48+'onroad all'!CB48+ptegu!AH48+ptnonipm!AL48+pt_oilgas!AG48+np_oilgas!AA48+rwc!R48+SUM(cmv_c1c2!BF48:BG48)+SUM(cmv_c3!BF48:BG48) -> 4.16 | V49: =rail!T48+nonpt!AE48+nonroad!S48+'onroad all'!BS48+'onroad all'!BT48+ptegu!AD48+ptnonipm!AH48+pt_oilgas!AC48+np_oilgas!W48+rwc!P48+SUM(cmv_c1c2!BA48:BB48)+SUM(cmv_c3!BA48:BB48) -> 11.80 | W49: =nonpt!CW48+ptegu!BB48+ptnonipm!Z48 -> 0.02 | AA49: Washington | AB49: =B49+beis!H48 -> 1,400,531 | AC49: 70,987 | AD49: =D49+beis!T48 -> 174,624 | AE49: 193,751 | AF49: 84,947 | AG49: 14,437 | AH49: =H49+beis!Z48 -> 870,295 | AI49: =I49+beis!E48 -> 17,155 | AJ49: 3,247 | AK49: =K49+beis!N48 -> 25,989 | AL49: =L49+beis!R48 -> 50,944 | AM49: 1,352 | AN49: 1,280 | AO49: 946 | AP49: 3,028 | AQ49: 2,871 | AR49: 0.35 | AS49: 0.80 | AT49: 0.72 | AU49: 4.16 | AV49: 11.80 | AX49: Washington | AY49: =B49-'ptfire-rx'!B48-'ptfire-wild'!B48 -> 842,712 | AZ49: =C49-'ptfire-rx'!C48-'ptfire-wild'!C48 -> 63,735 | BA49: =D49-'ptfire-rx'!D48-'ptfire-wild'!D48 -> 158,471 | BB49: =E49-'ptfire-rx'!E48-'ptfire-wild'!E48 -> 149,391 | BC49: =F49-'ptfire-rx'!F48-'ptfire-wild'!F48 -> 47,354 | BD49: =G49-'ptfire-rx'!G48-'ptfire-wild'!G48 -> 11,343 | BE49: =H49-'ptfire-rx'!H48-'ptfire-wild'!H48 -> 164,649 | BF49: =I49-'ptfire-rx'!AO48-'ptfire-wild'!AL48 -> 1,563 | BG49: =J49-'ptfire-rx'!AS48-'ptfire-wild'!AP48 -> 2,297 | BH49: =K49-'ptfire-rx'!BE48-'ptfire-wild'!BA48 -> 2,483 | BI49: =L49-'ptfire-rx'!BP48-'ptfire-wild'!BL48 -> 3,361 | BJ49: =M49-'ptfire-rx'!BR48-'ptfire-wild'!BN48 -> 323 | BK49: =N49-'ptfire-rx'!AL48-'ptfire-wild'!AJ48 -> 198 | BL49: =O49-'ptfire-rx'!AU48-'ptfire-wild'!AR48 -> 374 | BM49: 3,028 | BN49: 2,871 | BO49: 0.35 | BP49: 0.80 | BQ49: 0.72 | BR49: 4.16 | BS49: 11.80
A50: West Virginia | B50: =rail!B49+nonpt!B49+ptagfire!B49+nonroad!B49+'onroad all'!AG49+cmv_c1c2!B49+'ptfire-rx'!B49+ptegu!B49+ptnonipm!B49+pt_oilgas!B49+np_oilgas!B49+rwc!B49+cmv_c3!B49+airports!B49+'ptfire-wild'!B49+np_solvents!B49 -> 395,595 | C50: =rail!C49+nonpt!C49+ptagfire!C49++nonroad!C49+'onroad all'!BZ49+cmv_c1c2!BE49+'ptfire-rx'!C49+ptegu!C49+ptnonipm!C49+pt_oilgas!C49+np_oilgas!C49+rwc!C49+cmv_c3!BE49+livestock!B49+airports!C49+'ptfire-wild'!C49+fertilizer!B49+np_solvents!C49 -> 10,762 | D50: =rail!D49+nonpt!D49+ptagfire!D49++nonroad!D49+cmv_c1c2!D49+'ptfire-rx'!D49+ptegu!DW49+ptnonipm!D49+pt_oilgas!D49+np_oilgas!D49+rwc!D49+cmv_c3!D49+'onroad all'!CI49+airports!D49+'ptfire-wild'!D49+np_solvents!D49 -> 108,630 | E50: =rail!E49+nonpt!E49+ptagfire!E49++nonroad!E49+cmv_c1c2!E49+'ptfire-rx'!E49+ptegu!E49+ptnonipm!E49+pt_oilgas!E49+np_oilgas!E49+rwc!E49+cmv_c3!E49+afdust!BA49+'onroad all'!DE49+'onroad all'!DD49+airports!E49+'ptfire-wild'!E49+np_solvents!E49 -> 43,330 | F50: =rail!F49+nonpt!F49+ptagfire!F49++nonroad!F49+cmv_c1c2!F49+'ptfire-rx'!F49+ptegu!F49+ptnonipm!F49+pt_oilgas!F49+np_oilgas!F49+rwc!F49+cmv_c3!F49+afdust!BB49+'onroad all'!DD49+airports!F49+'ptfire-wild'!F49+np_solvents!F49 -> 31,152 | G50: =rail!G49+nonpt!G49+ptagfire!G49++nonroad!G49+'onroad all'!DU49+cmv_c1c2!G49+'ptfire-rx'!G49+ptegu!FH49+ptnonipm!G49+pt_oilgas!G49+np_oilgas!G49+rwc!G49+cmv_c3!G49+airports!G49+'ptfire-wild'!G49+np_solvents!G49 -> 45,527 | H50: =rail!H49+nonpt!H49+ptagfire!H49++nonroad!H49+'onroad all'!EI49+cmv_c1c2!H49+'ptfire-rx'!H49+ptegu!H49+ptnonipm!H49+pt_oilgas!H49+np_oilgas!H49+rwc!H49+cmv_c3!H49+livestock!C49+airports!H49+'ptfire-wild'!H49+np_solvents!H49 -> 146,110 | I50: =rail!AO49+nonpt!BN49+ptagfire!AJ49+nonroad!AK49+'onroad all'!H49+cmv_c1c2!O49+'ptfire-rx'!AO49+ptegu!BM49+ptnonipm!BX49+pt_oilgas!BM49+np_oilgas!AU49+rwc!AH49+cmv_c3!O49+livestock!U49+airports!AJ49+'ptfire-wild'!AL49+np_solvents!AU49 -> 1,064 | J50: =rail!AU49+nonpt!BT49+ptagfire!AN49+nonroad!AP49+'onroad all'!P49+cmv_c1c2!T49+'ptfire-rx'!AS49+ptegu!BS49+ptnonipm!CD49+pt_oilgas!BS49+np_oilgas!BA49+rwc!AL49+cmv_c3!T49+livestock!X49+airports!AM49+'ptfire-wild'!AP49+np_solvents!AY49 -> 3,568 | K50: =rail!BR49+nonpt!CY49+ptagfire!AY49+nonroad!BH49+'onroad all'!BC49+cmv_c1c2!AO49+'ptfire-rx'!BE49+ptegu!CX49+ptnonipm!DP49+pt_oilgas!CW49+np_oilgas!BW49+rwc!AY49+cmv_c3!AP49+livestock!AH49+airports!BE49+'ptfire-wild'!BA49+np_solvents!BR49 -> 2,737 | L50: =rail!CF49+nonpt!DO49+ptagfire!BH49+nonroad!BT49+'onroad all'!BU49+cmv_c1c2!BC49+'ptfire-rx'!BP49+ptegu!DM49+ptnonipm!EH49+pt_oilgas!DM49+np_oilgas!CK49+rwc!BJ49+cmv_c3!BC49+livestock!AN49+airports!BN49+'ptfire-wild'!BL49+np_solvents!CF49 -> 1,232 | M50: =rail!CG49+nonpt!DQ49+nonroad!BU49+'onroad all'!BY49+cmv_c1c2!BD49+'ptfire-rx'!BR49+ptegu!DO49+ptnonipm!EJ49+pt_oilgas!DO49+np_oilgas!CL49+rwc!BK49+cmv_c3!BD49+airports!BO49+'ptfire-wild'!BN49+np_solvents!CG49+ptagfire!BJ49 -> 278 | N50: =rail!AN49+nonpt!BK49+nonroad!AJ49+'onroad all'!G49+cmv_c1c2!M49+'ptfire-rx'!AL49+ptegu!BK49+ptnonipm!BU49+pt_oilgas!BK49+np_oilgas!AT49+rwc!AG49+airports!AH49+cmv_c3!M49+'ptfire-wild'!AJ49+ptagfire!AH49 -> 343 | O50: =rail!AY49+nonpt!O49+ptagfire!AP49+nonroad!AR49+'onroad all'!Z49+cmv_c1c2!V49+'ptfire-rx'!AU49+ptegu!BX49+ptnonipm!CI49+pt_oilgas!BX49+np_oilgas!BD49+rwc!AN49+airports!AO49+cmv_c3!V49+'ptfire-wild'!AR49+np_solvents!AE49 -> 319 | P50: =rail!AD49+nonroad!AD49+'onroad all'!AK49+'onroad all'!AL49+'onroad all'!AM49+'onroad all'!AN49+'onroad all'!AO49+'onroad all'!AP49+ptnonipm!BI49+SUM(airports!AR49:AW49)+SUM(cmv_c1c2!AC49:AH49)+SUM(cmv_c3!AC49:AH49) -> 702 | Q50: =rail!AE49+nonroad!AE49+'onroad all'!AL49+'onroad all'!AM49+'onroad all'!AN49+'onroad all'!AO49+'onroad all'!AP49+ptnonipm!BJ49+SUM(airports!AS49:AW49)+SUM(cmv_c1c2!AD49:AH49)+SUM(cmv_c3!AD49:AH49) -> 664 | R50: =rail!P49+nonpt!T49+nonroad!R49+'onroad all'!AC49+ptegu!T49+ptnonipm!T49+pt_oilgas!S49+np_oilgas!Q49+SUM(cmv_c1c2!Z49:AA49)+SUM(cmv_c3!Z49:AA49) -> 0.44 | S50: =rail!K49+nonpt!L49+nonroad!U49+'onroad all'!M49+ptegu!L49+ptnonipm!L49+pt_oilgas!K49+np_oilgas!K49+SUM(cmv_c1c2!R49:S49)+SUM(cmv_c3!R49:S49) -> 0.97 | T50: =rail!O49+nonpt!P49+ptegu!P49+ptnonipm!P49+pt_oilgas!O49+np_oilgas!N49+rwc!M49+SUM(cmv_c1c2!W49:X49)+SUM(cmv_c3!W49:X49) -> 0.12 | U50: =rail!V49+nonpt!AI49+nonroad!T49+'onroad all'!CB49+ptegu!AH49+ptnonipm!AL49+pt_oilgas!AG49+np_oilgas!AA49+rwc!R49+SUM(cmv_c1c2!BF49:BG49)+SUM(cmv_c3!BF49:BG49) -> 15.92 | V50: =rail!T49+nonpt!AE49+nonroad!S49+'onroad all'!BS49+'onroad all'!BT49+ptegu!AD49+ptnonipm!AH49+pt_oilgas!AC49+np_oilgas!W49+rwc!P49+SUM(cmv_c1c2!BA49:BB49)+SUM(cmv_c3!BA49:BB49) -> 15.51 | W50: =nonpt!CW49+ptegu!BB49+ptnonipm!Z49 -> 1.57 | X50: X | AA50: West Virginia | AB50: =B50+beis!H49 -> 432,986 | AC50: 10,762 | AD50: =D50+beis!T49 -> 111,767 | AE50: 43,330 | AF50: 31,152 | AG50: 45,527 | AH50: =H50+beis!Z49 -> 594,487 | AI50: =I50+beis!E49 -> 4,969 | AJ50: 3,568 | AK50: =K50+beis!N49 -> 8,062 | AL50: =L50+beis!R49 -> 19,376 | AM50: 278 | AN50: 343 | AO50: 319 | AP50: 702 | AQ50: 664 | AR50: 0.44 | AS50: 0.97 | AT50: 0.12 | AU50: 15.92 | AV50: 15.51 | AX50: West Virginia | AY50: =B50-'ptfire-rx'!B49-'ptfire-wild'!B49 -> 321,119 | AZ50: =C50-'ptfire-rx'!C49-'ptfire-wild'!C49 -> 9,530 | BA50: =D50-'ptfire-rx'!D49-'ptfire-wild'!D49 -> 107,132 | BB50: =E50-'ptfire-rx'!E49-'ptfire-wild'!E49 -> 35,323 | BC50: =F50-'ptfire-rx'!F49-'ptfire-wild'!F49 -> 24,367 | BD50: =G50-'ptfire-rx'!G49-'ptfire-wild'!G49 -> 44,820 | BE50: =H50-'ptfire-rx'!H49-'ptfire-wild'!H49 -> 128,404 | BF50: =I50-'ptfire-rx'!AO49-'ptfire-wild'!AL49 -> 585 | BG50: =J50-'ptfire-rx'!AS49-'ptfire-wild'!AP49 -> 3,349 | BH50: =K50-'ptfire-rx'!BE49-'ptfire-wild'!BA49 -> 1,507 | BI50: =L50-'ptfire-rx'!BP49-'ptfire-wild'!BL49 -> 503 | BJ50: =M50-'ptfire-rx'!BR49-'ptfire-wild'!BN49 -> 130 | BK50: =N50-'ptfire-rx'!AL49-'ptfire-wild'!AJ49 -> 112 | BL50: =O50-'ptfire-rx'!AU49-'ptfire-wild'!AR49 -> 142 | BM50: 702 | BN50: 664 | BO50: 0.44 | BP50: 0.97 | BQ50: 0.12 | BR50: 15.92 | BS50: 15.51
A51: Wisconsin | B51: =rail!B50+nonpt!B50+ptagfire!B50+nonroad!B50+'onroad all'!AG50+cmv_c1c2!B50+'ptfire-rx'!B50+ptegu!B50+ptnonipm!B50+pt_oilgas!B50+np_oilgas!B50+rwc!B50+cmv_c3!B50+airports!B50+'ptfire-wild'!B50+np_solvents!B50 -> 872,041 | C51: =rail!C50+nonpt!C50+ptagfire!C50++nonroad!C50+'onroad all'!BZ50+cmv_c1c2!BE50+'ptfire-rx'!C50+ptegu!C50+ptnonipm!C50+pt_oilgas!C50+np_oilgas!C50+rwc!C50+cmv_c3!BE50+livestock!B50+airports!C50+'ptfire-wild'!C50+fertilizer!B50+np_solvents!C50 -> 65,605 | D51: =rail!D50+nonpt!D50+ptagfire!D50++nonroad!D50+cmv_c1c2!D50+'ptfire-rx'!D50+ptegu!DW50+ptnonipm!D50+pt_oilgas!D50+np_oilgas!D50+rwc!D50+cmv_c3!D50+'onroad all'!CI50+airports!D50+'ptfire-wild'!D50+np_solvents!D50 -> 143,920 | E51: =rail!E50+nonpt!E50+ptagfire!E50++nonroad!E50+cmv_c1c2!E50+'ptfire-rx'!E50+ptegu!E50+ptnonipm!E50+pt_oilgas!E50+np_oilgas!E50+rwc!E50+cmv_c3!E50+afdust!BA50+'onroad all'!DE50+'onroad all'!DD50+airports!E50+'ptfire-wild'!E50+np_solvents!E50 -> 98,580 | F51: =rail!F50+nonpt!F50+ptagfire!F50++nonroad!F50+cmv_c1c2!F50+'ptfire-rx'!F50+ptegu!F50+ptnonipm!F50+pt_oilgas!F50+np_oilgas!F50+rwc!F50+cmv_c3!F50+afdust!BB50+'onroad all'!DD50+airports!F50+'ptfire-wild'!F50+np_solvents!F50 -> 51,197 | G51: =rail!G50+nonpt!G50+ptagfire!G50++nonroad!G50+'onroad all'!DU50+cmv_c1c2!G50+'ptfire-rx'!G50+ptegu!FH50+ptnonipm!G50+pt_oilgas!G50+np_oilgas!G50+rwc!G50+cmv_c3!G50+airports!G50+'ptfire-wild'!G50+np_solvents!G50 -> 22,185 | H51: =rail!H50+nonpt!H50+ptagfire!H50++nonroad!H50+'onroad all'!EI50+cmv_c1c2!H50+'ptfire-rx'!H50+ptegu!H50+ptnonipm!H50+pt_oilgas!H50+np_oilgas!H50+rwc!H50+cmv_c3!H50+livestock!C50+airports!H50+'ptfire-wild'!H50+np_solvents!H50 -> 173,064 | I51: =rail!AO50+nonpt!BN50+ptagfire!AJ50+nonroad!AK50+'onroad all'!H50+cmv_c1c2!O50+'ptfire-rx'!AO50+ptegu!BM50+ptnonipm!BX50+pt_oilgas!BM50+np_oilgas!AU50+rwc!AH50+cmv_c3!O50+livestock!U50+airports!AJ50+'ptfire-wild'!AL50+np_solvents!AU50 -> 1,770 | J51: =rail!AU50+nonpt!BT50+ptagfire!AN50+nonroad!AP50+'onroad all'!P50+cmv_c1c2!T50+'ptfire-rx'!AS50+ptegu!BS50+ptnonipm!CD50+pt_oilgas!BS50+np_oilgas!BA50+rwc!AL50+cmv_c3!T50+livestock!X50+airports!AM50+'ptfire-wild'!AP50+np_solvents!AY50 -> 2,545 | K51: =rail!BR50+nonpt!CY50+ptagfire!AY50+nonroad!BH50+'onroad all'!BC50+cmv_c1c2!AO50+'ptfire-rx'!BE50+ptegu!CX50+ptnonipm!DP50+pt_oilgas!CW50+np_oilgas!BW50+rwc!AY50+cmv_c3!AP50+livestock!AH50+airports!BE50+'ptfire-wild'!BA50+np_solvents!BR50 -> 3,019 | L51: =rail!CF50+nonpt!DO50+ptagfire!BH50+nonroad!BT50+'onroad all'!BU50+cmv_c1c2!BC50+'ptfire-rx'!BP50+ptegu!DM50+ptnonipm!EH50+pt_oilgas!DM50+np_oilgas!CK50+rwc!BJ50+cmv_c3!BC50+livestock!AN50+airports!BN50+'ptfire-wild'!BL50+np_solvents!CF50 -> 4,914 | M51: =rail!CG50+nonpt!DQ50+nonroad!BU50+'onroad all'!BY50+cmv_c1c2!BD50+'ptfire-rx'!BR50+ptegu!DO50+ptnonipm!EJ50+pt_oilgas!DO50+np_oilgas!CL50+rwc!BK50+cmv_c3!BD50+airports!BO50+'ptfire-wild'!BN50+np_solvents!CG50+ptagfire!BJ50 -> 504 | N51: =rail!AN50+nonpt!BK50+nonroad!AJ50+'onroad all'!G50+cmv_c1c2!M50+'ptfire-rx'!AL50+ptegu!BK50+ptnonipm!BU50+pt_oilgas!BK50+np_oilgas!AT50+rwc!AG50+airports!AH50+cmv_c3!M50+'ptfire-wild'!AJ50+ptagfire!AH50 -> 294 | O51: =rail!AY50+nonpt!O50+ptagfire!AP50+nonroad!AR50+'onroad all'!Z50+cmv_c1c2!V50+'ptfire-rx'!AU50+ptegu!BX50+ptnonipm!CI50+pt_oilgas!BX50+np_oilgas!BD50+rwc!AN50+airports!AO50+cmv_c3!V50+'ptfire-wild'!AR50+np_solvents!AE50 -> 388 | P51: =rail!AD50+nonroad!AD50+'onroad all'!AK50+'onroad all'!AL50+'onroad all'!AM50+'onroad all'!AN50+'onroad all'!AO50+'onroad all'!AP50+ptnonipm!BI50+SUM(airports!AR50:AW50)+SUM(cmv_c1c2!AC50:AH50)+SUM(cmv_c3!AC50:AH50) -> 2,291 | Q51: =rail!AE50+nonroad!AE50+'onroad all'!AL50+'onroad all'!AM50+'onroad all'!AN50+'onroad all'!AO50+'onroad all'!AP50+ptnonipm!BJ50+SUM(airports!AS50:AW50)+SUM(cmv_c1c2!AD50:AH50)+SUM(cmv_c3!AD50:AH50) -> 2,170 | R51: =rail!P50+nonpt!T50+nonroad!R50+'onroad all'!AC50+ptegu!T50+ptnonipm!T50+pt_oilgas!S50+np_oilgas!Q50+SUM(cmv_c1c2!Z50:AA50)+SUM(cmv_c3!Z50:AA50) -> 0.61 | S51: =rail!K50+nonpt!L50+nonroad!U50+'onroad all'!M50+ptegu!L50+ptnonipm!L50+pt_oilgas!K50+np_oilgas!K50+SUM(cmv_c1c2!R50:S50)+SUM(cmv_c3!R50:S50) -> 0.86 | T51: =rail!O50+nonpt!P50+ptegu!P50+ptnonipm!P50+pt_oilgas!O50+np_oilgas!N50+rwc!M50+SUM(cmv_c1c2!W50:X50)+SUM(cmv_c3!W50:X50) -> 0.18 | U51: =rail!V50+nonpt!AI50+nonroad!T50+'onroad all'!CB50+ptegu!AH50+ptnonipm!AL50+pt_oilgas!AG50+np_oilgas!AA50+rwc!R50+SUM(cmv_c1c2!BF50:BG50)+SUM(cmv_c3!BF50:BG50) -> 5.88 | V51: =rail!T50+nonpt!AE50+nonroad!S50+'onroad all'!BS50+'onroad all'!BT50+ptegu!AD50+ptnonipm!AH50+pt_oilgas!AC50+np_oilgas!W50+rwc!P50+SUM(cmv_c1c2!BA50:BB50)+SUM(cmv_c3!BA50:BB50) -> 15.59 | W51: =nonpt!CW50+ptegu!BB50+ptnonipm!Z50 -> 0.20 | X51: X | AA51: Wisconsin | AB51: =B51+beis!H50 -> 916,932 | AC51: 65,605 | AD51: =D51+beis!T50 -> 163,157 | AE51: 98,580 | AF51: 51,197 | AG51: 22,185 | AH51: =H51+beis!Z50 -> 451,017 | AI51: =I51+beis!E50 -> 6,469 | AJ51: 2,545 | AK51: =K51+beis!N50 -> 9,427 | AL51: =L51+beis!R50 -> 25,784 | AM51: 504 | AN51: 294 | AO51: 388 | AP51: 2,291 | AQ51: 2,170 | AR51: 0.61 | AS51: 0.86 | AT51: 0.18 | AU51: 5.88 | AV51: 15.59 | AX51: Wisconsin | AY51: =B51-'ptfire-rx'!B50-'ptfire-wild'!B50 -> 812,154 | AZ51: =C51-'ptfire-rx'!C50-'ptfire-wild'!C50 -> 64,622 | BA51: =D51-'ptfire-rx'!D50-'ptfire-wild'!D50 -> 143,111 | BB51: =E51-'ptfire-rx'!E50-'ptfire-wild'!E50 -> 92,495 | BC51: =F51-'ptfire-rx'!F50-'ptfire-wild'!F50 -> 46,040 | BD51: =G51-'ptfire-rx'!G50-'ptfire-wild'!G50 -> 21,738 | BE51: =H51-'ptfire-rx'!H50-'ptfire-wild'!H50 -> 158,937 | BF51: =I51-'ptfire-rx'!AO50-'ptfire-wild'!AL50 -> 1,260 | BG51: =J51-'ptfire-rx'!AS50-'ptfire-wild'!AP50 -> 2,406 | BH51: =K51-'ptfire-rx'!BE50-'ptfire-wild'!BA50 -> 1,999 | BI51: =L51-'ptfire-rx'!BP50-'ptfire-wild'!BL50 -> 3,772 | BJ51: =M51-'ptfire-rx'!BR50-'ptfire-wild'!BN50 -> 356 | BK51: =N51-'ptfire-rx'!AL50-'ptfire-wild'!AJ50 -> 138 | BL51: =O51-'ptfire-rx'!AU50-'ptfire-wild'!AR50 -> 306 | BM51: 2,291 | BN51: 2,170 | BO51: 0.61 | BP51: 0.86 | BQ51: 0.18 | BR51: 5.88 | BS51: 15.59
A52: Wyoming | B52: =rail!B51+nonpt!B51+ptagfire!B51+nonroad!B51+'onroad all'!AG51+cmv_c1c2!B51+'ptfire-rx'!B51+ptegu!B51+ptnonipm!B51+pt_oilgas!B51+np_oilgas!B51+rwc!B51+cmv_c3!B51+airports!B51+'ptfire-wild'!B51+np_solvents!B51 -> 306,345 | C52: =rail!C51+nonpt!C51+ptagfire!C51++nonroad!C51+'onroad all'!BZ51+cmv_c1c2!BE51+'ptfire-rx'!C51+ptegu!C51+ptnonipm!C51+pt_oilgas!C51+np_oilgas!C51+rwc!C51+cmv_c3!BE51+livestock!B51+airports!C51+'ptfire-wild'!C51+fertilizer!B51+np_solvents!C51 -> 34,421 | D52: =rail!D51+nonpt!D51+ptagfire!D51++nonroad!D51+cmv_c1c2!D51+'ptfire-rx'!D51+ptegu!DW51+ptnonipm!D51+pt_oilgas!D51+np_oilgas!D51+rwc!D51+cmv_c3!D51+'onroad all'!CI51+airports!D51+'ptfire-wild'!D51+np_solvents!D51 -> 132,089 | E52: =rail!E51+nonpt!E51+ptagfire!E51++nonroad!E51+cmv_c1c2!E51+'ptfire-rx'!E51+ptegu!E51+ptnonipm!E51+pt_oilgas!E51+np_oilgas!E51+rwc!E51+cmv_c3!E51+afdust!BA51+'onroad all'!DE51+'onroad all'!DD51+airports!E51+'ptfire-wild'!E51+np_solvents!E51 -> 240,213 | F52: =rail!F51+nonpt!F51+ptagfire!F51++nonroad!F51+cmv_c1c2!F51+'ptfire-rx'!F51+ptegu!F51+ptnonipm!F51+pt_oilgas!F51+np_oilgas!F51+rwc!F51+cmv_c3!F51+afdust!BB51+'onroad all'!DD51+airports!F51+'ptfire-wild'!F51+np_solvents!F51 -> 43,370 | G52: =rail!G51+nonpt!G51+ptagfire!G51++nonroad!G51+'onroad all'!DU51+cmv_c1c2!G51+'ptfire-rx'!G51+ptegu!FH51+ptnonipm!G51+pt_oilgas!G51+np_oilgas!G51+rwc!G51+cmv_c3!G51+airports!G51+'ptfire-wild'!G51+np_solvents!G51 -> 40,802 | H52: =rail!H51+nonpt!H51+ptagfire!H51++nonroad!H51+'onroad all'!EI51+cmv_c1c2!H51+'ptfire-rx'!H51+ptegu!H51+ptnonipm!H51+pt_oilgas!H51+np_oilgas!H51+rwc!H51+cmv_c3!H51+livestock!C51+airports!H51+'ptfire-wild'!H51+np_solvents!H51 -> 167,853 | I52: =rail!AO51+nonpt!BN51+ptagfire!AJ51+nonroad!AK51+'onroad all'!H51+cmv_c1c2!O51+'ptfire-rx'!AO51+ptegu!BM51+ptnonipm!BX51+pt_oilgas!BM51+np_oilgas!AU51+rwc!AH51+cmv_c3!O51+livestock!U51+airports!AJ51+'ptfire-wild'!AL51+np_solvents!AU51 -> 1,698 | J52: =rail!AU51+nonpt!BT51+ptagfire!AN51+nonroad!AP51+'onroad all'!P51+cmv_c1c2!T51+'ptfire-rx'!AS51+ptegu!BS51+ptnonipm!CD51+pt_oilgas!BS51+np_oilgas!BA51+rwc!AL51+cmv_c3!T51+livestock!X51+airports!AM51+'ptfire-wild'!AP51+np_solvents!AY51 -> 1,843 | K52: =rail!BR51+nonpt!CY51+ptagfire!AY51+nonroad!BH51+'onroad all'!BC51+cmv_c1c2!AO51+'ptfire-rx'!BE51+ptegu!CX51+ptnonipm!DP51+pt_oilgas!CW51+np_oilgas!BW51+rwc!AY51+cmv_c3!AP51+livestock!AH51+airports!BE51+'ptfire-wild'!BA51+np_solvents!BR51 -> 5,516 | L52: =rail!CF51+nonpt!DO51+ptagfire!BH51+nonroad!BT51+'onroad all'!BU51+cmv_c1c2!BC51+'ptfire-rx'!BP51+ptegu!DM51+ptnonipm!EH51+pt_oilgas!DM51+np_oilgas!CK51+rwc!BJ51+cmv_c3!BC51+livestock!AN51+airports!BN51+'ptfire-wild'!BL51+np_solvents!CF51 -> 2,488 | M52: =rail!CG51+nonpt!DQ51+nonroad!BU51+'onroad all'!BY51+cmv_c1c2!BD51+'ptfire-rx'!BR51+ptegu!DO51+ptnonipm!EJ51+pt_oilgas!DO51+np_oilgas!CL51+rwc!BK51+cmv_c3!BD51+airports!BO51+'ptfire-wild'!BN51+np_solvents!CG51+ptagfire!BJ51 -> 325 | N52: =rail!AN51+nonpt!BK51+nonroad!AJ51+'onroad all'!G51+cmv_c1c2!M51+'ptfire-rx'!AL51+ptegu!BK51+ptnonipm!BU51+pt_oilgas!BK51+np_oilgas!AT51+rwc!AG51+airports!AH51+cmv_c3!M51+'ptfire-wild'!AJ51+ptagfire!AH51 -> 659 | O52: =rail!AY51+nonpt!O51+ptagfire!AP51+nonroad!AR51+'onroad all'!Z51+cmv_c1c2!V51+'ptfire-rx'!AU51+ptegu!BX51+ptnonipm!CI51+pt_oilgas!BX51+np_oilgas!BD51+rwc!AN51+airports!AO51+cmv_c3!V51+'ptfire-wild'!AR51+np_solvents!AE51 -> 295 | P52: =rail!AD51+nonroad!AD51+'onroad all'!AK51+'onroad all'!AL51+'onroad all'!AM51+'onroad all'!AN51+'onroad all'!AO51+'onroad all'!AP51+ptnonipm!BI51+SUM(airports!AR51:AW51)+SUM(cmv_c1c2!AC51:AH51)+SUM(cmv_c3!AC51:AH51) -> 1,145 | Q52: =rail!AE51+nonroad!AE51+'onroad all'!AL51+'onroad all'!AM51+'onroad all'!AN51+'onroad all'!AO51+'onroad all'!AP51+ptnonipm!BJ51+SUM(airports!AS51:AW51)+SUM(cmv_c1c2!AD51:AH51)+SUM(cmv_c3!AD51:AH51) -> 1,088 | R52: =rail!P51+nonpt!T51+nonroad!R51+'onroad all'!AC51+ptegu!T51+ptnonipm!T51+pt_oilgas!S51+np_oilgas!Q51+SUM(cmv_c1c2!Z51:AA51)+SUM(cmv_c3!Z51:AA51) -> 1.91 | S52: =rail!K51+nonpt!L51+nonroad!U51+'onroad all'!M51+ptegu!L51+ptnonipm!L51+pt_oilgas!K51+np_oilgas!K51+SUM(cmv_c1c2!R51:S51)+SUM(cmv_c3!R51:S51) -> 5.98 | T52: =rail!O51+nonpt!P51+ptegu!P51+ptnonipm!P51+pt_oilgas!O51+np_oilgas!N51+rwc!M51+SUM(cmv_c1c2!W51:X51)+SUM(cmv_c3!W51:X51) -> 2.43 | U52: =rail!V51+nonpt!AI51+nonroad!T51+'onroad all'!CB51+ptegu!AH51+ptnonipm!AL51+pt_oilgas!AG51+np_oilgas!AA51+rwc!R51+SUM(cmv_c1c2!BF51:BG51)+SUM(cmv_c3!BF51:BG51) -> 10.51 | V52: =rail!T51+nonpt!AE51+nonroad!S51+'onroad all'!BS51+'onroad all'!BT51+ptegu!AD51+ptnonipm!AH51+pt_oilgas!AC51+np_oilgas!W51+rwc!P51+SUM(cmv_c1c2!BA51:BB51)+SUM(cmv_c3!BA51:BB51) -> 23.71 | W52: =nonpt!CW51+ptegu!BB51+ptnonipm!Z51 -> 0.00 | AA52: Wyoming | AB52: =B52+beis!H51 -> 356,012 | AC52: 34,421 | AD52: =D52+beis!T51 -> 144,087 | AE52: 240,213 | AF52: 43,370 | AG52: 40,802 | AH52: =H52+beis!Z51 -> 373,816 | AI52: =I52+beis!E51 -> 6,901 | AJ52: 1,843 | AK52: =K52+beis!N51 -> 12,612 | AL52: =L52+beis!R51 -> 30,957 | AM52: 325 | AN52: 659 | AO52: 295 | AP52: 1,145 | AQ52: 1,088 | AR52: 1.91 | AS52: 5.98 | AT52: 2.43 | AU52: 10.51 | AV52: 23.71 | AX52: Wyoming | AY52: =B52-'ptfire-rx'!B51-'ptfire-wild'!B51 -> 188,768 | AZ52: =C52-'ptfire-rx'!C51-'ptfire-wild'!C51 -> 32,496 | BA52: =D52-'ptfire-rx'!D51-'ptfire-wild'!D51 -> 130,723 | BB52: =E52-'ptfire-rx'!E51-'ptfire-wild'!E51 -> 228,466 | BC52: =F52-'ptfire-rx'!F51-'ptfire-wild'!F51 -> 33,414 | BD52: =G52-'ptfire-rx'!G51-'ptfire-wild'!G51 -> 39,992 | BE52: =H52-'ptfire-rx'!H51-'ptfire-wild'!H51 -> 140,179 | BF52: =I52-'ptfire-rx'!AO51-'ptfire-wild'!AL51 -> 772 | BG52: =J52-'ptfire-rx'!AS51-'ptfire-wild'!AP51 -> 1,595 | BH52: =K52-'ptfire-rx'!BE51-'ptfire-wild'!BA51 -> 3,665 | BI52: =L52-'ptfire-rx'!BP51-'ptfire-wild'!BL51 -> 405 | BJ52: =M52-'ptfire-rx'!BR51-'ptfire-wild'!BN51 -> 56 | BK52: =N52-'ptfire-rx'!AL51-'ptfire-wild'!AJ51 -> 376 | BL52: =O52-'ptfire-rx'!AU51-'ptfire-wild'!AR51 -> 145 | BM52: 1,145 | BN52: 1,088 | BO52: 1.91 | BP52: 5.98 | BQ52: 2.43 | BR52: 10.51 | BS52: 23.71
